Workbook

Sheet MENU
A1: Ligue de Balle Molle Voyageurs
A2: Classements & Statistiques 2019 FINAL
A3: Menu
A5: BALLE MOLLE
A18: BALLE DONNÉE
A26: Pour toutes questions ou corrections,
A27: vous devez envoyer un courriel au statisticien Stéphane Tardif
A28: informatik@videotron.ca

Sheet Maison
A2: Ligue de Balle Molle Voyageurs
A4: Balle Molle Maison 2 soirs semaine
G6: FINAL
A7: Dernière mise à jour : | D7: 2019-09-03
A10: CLASSEMENT MAISON 2 SOIRS SEMAINE
A11: POS | B11: ÉQUIPE | H11: PJ | I11: V | J11: D | K11: N | L11: PP | M11: PC | N11: PTS | O11: DIFF | P11: MOY
A12: 1 | B12: C-Twins | H12: =1+1+1+1+1+1+1+1+1+1+1+1+1+1+1+1+1+1+1+1 -> 20 | I12: =1+1+1+1+1+1+1+1+1+1+1+1+1 -> 13 | J12: =1+1+1+1+1+1+1 -> 7 | K12: 0 | L12: =2+10+15+7+17+11+5+12+12+7+15+6+6+6+8+6+4+11+7+4 -> 171 | M12: =7+6+5+13+5+8+1+7+1+4+3+1+9+12+6+7+8+10+9+3 -> 125 | N12: =I12*2+K12*1 -> 26 | O12: =L12-M12 -> 46 | P12: =IF(H12<>0,(2*I12+K12)/(2*H12),0) -> 0.65
A13: 2 | B13: Eagles | H13: 20 | I13: =1+1+1+1+1+1+1+1+1+1 -> 10 | J13: =1+1+1+1+1+1+1 -> 7 | K13: =0+1+1+1 -> 3 | L13: =7+5+6+2+15+13+5+8+1+10+1+8+6+5+7+20+5+15+5+10 -> 154 | M13: =2+10+5+8+8+13+1+11+5+10+12+4+7+0+5+5+5+2+15+7 -> 135 | N13: 23 | O13: 19 | P13: 0.575
A14: 3 | B14: Kamikazes | H14: 20 | I14: =1+1+1+1+1+1+1+1+1+1+1 -> 11 | J14: =1+1+1+1+1+1+1+1 -> 8 | K14: =0+1 -> 1 | L14: =10+8+10+5+13+4+4+7+10+11+9+4+7+9+5+1+12+1+4+3 -> 137 | M14: =2+10+5+15+7+10+1+6+10+3+3+10+6+6+7+6+5+9+0+4 -> 125 | N14: 23 | O14: 12 | P14: 0.575
A15: 4 | B15: Indians | H15: 20 | I15: =1+1+1+1+1+1+1+1+1+1 -> 10 | J15: =1+1+1+1+1+1+1+1+1 -> 9 | K15: =0+1 -> 1 | L15: =6+10+8+5+8+5+12+3+9+3+7+3+4+0+8+6+5+5+8+9 -> 124 | M15: =5+8+7+6+15+17+7+6+1+11+5+15+2+5+5+8+5+12+4+1 -> 145 | N15: 21 | O15: -21 | P15: 0.525
A16: 5 | B16: Reds | H16: 20 | I16: =0+1+1+1+1+1+1+1+1+1 -> 9 | J16: =1+1+1+1+1+1+1+1+1+1+1 -> 11 | K16: 0 | L16: =5+11+8+12+10+7+6+7+5+3+1+6+9+5+2+6+15+0+10+9 -> 137 | M16: =6+1+2+0+4+12+3+12+7+9+6+4+11+20+15+1+5+4+11+7 -> 140 | N16: 18 | O16: -3 | P16: 0.45
A17: 6 | B17: Hypotheca | H17: 20 | I17: =0+1+1+1+1 -> 4 | J17: =1+1+1+1+1+1+1+1+1+1+1+1+1+1+1 -> 15 | K17: =0+1 -> 1 | L17: =2+6+7+1+0+13+1+1+6+1+4+4+10+2+4+5+11+12+7+7 -> 104 | M17: =10+10+8+11+12+13+5+4+7+9+7+8+4+4+6+8+9+6+6+10 -> 157 | N17: 9 | O17: -53 | P17: 0.225
B19: TOTAL | H19: =SUM(H12:H17) -> 120 | I19: 57 | J19: 57 | K19: 6 | L19: 827 | M19: 827 | N19: 120 | O19: 0 | P19: =(I19+(K19*0.5))/H19 -> 0.5
A38: Ligue de Balle Molle Voyageurs
A40: =A4 -> Balle Molle Maison 2 soirs semaine
A43: INDIANS
A44: # | B44: JOUEURS | F44: C | G44: P | H44: S | I44: PJ | J44: AB | K44: P | L44: CS | M44: PP | N44: BB | O44: CC | P44: MOY
B45: Robert Néron | F45: x | G45: x | I45: 1 | J45: 3 | K45: 1 | L45: 2 | M45: 4 | O45: 1 | P45: =IF($J45<>0,L45/$J45,0) -> 0.6666666667
B46: Joaquin Murillo | F46: x | G46: x | I46: =1+1+1+1+1+1+1+1+1+1+1+1+1+1+1+1 -> 16 | J46: =3+4+4+4+4+2+5+3+3+3+3+3+4+4+5 -> 54 | K46: =2+1+1+1+2+2+1+2+2+1+1+2 -> 18 | L46: =1+1+2+2+1+1+3+1+2+1+2+1+3+3+3 -> 27 | M46: =1+1+1+1+1+1+1+1+1 -> 9 | N46: =1+1+1+1+1+1 -> 6 | O46: 1 | P46: 0.5
B47: Pierre Munger | F47: x | G47: x | I47: =1+1+1+1+1+1+1+1+1+1+1+1+1+1+1+1+1+1+1+1 -> 20 | J47: =3+4+3+4+2+3+3+2+4+4+3+4+3+2+1+3+3+4+3 -> 58 | K47: =1+1+1+1+2+1+1+2+2 -> 12 | L47: =2+2+2+1+2+1+1+1+3+1+1+1+3+2+1+1 -> 25 | M47: =2+1+1+1+2+1+1+2+2+1+2 -> 16 | N47: =1+2+1+1+1+1+1+1+1 -> 10 | O47: =1+1 -> 2 | P47: 0.4310344828
B48: Jeff Ross | F48: x | G48: x | I48: =1+1+1+1+1+1+1+1+1+1+1+1+1+1+1+1+1 -> 17 | J48: =3+2+4+3+4+3+5+3+1+4+1+3+3+4+4+4 -> 51 | K48: =2+1+1+2+2+1+2+1 -> 12 | L48: =2+2+1+1+2+3+1+2+1+1+2+2+1 -> 21 | M48: =1+1+3+2+1+1 -> 9 | N48: =2+1+2 -> 5 | O48: 1 | P48: 0.4117647059
B49: Aleksei Lopez | F49: x | G49: x | I49: =1+1+1+1+1+1+1+1+1+1+1+1+1+1+1+1+1+1+1+1 -> 20 | J49: =4+3+4+3+4+2+5+4+4+3+4+3+2+2+3+4+3+1+3 -> 61 | K49: =1+1+4+2+1+2+1+1 -> 13 | L49: =2+2+1+1+1+1+5+1+3+1+1+1+3+1+1 -> 25 | M49: =3+1+1+2+3+1+1+2+1+2+2 -> 19 | N49: =1+2+1+2+1+2+1 -> 10 | O49: 1 | P49: 0.4098360656
B50: Oswaldo Peley | F50: x | G50: x | I50: =1+1+1+1+1+1 -> 6 | J50: =4+2+4+3+3+2 -> 18 | K50: =1+2 -> 3 | L50: =3+1+1+1+1 -> 7 | M50: =1+1+1+2+4 -> 9 | N50: =1+1+1 -> 3 | P50: 0.3888888889
B51: Juan Carlos Molines | F51: x | G51: x | I51: =1+1+1+1+1+1+1+1+1+1+1+1+1+1+1+1+1 -> 17 | J51: =2+4+1+3+3+2+1+4+3+2+1+4+3+4+1 -> 38 | K51: =1+1+1+1+1+1+1+1+2 -> 10 | L51: =1+2+1+2+1+2+2+2+1 -> 14 | M51: =1+2 -> 3 | N51: =1+1+1+1+1+1+1 -> 7 | P51: 0.3684210526
B52: Steeve Soares | F52: x | G52: x | I52: =1+1 -> 2 | J52: =4+2 -> 6 | K52: =1+2 -> 3 | L52: =1+1 -> 2 | M52: 1 | N52: 2 | P52: 0.3333333333
B53: Danny Meyers | F53: x | G53: x | I53: =1+1+1+1+1+1+1+1+1+1+1+1 -> 12 | J53: =1+2+3 -> 6 | K53: 1 | L53: =0+1+1 -> 2 | M53: 0 | N53: 1 | P53: 0.3333333333
B54: Angel Pino | F54: x | G54: x | I54: =1+1+1+1+1+1+1+1+1+1+1+1+1+1+1+1+1+1+1+1 -> 20 | J54: =3+4+4+3+4+3+5+3+3+4+3+3+3+3+3+4+4+2+4 -> 65 | K54: =2+2+1+1+1+1+1+1+1+1+1+2+1+1 -> 17 | L54: =1+3+1+2+1+2+1+1+1+2+1+1+1+2+1 -> 21 | M54: =1+1+1+1+1+1+1+2+1+2 -> 12 | N54: =1+1+1+1+1+1+2 -> 8 | O54: 1 | P54: 0.3230769231
B55: Alirio Perez | F55: x | G55: x | I55: =1+1+1+1+1 -> 5 | J55: =2+4+2+5 -> 13 | K55: =0+1+1 -> 2 | L55: =0+2+2 -> 4 | M55: =0+2+1+2 -> 5 | N55: 1 | P55: 0.3076923077
B56: Freddy Mattar | F56: x | G56: x | I56: =1+1+1+1+1+1+1+1+1+1+1+1+1+1+1+1+1+1+1+1 -> 20 | J56: =3+3+4+3+3+3+3+2+3+3+3+2+4+3+4+4+3+3 -> 56 | K56: =2+1+1+2+2+1+1 -> 10 | L56: =2+2+1+1+2+1+1+2+1+1+3 -> 17 | M56: =1+1+1+1 -> 4 | N56: =1+1+1+1+1+1+1 -> 7 | P56: 0.3035714286
B57: André Paquette | F57: x | G57: x | I57: 1 | J57: 4 | K57: 0 | L57: 1 | M57: 0 | P57: 0.25
B58: Cesar Romero | F58: x | G58: x | I58: =1+1+1+1+1+1+1+1+1+1+1+1+1+1 -> 14 | J58: =4+4+4+5+5+3+3+3+2+3+3+3+4 -> 46 | K58: =2+1+2+1+2+1 -> 9 | L58: =4+1+1+2+1+1+1 -> 11 | M58: =3+1+1 -> 5 | N58: =1+1+1+1 -> 4 | P58: 0.2391304348
B59: Omar Montano | F59: x | G59: x | I59: =1+1+1+1+1+1+1+1+1+1+1+1+1+1+1+1+1+1+1 -> 19 | J59: =3+2+3+4+3+5+2+3+3+3+3+2+3+2+33+4+4 -> 82 | K59: =1+1+2+2+1+1 -> 8 | L59: =1+1+1+3+1+2+1+1+1+1+1 -> 14 | M59: =2+2+2+1+1+1+1 -> 10 | N59: =2+1+1 -> 4 | P59: 0.1707317073
B60: Martin Vignon | F60: x | G60: x | I60: =1+1+1+1+1 -> 5 | J60: =3+2+2+3+2 -> 12 | K60: =0+1 -> 1 | L60: =0+1+1 -> 2 | M60: =1+2 -> 3 | N60: =1+1+2 -> 4 | P60: 0.1666666667
B61: Dany Picard | F61: x | G61: x | I61: =1+1+1+1+1+1+1+1+1 -> 9 | J61: =2+4+3 -> 9 | K61: 0 | L61: =0+1 -> 1 | M61: 0 | P61: 0.1111111111
B62: Carlos Chavaria | F62: x | G62: x | I62: =1+1+1+1+1+1+1+1+1 -> 9 | J62: =2+2+3 -> 7 | K62: 0 | L62: 0 | M62: 0 | P62: 0
B63: Jose Rafael Porras | F63: x | G63: x | P63: 0
B64: Luis Augusto Gonzales | F64: x | G64: x | P64: 0
B65: TOTAL | I65: =SUM(I45:I64) -> 213 | J65: =SUM(J45:J64) -> 589 | K65: 120 | L65: 196 | M65: 109 | N65: 72 | O65: 7 | P65: =L65/J65 -> 0.3327674024
A67: # | B67: LANCEURS | F67: PJ | G67: V | H67: D | I67: N | J67: ML | K67: P | L67: PM | M67: CS | N67: BB | O67: K | P67: MPM
B68: Carlos Chavarra | F68: =1+1+1+1+1+1+1+1+1 -> 9 | G68: =1+1+1 -> 3 | H68: =1+1 -> 2 | J68: =4+4+4.33+3+2+6+2+1+7 -> 33.33 | K68: =7+2+9+2+2+5+2+0+1 -> 30 | L68: =4+2+9+1+0+2+2+0+1 -> 21 | M68: =8+3+12+5+2+10+3+6 -> 49 | N68: =3+4+2+3+1+1+4 -> 18 | O68: =1+1 -> 2 | P68: =IFERROR(7*(L68/J68),"") -> 4.410441044
B69: Freddy Mattar | F69: 1 | G69: 1 | J69: 7 | K69: 5 | L69: 5 | M69: 14 | N69: 2 | O69: 1 | P69: =IFERROR(7*(L69/J69),"") -> 5
B70: Danny Meyers | F70: =1+1+1+1+1+1+1+1+1+1+1+1 -> 12 | G70: =1+1+1+1 -> 4 | H70: =1+1+1 -> 3 | I70: 1 | J70: =3+6+0.67+2.67+5.67+2+5+5+1.67+7+4+6 -> 48.68 | K70: =1+6+10+5+6+2+3+0+0+5+10+4 -> 52 | L70: =1+5+10+3+6+0+3+0+0+5+8+2 -> 43 | M70: =6+12+9+6+5+5+6+6+1+13+13+10 -> 92 | N70: =1+2+1+1+3+2+3+4+2+2 -> 21 | O70: =0+2+1+1 -> 4 | P70: =IFERROR(7*(L70/J70),"") -> 6.183237469
B71: Dany Picard | F71: =1+1+1+1+1+1+1+1 -> 8 | G71: =1+1+1 -> 3 | H71: =1+1+1 -> 3 | J71: =4+7+4+0.33+7+6+7+4.33 -> 39.66 | K71: =7+7+10+0+1+15+5+8 -> 53 | L71: =6+3+9+0+1+15+2+8 -> 44 | M71: =10+13+11+2+6+16+11+8 -> 77 | N71: =2+3+2+3+1+3 -> 14 | O71: =0+1+2+1 -> 4 | P71: =IFERROR(7*(L71/J71),"") -> 7.766011094
B72: Pierre Munger | F72: 1 | J72: 2 | K72: 5 | L72: 5 | M72: 5 | N72: 4 | O72: 0 | P72: =IFERROR(7*(L72/J72),"") -> 17.5
B73: TOTAL | F73: =SUM(F68:F72) -> 31 | G73: =SUM(G68:G72) -> 11 | H73: 8 | I73: 1 | J73: 130.67 | K73: 145 | L73: 118 | M73: 237 | N73: 59 | O73: 11 | P73: =(L73*7)/J73 -> 6.321267315
B74: Juan Carlos Molines | F74: 1 | J74: 1 | K74: 0 | L74: 0 | M74: 0 | N74: 3 | O74: 0 | P74: =IFERROR(7*(L74/J74),"") -> 0
A80: Ligue de Balle Molle Voyageurs
A82: =A4 -> Balle Molle Maison 2 soirs semaine
A85: TWINS
A86: # | B86: JOUEURS | F86: C | G86: P | H86: S | I86: PJ | J86: AB | K86: P | L86: CS | M86: PP | N86: BB | O86: CC | P86: MOY
B87: Michel Deslauriers | F87: x | G87: x | I87: =1+1+1+1+1+1+1+1+1+1+1+1 -> 12 | J87: =0+3+3 -> 6 | K87: 0 | L87: =0+3+1 -> 4 | M87: 0 | P87: =IF($J87<>0,L87/$J87,0) -> 0.6666666667
B88: Harold Salinas | F88: x | G88: x | I88: =1+1+1+1+1+1+1+1+1+1+1+1+1+1+1 -> 15 | J88: =3+2+4+4+3+2+4+4+4+3+3+3+4+4+2 -> 49 | K88: =2+2+1+1+2+1+2+2+1 -> 14 | L88: =1+2+3+2+1+3+2+3+1+1+1+1+2+1 -> 24 | M88: =1+3+3+3+3+1+2+2+1+2+2+2 -> 25 | N88: =1+2+1+2+1+1+1+2 -> 11 | O88: =1+2+1+1+1 -> 6 | P88: 0.4897959184
B89: Adonis Alea | F89: x | G89: x | I89: =1+1+1+1+1+1+1+1+1+1+1+1+1 -> 13 | J89: =3+4+3+4+3+4+3+4+1+4+4+4+3 -> 44 | K89: =1+2+2+1+2+1+1+2+1+1+2+2 -> 18 | L89: =1+2+1+1+2+1+2+1+1+3+4+2 -> 21 | M89: =4+1+1+3+3+2+1+1 -> 16 | N89: =1+0+1+3+1+1 -> 7 | O89: =1+1 -> 2 | P89: 0.4772727273
B90: Mathieu Lefebvre | F90: x | G90: x | I90: =1+1+1+1+1+1+1+1+1+1+1+1+1+1+1+1+1+1 -> 18 | J90: =4+4+5+4+4+4+4+5+5+5+4+4+4+3+4+4+4+3 -> 74 | K90: =3+5+2+3+2+1+3+1+1+2+2+1 -> 26 | L90: =3+3+3+3+2+1+1+1+3+1+3+1+3+3+2+1 -> 34 | M90: =1+1+3+1+2+2+1+1 -> 12 | N90: =1+1 -> 2 | O90: =1+1 -> 2 | P90: 0.4594594595
B91: Adam Bouchard | F91: x | G91: x | I91: =1+1+1+1+1+1+1+1+1+1+1 -> 11 | J91: =4+4+4+4+5+5+4+2+2+4+3 -> 41 | K91: =2+3+2+2+1+1+2+1 -> 14 | L91: =3+3+2+1+2+3+1+1+2 -> 18 | M91: =1+4+1+2+1 -> 9 | N91: =1+1+1+1 -> 4 | O91: =1+1 -> 2 | P91: 0.4390243902
B92: Olivier Blais | F92: x | G92: x | I92: =1+1+1+1+1+1+1+1+1+1+1+1+1+1 -> 14 | J92: =3+3+2+1+2+3+3+4+3+4+3+3+3+3 -> 40 | K92: =1+1+2+1+3+1+1+3+2+1 -> 16 | L92: =1+1+1+1+1+2+1+1+3+2+1+1+1 -> 17 | M92: =2+1+1+1+8+1 -> 14 | N92: =1+2+2+1+1+1 -> 8 | O92: 3 | P92: 0.425
B93: Rémi Bouchard | F93: x | G93: x | I93: =1+1+1+1+1+1+1+1+1+1+1+1+1+1 -> 14 | J93: =1+4+3+4+3+4+3+4+3+3+3+4+4+4 -> 47 | K93: =1+1+1+1+1+2+2+1+1+1+3+1+1 -> 17 | L93: =1+1+2+1+2+3+1+1+2+3+2 -> 19 | M93: =1+1+1+1+1+3+2+4+1 -> 15 | N93: =1+1 -> 2 | O93: =1+1+1+1+2 -> 6 | P93: 0.4042553191
B94: Jaime Dominguez | F94: x | G94: x | I94: =1+1+1+1+1+1+1+1+1+1+1+1+1+1 -> 14 | J94: =2+4+2+2+3+3+1+1+2+1+3+3+3+3+3 -> 36 | K94: =3+1+1+1 -> 6 | L94: =3+1+1+1+1+1+1+1+2+2 -> 14 | M94: =1+1+1+2+1 -> 6 | N94: 1 | P94: 0.3888888889
B95: Jamie Montgomery | F95: x | G95: x | I95: =1+1+1+1+1+1 -> 6 | J95: =1+2+3+4+1 -> 11 | K95: =0+2 -> 2 | L95: =1+2+1 -> 4 | M95: =0+2 -> 2 | N95: =2+1 -> 3 | P95: 0.3636363636
B96: Victor Jordany Maldonado | F96: x | G96: x | I96: =1+1+1+1+1+1+1+1+1+1+1+1+1+1+1 -> 15 | J96: =2+3+3+2+4+3+4+4+3+4+2+3+3+4+3 -> 47 | K96: =0+3+2+2+1+1+2+2+1 -> 14 | L96: =0+1+2+2+2+3+2+2+1+1 -> 16 | M96: =0+2+4+5+1+2 -> 14 | N96: =1+1+1+1+1+1+2+1 -> 9 | O96: 1 | P96: 0.3404255319
B97: Daniel Rodriguez | F97: x | G97: x | I97: =1+1+1+1+1+1+1+1+1+1+1+1 -> 12 | J97: =3+3+3+3+3+4+4+3+3+4+1+1 -> 35 | K97: =2+2+2+1+2+1 -> 10 | L97: =1+2+3+3+1+1 -> 11 | M97: =0+2+1+1+1 -> 5 | N97: =1+1+1+1+1+1 -> 6 | O97: 1 | P97: 0.3142857143
B98: Nuno Abreu | F98: x | G98: x | I98: =1+1+1+1+1+1+1+1+1+1+1+1+1+1+1+1+1+1+1 -> 19 | J98: =3+3+4+3+4+3+3+4+4+4+3+4+2+3+3+3+4+1+4 -> 62 | K98: =1+2+1+2+2+1 -> 9 | L98: =2+4+1+2+1+2+1+2+1+1+1 -> 18 | M98: =2+1+3+2+1+3+1+2+1+1+1 -> 18 | N98: =1+1+1+1 -> 4 | O98: =1+1 -> 2 | P98: 0.2903225806
B99: Jonathan Pépin | F99: x | G99: x | I99: =1+1+1+1+1+1+1+1+1+1+1+1 -> 12 | J99: =4+2+3+3+3+0+1+3+4+1+2 -> 26 | K99: =1+1+1+1 -> 4 | L99: =2+1+1+1+2 -> 7 | M99: =1+1 -> 2 | N99: =1+1 -> 2 | P99: 0.2692307692
B100: Rui Abreu | F100: x | G100: x | I100: =1+1+1+1+1+1+1+1 -> 8 | J100: =2+4+2+3+3+1+2+2 -> 19 | K100: =1+1 -> 2 | L100: =1+2+1+1 -> 5 | M100: =0+1+2+1 -> 4 | N100: =2+1+3 -> 6 | P100: 0.2631578947
B101: Steve Bouthillier | F101: x | G101: x | I101: =1+1+1+1+1+1+1+1+1+1+1+1+1+1+1+1+1+1 -> 18 | J101: =2+3+1+4+4+2+4+4+4+4+3+3+3+1+3+4+3+2 -> 54 | K101: =2+1+2+2+1+2+2+1+1+1+1 -> 16 | L101: =1+1+1+2+1+2+1+1+1+1 -> 12 | M101: =3+1+1+2+1 -> 8 | N101: =2+2+1+1+1+1+1 -> 9 | O101: 1 | P101: 0.2222222222
B102: Julien Choquette | F102: x | G102: x | I102: =1+1+1+1 -> 4 | J102: =2+3+0+2 -> 7 | K102: =0+1+1+1 -> 3 | L102: =0+1 -> 1 | M102: 0 | N102: 1 | P102: 0.1428571429
B103: Michel Grenier | F103: x | G103: x | I103: =1+1+1+1+1+1+1+1+1+1 -> 10 | J103: =1+3+3 -> 7 | K103: 0 | L103: 0 | M103: 0 | P103: 0
B104: Andre Dorion | F104: x | G104: x | I104: 1 | J104: 2 | K104: 0 | L104: 0 | M104: 0 | P104: 0
B105: Charles Gaudette | F105: x | G105: x | I105: =1+1+1+1+1+1+1 -> 7 | J105: 2 | K105: 0 | L105: 0 | M105: 0 | P105: 0
B106: Marc-André Lacasse | F106: x | G106: x | P106: 0
B107: TOTAL | I107: =SUM(I87:I106) -> 223 | J107: =SUM(J87:J106) -> 609 | K107: 171 | L107: 225 | M107: 150 | N107: 75 | O107: 26 | P107: =L107/J107 -> 0.3694581281
A109: # | B109: LANCEURS | F109: PJ | G109: V | H109: D | I109: N | J109: ML | K109: P | L109: PM | M109: CS | N109: BB | O109: K | P109: MPM
B110: Michel Deslauriers | F110: =1+1+1+1+1+1+1+1+1+1+1+1 -> 12 | G110: =1+1+1+1+1+1+1+1 -> 8 | H110: =1+1 -> 2 | J110: =2.33+3+5+6+3+3.33+6+2+7+3+6.33+7 -> 53.99 | K110: =6+1+4+5+0+1+1+1+1+3+6+3 -> 32 | L110: =5+1+4+5+0+1+1+0+1+1+5+2 -> 26 | M110: =6+5+6+8+2+3+8+3+7+4+7+6 -> 65 | N110: =1+5+5+2+1+2+2+2+3 -> 23 | O110: =1+4+3+2+1+2+1+1 -> 15 | P110: =IFERROR(7*(L110/J110),"") -> 3.370994629
B111: Charles Gaudette | F111: =1+1+1+1+1+1+1 -> 7 | G111: =1+1 -> 2 | H111: 1 | J111: =3.67+5+7+3.67+3.67+4+3.67 -> 30.68 | K111: =1+5+1+6+1+2+7 -> 23 | L111: =0+0+0+5+1+2+7 -> 15 | M111: =4+6+4+9+2+6+11 -> 42 | N111: =1+1+0+4+1+1+3 -> 11 | O111: =0+2+2+1+1+2+2 -> 10 | P111: =IFERROR(7*(L111/J111),"") -> 3.422425033
B112: Harold Salinas | F112: =1+1 -> 2 | G112: 1 | J112: =0.33+7.67 -> 8 | K112: =0+10 -> 10 | L112: =0+7 -> 7 | M112: =0+10 -> 10 | N112: =0+4 -> 4 | O112: =1+1 -> 2 | P112: =IFERROR(7*(L112/J112),"") -> 6.125
B113: Michel Grenier | F113: =1+1+1+1+1+1+1+1+1+1 -> 10 | G113: =1+1 -> 2 | H113: =1+1+1 -> 3 | J113: =4+2+2.67+3.67+1+3.33+3+3.33+6+1.67 -> 30.67 | K113: =5+1+8+8+0+3+6+5+7+3 -> 46 | L113: =1+1+8+6+0+2+6+4+7+0 -> 35 | M113: =6+2+6+8+3+7+4+12+1 -> 49 | N113: =3+1+3+3+4+4+4+1+3 -> 26 | O113: =1+1+1 -> 3 | P113: =IFERROR(7*(L113/J113),"") -> 7.988262145
B114: Nuno Abreu | F114: =1+1 -> 2 | J114: =4.33+1 -> 5.33 | K114: =5+7 -> 12 | L114: =5+7 -> 12 | M114: =8+6 -> 14 | N114: =5+7 -> 12 | O114: 0 | P114: =IFERROR(7*(L114/J114),"") -> 15.75984991
B115: TOTAL | F115: =SUM(F110:F114) -> 33 | G115: =SUM(G110:G114) -> 13 | H115: 6 | I115: 0 | J115: 128.67 | K115: 123 | L115: 95 | M115: 180 | N115: 76 | O115: 30 | P115: =(L115*7)/J115 -> 5.16825989
B116: Victor Jordany Maldonado | F116: 1 | H116: 1 | J116: 5 | K116: 2 | L116: 2 | M116: 5 | N116: 3 | O116: 1 | P116: =IFERROR(7*(L116/J116),"") -> 2.8
A122: Ligue de Balle Molle Voyageurs
A124: =A4 -> Balle Molle Maison 2 soirs semaine
A127: REDS
A128: # | B128: JOUEURS | F128: C | G128: P | H128: S | I128: PJ | J128: AB | K128: P | L128: CS | M128: PP | N128: BB | O128: CC | P128: MOY
B129: Joel Martineau | F129: x | G129: x | I129: =1+1+1+1+1+1+1+1+1+1+1+1+1+1+1+1+1 -> 17 | J129: =4+3+2+4+3+4+3+2+3+4+3+3+3+4+2+2+4 -> 53 | K129: =1+2+2+2+1+1+2+2+1+1+3+1+1+3 -> 23 | L129: =3+2+2+1+1+1+2+1+2+1+2+2+1+2+3 -> 26 | M129: =1+3+3+1+4+2+1+2+3+4 -> 24 | N129: =1+1+1+1+1+1+1 -> 7 | O129: =1+2+1 -> 4 | P129: =IF($J129<>0,L129/$J129,0) -> 0.4905660377
B130: Yannick Grand'Maison | F130: x | G130: x | I130: =1+1+1+1+1+1+1+1+1+1+1+1+1+1+1+1+1+1+1+1 -> 20 | J130: =4+2+2+2+4+2+2+3+5+3+4+4+2+4+2+4+5+2+4+2 -> 62 | K130: =2+4+1+2+1+2+1+1+2+2+1 -> 19 | L130: =1+2+2+1+1+1+3+3+3+2+2+1+2+2+1+2 -> 29 | M130: =1+1+1+2+1+1+1 -> 8 | N130: =2+1+2+1+1+2+1+1+1+2 -> 14 | O130: 1 | P130: 0.4677419355
B131: Nicolas Harvey | F131: x | G131: x | I131: =1+1+1+1 -> 4 | J131: =2+3+4+2 -> 11 | K131: =2+2+1 -> 5 | L131: =1+1+3 -> 5 | M131: =0+3+1 -> 4 | N131: =1+2 -> 3 | P131: 0.4545454545
B132: Anthony Hachey | F132: x | G132: x | I132: =1+1+1+1+1+1+1+1+1+1+1+1+1+1+1+1+1 -> 17 | J132: =3+3+3+3+3+4+2+4+2+3+3+3+3+4+3+3+5 -> 54 | K132: =1+1+1+1+1+1+1+1+1 -> 9 | L132: =3+1+1+2+3+2+1+1+1+3+2+1+1 -> 22 | M132: =1+1+4+5+2+2+1+1+2+1+1 -> 21 | N132: =1+1+1+1+2 -> 6 | O132: =1+1+1 -> 3 | P132: 0.4074074074
B133: Jean Francois Foucault | F133: x | G133: x | I133: =1+1+1+1+1+1+1+1+1+1+1+1+1+1+1+1+1+1 -> 18 | J133: =3+3+3+4+3+3+2+4+2+3+3+3+3+4+2+5+3+4 -> 57 | K133: =2+2+1+2+1+1+1+2+2+1 -> 15 | L133: =1+1+2+3+1+1+1+1+2+1+1+1+4+1+2 -> 23 | M133: =1+1+1+1+2+1+3+1+1+1+2 -> 15 | N133: =1+1+1+1+1+1 -> 6 | P133: 0.4035087719
B134: Jean Francois Goulet | F134: x | G134: x | I134: =1+1+1+1+1+1+1+1+1 -> 9 | J134: =3+3+4+3+0+3+5+2+2 -> 25 | K134: =1+2+1+1+1+2 -> 8 | L134: =1+2+2+3+1+1 -> 10 | M134: =1+2+2+1+2 -> 8 | N134: =3+2+2 -> 7 | O134: 1 | P134: 0.4
B135: Benoit Sauvageau | F135: x | G135: x | I135: =1+1+1+1+1+1+1+1+1+1+1 -> 11 | J135: =1+2+3+2+2+3+2+2+1 -> 18 | K135: =0+1+1 -> 2 | L135: =1+1+2+1+2 -> 7 | M135: =3+1 -> 4 | N135: =1+1+1 -> 3 | P135: 0.3888888889
B136: Samuel Bédard | F136: x | G136: x | I136: =1+1+1+1+1+1+1+1+1+1+1+1+1+1+1 -> 15 | J136: =2+4+3+3+3+2+4+3+4+3+3+6+3+4+4 -> 51 | K136: =2+1+1+1+2+1+2+4+1 -> 15 | L136: =1+2+1+2+1+2+2+2+3+2 -> 18 | M136: =1+1+1+1+1+1 -> 6 | N136: =2+1+1+2 -> 6 | P136: 0.3529411765
B137: Martin Samson | F137: x | G137: x | I137: =1+1+1+1 -> 4 | J137: =3+3+2+4 -> 12 | K137: =0+1+1 -> 2 | L137: =1+1+2 -> 4 | M137: =0+2 -> 2 | N137: 1 | O137: 1 | P137: 0.3333333333
B138: Sylvain Lizotte | F138: x | G138: x | I138: =1+1+1+1+1+1+1+1+1+1+1+1+1+1+1+1+1+1 -> 18 | J138: =4+3+2+3+3+3+2+4+3+2+2+4+3+3+4+3+4+3 -> 55 | K138: =1+1+2+1+1+2 -> 8 | L138: =1+3+1+1+2+1+1+1+2+2+2+1 -> 18 | M138: =1+3+1+1+1+1+1+1+1+1+1 -> 13 | N138: =1+1+1+1+2+1+2+1+1 -> 11 | P138: 0.3272727273
B139: Jean Francois René | F139: x | G139: x | I139: =1+1+1+1+1+1+1+1+1+1+1+1+1+1+1+1+1+1+1+1 -> 20 | J139: =3+3+3+2+4+2+3+4+4+3+3+3+1+3+3+3+3+3+4+2 -> 59 | K139: =1+2+1+1+2+2+1 -> 10 | L139: =2+2+2+1+2+1+1+1+1+2+1+2 -> 18 | M139: =1+4+1+1+1+1+1+1 -> 11 | N139: =1+1+1+1+2+2 -> 8 | O139: 1 | P139: 0.3050847458
B140: Félix Doston | F140: x | G140: x | I140: =1+1+1+1+1+1+1+1 -> 8 | J140: =3+4+3+4+3+3+2+3 -> 25 | K140: =2+2+1 -> 5 | L140: =2+1+2+1+1 -> 7 | M140: =1+1 -> 2 | N140: =1+1+1 -> 3 | O140: 1 | P140: 0.28
B141: Nicolas Painchaud | F141: x | G141: x | I141: =1+1+1+1+1+1+1+1+1+1+1+1+1+1+1+1+1+1+1 -> 19 | J141: =4+2+3+3+3+3+3+4+4+3+3+3+3+2+3+5+3+3+3 -> 60 | K141: =1+1+1+2+1+1 -> 7 | L141: =1+1+1+1+1+1+2+2+2+1+1+1+1 -> 16 | M141: =0+1+1+1 -> 3 | N141: =2+1 -> 3 | P141: 0.2666666667
B142: David Chapdelaine | F142: x | G142: x | I142: =1+1 -> 2 | J142: =1+3 -> 4 | K142: =1+1 -> 2 | L142: =0+1 -> 1 | M142: =0+1 -> 1 | N142: 1 | O142: 1 | P142: 0.25
B143: Paul Boisvert | F143: x | G143: x | I143: =1+1+1+1+1+1+1+1+1+1+1+1+1+1+1+1 -> 16 | J143: =1+2+3+3+1+3+1+1+2+1+3+2+4 -> 27 | K143: =1+1+1+1 -> 4 | L143: =1+1+1+1 -> 4 | M143: =2+1 -> 3 | N143: 1 | P143: 0.1481481481
B144: Ernest Blouin | F144: x | G144: x | I144: =1+1+1+1+1+1+1 -> 7 | J144: =3+2+3+1+1+2+3 -> 15 | K144: =0+1 -> 1 | L144: =1+1 -> 2 | M144: =0+1 -> 1 | N144: 2 | P144: 0.1333333333
B145: Willburn Tucker | F145: x | G145: x | I145: 1 | J145: 3 | K145: 1 | L145: 0 | M145: 0 | P145: 0
B146: Jean Francois Savaria | F146: x | G146: x | I146: 1 | J146: 1 | K146: 0 | L146: 0 | M146: 0 | P146: 0
B147: Nicolas Brassard | F147: x | G147: x | P147: 0
B148: Steve Therrien | F148: x | G148: x | P148: 0
B149: TOTAL | I149: =SUM(I129:I148) -> 207 | J149: =SUM(J129:J148) -> 592 | K149: 136 | L149: 210 | M149: 126 | N149: 82 | O149: 13 | P149: =L149/J149 -> 0.3547297297
A151: # | B151: LANCEURS | F151: PJ | G151: V | H151: D | I151: N | J151: ML | K151: P | L151: PM | M151: CS | N151: BB | O151: K | P151: MPM
B152: Jean Francois Savaria | F152: 1 | J152: 2 | K152: 0 | L152: 0 | M152: 2 | N152: 0 | O152: 1 | P152: =IFERROR(7*(L152/J152),"") -> 0
B153: Paul Boisvert | F153: =1+1+1+1+1+1+1+1+1+1+1+1+1+1+1 -> 15 | G153: =1+1+1+1+1+1 -> 6 | H153: =1+1+1+1+1 -> 5 | J153: =2.33+4.33+1+5+2+7+2+2+2+5+2.33+3+7+7+7 -> 58.99 | K153: =5+1+1+5+3+4+3+0+4+6+13+1+5+7 -> 58 | L153: =2+1+0+0+2+4+3+0+3+4+8+1+3+7 -> 38 | M153: =6+2+1+3+4+5+2+2+1+6+8+9+7+10+12 -> 78 | N153: =3+3+4+1+4+5+3+1+4+5+5+3 -> 41 | O153: =2+1+1+2+1+3+2+3 -> 15 | P153: =IFERROR(7*(L153/J153),"") -> 4.509238854
B154: Ernest Blouin | F154: =1+1+1+1+1+1+1 -> 7 | G154: 1 | H154: =1+1+1+1 -> 4 | J154: =7+5+6+7+1.33+6+7.67 -> 40 | K154: =2+7+4+6+8+4+11 -> 42 | L154: =2+5+4+4+8+4 -> 27 | M154: =6+15+10+10+10+11+14 -> 76 | N154: =0+4+3+2+4 -> 13 | O154: =2+1+1+1 -> 5 | P154: =IFERROR(7*(L154/J154),"") -> 4.725
B155: Benoit Sauvageau | F155: =1+1+1+1+1+1+1+1+1+1 -> 10 | G155: =1+1 -> 2 | H155: =1+1 -> 2 | J155: =2+2.67+5+2+5+4+2+4+2+2.67 -> 31.34 | K155: =1+3+8+9+0+5+3+7 -> 36 | L155: =1+2+8+5+0+5+3+6 -> 30 | M155: =1+4+2+5+10+11+2+7+5+9 -> 56 | N155: =0+2+1+1+1+3+1 -> 9 | O155: =0+1+2+1+1+1 -> 6 | P155: =IFERROR(7*(L155/J155),"") -> 6.700701978
B156: Yannick Grand'Maison | F156: 1 | J156: 1 | K156: 4 | L156: 2 | M156: 4 | N156: 2 | O156: 0 | P156: =IFERROR(7*(L156/J156),"") -> 14
B157: TOTAL | F157: =SUM(F152:F156) -> 34 | G157: =SUM(G152:G156) -> 9 | H157: 11 | I157: 0 | J157: 133.33 | K157: 140 | L157: 97 | M157: 216 | N157: 65 | O157: 27 | P157: =(L157*7)/J157 -> 5.092627316
A164: Ligue de Balle Molle Voyageurs
A166: =A4 -> Balle Molle Maison 2 soirs semaine
A169: KAMIKAZES
A170: # | B170: JOUEURS | F170: C | G170: P | H170: S | I170: PJ | J170: AB | K170: P | L170: CS | M170: PP | N170: BB | O170: CC | P170: MOY
B171: Anderson Rossell | F171: x | G171: x | I171: =1+1+1+1 -> 4 | J171: =3+4+4+3 -> 14 | K171: =2+1+2+1 -> 6 | L171: =3+3+2+2 -> 10 | M171: =3+2+2 -> 7 | O171: =2+1+1 -> 4 | P171: =IF($J171<>0,L171/$J171,0) -> 0.7142857143
B172: Éric Bédard | F172: x | G172: x | I172: =1+1+1+1+1+1+1 -> 7 | J172: =2+2+2 -> 6 | K172: =1+1 -> 2 | L172: =1+1+1 -> 3 | M172: 0 | N172: =1+2 -> 3 | P172: 0.5
B173: Jean-Sébastien Gaulin | F173: x | G173: x | I173: =1+1+1+1+1+1+1+1+1+1+1+1+1+1 -> 14 | J173: =3+4+4+4+4+3+3+3+4+4+4+3+4+3 -> 50 | K173: =1+1+2+1+1+1+1+1+1+1 -> 11 | L173: =2+2+1+1+3+1+1+2+2+2+1+2+1 -> 21 | M173: =3+2+1+1+1+2+2+2+4+2 -> 20 | N173: =1+1+1 -> 3 | O173: =1+1+1+1+1+1+1 -> 7 | P173: 0.42
B174: Marc-André Samson | F174: x | G174: x | I174: =1+1+1+1+1+1+1+1+1+1+1+1+1+1+1+1 -> 16 | J174: =2+4+3+5+3+3+5+4+4+4+4+3+4+4+4 -> 56 | K174: =3+2+1+2+1+1+1+3 -> 14 | L174: =3+1+4+1+1+3+2+1+1+3+2 -> 22 | M174: =1+2+5+1+1+1+2 -> 13 | N174: 3 | O174: =1+2 -> 3 | P174: 0.3928571429
B175: Xavier Dupont | F175: x | G175: x | I175: =1+1+1+1+1+1+1+1+1+1+1+1+1+1+1+1+1+1+1 -> 19 | J175: =4+3+3+2+4+3+3+2+2+4+3+3+4+3+3+3+3+2+3 -> 57 | K175: =1+1+1+2+1+1+1+2+2+1+1+2+3 -> 19 | L175: =4+2+1+1+1+1+1+2+1+1+2+2+1+2 -> 22 | M175: =1+1+1+1+1+1+3+1+1 -> 11 | N175: =1+2+1+1+1+2+1+1+1+1+1+1 -> 14 | O175: =1+2 -> 3 | P175: 0.3859649123
B176: Mathieu Goyer | F176: x | G176: x | I176: =1+1+1+1+1+1+1+1+1+1+1+1+1+1+1+1+1+1 -> 18 | J176: =4+4+2+2+4+4+3+3+4+4+3+2+3+3+4+2+3+3 -> 57 | K176: =1+1+2+1+1+1+1 -> 8 | L176: =2+1+1+1+2+2+2+3+2+1+1+1+1 -> 20 | M176: =2+1+1+1+3+2+1 -> 11 | N176: =1+1+1+1 -> 4 | O176: =1+1 -> 2 | P176: 0.350877193
B177: Jean-Pierre Binette | F177: x | G177: x | I177: =1+1+1+1+1+1+1+1+1+1+1+1+1+1+1+1+1 -> 17 | J177: =1+4+2+4+4+3+3+4+3+3+4+3+3+2+3+2 -> 48 | K177: =1+1+1+1+2+1+1 -> 8 | L177: =1+2+2+2+2+1+1+1+1+1+2 -> 16 | M177: =2+1+2+1+1 -> 7 | N177: =3+1+1+1 -> 6 | P177: 0.3333333333
B178: Jonathan Blais | F178: x | G178: x | I178: 1 | J178: 3 | K178: 0 | L178: 1 | M178: 1 | P178: 0.3333333333
B179: Éric Bouchard | F179: x | G179: x | I179: =1+1+1+1+1+1+1+1+1+1+1+1+1+1+1+1+1+1+1 -> 19 | J179: =3+3+1+1+5+3+3+4+5+3+4+2+2+3+3+2+2+2 -> 51 | K179: =1+2+1+2+1+2+2+2+1+1 -> 15 | L179: =2+1+3+1+2+2+2+1+1+1 -> 16 | M179: =1+2+1+1+1+1+1 -> 8 | N179: =1+2+3+1+2+1+1+1+1+1 -> 14 | O179: 1 | P179: 0.3137254902
B180: Ian Barriault | F180: x | G180: x | I180: =1+1+1+1+1+1+1+1+1+1+1+1+1+1+1+1+1+1+1+1 -> 20 | J180: =4+4+4+4+5+3+3+3+4+3+3+2+4+2+4+4+3+2+3+3 -> 67 | K180: =2+1+1+2+2+1+1+1 -> 11 | L180: =2+3+1+2+1+2+1+2+3+1+1+1+1 -> 21 | M180: =2+2+1+1+1+1+2+1+2+1 -> 14 | N180: =1+1 -> 2 | O180: =1+1 -> 2 | P180: 0.3134328358
B181: Daniel Morin | F181: x | G181: x | I181: =1+1+1+1+1+1+1+1+1+1+1+1+1+1+1+1+1 -> 17 | J181: =4+1+3+3+3+3+2+2+3+3+3+3+4+3+3+3+3 -> 49 | K181: =1+1+1+1+1+2+1+1 -> 9 | L181: =2+2+1+1+3+1+2+1+2 -> 15 | M181: =1+1+3+3+1+1+1 -> 11 | N181: =1+1+1+1+1+1+1+1 -> 8 | O181: =1+1+1 -> 3 | P181: 0.306122449
B182: Daniel Rodriguez | F182: x | G182: x | I182: =1+1+1+1+1+1+1+1+1+1+1+1+1+1+1+1+1 -> 17 | J182: =3+4+4+4+3+2+3+5+4+2+3+2+2+3+4+3+3 -> 54 | K182: =2+1+1+1+2+2+1+1+2 -> 13 | L182: =2+1+2+1+2+3+1+2+1+1 -> 16 | M182: =1+1+1+1+2+2+1+1+1 -> 11 | N182: =1+1+1+1+1+2+2+1 -> 10 | O182: =1+1 -> 2 | P182: 0.2962962963
B183: Miguel Rodriguez | F183: x | G183: x | I183: =1+1+1+1+1+1+1+1+1+1+1+1+1+1+1+1+1+1+1 -> 19 | J183: =5+3+1+4+4+3+3+3+4+4+4+2+4+2+4+5+3+4+4 -> 66 | K183: =1+1+2+3+1+1+1+1+1+1+3+1+1 -> 18 | L183: =1+2+1+1+1+1+2+1+1+3+1+2+1 -> 18 | M183: =0+1+1+1+1 -> 4 | N183: =1+3+1+1+1+1+2+1 -> 11 | P183: 0.2727272727
B184: Sylvain Brodeur | F184: x | G184: x | I184: =1+1+1+1+1 -> 5 | J184: =1+3+1 -> 5 | K184: 1 | L184: =0+1 -> 1 | M184: 0 | N184: 1 | P184: 0.2
B185: Serge Tanguay | F185: x | G185: x | I185: =1+1+1+1+1+1+1+1+1+1 -> 10 | J185: =3+2+1+1+4+3+3 -> 17 | K185: 1 | L185: =1+1+1 -> 3 | M185: 2 | N185: 1 | P185: 0.1764705882
B186: David Archibald | F186: x | G186: x | P186: 0
B187: Yves Béland | F187: x | G187: x | P187: 0
P188: 0
P189: 0
P190: 0
B191: TOTAL | I191: =SUM(I171:I190) -> 203 | J191: =SUM(J171:J190) -> 600 | K191: 136 | L191: 205 | M191: 120 | N191: 80 | O191: 27 | P191: =L191/J191 -> 0.3416666667
A193: # | B193: LANCEURS | F193: PJ | G193: V | H193: D | I193: N | J193: ML | K193: P | L193: PM | M193: CS | N193: BB | O193: K | P193: MPM
B194: Serge Tanguay | F194: =1+1+1+1+1+1+1+1 -> 8 | G194: =1+1+1+1+1 -> 5 | H194: =1+1+1 -> 3 | J194: =2+3+2.33+3.67+4+1.33+3.67+7+7 -> 34 | K194: =0+3+10+0+0+7+6+0 -> 26 | L194: =0+3+3+0+0+5+6+0 -> 17 | M194: =2+6+7+2+2+2+9+12+3 -> 45 | N194: =0+1+5+1+1+1+3+1+1 -> 14 | O194: =0+1+1+1+1+3 -> 7 | P194: =IFERROR(7*(L194/J194),"") -> 3.5
B195: Sylvain Brodeur | F195: =1+1+1+1+1 -> 5 | G195: =1+1 -> 2 | H195: =1+1 -> 2 | J195: =4.33+7+7+6+2.67 -> 27 | K195: =7+3+3+6+6 -> 25 | L195: =3+1+2+6+5 -> 17 | M195: =6+9+11+11+8 -> 45 | N195: =2+1+1+2 -> 6 | O195: =2+1 -> 3 | P195: =IFERROR(7*(L195/J195),"") -> 4.407407407
B196: Jean-Pierre Binette | F196: =1+1+1+1+1+1+1+1+1 -> 9 | G196: =1+1+1 -> 3 | H196: 1 | I196: 1 | J196: =3.67+7+3+6+3.33+7+7+7+4 -> 48 | K196: =7+5+0+10+3+6+7+5+3 -> 46 | L196: =7+5+8+3+4+4+5+2 -> 38 | M196: =12+8+4+15+8+12+13+12+6 -> 90 | N196: =0+1+1+1+3+1 -> 7 | O196: =2+2+1+1+1+1+2+1 -> 11 | P196: =IFERROR(7*(L196/J196),"") -> 5.541666667
B197: Éric Bédard | F197: =1+1+1+1+1+1 -> 6 | G197: 1 | H197: =1+1 -> 2 | J197: =5+3.33+4+3+5.67+7 -> 28 | K197: =2+5+10+1+6+4 -> 28 | L197: =2+5+8+1+6+3 -> 25 | M197: =3+7+9+4+9+9 -> 41 | N197: =1+2+3+2+5 -> 13 | O197: =0+1+2+1 -> 4 | P197: =IFERROR(7*(L197/J197),"") -> 6.25
J198: 0 | K198: 0 | L198: 0 | P198: =IFERROR(7*(L198/J198),"") -> 
B199: TOTAL | F199: =SUM(F194:F198) -> 28 | G199: =SUM(G194:G198) -> 11 | H199: 8 | I199: 1 | J199: 137 | K199: 125 | L199: 97 | M199: 221 | N199: 40 | O199: 25 | P199: =(L199*7)/J199 -> 4.95620438
A206: Ligue de Balle Molle Voyageurs
A208: =A4 -> Balle Molle Maison 2 soirs semaine
A211: EAGLES
A212: # | B212: JOUEURS | F212: C | G212: P | H212: S | I212: PJ | J212: AB | K212: P | L212: CS | M212: PP | N212: BB | O212: CC | P212: MOY
B213: Richard Laporte | F213: x | G213: x | I213: =1+1+1+1 -> 4 | J213: =3+4+4+3 -> 14 | K213: =1+3+1+1 -> 6 | L213: =2+3+2+2 -> 9 | M213: =1+2+1 -> 4 | N213: 1 | P213: =IF($J213<>0,L213/$J213,0) -> 0.6428571429
B214: Wilson De La Cruz | F214: x | G214: x | I214: =1+1+1+1+1 -> 5 | J214: =3+2+3+2+2 -> 12 | K214: =3+1+1 -> 5 | L214: =3+1+2+1 -> 7 | M214: =5+2+1+1 -> 9 | N214: =1+1 -> 2 | O214: =2+1 -> 3 | P214: 0.5833333333
B215: Jean-François Déry | F215: x | G215: x | I215: =1+1+1+1+1+1+1+1+1+1+1+1+1+1+11+1+1 -> 27 | J215: =3+3+3+3+3+3+3+4+3+4+4+4+4+5+4+4+2+1 -> 60 | K215: =2+1+1+4+1+1+1+2+1+1+2+2+3+1+2 -> 25 | L215: =2+1+1+3+1+3+1+1+2+2+4+3+3+2+1 -> 30 | M215: =0+3+1+1+1+1 -> 7 | N215: =1+1+1+2+3 -> 8 | O215: =1+1 -> 2 | P215: 0.5
B216: Benoit Hamel | F216: x | G216: x | I216: =1+1+1+1+1+1+1+1+1+1+1+1+1+1 -> 14 | J216: =3+2+3+3+4+4+3+4+2+3+3+4+4+3 -> 45 | K216: =1+1+2+1+1+1+4+1+3+1 -> 16 | L216: =1+1+2+2+2+3+1+2+2+3+2 -> 21 | M216: =1+2+3+1+1+1+1 -> 10 | N216: =1+2 -> 3 | O216: 1 | P216: 0.4666666667
B217: Michael Gamache | F217: x | G217: x | I217: =1+1+1+1+1+1+1+1+1+1+1+1+1 -> 13 | J217: =3+3+2+3+3+3+3+3+3+4+3+4+5+2+3 -> 47 | K217: =1+3+1+1+1+1+4+1 -> 13 | L217: =2+1+1+1+1+2+2+3+1+3+2+1 -> 20 | M217: =2+2+2+2+1+1+5+2+1 -> 18 | N217: =1+1+1+1+1+2+1 -> 8 | O217: =1+1 -> 2 | P217: 0.4255319149
B218: Angelo Follano | F218: x | G218: x | I218: =1+1+1+1 -> 4 | J218: =4+3+4+1 -> 12 | K218: =0+2+1+3 -> 6 | L218: =0+2+2+1 -> 5 | M218: =1+2+2 -> 5 | N218: =1+3 -> 4 | P218: 0.4166666667
B219: Tat Chi Khao | F219: x | G219: x | I219: =1+1+1+1+1+1+1+1+1+1+1+1+1+1+1+1+1+1 -> 18 | J219: =3+3+2+3+4+3+3+4+3+3+4+3+3+3+3+3+2+2 -> 54 | K219: =1+2+1+2+1+1+1+1+2+3+1+2+1+1 -> 20 | L219: =1+1+2+1+2+1+3+1+1+1+2+1+3+1 -> 21 | M219: =1+2+4+3+3+2+1+1+3+7+1+2 -> 30 | N219: =1+1+2+1+1+1+1 -> 8 | O219: =1+1+1+1+2 -> 6 | P219: 0.3888888889
B220: Franco Mangione | F220: x | G220: x | I220: =1+1+1+1+1+1+1+1+1+1+1+1+1+1+1 -> 15 | J220: =1+3+2+4+3+3+2+3+2+2+3+1+4+3+3 -> 39 | K220: =1+1+1+1+1+1+1+2 -> 9 | L220: =2+2+1+2+1+2+1+2+2 -> 15 | M220: =0+1+1+1 -> 3 | N220: =1+2 -> 3 | P220: 0.3846153846
B221: Frédéric Gelin | F221: x | G221: x | I221: =1+1+1+1+1+1+1+1+1+1 -> 10 | J221: =3+2+3+3+1+3+2+3+3+3 -> 26 | K221: =1+2+1+1+1+1 -> 7 | L221: =1+2+1+1+1+1+3 -> 10 | M221: =2+1+2+1+3 -> 9 | N221: =1+2+1+1 -> 5 | O221: =1+1 -> 2 | P221: 0.3846153846
B222: Sylvain Bédard | F222: x | G222: x | I222: =1+1+1+1+1+1+1+1+1+1+1+1+1+1+1 -> 15 | J222: =3+3+3+3+3+3+2+2+4+3+3+2+3+3+3 -> 43 | K222: =1+1+1 -> 3 | L222: =2+1+2+2+1+2+1+2+1+1+1 -> 16 | M222: =1+3+1+1+1+6+1 -> 14 | N222: =1+1+2+1+1 -> 6 | O222: =1+1 -> 2 | P222: 0.3720930233
B223: Eric Desmeules | F223: x | G223: x | I223: =1+1+1+1 -> 4 | J223: =2+3+3+3 -> 11 | K223: 1 | L223: =1+1+1+1 -> 4 | M223: =1+1 -> 2 | N223: 1 | P223: 0.3636363636
B224: Éric Émilus | F224: x | G224: x | I224: =1+1+1+1+1+1+1+1+1+1+1+1+1+1+1+1 -> 16 | J224: =3+3+3+2+3+2+2+2+3+3+3+5+4+4+3+4 -> 49 | K224: =1+1+2+1+1+1+4+1+1 -> 13 | L224: =1+1+1+2+1+1+2+1+2+1+2+1+1 -> 17 | M224: =0+1+2+4 -> 7 | N224: =1+1+1+1 -> 4 | P224: 0.3469387755
B225: Martin Chauvette | F225: x | G225: x | I225: =1+1+1+1+1+1+1+1+1+1+1+1+1+1+1+1+1 -> 17 | J225: =2+1+2+2+2+3+3+4+2+2+3+3+3+2+4+2+4 -> 44 | K225: =3+1+1+1+1 -> 7 | L225: =1+1+2+2+1+1+2+1+1+3 -> 15 | M225: =0+1+1+1+2 -> 5 | N225: =1+2 -> 3 | P225: 0.3409090909
B226: Stéphane Tassé | F226: x | G226: x | I226: =1+1+1+1+1+1+1+1+1+1+1+1 -> 12 | J226: =3+3+3+4+4+3+3+3+2+3+3+2+3 -> 39 | K226: =2+1+1+1+1+1+1 -> 8 | L226: =2+3+2+2+1+2+1 -> 13 | M226: =2+3+3+3+1 -> 12 | N226: =1+1+1+1 -> 4 | O226: =1+1 -> 2 | P226: 0.3333333333
B227: Mathieu Dussault | F227: x | G227: x | I227: 1 | J227: 3 | K227: 1 | L227: 1 | M227: 2 | O227: 1 | P227: 0.3333333333
A228: OK | B228: Gabriel Gamache | F228: x | G228: x | I228: =1+1+1 -> 3 | J228: =3+4+3 -> 10 | K228: 0 | L228: =2+1 -> 3 | M228: 1 | P228: 0.3
B229: Maxime Laramé | F229: x | G229: x | I229: =1+1+1+1+1+1+1+1+1+1+1+1+1+1+1+1+1 -> 17 | J229: =3+3+3+1+4+3+3+3+2+3+3+2+3+3+5+2+3 -> 49 | K229: =1+1+1+1+1+1 -> 6 | L229: =1+1+1+1+3+1+1+1+2+1+1 -> 14 | M229: =0+2+2+2 -> 6 | N229: =1+1 -> 2 | P229: 0.2857142857
B230: Kosta Papapostoulou | F230: x | G230: x | I230: =1+1+1+1+1 -> 5 | J230: =1+3+3+3+3 -> 13 | K230: =1+1+1 -> 3 | L230: =1+1+1 -> 3 | M230: =0+1 -> 1 | N230: =1+1 -> 2 | P230: 0.2307692308
B231: Sylvain Trottier | F231: x | G231: x | I231: =1+1+1+1+1+1+1+1+1+1+1+1 -> 12 | J231: =2+3+3+3+3+3+1+4+1+3+2 -> 28 | K231: =0+1+1+2+1 -> 5 | L231: =0+1+1+1+1+2 -> 6 | M231: =0+1+1+2+1 -> 5 | N231: 1 | P231: 0.2142857143
B232: Simon Demers | F232: x | G232: x | P232: 0
B233: TOTAL | I233: =SUM(I213:I232) -> 212 | J233: =SUM(J213:J232) -> 598 | K233: 154 | L233: 230 | M233: 150 | N233: 65 | O233: 21 | P233: =L233/J233 -> 0.3846153846
A235: # | B235: LANCEURS | F235: PJ | G235: V | H235: D | I235: N | J235: ML | K235: P | L235: PM | M235: CS | N235: BB | O235: K | P235: MPM
B236: Michael Gamache | F236: =1+1+1+1+1+1+1+1+1+1+1 -> 11 | G236: =1+1+1+1+1 -> 5 | H236: =1+1+1 -> 3 | I236: 1 | J236: =7+1.67+7+7+1+7+6+7+7+6.67+4 -> 61.34 | K236: =2+3+5+8+0+5+12+7+0+5+8 -> 55 | L236: =1+3+4+2+4+6+4+0+5+6 -> 35 | M236: =4+3+8+11+0+5+18+9+4+10+11 -> 83 | N236: =5+4+1+4+1+4+1+3+2+5+3 -> 33 | O236: =3+3+4+2+1+1+4+1+5+2 -> 26 | P236: =IFERROR(7*(L236/J236),"") -> 3.994131073
B237: Sylvain Trottier | F237: =1+1+1+1+1+1+1+1+1+1+1 -> 11 | G237: =1+1+1 -> 3 | H237: =1+1 -> 2 | I237: 1 | J237: =2.67+2.67+0+7+6+3+1.33+0.33+5+3+4.67 -> 35.67 | K237: =4+2+3+1+11+7+0+0+5+1+7 -> 41 | L237: =0+3+1+10+6+0+0+5+0+6 -> 31 | M237: =2+5+4+4+13+7+1+1+10+3+9 -> 59 | N237: =2+1+4+3+5+1+1+2+5 -> 24 | O237: =1+1+1+1+1+1 -> 6 | P237: =IFERROR(7*(L237/J237),"") -> 6.083543594
B238: Stéphane Tassé | F238: =1+1+1+1+1+1 -> 6 | G238: =1+1 -> 2 | H238: =1+1 -> 2 | J238: =3.33+4+5.67+4+5+3 -> 25 | K238: =6+6+4+4+2+7 -> 29 | L238: =6+3+4+4+2+3 -> 22 | M238: =6+5+7+9+10+9 -> 46 | N238: =4+5+3+2+3+1 -> 18 | O238: =1+2+2+1+3+3 -> 12 | P238: =IFERROR(7*(L238/J238),"") -> 6.16
A239: OK | B239: Maxime Laramé | F239: =1+1+1+1 -> 4 | I239: 1 | J239: =1.67+1+3+2 -> 7.67 | K239: =3+4+3+0 -> 10 | L239: =3+4+3+0 -> 10 | M239: =2+4+4+1 -> 11 | N239: =2+2+2 -> 6 | O239: =0+1+1 -> 2 | P239: =IFERROR(7*(L239/J239),"") -> 9.126466754
J240: 0 | K240: 0 | L240: 0 | P240: =IFERROR(7*(L240/J240),"") -> 
B241: TOTAL | F241: =SUM(F236:F240) -> 32 | G241: =SUM(G236:G240) -> 10 | H241: 7 | I241: 3 | J241: 129.68 | K241: 135 | L241: 98 | M241: 199 | N241: 81 | O241: 46 | P241: =(L241*7)/J241 -> 5.289944479
A248: Ligue de Balle Molle Voyageurs
A250: =A4 -> Balle Molle Maison 2 soirs semaine
A253: HYPOTHECA
A254: # | B254: JOUEURS | F254: C | G254: P | H254: S | I254: PJ | J254: AB | K254: P | L254: CS | M254: PP | N254: BB | O254: CC | P254: MOY
B255: Marc-Antoine Soutières | F255: x | G255: x | I255: 1 | J255: 2 | K255: 1 | L255: 1 | M255: 1 | P255: =IF($J255<>0,L255/$J255,0) -> 0.5
B256: Alexandre Guitard | F256: x | G256: x | H256: 1 | I256: =1+1+1+1+1+1 -> 6 | J256: =3+2+3+4+5+3 -> 20 | K256: =1+1+2+2 -> 6 | L256: =3+1+2+3 -> 9 | M256: =2+1+1+4 -> 8 | O256: =1+1+1 -> 3 | P256: 0.45 | Q256: SUSPENDU 1ER MATCH SÉRIES
B257: Sébastien Bougie | F257: x | G257: x | I257: =1+1+1+1+1+1+1 -> 7 | J257: =4+3+4+4+2+3 -> 20 | K257: =1+1+1+1 -> 4 | L257: =3+1+1+1+1+2 -> 9 | M257: =1+2+1+3 -> 7 | O257: =1+1 -> 2 | P257: 0.45
B258: Charles Dumas | F258: x | G258: x | I258: =1+1+1+1+1 -> 5 | J258: =2+3+4+1+4 -> 14 | K258: =0+1+1 -> 2 | L258: =0+1+1+4 -> 6 | M258: =0+1+2+3 -> 6 | N258: 1 | O258: =1+1 -> 2 | P258: 0.4285714286
B259: Philippe Bourret | F259: x | G259: x | I259: =1+1+1+1+1+1+1+1+1+1 -> 10 | J259: =4+3+3+4+1+3+3+4+4+2 -> 31 | K259: =1+2+1+1+3+1 -> 9 | L259: =2+2+1+1+2+1+2+2 -> 13 | M259: =2+3+3+2+3+1 -> 14 | N259: =1+1+1+1 -> 4 | O259: =1+1 -> 2 | P259: 0.4193548387
B260: Maxime Bédard | F260: x | G260: x | I260: =1+1+1+1+1+1+1+1+1+1+1+1+1+1+1+1+1+1 -> 18 | J260: =2+3+2+2+3+4+3+3+4+5+3+2+1+3+3+4 -> 47 | K260: =3+2+2+1+1+3+1+2+3+1 -> 19 | L260: =1+4+2+2+1+1+3+1+1+1+2 -> 19 | M260: =1+1+1 -> 3 | N260: =1+1+1+2+1+1+1+2+1+2 -> 13 | P260: 0.4042553191
B261: Éric Castonguay | F261: x | G261: x | I261: =1+1+1+1+1+1+1+1+1+1+1+1+1+1+1+1 -> 16 | J261: =3+4+2+1+4+3+1+3+3+3+1+4+3+5+3+3 -> 46 | K261: =1+1+1 -> 3 | L261: =3+1+3+1+1+2+1+2+2+1+1 -> 18 | M261: =1+1+3+1+2 -> 8 | N261: =2+1+2+1 -> 6 | P261: 0.3913043478
B262: Alex Lejeune | F262: x | G262: x | I262: =1+1+1+1+1+1+1+1+1+1+1+1+1+1 -> 14 | J262: =3+3+4+3+4+3+3+2+4+2+3+4+3+3 -> 44 | K262: =1+1+2+1+1+2+1+2+1 -> 12 | L262: =2+2+1+2+1+1+4+3+1 -> 17 | M262: =0+1+2+2+2+1 -> 8 | N262: =1+1+1+2+2+1 -> 8 | P262: 0.3863636364
B263: Luc Lafrance | F263: x | G263: x | I263: =1+1+1+1+1+1+1+1+1+1+1+1+1+1+1+1 -> 16 | J263: =1+3+2+2+2+3+3+1+2+2+3+3+3+3+2 -> 35 | K263: =0+1+1+1 -> 3 | L263: =1+1+1+1+1+2+3+2+1 -> 13 | M263: =2+1+1+2+1 -> 7 | N263: =1+1+1+1+1 -> 5 | P263: 0.3714285714
B264: Martin Boucher | F264: x | G264: x | I264: =1+1+1+1+1+1+1+1+1+1+1+1+1+1+1 -> 15 | J264: =2+4+1+3+3+2+3+2+4+3+2+2+4+3 -> 38 | K264: =1+1+1+1+1+1+1 -> 7 | L264: =2+2+2+1+2+1+1+1+2 -> 14 | M264: =0+1+2 -> 3 | N264: =1+1 -> 2 | P264: 0.3684210526
B265: Sébastien Gagnon | F265: x | G265: x | I265: =1+1+1+1+1+1+1+1+1+1+1+1+1+1+1+1+1 -> 17 | J265: =3+2+2+2+3+1+3+3+3+4+3+4+3+3+3+3+1 -> 46 | K265: =1+1+1+1+1+2 -> 7 | L265: =0+2+2+2+3+2+1+1+2+1 -> 16 | M265: =0+2+2 -> 4 | N265: =2+1+2+1+2 -> 8 | P265: 0.347826087
B266: Marc Leblanc | F266: x | G266: x | I266: =1+1+1+1+1+1+1+1+1+1+1+1+1+1+1+1 -> 16 | J266: =3+4+4+3+1+1+3+3+3+2+3+2+2+2+0 -> 36 | K266: =0+1+1+1+1 -> 4 | L266: =1+2+1+2+1+1+1+1 -> 10 | M266: =1+1+1 -> 3 | N266: =1+3+1+1+1 -> 7 | P266: 0.2777777778
B267: Benoit Huchette | F267: x | G267: x | I267: =1+1+1+1+1+1+1+1+1+1+1+1+1 -> 13 | J267: =3+4+3+2+3+3+3+4+3+3+3+3+3 -> 40 | K267: =1+2+1+1+1+1+1 -> 8 | L267: =1+1+2+2+2+1+1+1 -> 11 | M267: =2+3+3+1+1 -> 10 | N267: =1+2 -> 3 | O267: 1 | P267: 0.275
B268: Pierre Richard | F268: x | G268: x | I268: =1+1+1+1+1+1+1+1+1+1+1+1+1+1+1 -> 15 | J268: =3+3+2+2+2+3+3+2+2+3+1+3+3+2+2 -> 36 | K268: =0+2+1+1 -> 4 | L268: =1+1+1+1+2+2+1 -> 9 | M268: =0+2+1 -> 3 | N268: 1 | P268: 0.25
B269: Jean-Guy Gauthier | F269: x | G269: x | I269: =1+1+1+1+1+1+1+1+1+1+1+1+1+1+1 -> 15 | J269: =1+3+2+2+3+3+3+2+2+2+1+3+2+2+2 -> 33 | K269: =0+1+1+1 -> 3 | L269: =1+1+2+1+1+2 -> 8 | M269: =2+1 -> 3 | N269: =1+1+1+1 -> 4 | P269: 0.2424242424
B270: Philippe Dallaire | F270: x | G270: x | H270: 1 | I270: =1+1+1+1+1+1+1+1+1+1+1+1+1+1+1+1+1+1 -> 18 | J270: =3+3+3+3+2+3+3+3+3+3+2+3+3+3+4+5+2 -> 51 | K270: =2+1+1+1 -> 5 | L270: =1+2+1+2+1+2+2+1 -> 12 | M270: =2+1+1+1 -> 5 | N270: =1+1+1+1 -> 4 | O270: 1 | P270: 0.2352941176
B271: Dominic Beaudry | F271: x | G271: x | I271: =1+1+1+1 -> 4 | J271: =2+3+3+2 -> 10 | K271: =0+1 -> 1 | L271: =0+2 -> 2 | M271: =1+2 -> 3 | P271: 0.2
B272: Gabriel Dugas | F272: x | G272: x | I272: =1+1+1+1 -> 4 | J272: =2+4+3+3 -> 12 | K272: =0+1+1 -> 2 | L272: =0+1+1 -> 2 | M272: 0 | N272: =1+1 -> 2 | P272: 0.1666666667
B273: Jean-Christophe Mercille | F273: x | G273: x | I273: 1 | J273: 3 | K273: 0 | L273: 0 | M273: 0 | P273: 0
B274: Guillaume Pinard | F274: x | G274: x | P274: 0
B275: TOTAL | I275: =SUM(I255:I274) -> 211 | J275: =SUM(J255:J274) -> 564 | K275: 100 | L275: 189 | M275: 96 | N275: 68 | O275: 11 | P275: =L275/J275 -> 0.335106383
... 7 more rows

Sheet Amical
A2: Ligue de Balle Molle Voyageurs
A4: Balle Molle Amical 2 soirs semaine
G6: FINAL
A7: Dernière mise à jour : | D7: 2019-09-03
A10: CLASSEMENT AMICAL 2 SOIRS SEMAINE
A11: POS | B11: ÉQUIPE | H11: PJ | I11: V | J11: D | K11: N | L11: PP | M11: PC | N11: PTS | O11: DIFF | P11: MOY
A12: 1 | B12: C-Bucaneros | H12: =1+1+1+1+1+1+1+1+1+1+1+1+1+1+1+1+1+1+1+1 -> 20 | I12: =1+1+1+1+1+1+1+1+1+1+1+1+1+1+1+1+1 -> 17 | J12: =0+1+1+1 -> 3 | K12: 0 | L12: =5+11+10+16+14+6+11+8+5+13+14+7+17+7+8+9+16+5+13+5 -> 200 | M12: =1+2+6+3+2+7+1+6+10+2+6+5+5+5+1+6+13+10+5+4 -> 100 | N12: =I12*2+K12*1 -> 34 | O12: =L12-M12 -> 100 | P12: =IF(H12<>0,(2*I12+K12)/(2*H12),0) -> 0.85
A13: =A12+1 -> 2 | B13: Mets | H13: 20 | I13: =1+1+1+1+1+1+1+1+1+1+1+1+1+1+1+1+1 -> 17 | J13: =0+1+1+1 -> 3 | K13: 0 | L13: =7+16+10+14+15+6+7+6+10+12+10+12+8+10+5+5+3+12+10+8 -> 186 | M13: =6+14+4+10+3+11+3+0+6+5+2+4+4+17+7+2+9+5+7 -> 119 | N13: 34 | O13: 67 | P13: 0.85
A14: =A13+1 -> 3 | B14: Boratifs | H14: 20 | I14: =0+1+1+1+1+1+1+1 -> 7 | J14: =1+1+1+1+1+1+1+1+1+1+1+1 -> 12 | K14: =0+1 -> 1 | L14: =6+5+7+2+3+7+3+13+2+6+4+2+10+13+5+7+11+6+5+2 -> 119 | M14: =7+7+3+14+6+6+8+1+13+14+10+3+10+6+11+8+1+5+3+8 -> 144 | N14: 15 | O14: -25 | P14: 0.375
A15: =A14+1 -> 4 | B15: Kino | H15: 20 | I15: =0+1+1+1+1+1+1+1 -> 7 | J15: =1+1+1+1+1+1+1+1+1+1+1+1+1 -> 13 | K15: 0 | L15: =2+10+3+22+8+8+8+0+6+2+1+3+8+3+1+13+4+3+8 -> 113 | M15: =6+14+16+6+9+7+4+0+10+12+4+13+5+3+2+8+16+5+5+2 -> 147 | N15: 14 | O15: -34 | P15: 0.35
A16: =A15+1 -> 5 | B16: Playboys de l'Est | H16: 20 | I16: =1+1+1+1+1+1 -> 6 | J16: =1+1+1+1+1+1+1+1+1+1+1+1+1 -> 13 | K16: =0+1 -> 1 | L16: =6+2+14+4+6+3+11+4+0+6+6+4+0+3+9+10+6+6+11+12 -> 123 | M16: =2+11+16+10+10+7+7+8+8+8+5+8+6+8+8+10+13+9+5+4 -> 163 | N16: 13 | O16: -40 | P16: 0.325
A17: =A16+1 -> 6 | B17: Marlins | H17: 20 | I17: =0+1+1+1+1+1 -> 5 | J17: =1+1+1+1+1+1+1+1+1+1+1+1+1+1+1 -> 15 | K17: 0 | L17: =1+7+3+9+7+1+8+4+5+2+5+6+5+8+2+9+1+5+5+4 -> 97 | M17: =5+5+15+22+8+11+3+2+6+12+3+0+7+9+3+12+11+6+13+12 -> 165 | N17: 10 | O17: -68 | P17: 0.25
B19: TOTAL | H19: =SUM(H12:H17) -> 120 | I19: 59 | J19: 59 | K19: 2 | L19: 838 | M19: 838 | N19: 120 | O19: 0 | P19: =(I19+(K19*0.5))/H19 -> 0.5
A38: Ligue de Balle Molle Voyageurs
A40: =A4 -> Balle Molle Amical 2 soirs semaine
A43: KINO
A44: # | B44: JOUEURS | F44: C | G44: P | H44: S | I44: PJ | J44: AB | K44: P | L44: CS | M44: PP | N44: BB | O44: CC | P44: MOY
B45: Dominique Laurence | F45: x | G45: x | I45: =1+1+1+1 -> 4 | J45: =3+4+2+3 -> 12 | K45: =0+2+1+2 -> 5 | L45: =2+3+1+2 -> 8 | M45: =1+1 -> 2 | N45: 1 | P45: =IF($J45<>0,L45/$J45,0) -> 0.6666666667
B46: Jean-François Nadeau | F46: x | G46: x | I46: =1+1+1+1+1+1+1+1+1+1+1+1 -> 12 | J46: =1+2+3+4+2+2+2+2+2+5+4+2 -> 31 | K46: =1+2+1+2+1 -> 7 | L46: =1+3+3+1+2+1+3+1+1 -> 16 | M46: =2+2+1+2+1+1+2+2 -> 13 | N46: =1+1+1+1+1+1 -> 6 | P46: 0.5161290323
B47: Gabriel Dugas | F47: x | G47: x | I47: =1+1+1+1+1+1+1+1+1+1+1+1+1+1+1+1+1+1 -> 18 | J47: =3+3+2+5+4+3+3+2+3+3+3+4+3+3+5+2+2+3 -> 56 | K47: =1+2+2+1+2+1+1+1+1+2+3+1+3 -> 21 | L47: =1+2+3+1+2+1+1+2+3+2+4+1+2 -> 25 | M47: =0+1+1+3+2 -> 7 | N47: =1+1+1+2+1 -> 6 | P47: 0.4464285714
B48: Benoit Beaudoin | F48: x | G48: x | I48: =1+1+1+1+1+1 -> 6 | J48: =3+2+2+3+2+3 -> 15 | K48: =0+1 -> 1 | L48: =2+2+1+1 -> 6 | M48: =1+1+1+1 -> 4 | N48: =1+1 -> 2 | P48: 0.4
B49: Olivier Gilbert | F49: x | G49: x | I49: =1+1+1+1+1+1+1+1+1+1 -> 10 | J49: =1+2+3+3+2+2+3+3+5+2 -> 26 | K49: =0+1+1+1+1 -> 4 | L49: =0+1+2+2+1+1+2 -> 9 | M49: =0+1+1+1 -> 3 | N49: =1+1+1+1 -> 4 | P49: 0.3461538462
B50: Alexandre Paradis | F50: x | G50: x | I50: =1+1+1+1+1+1+1+1+1+1+1+1+1+1+1+1 -> 16 | J50: =3+2+2+3+4+4+3+2+2+2+4+2+3+2+4+3 -> 45 | K50: =1+1+3+1+1+2 -> 9 | L50: =1+2+3+1+1+2+1+1+2+1 -> 15 | M50: =3+3+3+1+2+1+1 -> 14 | N50: =1+1+1+1+1+1 -> 6 | P50: 0.3333333333
B51: Francis Piquette | F51: x | G51: x | I51: =1+1+1+1+1+1+1+1+1+1+1+1+1+1+1 -> 15 | J51: =3+2+3+3+2+3+3+2+3+4+3+0+4+3+1 -> 39 | K51: =1+4+1+1+1+1+1 -> 10 | L51: =1+1+1+2+1+2+1+1+2+1 -> 13 | M51: =1+3+2+1+1+3 -> 11 | N51: =2+3+1+1+2 -> 9 | P51: 0.3333333333
B52: Nicolas Mercier | F52: x | G52: x | I52: =1+1+1+1+1+1+1+1+1+1+1+1+1 -> 13 | J52: =3+3+3+3+4+4+3+3+3+4+3+4+3 -> 43 | K52: =2+3+1+1+1+1+1+1 -> 11 | L52: =2+2+1+2+1+1+1+1+1+2 -> 14 | M52: =1+1+1+3 -> 6 | N52: 1 | P52: 0.3255813953
B53: Christian Laurence | F53: x | G53: x | I53: =1+1+1+1+1+1+1+1+1+1+1+1+1+1+1 -> 15 | J53: =1+2+5+3+3+1+4+1+3+2+2+3+3+4+2 -> 39 | K53: =0+2+2+1+1+2 -> 8 | L53: =0+2+1+2+1+1+1+1+1+1+1 -> 12 | M53: =0+1+2+1+1 -> 5 | N53: =1+1+1+1+1+2+1+1+1+1+2 -> 13 | P53: 0.3076923077
B54: Benoit Chartier | F54: x | G54: x | I54: =1+1+1+1 -> 4 | J54: =2+0+4+2 -> 8 | K54: =0+1 -> 1 | L54: =0+1+1 -> 2 | M54: =0+3 -> 3 | N54: 1 | P54: 0.25
B55: Stéphane Boutros | F55: x | G55: x | I55: =1+1+1+1+1+1+1+1+1+1+1+1+1+1+1+1+1+1+1+1 -> 20 | J55: =2+3+2+2+3+3+3+2+2+3+3+2+3+2+1+3+4+3+2+3 -> 51 | K55: =0+2+1+1+1 -> 5 | L55: =1+3+2+1+1+2+1 -> 11 | M55: =1+1+1 -> 3 | N55: =2+1+1 -> 4 | P55: 0.2156862745
B56: Brett Watson | F56: x | G56: x | I56: =1+1+1+1+1+1+1+1+1 -> 9 | J56: =3+3+3+3+3+3+2+4+4 -> 28 | K56: =1+1+2+2+1 -> 7 | L56: =1+1+1+1+1+1 -> 6 | M56: =1+1 -> 2 | N56: =1+2 -> 3 | P56: 0.2142857143
B57: Benoit Houle | F57: x | G57: x | I57: =1+1+1+1+1+1+1+1 -> 8 | J57: =2+3+3+4+3+1+1+2 -> 19 | K57: =1+1 -> 2 | L57: =0+2+1+1 -> 4 | M57: =0+2+1+1+1 -> 5 | N57: 1 | O57: 1 | P57: 0.2105263158
B58: Steve Jackson | F58: x | G58: x | H58: 1 | I58: =1+1+1+1+1+1+1+1+1+1+1+1+1+1+1+1+1+1+1 -> 19 | J58: =2+4+1+3+4+3+3+3+2+3+2+3+4+3+2+5+2+3+1 -> 53 | K58: =1+1+2+1 -> 5 | L58: =1+2+1+1+1+1+1+1+1+1 -> 11 | M58: =3+3+2+2+2 -> 12 | N58: =1+1+1+1+1+1+1+2 -> 9 | P58: 0.2075471698
B59: Michael Lortie | F59: x | G59: x | I59: =1+1 -> 2 | J59: =2+3 -> 5 | K59: 1 | L59: 1 | M59: 0 | N59: 2 | P59: 0.2
B60: Daniel Malenfant | F60: x | G60: x | I60: =1+1+1+1+1+1+1+1+1+1+1+1+1+1+1+1 -> 16 | J60: =3+2+3+5+3+3+1+3+3+2+3+3+4+3+3+3 -> 47 | K60: =0+2+1+2+1+1 -> 7 | L60: =0+1+1+2+2+1+1+1 -> 9 | M60: =0+2+1+1+1 -> 5 | N60: 1 | P60: 0.1914893617
B61: David Goulet-Jobin | F61: x | G61: x | I61: =1+1+1+1+1+1+1+1+1+1+1+1+1+1 -> 14 | J61: =4+2+3+4+4+2+3+2+2+3+2+2+2+3 -> 38 | K61: =1+3+1+1 -> 6 | L61: =1+1+1+1+1+1 -> 6 | M61: =1+1 -> 2 | N61: =1+1+1+1 -> 4 | P61: 0.1578947368
B62: Julien Deveault | F62: x | G62: x | I62: =1+1 -> 2 | J62: =5+3 -> 8 | K62: =0+1 -> 1 | L62: =0+1 -> 1 | M62: 1 | P62: 0.125
B63: Matthew Peters | F63: x | G63: x | I63: 1 | J63: 3 | K63: 0 | L63: 0 | M63: 0 | P63: 0
B64: Gaëtan Vaudeville | F64: x | G64: x | I64: 1 | J64: 1 | K64: 0 | L64: 0 | M64: 0 | N64: 1 | P64: 0
B65: TOTAL | I65: =SUM(I45:I64) -> 205 | J65: =SUM(J45:J64) -> 567 | K65: 111 | L65: 169 | M65: 98 | N65: 74 | O65: 1 | P65: =L65/J65 -> 0.2980599647
A67: # | B67: LANCEURS | F67: PJ | G67: V | H67: D | I67: N | J67: ML | K67: P | L67: PM | M67: CS | N67: BB | O67: K | P67: MPM
B68: Benoit Houle | F68: =1+1+1+1+1 -> 5 | G68: =1+1 -> 2 | H68: =1+1 -> 2 | J68: =7+6+3+4+5.67 -> 25.67 | K68: =0+12+0+0+8 -> 20 | L68: =0+4+0+0+8 -> 12 | M68: =3+18+3+1+12 -> 37 | N68: =4+2+1+2+4 -> 13 | O68: =2+2+2+2+1 -> 9 | P68: =IFERROR(7*(L68/J68),"") -> 3.272302298
B69: Jean-François Nadeau | F69: =1+1+1+1+1+1+1 -> 7 | G69: 1 | H69: =1+1+1+1+1 -> 5 | J69: =6+2.67+7+7+3+5.67+8.33 -> 39.67 | K69: =6+14+7+4+2+16+4 -> 53 | L69: =4+6+4+1+2+8+3 -> 28 | M69: =10+12+8+6+3+15+6 -> 60 | N69: =1+2+7+3+1+5+3 -> 22 | O69: =2+3+3+1+3+4 -> 16 | P69: =IFERROR(7*(L69/J69),"") -> 4.940761281
B70: Francis Piquette | F70: =1+1+1+1+1+1+1+1+1 -> 9 | G70: =1+1+1 -> 3 | H70: =1+1+1+1+1 -> 5 | J70: =6+6+7+7+7+4.67+7+0.67+7 -> 52.34 | K70: =14+6+9+4+10+13+5+1+2 -> 64 | L70: =5+2+9+1+4+9+5+0+2 -> 37 | M70: =15+9+13+7+7+15+12+2+9 -> 89 | N70: =1+3+1+2+4+4+2+2 -> 19 | O70: =2+1+3+4+2+2+1 -> 15 | P70: =IFERROR(7*(L70/J70),"") -> 4.948414215
B71: Stéphane Boutros | F71: =1+1+1 -> 3 | G71: 1 | H71: 1 | J71: =1+4+6 -> 11 | K71: =2+3+5 -> 10 | L71: =2+3+5 -> 10 | M71: =3+7+11 -> 21 | N71: =0+1+2 -> 3 | O71: 0 | P71: =IFERROR(7*(L71/J71),"") -> 6.363636364
J72: 0 | K72: 0 | L72: 0 | P72: =IFERROR(7*(L72/J72),"") -> 
B73: TOTAL | F73: =SUM(F68:F72) -> 24 | G73: =SUM(G68:G72) -> 7 | H73: 13 | I73: 0 | J73: 128.68 | K73: 147 | L73: 87 | M73: 207 | N73: 57 | O73: 40 | P73: =(L73*7)/J73 -> 4.73267019
A80: Ligue de Balle Molle Voyageurs
A82: =A4 -> Balle Molle Amical 2 soirs semaine
A85: PLAYBOYS DE L'EST
A86: # | B86: JOUEURS | F86: C | G86: P | H86: S | I86: PJ | J86: AB | K86: P | L86: CS | M86: PP | N86: BB | O86: CC | P86: MOY
B87: Patrick-André Fleming | F87: x | G87: x | I87: =1+1+1+1+1+1+1+1+1+1+1+1+1+1+1+1+1 -> 17 | J87: =3+2+4+3+3+2+4+2+3+3+4+3+4+5+4+3+3 -> 55 | K87: =1+2+1+1+1+1+1+1+1+1+3+2+3+3 -> 22 | L87: =1+1+1+1+1+1+2+1+1+1+3+2+2+3+2 -> 23 | M87: =2+1+1+2+2+1+4 -> 13 | N87: =1+1+1+1+1+1 -> 6 | P87: =IF($J87<>0,L87/$J87,0) -> 0.4181818182
B88: Thierry Bourdeau | F88: x | G88: x | I88: =1+1+1+1+1+1+1+1+1+1+1+1+1+1+1+1+1+1 -> 18 | J88: =3+3+3+2+2+3+1+2+3+2+3+1+4+5+3+3+3+0 -> 46 | K88: =1+1+1+1+1+1+1+1+1+2+2 -> 13 | L88: =2+1+1+1+1+1+2+1+1+2+2+1+1+2 -> 19 | M88: =2+1+1+1+2+1+3+1 -> 12 | N88: =1+1+2+1+1+2+1+1+1 -> 11 | O88: =1+1+1 -> 3 | P88: 0.4130434783
B89: Manuel Gagnon | F89: x | G89: x | I89: =1+1+1+1+1+1+1+1+1+1+1+1+1+1+1+1+1+1+1 -> 19 | J89: =3+2+4+3+3+1+4+3+3+3+3+3+3+4+3+3+4+3+4 -> 59 | K89: =1+2+1+1+1+3+1+3+2 -> 15 | L89: =1+2+2+1+1+2+3+2+2+1+1+3+3 -> 24 | M89: =1+2+2+1+2+3+3 -> 14 | N89: =1+1+2+1 -> 5 | P89: 0.406779661
B90: Vincent Lafond | F90: x | G90: x | I90: =1+1+1+1+1+1+1+1+1+1+1+1+1+1+1+1+1+1+1+1 -> 20 | J90: =3+2+4+2+3+3+1+3+3+3+3+3+3+3+4+3+4+3+4+4 -> 61 | K90: =1+2+1+1+1+1+1 -> 8 | L90: =3+3+2+2+2+1+1+1+2+2+1+2+1 -> 23 | M90: =2+1+2+1+1+1 -> 8 | N90: =1+1+2 -> 4 | P90: 0.3770491803
B91: Jean-François Giroux | F91: x | G91: x | I91: =1+1+1+1+1+1+1+1+1+1+1+1+1+1 -> 14 | J91: =2+2+3+2+3+1+1+3+3+3+4+2+3+4 -> 36 | K91: =2+1+1+1+1+2+2 -> 10 | L91: =1+2+2+1+1+2+1+3 -> 13 | M91: =1+1+2+1+1 -> 6 | N91: =1+1+2+2+1 -> 7 | P91: 0.3611111111
B92: Kevin Bélanger | F92: x | G92: x | I92: =1+1+1+1+1+1+1+1+1+1+1+1+1+1+1+1+1+1 -> 18 | J92: =3+2+3+1+3+1+4+4+3+3+2+3+4+4+4+3+4+4 -> 55 | K92: =2+1+1+1+1+2+1+1 -> 10 | L92: =1+2+2+2+1+1+1+2+2+2 -> 16 | M92: =2+1+1+1+2+1 -> 8 | N92: =1+1 -> 2 | P92: 0.2909090909
B93: Charles Trempe-Martineau | F93: x | G93: x | I93: =1+1+1+1+1+1+1+1+1+1+1+1+1+1+1+1+1+1 -> 18 | J93: =2+2+2+3+3+2+2+2+3+0+3+3+4+3+4+3+4+4 -> 49 | K93: =2+1+1+1+2+2+1 -> 10 | L93: =1+1+1+1+1+1+1+1+2+2+2 -> 14 | M93: =0+1+2+1 -> 4 | N93: =2+1+1 -> 4 | P93: 0.2857142857
B94: Jean-François Gatien | F94: x | G94: x | I94: =1+1+1+1+1+1+1+1+1+1+1+1+1+1+1+1 -> 16 | J94: =3+2+4+3+3+3+1+3+3+3+2+2+4+2 -> 38 | K94: =1+1+1 -> 3 | L94: =1+1+2+1+2+1+1+1 -> 10 | M94: =1+1+2+1+2+1 -> 8 | N94: =1+1+1 -> 3 | P94: 0.2631578947
B95: Laurent Clark | F95: x | G95: x | I95: =1+1+1+1+1+1+1+1+1+1+1+1+1+1+1+1 -> 16 | J95: =2+2+2+3+3+3+3+2+3+1+2+3+3+3+3+2 -> 40 | K95: =1+1+2+1 -> 5 | L95: =1+2+1+2+1+1+1+1 -> 10 | M95: =1+1+1+1 -> 4 | N95: =1+1+1+1+1+1 -> 6 | P95: 0.25
B96: David Ethier | F96: x | G96: x | I96: =1+1+1+1+1+1+1+1+1+1+1+1+1+1+1 -> 15 | J96: =2+3+1+3+2+3+3+3+3+3+3+3+4+3+3 -> 42 | K96: =1+1+1+2+1 -> 6 | L96: =2+1+1+1+1+2+1+1 -> 10 | M96: =2+2+3+1 -> 8 | N96: =1+1+1+1 -> 4 | P96: 0.2380952381
B97: David Raymond | F97: x | G97: x | I97: =1+1+1+1+1+1+1+1+1+1+1+1+1+1+1+1 -> 16 | J97: =2+1+3+2+3+3+2+2+1+1+2+4+3+3+3 -> 35 | K97: =1+1+1+1+2 -> 6 | L97: =1+1+1+1+1+1 -> 6 | M97: =1+1 -> 2 | N97: 1 | P97: 0.1714285714
B98: Sébastien Marin | F98: x | G98: x | I98: =1+1+1+1+1+1+1+1+1+1+1+1 -> 12 | J98: =3+2+4+3+4+1+4+3+3+3+3+1 -> 34 | K98: =1+2+1+1+1 -> 6 | L98: =2+1+1+1 -> 5 | M98: =1+1+1 -> 3 | N98: =1+1+1 -> 3 | O98: 1 | P98: 0.1470588235
B99: Steve Beaulieu | F99: x | G99: x | I99: =1+1+1+1+1+1+1+1+1+1+1+1+1+1+1+1+1+1 -> 18 | J99: =2+2+4+2+2+3+3+4+3+2+3+2+3+2+3+3+3+3 -> 49 | K99: =2+1+1+1+2+1 -> 8 | L99: =1+2+1+1+1 -> 6 | M99: =1+1+1+2+2 -> 7 | N99: =1+1+1 -> 3 | P99: 0.1224489796
B100: Olivier Baillargeon | F100: x | G100: x | I100: 1 | J100: 3 | K100: 1 | L100: 0 | M100: 0 | P100: 0
B101: Martin Favreau | F101: x | G101: x | P101: 0
B102: Jean-Jacques Bourdeau | F102: x | G102: x | P102: 0
B103: Jean-François Lévesque | F103: x | G103: x | P103: 0
B104: Sophie Coderre | F104: x | G104: x | P104: 0
B105: Julien Gamache | F105: x | G105: x | P105: 0
B106: Benoit Menard | F106: x | G106: x | P106: 0
B107: TOTAL | I107: =SUM(I87:I106) -> 218 | J107: =SUM(J87:J106) -> 602 | K107: 123 | L107: 179 | M107: 97 | N107: 59 | O107: 4 | P107: =L107/J107 -> 0.2973421927
A109: # | B109: LANCEURS | F109: PJ | G109: V | H109: D | I109: N | J109: ML | K109: P | L109: PM | M109: CS | N109: BB | O109: K | P109: MPM
B110: Steve Beaulieu | F110: =1+1+1+1+1+1+1+1+1+1+1+1+1+1 -> 14 | G110: =1+1+1+1 -> 4 | H110: =1+1+1+1+1+1+1 -> 7 | I110: 1 | J110: =7+3.67+3.67+6+6+3+7+4.67+6+5.33+8+2.33+7+5 -> 74.67 | K110: =2+9+9+7+8+0+5+4+6+8+8+4+6+2 -> 78 | L110: =0+8+7+6+4+0+3+2+5+8+8+3+6+2 -> 62 | M110: =4+8+14+9+8+0+10+4+10+10+11+3+9+8 -> 108 | N110: =3+5+7+3+4+6+4+3+2+2+3+1 -> 43 | O110: =2+1+2+1+1+1+1+5+1 -> 15 | P110: =IFERROR(7*(L110/J110),"") -> 5.812240525
B111: Thierry Bourdeau | F111: =1+1+1+1+1+1+1+1+1+1 -> 10 | G111: 1 | H111: =1+1+1 -> 3 | J111: =2+3.33+3+7+3.67+2.67+0.67+2+0+1 -> 25.34 | K111: =2+1+2+7+8+4+0+2+3+0 -> 29 | L111: =2+1+2+6+8+4+0+2+0 -> 25 | M111: =2+3+5+10+6+5+0+3+2+1 -> 37 | N111: =4+1+2+4+6+4+3+3 -> 27 | O111: =0+4+5+2+1+1+1 -> 14 | P111: =IFERROR(7*(L111/J111),"") -> 6.906077348
B112: Manuel Gagnon | F112: =1+1+1+1+1+1 -> 6 | G112: 1 | H112: =1+1 -> 2 | J112: =3+6+1.67+4+4.33+6 -> 25 | K112: =8+8+0+6+11+5 -> 38 | L112: =7+4+0+5+11+5 -> 32 | M112: =8+11+2+8+12+7 -> 48 | N112: =3+1+4+8+7 -> 23 | O112: =0+1 -> 1 | P112: =IFERROR(7*(L112/J112),"") -> 8.96
B113: David Raymond | F113: =1+1 -> 2 | H113: 1 | J113: =5.33+2 -> 7.33 | K113: =16+2 -> 18 | L113: =12+2 -> 14 | M113: =14+3 -> 17 | N113: =5+3 -> 8 | O113: 2 | P113: =IFERROR(7*(L113/J113),"") -> 13.36971351
J114: 0 | K114: 0 | L114: 0 | P114: =IFERROR(7*(L114/J114),"") -> 
B115: TOTAL | F115: =SUM(F110:F114) -> 32 | G115: =SUM(G110:G114) -> 6 | H115: 13 | I115: 1 | J115: 132.34 | K115: 163 | L115: 133 | M115: 210 | N115: 101 | O115: 32 | P115: =(L115*7)/J115 -> 7.03491008
A122: Ligue de Balle Molle Voyageurs
A124: =A4 -> Balle Molle Amical 2 soirs semaine
A127: METS
A128: # | B128: JOUEURS | F128: C | G128: P | H128: S | I128: PJ | J128: AB | K128: P | L128: CS | M128: PP | N128: BB | O128: CC | P128: MOY
B129: William Touzin | F129: x | G129: x | I129: =1+1+1+1+1 -> 5 | J129: =2+3+1+2+3 -> 11 | K129: =0+3+1+1 -> 5 | L129: =1+3+1+1+1 -> 7 | M129: =1+4+1+1 -> 7 | N129: =1+2 -> 3 | O129: 2 | P129: =IF($J129<>0,L129/$J129,0) -> 0.6363636364
B130: Alex Antonacci | F130: x | G130: x | I130: =1+1+1+1+1+1+1+1+1+1+1+1+1+1+1+1 -> 16 | J130: =3+3+4+3+3+2+4+1+4+3+4+3+3+4+1+3 -> 48 | K130: =2+2+4+3+2+1+2+2+2+1+1+2+2+1 -> 27 | L130: =3+3+4+3+2+2+1+2+2+2+2+1+1 -> 28 | M130: =2+3+3+4+1+1+1+2+2+1+2+1+2 -> 25 | N130: =1+1+1+1+1+2 -> 7 | O130: =2+2+1+2 -> 7 | P130: 0.5833333333
B131: Hugo Vanasse | F131: x | G131: x | I131: =1+1+1+1+1+1+1+1+1+1+1+1+1+1+1+1 -> 16 | J131: =4+4+4+4+3+4+2+3+4+4+4+3+3+4+2+1 -> 53 | K131: =3+1+2+2+1+1+1+2+2+3+2+1 -> 21 | L131: =2+2+2+3+2+1+3+3+4+1+2+2+1 -> 28 | M131: =1+1+3+1+2+1+1+1 -> 11 | N131: =1+1+1+1+2 -> 6 | P131: 0.5283018868
B132: Alexandre Brodeur | F132: x | G132: x | I132: =1+1+1+1+1+1+1+1+1+1+1+1+1+1+1+1+1+1+1+1 -> 20 | J132: =4+4+4+4+4+4+4+3+4+5+4+4+4+3+3+4+3+4+2+3 -> 74 | K132: =2+3+3+2+2+2+1+1+1+1+2+2+2+1+2+2 -> 29 | L132: =2+4+2+3+2+2+3+1+2+2+1+2+1+2+2+3+1+1 -> 36 | M132: =1+7+1+1+1+2+1+1+1+2+1+1+1 -> 21 | N132: =1+1 -> 2 | O132: =1+1 -> 2 | P132: 0.4864864865
B133: Philip Jalbert | F133: x | G133: x | H133: 1 | I133: =1+1+1+1+1+1+1+1+1+1+1+1+1 -> 13 | J133: =4+3+3+4+1+3+2+3+2+3+3+2+1 -> 34 | K133: =1+2+1+2+1+2+11+1+2 -> 23 | L133: =1+3+1+1+1+1+2+1+2+2 -> 15 | M133: =4+2+3+3+1+2+2+2 -> 19 | N133: =1+1+3+1+2+1+2 -> 11 | O133: =1+1 -> 2 | P133: 0.4411764706
B134: Philippe Blacquière | F134: x | G134: x | I134: =1+1 -> 2 | J134: =3+4 -> 7 | K134: =1+1 -> 2 | L134: =1+2 -> 3 | M134: 3 | N134: 1 | O134: 1 | P134: 0.4285714286
B135: Jean-Christophe Pesant-Tremblay | F135: x | G135: x | I135: =1+1+1+1+1+1+1+1+1+1+1 -> 11 | J135: =4+4+3+3+3+3+4+4+3+3+3 -> 37 | K135: =2+2+3+2+1+1+1+2+1 -> 15 | L135: =2+2+3+2+2+2+2 -> 15 | M135: =2+1+1+1+2+4 -> 11 | N135: =1+1+1 -> 3 | O135: =1+1 -> 2 | P135: 0.4054054054
B136: Frederic Charlebois | F136: x | G136: x | I136: =1+1+1+1+1 -> 5 | J136: =3+2+2+4+2 -> 13 | K136: =2+1 -> 3 | L136: =1+1+1+2 -> 5 | M136: =1+1+3+2 -> 7 | N136: 1 | O136: 1 | P136: 0.3846153846
B137: William Scott | F137: x | G137: x | I137: =1+1+1+1+1+1+1+1+1+1+1+1+1+1+1 -> 15 | J137: =4+4+3+3+4+3+3+3+4+3+1+4+2+3+3 -> 47 | K137: =1+2+1+3+1+1+1 -> 10 | L137: =2+2+2+1+1+2+2+1+1+1+2 -> 17 | M137: =1+1+2+1+1+3+1+1+1+2+1 -> 15 | N137: =1+1+1+3+1 -> 7 | P137: 0.3617021277
B138: Julien Henri | F138: x | G138: x | I138: =1+1+1+1+1+1+1+1+1+1+1+1+1+1+1 -> 15 | J138: =3+3+4+3+3+3+4+4+2+3+3+2+2+1+3 -> 43 | K138: =1+1+1+1+3+1+1+1+1+1 -> 12 | L138: =1+2+1+1+3+3+1+1+1+1 -> 15 | M138: =2+1+1+1 -> 5 | N138: =1+1+1+1+1+1 -> 6 | P138: 0.3488372093
B139: Gabriel Laforest | F139: x | G139: x | I139: =1+1+1+1+1+1+1+1+1+1+1+1+1+1+1 -> 15 | J139: =4+3+3+3+2+3+4+2+3+2+3+3+1+1+2 -> 39 | K139: =1+1+1+1+1+1+1 -> 7 | L139: =1+2+1+1+2+1+1+2 -> 11 | M139: =3+1+2+1 -> 7 | N139: =1+1+1+2+1+1 -> 7 | P139: 0.2820512821
B140: Daniel Scott | F140: x | G140: x | I140: =1+1+1+1+1+1+1+1+1+1+1+1+1+1 -> 14 | J140: =3+3+3+3+3+4+3+3+3+4+2+3+3+3 -> 43 | K140: =1+2+1+1+2+1+1+1 -> 10 | L140: =1+2+3+1+1+1+2 -> 11 | M140: =1+1+1+1+1+1 -> 6 | N140: =1+1 -> 2 | P140: 0.2558139535
B141: Louis-Sébastien Deshaies | F141: x | G141: x | I141: =1+1+1+1+1+1+1+1+1+1+1+1+1+1+1+1+1+1 -> 18 | J141: =4+4+4+4+3+3+3+3+4+3+4+3+2+3+2+3+2+2 -> 56 | K141: =2+2+1+1+1+1+1+1 -> 10 | L141: =2+1+2+2+1+2+1+1+1+1 -> 14 | M141: =1+2+3+1+1+2 -> 10 | N141: 1 | P141: 0.25
B142: Raphaël Henri | F142: x | G142: x | I142: =1+1+1+1+1+1+1+1+1+1+1+1+1+1+1 -> 15 | J142: =2+4+3+4+3+3+3+4+3+2+4+3+2+3+1 -> 44 | K142: =1+1+1+1+1+2+1+1+1+1 -> 11 | L142: =0+1+2+1+2+1+1+1+1 -> 10 | M142: =0+2+1+1+2+1+2 -> 9 | N142: =1+1+1+1+1+1+1 -> 7 | P142: 0.2272727273
B143: Sylvain Maccameau | F143: x | G143: x | I143: =1+1+1+1 -> 4 | J143: =2+4+3 -> 9 | K143: 0 | L143: 2 | M143: 0 | N143: 2 | P143: 0.2222222222
B144: Clément Gibeau | F144: x | G144: x | I144: =1+1+1+1+1 -> 5 | J144: =4+2+3+3+2 -> 14 | K144: =0+2 -> 2 | L144: =1+1+1 -> 3 | M144: =1+1+3+1 -> 6 | N144: =1+1 -> 2 | P144: 0.2142857143
B145: Jason Bell | F145: x | G145: x | I145: =1+1+1+1 -> 4 | J145: =3+3+4+3 -> 13 | K145: =1+2+1 -> 4 | L145: =1+1 -> 2 | M145: =0+1 -> 1 | P145: 0.1538461538
A146: OK | B146: Karl Forgues | F146: x | G146: x | I146: =1+1+1 -> 3 | J146: =3+4+2 -> 9 | K146: 1 | L146: 1 | M146: 0 | N146: 1 | P146: 0.1111111111
A147: OK | B147: David Jalbert | F147: x | G147: x | I147: =1+1+1 -> 3 | J147: =3+3+3 -> 9 | K147: =1+1 -> 2 | L147: =0+1 -> 1 | M147: =0+1 -> 1 | P147: 0.1111111111
B148: Simon Vallée | F148: x | G148: x | P148: 0
B149: TOTAL | I149: =SUM(I129:I148) -> 199 | J149: =SUM(J129:J148) -> 603 | K149: 194 | L149: 224 | M149: 164 | N149: 69 | O149: 17 | P149: =L149/J149 -> 0.3714759536
A151: # | B151: LANCEURS | F151: PJ | G151: V | H151: D | I151: N | J151: ML | K151: P | L151: PM | M151: CS | N151: BB | O151: K | P151: MPM
B152: Daniel Scott | F152: =1+1+1+1+1+1+1 -> 7 | G152: =1+1+1+1+1 -> 5 | J152: =4+3+5+7+4+7+5.67 -> 35.67 | K152: =1+5+3+0+2+2+7 -> 20 | L152: =0+3+3+0+1+1+7 -> 15 | M152: =3+3+2+2+8+7+6 -> 31 | N152: =4+5+1+2+4+1+8 -> 25 | O152: =5+1+4+7+3+5 -> 25 | P152: =IFERROR(7*(L152/J152),"") -> 2.943650126
B153: Clement Gibeau | F153: =1+1+1+1+1 -> 5 | G153: =1+1+1 -> 3 | H153: =1+1 -> 2 | J153: =7+7+7+7+6.33 -> 34.33 | K153: =4+11+6+4+7 -> 32 | L153: =4+5+6+2+3 -> 20 | M153: =9+12+12+6+10 -> 49 | N153: =1+2+3+7+1 -> 14 | O153: =4+4+2+2 -> 12 | P153: =IFERROR(7*(L153/J153),"") -> 4.078065832
B154: Gabriel Laforest | F154: =1+1+1+1+1+1+1+1+1+1 -> 10 | G154: =1+1+1+1+1+1+1 -> 7 | H154: 1 | J154: =6.67+7+3+7+2+7+2.67+5.33+6+1 -> 47.67 | K154: =10+0+1+5+0+4+12+9+5+0 -> 46 | L154: =6+0+1+3+0+2+7+8+5+0 -> 32 | M154: =9+4+4+13+1+5+10+11+9+1 -> 67 | N154: =7+2+3+2+5+5+5+1 -> 30 | O154: =3+3+2+2+2+1+1+2 -> 16 | P154: =IFERROR(7*(L154/J154),"") -> 4.6989721
A155: * | B155: Alexandre Brodeur | F155: =1+1+1+1 -> 4 | G155: =1+1 -> 2 | J155: =3+4+4+0.33 -> 11.33 | K155: =5+9+2+5 -> 21 | L155: =5+6+2+4 -> 17 | M155: =6+9+4+4 -> 23 | N155: =3+3+3+1 -> 10 | O155: =1+1 -> 2 | P155: =IFERROR(7*(L155/J155),"") -> 10.50308914 | Q155: RECU OK Ligue pour Lancer en séries suite a une blessure durant saison
J156: 0 | K156: 0 | L156: 0 | P156: =IFERROR(7*(L156/J156),"") -> 
B157: TOTAL | F157: =SUM(F152:F156) -> 26 | G157: =SUM(G152:G156) -> 17 | H157: 3 | I157: 0 | J157: 129 | K157: 119 | L157: 84 | M157: 170 | N157: 79 | O157: 55 | P157: =(L157*7)/J157 -> 4.558139535
A164: Ligue de Balle Molle Voyageurs
A166: =A4 -> Balle Molle Amical 2 soirs semaine
A169: MARLINS
A170: # | B170: JOUEURS | F170: C | G170: P | H170: S | I170: PJ | J170: AB | K170: P | L170: CS | M170: PP | N170: BB | O170: CC | P170: MOY
B171: Steve Aikens | F171: x | G171: x | I171: =1+1+1+1+1+1+1+1+1+1+1+1+1+1+1+1+1+1+1+1 -> 20 | J171: =1+3+1+4+4+3+5+3+4+2+3+2+3+4+3+3+2+1+3+4 -> 58 | K171: =1+1+2+1+1+1+1+2+1+1+1 -> 13 | L171: =0+3+2+1+3+2+1+1+3+2+1+2+1+1+2+3 -> 28 | M171: =0+1+1+3+1+2 -> 8 | N171: =1+1+1+1+1+2+1 -> 8 | P171: =IF($J171<>0,L171/$J171,0) -> 0.4827586207
B172: Sébastien Blouin | F172: x | G172: x | I172: =1+1+1+1+1+1+1+1+1+1+1 -> 11 | J172: =2+4+3+1+3+3+3+3+3+3+2 -> 30 | K172: =0+1+1+1+2+2 -> 7 | L172: =2+2+2+1+1+1+1+2+1+1 -> 14 | M172: =0+1+3+2+2 -> 8 | N172: =1+1 -> 2 | O172: =1+1 -> 2 | P172: 0.4666666667
B173: Éric Chapados | F173: x | G173: x | I173: =1+1+1+1+1+1+1+1 -> 8 | J173: =2+3+1+1+1+2+2+3 -> 15 | K173: 0 | L173: =1+1+1+2+1 -> 6 | M173: =1+2 -> 3 | N173: =1+1 -> 2 | P173: 0.4
B174: André Parenteau | F174: x | G174: x | I174: =1+1+1+1+1+1+1+1+1+1+1+1+1+1+1+1+1+1 -> 18 | J174: =1+3+2+4+3+3+4+3+4+4+2+3+3+3+4+3+3+3 -> 55 | K174: =1+1+1+3+2+1+1+1+1 -> 12 | L174: =1+1+3+1+2+3+1+2+1+2+2+1+1 -> 21 | M174: =1+3+7+2+1+2+1+2 -> 19 | N174: =1+1+1 -> 3 | O174: =1+2 -> 3 | P174: 0.3818181818
B175: Michael Jodoin | F175: x | G175: x | I175: =1+1+1+1 -> 4 | J175: =1+2+3+2 -> 8 | K175: =0+1+1+2 -> 4 | L175: =0+1+1+1 -> 3 | M175: =0+1 -> 1 | N175: =2+1 -> 3 | P175: 0.375
B176: Julien Dorion | F176: x | G176: x | I176: =1+1+1+1+1+1+1+1+1+1+1+1+1+1+1+1+1+1+1 -> 19 | J176: =2+3+2+4+3+2+4+1+3+3+2+3+3+3+2+3+2+3+3 -> 51 | K176: =0+1+1+1+1+1+1 -> 6 | L176: =1+1+2+1+3+1+1+1+2+2+1+1 -> 17 | M176: =0+1+1+1+1+1+1+1 -> 7 | N176: =1+1+3+1+1+1+1 -> 9 | P176: 0.3333333333
B177: Stéphane Lefebvre | F177: x | G177: x | I177: =1+1+1+1+1+1+1+1+1+1+1+1+1+1+1+1+1+1+1+1 -> 20 | J177: =2+3+2+3+4+3+4+4+3+3+4+4+3+4+3+3+3+2+3+5 -> 65 | K177: =1+1+1+1+1+1+2+1+1 -> 10 | L177: =0+2+1+2+1+1+3+3+3+1+1+1+2 -> 21 | M177: =0+1+2+2+2+1 -> 8 | N177: =1+1 -> 2 | O177: 1 | P177: 0.3230769231
B178: Philippe Dallaire | F178: x | G178: x | I178: =1+1+1+1+1 -> 5 | J178: =3+3+3+3+2+5 -> 19 | K178: =2+2+1 -> 5 | L178: =2+1+1+1+1 -> 6 | M178: =1+1 -> 2 | N178: =1+1+1 -> 3 | P178: 0.3157894737
B179: Mario Lalumière | F179: x | G179: x | I179: =1+1+1+1+1+1+1+1 -> 8 | J179: =4+3+4+1+1+1+3+4 -> 21 | K179: =0+1+1+2 -> 4 | L179: =0+1+1+4 -> 6 | M179: =0+1 -> 1 | N179: 1 | P179: 0.2857142857
B180: Yves Deslauriers | F180: x | G180: x | I180: =1+1+1+1+1+1+1+1+1+1+1+1+1 -> 13 | J180: =2+2+3+3+3+4+4+4+3+3+3+3+3 -> 40 | K180: =2+1+1+2+1+1+1+1 -> 10 | L180: =1+1+2+1+1+2+1+1+1 -> 11 | M180: =0+1+1 -> 2 | N180: =1+1+1 -> 3 | O180: 1 | P180: 0.275
B181: Jean-Junior Richard | F181: x | G181: x | I181: =1+1+1+1+1+1+1+1+1+1+1+1+1+1+1+1+1+1+1+1 -> 20 | J181: =2+3+1+4+2+3+5+3+3+3+3+2+3+3+2+3+3+3+3+4 -> 58 | K181: =2+1+2+1+2+1+1+1+1+1+1 -> 14 | L181: =1+2+2+1+1+1+1+1+1+1+2+1 -> 15 | M181: =1+1+1+3+1+1 -> 8 | N181: =1+2+1+1+1+1 -> 7 | O181: 1 | P181: 0.2586206897
B182: Éric Bouthillier | F182: x | G182: x | I182: =1+1+1+1+1+1+1+1+1+1+1+1+1+1+1+1+1+1+1 -> 19 | J182: =2+3+2+3+3+2+3+3+3+3+3+3+4+3+2+3+2+3+3 -> 53 | K182: =0+1+1+1 -> 3 | L182: =1+1+2+1+1+3+1+1+1+1 -> 13 | M182: =2+1+1+1+2 -> 7 | N182: =1+1+1+1+1+1+1 -> 7 | P182: 0.2452830189
B183: Jean-Philippe Paré | F183: x | G183: x | I183: =1+1+1+1+1 -> 5 | J183: =3+3+1+2+3 -> 12 | K183: =0+1+1 -> 2 | L183: =0+2 -> 2 | M183: 0 | N183: =2+1 -> 3 | P183: 0.1666666667
B184: Cliff Neiman | F184: x | G184: x | I184: =1+1+1+1+1+1+1 -> 7 | J184: =1+3+1+2+3+2+1 -> 13 | K184: =0+1 -> 1 | L184: =0+1+1 -> 2 | M184: =0+1 -> 1 | P184: 0.1538461538
B185: Brandon Gauthier | F185: x | G185: x | I185: =1+1+1+1+1+1+1+1+1+1+1+1 -> 12 | J185: =2+3+2+3+3+3+3+3+2+3+2+2 -> 31 | K185: =0+1 -> 1 | L185: =0+1+1+1+1 -> 4 | M185: =0+1 -> 1 | P185: 0.1290322581
B186: Samuel Charette | F186: x | G186: x | I186: =1+1+1+1 -> 4 | J186: =2+4+3 -> 9 | K186: =0+1 -> 1 | L186: 0 | M186: =0+1 -> 1 | N186: =1+1+1 -> 3 | P186: 0
A187: OK | B187: Hugue Bouchard | F187: x | G187: x | I187: =1+1+1 -> 3 | J187: =3+2+2 -> 7 | K187: 0 | L187: 0 | M187: 0 | P187: 0
A188: OK | B188: Tommy Laurin | F188: x | G188: x | I188: =1+1+1 -> 3 | J188: =3+2+2 -> 7 | K188: =1+1 -> 2 | L188: 0 | M188: =0+1 -> 1 | N188: 1 | P188: 0
B189: Jean-Marc Boucher | F189: x | G189: x | I189: =1+1+1+1+1+1 -> 6 | J189: =1+2+2+1 -> 6 | K189: 0 | L189: 0 | M189: 0 | N189: 1 | P189: 0
B190: Keven Cloutier | F190: x | G190: x | P190: 0
B191: TOTAL | I191: =SUM(I171:I190) -> 205 | J191: =SUM(J171:J190) -> 558 | K191: 95 | L191: 169 | M191: 78 | N191: 58 | O191: 8 | P191: =L191/J191 -> 0.3028673835
A193: # | B193: LANCEURS | F193: PJ | G193: V | H193: D | I193: N | J193: ML | K193: P | L193: PM | M193: CS | N193: BB | O193: K | P193: MPM
B194: Jean-Marc Boucher | F194: =1+1+1+1+1+1 -> 6 | H194: =1+1+1+1+1 -> 5 | J194: =4+2+6+6+5+2.33 -> 25.33 | K194: =5+1+6+3+1+8 -> 24 | L194: =0+1+5+2+0+8 -> 16 | M194: =5+4+11+8+5+8 -> 41 | N194: =0+0+3 -> 3 | O194: =2+1+1+1+1 -> 6 | P194: =IFERROR(7*(L194/J194),"") -> 4.421634426
A195: OK | B195: Mario Lalumière | F195: =1+1+1+1+1+1 -> 6 | G195: 1 | H195: =1+1+1 -> 3 | J195: =6+7+4.67+2+3.33+1 -> 24 | K195: =22+2+11+0+10+0 -> 45 | L195: =4+2+7+0+3+0 -> 16 | M195: =17+7+11+1+10 -> 46 | N195: =10+5+3+3+1 -> 22 | O195: =1+1+3+1 -> 6 | P195: =IFERROR(7*(L195/J195),"") -> 4.666666667
B196: Philippe Dallaire | F196: =1+1+1+1+1 -> 5 | G196: 1 | H196: =1+1+1 -> 3 | J196: =2.67+7+8+2.33+5 -> 25 | K196: =2+3+9+2+12 -> 28 | L196: =1+1+3+2+10 -> 17 | M196: =5+3+9+2+16 -> 35 | N196: =1+6+6+2+4 -> 19 | O196: =1+2+3+2+2 -> 10 | P196: =IFERROR(7*(L196/J196),"") -> 4.76
B197: Cliff Neiman | F197: =1+1+1+1+1+1 -> 6 | G197: =1+1 -> 2 | H197: =1+1 -> 2 | J197: =3+4.33+4+5+7+3 -> 26.33 | K197: =9+6+5+3+0+5 -> 28 | L197: =7+3+5+3+0+5 -> 23 | M197: =11+8+8+8+5+8 -> 48 | N197: =0+1+1+1 -> 3 | O197: =1+2+1+1+2 -> 7 | P197: =IFERROR(7*(L197/J197),"") -> 6.114698063
B198: Éric Chapados | F198: =1+1+1+1+1+1+1 -> 7 | G198: 1 | H198: =1+1 -> 2 | J198: =5+1.67+3+2+6+7+0.67 -> 25.34 | K198: =4+6+6+1+7+11+5 -> 40 | L198: =2+6+6+0+5+10+3 -> 32 | M198: =8+7+7+2+14+16+5 -> 59 | N198: =4+2+3+2+4 -> 15 | O198: =2+2+1+2+1 -> 8 | P198: =IFERROR(7*(L198/J198),"") -> 8.839779006
B199: TOTAL | F199: =SUM(F194:F198) -> 30 | G199: =SUM(G194:G198) -> 5 | H199: 15 | I199: 0 | J199: 126 | K199: 165 | L199: 104 | M199: 229 | N199: 62 | O199: 37 | P199: =(L199*7)/J199 -> 5.777777778
B200: André Parenteau | F200: 1 | J200: 1 | K200: 0 | L200: 0 | M200: 1 | N200: 0 | O200: 1 | P200: =IFERROR(7*(L200/J200),"") -> 0
A206: Ligue de Balle Molle Voyageurs
A208: =A4 -> Balle Molle Amical 2 soirs semaine
A211: BORATIFS
A212: # | B212: JOUEURS | F212: C | G212: P | H212: S | I212: PJ | J212: AB | K212: P | L212: CS | M212: PP | N212: BB | O212: CC | P212: MOY
B213: Charles Dumas | F213: x | G213: x | I213: =1+1 -> 2 | J213: =3+3 -> 6 | K213: =1+3 -> 4 | L213: =1+2 -> 3 | M213: =2+3 -> 5 | N213: =1+1 -> 2 | O213: =1+1 -> 2 | P213: =IF($J213<>0,L213/$J213,0) -> 0.5
B214: Marc-André Desjardins | F214: x | G214: x | I214: =1+1+1+1+1+1+1+1+1+1+1+1+1+1+1+1+1+1+1+1 -> 20 | J214: =4+4+1+3+3+3+4+2+3+3+2+4+2+2+3+4+3+2+3 -> 55 | K214: =1+1+2+1+2+1+1+1+3+1+2 -> 16 | L214: =2+2+1+1+2+2+3+1+1+2+2+1+3+2+1+1 -> 27 | M214: =2+2+2+2+2+2+2+2+2+1+1 -> 20 | N214: =1+1+1 -> 3 | O214: =1+1 -> 2 | P214: 0.4909090909
B215: Michel Bachelet | F215: x | G215: x | I215: =1+1+1+1+1+1+1+1+1+1+1+1+1 -> 13 | J215: =3+4+3+3+3+3+3+4+3+1+3+3+2 -> 38 | K215: =1+1+1+1+2+2+1+1 -> 10 | L215: =2+2+2+2+2+2+1+1+2+1 -> 17 | M215: =1+1+3+1+2+1 -> 9 | N215: =1+1+1+1+1 -> 5 | P215: 0.4473684211
B216: Guillaume Martineau | F216: x | G216: x | I216: =1+1+1+1+1+1+1+1 -> 8 | J216: =4+3+4+4+2+2+3+3 -> 25 | K216: =0+2+1+1+1+2 -> 7 | L216: =0+2+2+2+1+3 -> 10 | M216: =0+1+1+3 -> 5 | N216: =1+2+1 -> 4 | P216: 0.4
A217: OK | B217: Anthony Hachey | F217: x | G217: x | I217: =1+1+1 -> 3 | J217: =3+4+1 -> 8 | K217: =0+1 -> 1 | L217: =2+1 -> 3 | M217: =1+1 -> 2 | P217: 0.375
B218: Guillaume Pinard | F218: x | G218: x | I218: =1+1+1+1+1+1+1+1+1+1+1+1+1+1+1+1 -> 16 | J218: =2+3+2+2+3+2+3+3+2+1+3+1+4+2+3+3 -> 39 | K218: =0+1+1+1 -> 3 | L218: =1+2+2+1+1+3+1+2+1 -> 14 | M218: =1+1+1+3 -> 6 | N218: =1+1+1+1+2+1+1 -> 8 | P218: 0.358974359
B219: Michel Alexandre Cauchon | F219: x | G219: x | I219: =1+1+1+1+1+1+1+1+1+1+1+1+1+1+1 -> 15 | J219: =4+4+3+4+2+4+3+1+1+2+4+2+3+3+2 -> 42 | K219: =2+2+2+2+1+2+1+1 -> 13 | L219: =2+2+1+3+1+2+1+1+1+1 -> 15 | M219: =0+3+1 -> 4 | N219: =1+2 -> 3 | P219: 0.3571428571
B220: Steve Lapanne | F220: x | G220: x | I220: =1+1+1+1+1+1+1+1+1+1+1+1+1+1+1+1 -> 16 | J220: =2+3+4+4+1+3+3+2+2+3+3+3+4+1+3+2 -> 43 | K220: =0+1+1+2+1+1+1+1+1+1 -> 10 | L220: =0+3+3+3+1+1+1+1+1+1 -> 15 | M220: =0+2+1+2+1 -> 6 | N220: =1+1+1+1 -> 4 | P220: 0.3488372093
B221: Anthony Lapointe | F221: x | G221: x | I221: =1+1+1+1+1+1+1+1+1+1+1+1+1+1+1+1+1 -> 17 | J221: =4+3+4+3+2+0+3+2+3+3+1+2+4+4+3 -> 41 | K221: =1+1+1+2+2+1 -> 8 | L221: =2+3+1+1+2+1+3+1 -> 14 | M221: =2+1+1+1+1 -> 6 | N221: =1+3+1+2+1 -> 8 | P221: 0.3414634146
B222: Doug Phélan | F222: x | G222: x | I222: =1+1+1+1+1+1+1+1+1+1+1+1 -> 12 | J222: =2+3+3+3+4+2+3+3+1+2+1+3 -> 30 | K222: =0+1+2 -> 3 | L222: =1+1+2+2+2+1+1 -> 10 | M222: =0+3+4+1+3 -> 11 | N222: =1+1+2 -> 4 | O222: =1+1 -> 2 | P222: 0.3333333333
B223: Maurice Garand | F223: x | G223: x | I223: =1+1+1+1+1+1+1+1+1+1+1+1+1+1+1+1+1 -> 17 | J223: =3+2+3+2+1+2+1+3+1+1+4+2+1+3+2+3+1 -> 35 | K223: =0+2+1+1 -> 4 | L223: =0+1+2+1+3+2+1+1 -> 11 | M223: =0+1+1+1+2 -> 5 | N223: =1+1+1+2+2+1 -> 8 | P223: 0.3142857143
B224: Claude Labrosse | F224: x | G224: x | I224: =1+1+1+1+1+1+1+1+1+1 -> 10 | J224: =2+3+2+1+3+2+1+3+4+3 -> 24 | K224: =1+2+2+1+2+1 -> 9 | L224: =1+2+1+1+2 -> 7 | M224: =1+1+1+2 -> 5 | N224: =1+1+2+1+1+3 -> 9 | P224: 0.2916666667
B225: Patrice Leclerc | F225: x | G225: x | I225: =1+1+1+1+1+1+1+1+1+1+1 -> 11 | J225: =2+4+3+4+3+3+3+3+3+3+1 -> 32 | K225: 1 | L225: =1+1+1+3+1+1+1 -> 9 | M225: =1+1+1+1+1 -> 5 | N225: =1+1 -> 2 | P225: 0.28125
B226: Yanick Cyr | F226: x | G226: x | I226: =1+1+1+1+1+1 -> 6 | J226: =1+2+0+2+4+2 -> 11 | K226: =1+1 -> 2 | L226: =0+2+1 -> 3 | M226: =0+2 -> 2 | N226: =2+1+1+1+1 -> 6 | P226: 0.2727272727
B227: Jacques Dufault | F227: x | G227: x | I227: =1+1+1+1+1+1+1+1+1+1+1+1 -> 12 | J227: =4+2+1+3+0+1+3+2+0+0+1+2 -> 19 | K227: =1+2+1 -> 4 | L227: =1+2+2 -> 5 | M227: =2+1+1 -> 4 | N227: =1+2+3+1+1+2+1+1+1 -> 13 | P227: 0.2631578947
B228: Pascal Hamel | F228: x | G228: x | I228: =1+1+1+1+1+1+1+1+1 -> 9 | J228: =2+2+3+3+2+3+2+3+3 -> 23 | K228: =0+1+1+1+1 -> 4 | L228: =0+2+1+1+2 -> 6 | M228: 0 | N228: =1+1 -> 2 | P228: 0.2608695652
B229: Éric Laventure | F229: x | G229: x | I229: =1+1+1+1+1+1+1+1+1+1+1+1+1+1+1+1+1+1 -> 18 | J229: =3+3+2+1+3+2+3+2+3+2+1+3+3+3+1+3+3+3 -> 44 | K229: =1+1+2+1+1+1+1+1 -> 9 | L229: =2+1+1+1+1+2+1+1 -> 10 | M229: =1+1+1+1+2+1 -> 7 | N229: =1+1+1+1+1+1+1 -> 7 | P229: 0.2272727273
B230: Patrick Lapointe | F230: x | G230: x | I230: =1+1+1+1+1+1+1+1+1+1+1+1+1+1+1+1+1+1 -> 18 | J230: =2+1+2+3+1+3+3+3+2+1+1+3+0+1+3+2+3+3 -> 37 | K230: =0+2+1+1+1+1 -> 6 | L230: =0+2+1+1+1 -> 5 | M230: =1+1+1 -> 3 | N230: =1+2+1+1+1+1+1 -> 8 | P230: 0.1351351351
B231: Serge Boutet | F231: x | G231: x | I231: =1+1+1+1+1+1+1+1+1+1 -> 10 | J231: =3+3+2+3+1+1+2+1+4+2 -> 22 | K231: =0+1+1+1 -> 3 | L231: =1+1 -> 2 | M231: =0+2 -> 2 | N231: 1 | P231: 0.09090909091
B232: Éric Lévesque | F232: x | G232: x | P232: 0
B233: TOTAL | I233: =SUM(I213:I232) -> 233 | J233: =SUM(J213:J232) -> 574 | K233: 117 | L233: 186 | M233: 107 | N233: 97 | O233: 6 | P233: =L233/J233 -> 0.3240418118
A235: # | B235: LANCEURS | F235: PJ | G235: V | H235: D | I235: N | J235: ML | K235: P | L235: PM | M235: CS | N235: BB | O235: K | P235: MPM
B236: Claude Labrosse | F236: =1+1+1+1+1+1+1+1 -> 8 | G236: =1+1 -> 2 | I236: 1 | J236: =3+5+4.33+3+2.67+7+1.67+9 -> 35.67 | K236: =2+2+5+1+3+1+0+3 -> 17 | L236: =2+2+1+0+3+1+0+2 -> 11 | M236: =3+6+5+3+3+7+8 -> 35 | N236: =1+2+1+2+2+5 -> 13 | O236: =1+2+1+2+5 -> 11 | P236: =IFERROR(7*(L236/J236),"") -> 2.158676759
B237: Patrice Leclerc | F237: =1+1+1+1+1+1+1+1+1 -> 9 | G237: =1+1 -> 2 | H237: =1+1+1+1+1 -> 5 | J237: =3+4+6+5+5+0.67+1+7+2.33+1 -> 35 | K237: =3+4+6+4+1+1+6+10+1 -> 36 | L237: =3+1+6+2+1+1+3+10+1 -> 28 | M237: =6+4+13+8+3+3+14+13+2 -> 66 | N237: =1+2+1+1+4+2+3 -> 14 | O237: =0+2+1+3+2+1+1 -> 10 | P237: =IFERROR(7*(L237/J237),"") -> 5.6
B238: Éric Laventure | F238: =1+1+1+1+1+1+1+1+1+1+1+1+1 -> 13 | G238: =1+1+1 -> 3 | H238: =1+1+1+1+1+1+1 -> 7 | J238: =4+2+7+4.33+2+7+6+6+4+2.67+2+5+7 -> 59 | K238: =4+3+3+13+2+8+13+14+8+5+4+5+8 -> 90 | L238: =2+1+3+8+1+5+13+9+5+5+2+3+5 -> 62 | M238: =6+3+3+9+2+15+11+14+7+5+3+5+9 -> 92 | N238: =1+5+9+2+2+11+11+3+8+4+4+6 -> 66 | O238: =3+1+9+4+6+2+5+3+2+1+4+6 -> 46 | P238: =IFERROR(7*(L238/J238),"") -> 7.355932203
B239: Maurice Garand | F239: 1 | J239: 0 | K239: 1 | L239: 1 | M239: 3 | N239: 1 | O239: 0 | P239: =IFERROR(7*(L239/J239),"") -> 
J240: 0 | K240: 0 | L240: 0 | P240: =IFERROR(7*(L240/J240),"") -> 
B241: TOTAL | F241: =SUM(F236:F240) -> 31 | G241: =SUM(G236:G240) -> 7 | H241: 12 | I241: 1 | J241: 129.67 | K241: 144 | L241: 102 | M241: 196 | N241: 94 | O241: 67 | P241: =(L241*7)/J241 -> 5.506285185
A248: Ligue de Balle Molle Voyageurs
A250: =A4 -> Balle Molle Amical 2 soirs semaine
A253: BUCANEROS
A254: # | B254: JOUEURS | F254: C | G254: P | H254: S | I254: PJ | J254: AB | K254: P | L254: CS | M254: PP | N254: BB | O254: CC | P254: MOY
B255: Daniel Rodriguez | F255: x | G255: x | I255: =1+1+1+1+1+1+1+1+1+1+1+1 -> 12 | J255: =3+2+3+4+4+4+3+3+4+3+2+3 -> 38 | K255: =1+3+1+1+2+1+1+1+2+3 -> 16 | L255: =1+1+3+2+3+2+1+2+2+2+1+2 -> 22 | M255: =1+1+4+1+1+1+1+3+1 -> 14 | N255: =1+1+2 -> 4 | P255: =IF($J255<>0,L255/$J255,0) -> 0.5789473684
B256: Juan Martinez | F256: x | G256: x | I256: =1+1+1+1+1+1+1+1+1+1+1+1+1+1+1+1 -> 16 | J256: =2+3+3+3+3+2+3+3+3+4+3+3+2+3+4+3 -> 47 | K256: =1+1+3+1+2+1+1+3+1+2+1+1+1 -> 19 | L256: =1+2+1+3+1+1+1+3+3+1+1+2+3+3 -> 26 | M256: =2+3+1+3+1+2+1+3+4+1+1+5 -> 27 | N256: =1+1+1+1+1+1 -> 6 | O256: =2+1 -> 3 | P256: 0.5531914894
B257: Adonys Alea | F257: x | G257: x | I257: =1+1+1+1+1+1+1+1+1+1+1+1+1+1+1+1+1+1 -> 18 | J257: =2+3+2+3+4+3+4+3+4+4+4+3+3+2+3+3+4+3 -> 57 | K257: =1+2+2+1+1+1+2+1+4+1+1+2+3+1+2+1 -> 26 | L257: =2+2+1+2+1+3+2+2+3+1+1+1+3+1+3+1 -> 29 | M257: =2+3+2+4+2+4+1+3+2+2+1 -> 26 | N257: =1+2+1 -> 4 | O257: =1+1+1+1+1+1 -> 6 | P257: 0.5087719298
B258: Juan-Carlos Martelo | F258: x | G258: x | I258: =1+1+1+1+1+1+1+1 -> 8 | J258: =2+3+3+3+2+4+4+3 -> 24 | K258: =1+1+2+1+2+2+1 -> 10 | L258: =1+1+2+2+1+3+2 -> 12 | M258: =1+1+6+1 -> 9 | N258: =1+1 -> 2 | O258: 2 | P258: 0.5
B259: Rui Abreu | F259: x | G259: x | I259: =1+1+1+1+1 -> 5 | J259: =3+2+3+3+1 -> 12 | K259: =1+1+1 -> 3 | L259: =1+2+1+1+1 -> 6 | M259: =0+1+1+2 -> 4 | N259: 2 | P259: 0.5
B260: Harold Salinas | F260: x | G260: x | I260: =1+1+1+1+1+1+1+1+1+1+1+1+1+1+1+1 -> 16 | J260: =2+2+3+3+2+2+3+2+3+3+2+4+4+4+2+2 -> 43 | K260: =1+2+3+1+1+1+1+2+1+2+1 -> 16 | L260: =1+2+3+2+3+2+2+2+1+2 -> 20 | M260: =1+1+3+2+4+3+1+5+1+1 -> 22 | N260: =1+1+1+1+1+2+2+1 -> 10 | O260: =1+2 -> 3 | P260: 0.4651162791
B261: Martin Boucher | F261: x | G261: x | I261: =1+1+1+1+1+1 -> 6 | J261: =1+1+2+2+4+1 -> 11 | K261: =0+2+1+2+2 -> 7 | L261: =0+1+1+2+1 -> 5 | M261: =0+1+1+1+1 -> 4 | N261: =1+1 -> 2 | P261: 0.4545454545
B262: Remi Bouchard | F262: x | G262: x | I262: =1+1+1+1+1+1+1+1+1+1+1+1+1+1+1+1+1 -> 17 | J262: =2+3+3+3+3+3+3+3+3+4+3+3+3+3+2+4+3 -> 51 | K262: =1+1+2+3+2+1+1+2+2+1 -> 16 | L262: =2+3+1+1+1+2+2+1+2+2+3+2+1 -> 23 | M262: =3+2+3+1+2+1+1+2+1+2+1 -> 19 | N262: =1+1+1+1+1+1 -> 6 | O262: 1 | P262: 0.4509803922
B263: Luc Bouchard | F263: x | G263: x | I263: =1+1+1+1+1+1+1+1+1+1+1 -> 11 | J263: =2+3+2+3+3+3+2+1+3+2+2 -> 26 | K263: =0+1+1+1+1 -> 4 | L263: =0+2+1+2+1+3+1 -> 10 | M263: =1+1+2+1+1 -> 6 | N263: =1+1 -> 2 | P263: 0.3846153846
B264: Jaime Dominguez | F264: x | G264: x | I264: =1+1+1+1+1+1+1+1+1+1+1+1+1+1+1+1+1+1+1 -> 19 | J264: =2+2+2+3+3+3+2+1+3+2+2+2+3+3+3+4+2+2+2+1 -> 47 | K264: =1+1+1+1+2+2+1+3+1+1+1+1 -> 16 | L264: =1+3+1+2+1+2+1+3+2+1+1 -> 18 | M264: =1+2+1+1+1 -> 6 | N264: =1+1+1+1+2+1+1+2+1 -> 11 | P264: 0.3829787234
B265: Daniel Jimenez | F265: x | G265: x | I265: =1+1+1+1+1+1+1+1+1+1+1+1+1+1+1+1 -> 16 | J265: =2+2+3+3+2+3+4+2+2+3+3+2+3+3+4+3 -> 44 | K265: =1+2+3+3+2+1+1+1+1 -> 15 | L265: =2+1+2+2+1+2+1+1+2+2 -> 16 | M265: =2+1+1+3+1+4+1+1 -> 14 | N265: =2+1+2+1+1+1+1+1 -> 10 | O265: =2+1 -> 3 | P265: 0.3636363636
B266: Omar Montano | F266: x | G266: x | I266: =1+1+1+1 -> 4 | J266: =3+3+1+4 -> 11 | K266: =1+1+1+1 -> 4 | L266: =1+1+2 -> 4 | M266: =2+1 -> 3 | N266: 1 | P266: 0.3636363636
B267: Carlos Acuna | F267: x | G267: x | I267: =1+1+1+1+1+1+1+1+1+1+1+1+1+1+1 -> 15 | J267: =2+2+3+2+2+4+2+3+3+2+2+3+3+4+3 -> 40 | K267: =1+1+1+1+1+1+2+1 -> 9 | L267: =1+2+1+1+1+1+2+2+2 -> 13 | M267: =1+1+1+2+1+2 -> 8 | N267: =1+1+1+1+1+1+1 -> 7 | P267: 0.325
B268: Daniel Leblanc | F268: x | G268: x | I268: =1+1+1+1+1+1+1+1+1+1+1+1+1+1+1+1 -> 16 | J268: =1+1+1+2+3+0+3+3+2+3+2+3+3+2+3 -> 32 | K268: =2+1+1+1+1+1+1+1+1 -> 10 | L268: =0+1+1+1+2+1+1+2+1 -> 10 | M268: =0+2+1+1+2+1 -> 7 | N268: =1+2+1+1+1 -> 6 | P268: 0.3125
B269: Miguel Veliz | F269: x | G269: x | I269: =1+1+1+1+1+1+1+1+1+1+1+1+1+1+1+1+1+1 -> 18 | J269: =2+3+3+2+2+3+2+3+2+2+4+2+3+3+4+2+3+3 -> 48 | K269: =1+2+1+1+2+1+1+1+3+1+3+1+1+1 -> 20 | L269: =1+1+1+1+1+1+1+1+2+1+1 -> 12 | M269: =1+1+1+2+1+2+2+1+1 -> 12 | N269: =1+1+1+1+2+1+2+1 -> 10 | O269: 1 | P269: 0.25
B270: Manuel Perez-Torres | F270: x | G270: x | I270: =1+1+1+1+1 -> 5 | J270: =2+3+1+2+2 -> 10 | K270: =0+2+1 -> 3 | L270: =0+1+1 -> 2 | M270: 1 | N270: =2+2 -> 4 | P270: 0.2
B271: José Gomez | F271: x | G271: x | I271: =1+1+1+1+1+1+1+1+1+1+1 -> 11 | J271: =2+2+3+1+2+3+3+4+4+3+3 -> 30 | K271: =2+1+1 -> 4 | L271: =2+1+2 -> 5 | M271: =1+1+1+1 -> 4 | N271: =1+2+1 -> 4 | P271: 0.1666666667
B272: Mathieu Caron | F272: x | G272: x | I272: =1+1+1+1 -> 4 | J272: =3+3+3+4 -> 13 | K272: =0+1 -> 1 | L272: =1+1 -> 2 | M272: 0 | N272: 1 | P272: 0.1538461538
B273: Alvaro Cabrera | F273: x | G273: x | I273: =1+1+1+1+1 -> 5 | J273: =3+3+3+2+4 -> 15 | K273: =0+1+2 -> 3 | L273: =0+1+1 -> 2 | M273: =0+2 -> 2 | N273: =1+2 -> 3 | P273: 0.1333333333
B274: Stéphane Lavoie | F274: x | G274: x | P274: 0
B275: TOTAL | I275: =SUM(I255:I274) -> 222 | J275: =SUM(J255:J274) -> 599 | K275: 202 | L275: 237 | M275: 188 | N275: 95 | O275: 19 | P275: =L275/J275 -> 0.3956594324
A277: # | B277: LANCEURS | F277: PJ | G277: V | H277: D | I277: N | J277: ML | K277: P | L277: PM | M277: CS | N277: BB | O277: K | P277: MPM
... 6 more rows

Sheet Maison Lundi
A2: Ligue de Balle Molle Voyageurs
A4: Balle Molle Maison Lundi
G6: FINAL
A7: Dernière mise à jour : | D7: 2019-09-03
A10: CLASSEMENT MAISON LUNDI
A11: POS | B11: ÉQUIPE | H11: PJ | I11: V | J11: D | K11: N | L11: PP | M11: PC | N11: PTS | O11: DIFF | P11: MOY
A12: 1 | B12: C-Drinkerie | H12: =1+1+1+1+1+1+1+1+1+1+1+1 -> 12 | I12: =1+1+1+1+1+1+1+1 -> 8 | J12: =0+1+1+1+1 -> 4 | K12: 0 | L12: =11+9+9+14+2+0+18+9+2+13+7+4 -> 98 | M12: =6+3+4+8+7+12+8+2+3+5+6+5 -> 69 | N12: =I12*2+K12*1 -> 16 | O12: =L12-M12 -> 29 | P12: =IF(H12<>0,(2*I12+K12)/(2*H12),0) -> 0.6666666667
A13: =A12+1 -> 2 | B13: Solide Spa | H13: 12 | I13: =1+1+1+1+1+1+1+1 -> 8 | J13: =0+1+1+1+1 -> 4 | K13: 0 | L13: =6+4+8+16+8+12+13+6+13+2+0+5 -> 93 | M13: =5+16+11+15+0+0+9+12+11+1+7+4 -> 91 | N13: 16 | O13: 2 | P13: 0.6666666667
A14: =A13+1 -> 3 | B14: Jambons | H14: 12 | I14: =0+1+1+1+1+1+1 -> 6 | J14: =1+1+1+1+1 -> 5 | K14: =0+1 -> 1 | L14: =8+5+16+7+9+15+6+11+3+1+3+5 -> 89 | M14: =15+6+10+4+2+16+6+6+1+2+2+13 -> 83 | N14: 13 | O14: 6 | P14: 0.5416666667
A15: =A14+1 -> 4 | B15: Anacondas | H15: 12 | I15: =0+1+1+1+1+1 -> 5 | J15: =1+1+1+1+1+1 -> 6 | K15: =0+1 -> 1 | L15: =6+10+12+13+11+6+11+11+2+6+10+7 -> 105 | M15: =11+16+0+6+8+6+14+13+9+7+1+0 -> 91 | N15: 11 | O15: 14 | P15: 0.4583333333
A16: =A15+1 -> 5 | B16: Red Sox | H16: 12 | I16: =1+1+1+1+1 -> 5 | J16: =1+1+1+1+1+1 -> 6 | K16: =0+1 -> 1 | L16: =15+5+3+6+2+7+14+1+12+9+16+9 -> 99 | M16: =8+8+9+13+9+2+11+3+6+13+3+9 -> 94 | N16: 11 | O16: 5 | P16: 0.4583333333
A17: =A16+1 -> 6 | B17: Microbrasserie Alchimiste | H17: 12 | I17: =1+1 -> 2 | J17: =0+1+1+1+1+1+1+1+1+1 -> 9 | K17: =0+1 -> 1 | L17: =8+16+4+0+4+8+0+6+8+3+9+1 -> 67 | M17: =5+4+9+12+7+14+8+11+18+16+9+10 -> 123 | N17: 5 | O17: -56 | P17: 0.2083333333
B19: TOTAL | H19: =SUM(H12:H17) -> 72 | I19: 34 | J19: 34 | K19: 4 | L19: 551 | M19: 551 | N19: 72 | O19: 0 | P19: =(I19+(K19*0.5))/H19 -> 0.5
A38: Ligue de Balle Molle Voyageurs
A40: =A4 -> Balle Molle Maison Lundi
A43: JAMBONS
A44: # | B44: JOUEURS | F44: C | G44: P | H44: S | I44: PJ | J44: AB | K44: P | L44: CS | M44: PP | N44: BB | O44: CC | P44: MOY
B45: Frédéric Lorrain | F45: x | G45: x | I45: =1+1+1+1+1 -> 5 | J45: =3+4+2+3+4 -> 16 | K45: =1+1+1 -> 3 | L45: =2+3+2+2 -> 9 | M45: =0+2+1+1 -> 4 | N45: 1 | P45: =IF($J45<>0,L45/$J45,0) -> 0.5625
B46: Philippe Duranceau | F46: x | G46: x | I46: =1+1+1+1+1+1 -> 6 | J46: =3+3+3+4+2+3 -> 18 | K46: =0+2+2+1 -> 5 | L46: =1+3+3+1+1 -> 9 | M46: =0+4+2+1 -> 7 | N46: 1 | P46: 0.5
B47: Jean-Sébastien Roy | F47: x | G47: x | I47: =1+1+1 -> 3 | J47: =3+2+3 -> 8 | K47: 1 | L47: =3+1 -> 4 | M47: 3 | O47: 1 | P47: 0.5
A48: OK | B48: Patrick Sabourin | F48: x | G48: x | I48: 1 | J48: 2 | K48: 1 | L48: 1 | M48: 0 | P48: 0.5
B49: Jean-François Magnan | F49: x | G49: x | I49: =1+1+1+1+1+1+1+1+1 -> 9 | J49: =2+3+4+2+4+3+3+4+4 -> 29 | K49: =1+3+2+2+1+4+1+3 -> 17 | L49: =2+2+2+1+3+1+2+1 -> 14 | M49: =1+4+2+1+1 -> 9 | N49: =3+2+1 -> 6 | P49: 0.4827586207
B50: Martin Locas | F50: x | G50: x | I50: =1+1+1+1+1+1+1+1+1+1 -> 10 | J50: =3+3+3+2+3+4+2+3+2+4 -> 29 | K50: =0+1+2+2+1 -> 6 | L50: =1+1+3+2+2+2+1+1 -> 13 | M50: =0+2+2+2+1 -> 7 | N50: =1+1+1+1+1 -> 5 | P50: 0.4482758621
B51: Pierre Arcand | F51: x | G51: x | I51: =1+1+1+1+1+1+1+1+1+1 -> 10 | J51: =3+2+3+4+3+4+2+4+3+3 -> 31 | K51: =1+2+1+1 -> 5 | L51: =2+1+2+1+1+3+1+1+1 -> 13 | M51: =0+2+1+1+1 -> 5 | N51: =1+1 -> 2 | P51: 0.4193548387
B52: Jean-François Lorrain | F52: x | G52: x | I52: =1+1+1+1+1+1+1+1+1 -> 9 | J52: =3+3+2+4+4+3+4+3+3 -> 29 | K52: =2+3+2+1+2+2 -> 12 | L52: =2+2+1+1+2+1+2+1 -> 12 | M52: =4+2+2+1+1+2+2 -> 14 | N52: =1+1+1 -> 3 | O52: =1+1+1 -> 3 | P52: 0.4137931034
B53: Charles Dumont | F53: x | G53: x | I53: =1+1+1+1+1+1+1+1+1+1+1 -> 11 | J53: =4+3+2+3+4+2+3+4+3+3+3 -> 34 | K53: =1+1+1+1+1+1+1+1+2 -> 10 | L53: =2+1+2+2+1+2+2+1+1 -> 14 | M53: =2+1+2+1 -> 6 | N53: =1+2+1+1 -> 5 | P53: 0.4117647059
B54: Daniel Rodgers | F54: x | G54: x | I54: =1+1+1+1+1+1+1+1+1 -> 9 | J54: =5+3+3+3+2+4+2+3+4 -> 29 | K54: =2+2+2+1 -> 7 | L54: =1+1+1+1+2+1+2+2 -> 11 | M54: =1+2+1 -> 4 | N54: =1+2+1+1 -> 5 | O54: 1 | P54: 0.3793103448
B55: Sébastien Nadeau | F55: x | G55: x | I55: =1+1+1+1+1+1 -> 6 | J55: =4+3+3+3+2+4 -> 19 | K55: =1+1 -> 2 | L55: =3+1+1+1+1 -> 7 | M55: =2+1+3+2 -> 8 | N55: =1+1 -> 2 | P55: 0.3684210526
B56: Sébastien Forest | F56: x | G56: x | I56: =1+1+1+1+1+1+1 -> 7 | J56: =2+3+3+3+3+2+3 -> 19 | K56: =1+1+1+1 -> 4 | L56: =0+2+1+3 -> 6 | M56: =0+2 -> 2 | N56: =2+1 -> 3 | P56: 0.3157894737
B57: Christian Grimm | F57: x | G57: x | I57: =1+1+1+1+1+1+1+1+1 -> 9 | J57: =3+3+3+3+3+4+4+3+3 -> 29 | K57: =0+1+1+2+1+1+1 -> 7 | L57: =1+1+1+1+3+1+1 -> 9 | M57: =0+1+1 -> 2 | P57: 0.3103448276
B58: Richard DiSalvo | F58: x | G58: x | I58: =1+1+1+1+1+1 -> 6 | J58: =3+2+3+3+3+3 -> 17 | K58: =0+3 -> 3 | L58: =1+1+3 -> 5 | M58: =1+2+1 -> 4 | N58: 1 | P58: 0.2941176471
B59: Frédéric Bouchard | F59: x | G59: x | I59: =1+1+1+1+1+1+1+1+1 -> 9 | J59: =3+2+3+3+4+2+3+3+3 -> 26 | K59: =1+1+1 -> 3 | L59: =1+1+1+1+2+1 -> 7 | M59: =0+1+1+1 -> 3 | N59: =1+1+1 -> 3 | P59: 0.2692307692
B60: Frédérick Magnan | F60: x | G60: x | I60: =1+1+1+1+1+1 -> 6 | J60: =1+2+4+3+3+3 -> 16 | K60: =0+1+1 -> 2 | L60: =1+1+1 -> 3 | M60: =1+2 -> 3 | N60: =1+1+1 -> 3 | P60: 0.1875
B61: David Wright | F61: x | G61: x | I61: =1+1+1+1 -> 4 | J61: =4+2+2+3 -> 11 | K61: =0+1 -> 1 | L61: =0+1+1 -> 2 | M61: 0 | N61: 1 | P61: 0.1818181818
B62: Luc Pelletier | F62: x | G62: x | I62: =1+1 -> 2 | J62: =3+3 -> 6 | K62: 0 | L62: =0+1 -> 1 | M62: 0 | P62: 0.1666666667
B63: François Archambault | F63: x | G63: x | P63: 0
B64: Nick Maucieri | F64: x | G64: x | P64: 0
B65: TOTAL | I65: =SUM(I45:I64) -> 122 | J65: =SUM(J45:J64) -> 368 | K65: 89 | L65: 140 | M65: 81 | N65: 41 | O65: 5 | P65: =L65/J65 -> 0.3804347826
A67: # | B67: LANCEURS | F67: PJ | G67: V | H67: D | I67: N | J67: ML | K67: P | L67: PM | M67: CS | N67: BB | O67: K | P67: MPM
B68: Jean-François Lorrain | F68: =1+1+1+1+1+1+1+1 -> 8 | G68: =1+1 -> 2 | H68: =1+1 -> 2 | I68: 1 | J68: =7+0.33+2+7+3+7+3+3 -> 32.33 | K68: =6+1+6+0+2+0+1 -> 16 | L68: =4+1+5+0+2+0+1 -> 13 | M68: =6+1+1+7+4+3+1+2 -> 25 | N68: =11+4+3+6+3+1 -> 28 | O68: =6+3+10+6+10+4+2 -> 41 | P68: =IFERROR(7*(L68/J68),"") -> 2.814723167
B69: Richard DiSalvo | F69: =1+1+1+1+1 -> 5 | G69: =1+1+1+1 -> 4 | J69: =2.67+5.67+7+7+4 -> 26.34 | K69: =4+10+4+2+1 -> 21 | L69: =4+4+3+2+1 -> 14 | M69: =5+13+9+9+6 -> 42 | N69: =2+2+0+1 -> 5 | O69: =1+2+1+1+2 -> 7 | P69: =IFERROR(7*(L69/J69),"") -> 3.720577069
B70: Sébastien Forest | F70: =1+1+1+1+1 -> 5 | H70: =1+1+1 -> 3 | J70: =2.33+6+5+4+2.33 -> 19.66 | K70: =11+16+5+2+12 -> 46 | L70: =7+11+4+2+8 -> 32 | M70: =7+17+5+3+9 -> 41 | N70: =7+7+6+4+5 -> 29 | O70: =2+3 -> 5 | P70: =IFERROR(7*(L70/J70),"") -> 11.39369278
J71: 0 | K71: 0 | L71: 0 | P71: =IFERROR(7*(L71/J71),"") -> 
J72: 0 | K72: 0 | L72: 0 | P72: =IFERROR(7*(L72/J72),"") -> 
B73: TOTAL | F73: =SUM(F68:F72) -> 18 | G73: =SUM(G68:G72) -> 6 | H73: 5 | I73: 1 | J73: 78.33 | K73: 83 | L73: 59 | M73: 108 | N73: 62 | O73: 53 | P73: =(L73*7)/J73 -> 5.27256479
A80: Ligue de Balle Molle Voyageurs
A82: =A4 -> Balle Molle Maison Lundi
A85: SOLIDE SPA
A86: # | B86: JOUEURS | F86: C | G86: P | H86: S | I86: PJ | J86: AB | K86: P | L86: CS | M86: PP | N86: BB | O86: CC | P86: MOY
A87: OK | B87: Fernand Pinet | F87: x | G87: x | I87: 1 | J87: 4 | K87: 1 | L87: 3 | M87: 0 | P87: =IF($J87<>0,L87/$J87,0) -> 0.75
B88: Martin Deschênes | F88: x | G88: x | I88: =1+1+1+1+1+1+1+1+1 -> 9 | J88: =4+2+4+3+4+4+2+2+2 -> 27 | K88: =1+2+3+2+2+1+2+1+1 -> 15 | L88: =1+1+3+3+4+1+1+1+1 -> 16 | M88: =0+1+3+2+1+1 -> 8 | N88: =3+1+2+1+1 -> 8 | P88: 0.5925925926
B89: Jean-François Champigny | F89: x | G89: x | I89: =1+1+1+1+1+1+1+1 -> 8 | J89: =3+4+4+4+3+3+2+1 -> 24 | K89: =0+1+1+2+1+1 -> 6 | L89: =0+2+2+4+1+1+1+1 -> 12 | M89: =0+2+2+3+2+1 -> 10 | N89: =1+1+1+1+2 -> 6 | P89: 0.5
B90: Michael Zanga | F90: x | G90: x | I90: =1+1+1+1+1+1+1 -> 7 | J90: =3+3+3+3+3+4+2 -> 21 | K90: =0+1+1+2 -> 4 | L90: =0+2+2+2+2+2 -> 10 | M90: =1+1+2+1+4 -> 9 | N90: =1+1+1+1 -> 4 | P90: 0.4761904762
B91: Étienne Pépin | F91: x | G91: x | I91: =1+1+1+1+1+1+1+1+1+1 -> 10 | J91: =2+3+4+3+3+2+2+4+3+2 -> 28 | K91: =0+1+2+1+1+1+2 -> 8 | L91: =1+1+4+1+2+1+3 -> 13 | M91: =1+2+3+1+2+1 -> 10 | N91: =2+2+1 -> 5 | O91: =1+1 -> 2 | P91: 0.4642857143
B92: Mathieu Lendick | F92: x | G92: x | I92: =1+1+1+1+1+1 -> 6 | J92: =2+2+4+4+2+3 -> 17 | K92: =1+1+2+2 -> 6 | L92: =1+2+3+1 -> 7 | M92: =0+1+1+1 -> 3 | N92: =2+1+1 -> 4 | P92: 0.4117647059
B93: Alain Lacasse | F93: x | G93: x | I93: =1+1+1+1+1 -> 5 | J93: =5+4+3+5+3 -> 20 | K93: =2+1+3 -> 6 | L93: =2+2+2+1+1 -> 8 | M93: 0 | N93: =1+1 -> 2 | P93: 0.4
B94: Charles Quesnel | F94: x | G94: x | I94: =1+1+1+1+1+1+1+1+1 -> 9 | J94: =4+2+3+3+3+4+3+1+3 -> 26 | K94: =1+2+1+2+2+2 -> 10 | L94: =1+1+2+3+2+1 -> 10 | M94: =0+1+3+3 -> 7 | N94: =1+2+3 -> 6 | P94: 0.3846153846
B95: Mathieu Gagnon | F95: x | G95: x | I95: =1+1+1+1+1+1+1+1+1 -> 9 | J95: =2+3+2+5+3+2+4+1+2 -> 24 | K95: =1+1+2+1 -> 5 | L95: =0+2+1+4+1+1 -> 9 | M95: =0+2+6+1+1 -> 10 | N95: =2+1+2+1 -> 6 | P95: 0.375
B96: Pierre-Nicolas Rheault | F96: x | G96: x | I96: =1+1+1+1+1+1+1+1+1 -> 9 | J96: =3+3+4+5+4+3+4+3+4 -> 33 | K96: =2+1+3+1+1+3 -> 11 | L96: =2+1+2+1+1+1+3 -> 11 | M96: =1+1+3+1+1+2 -> 9 | N96: =1+1+1 -> 3 | O96: 1 | P96: 0.3333333333
B97: Martin Creamer | F97: x | G97: x | I97: =1+1+1+1+1+1+1+1+1+1 -> 10 | J97: =3+2+3+3+2+4+1+3+3+3 -> 27 | K97: =0+1+1+1+1 -> 4 | L97: =0+2+2+2+1+1+1 -> 9 | M97: =0+2+1 -> 3 | N97: =1+1+1+1 -> 4 | P97: 0.3333333333
B98: Guillaume Gosselin | F98: x | G98: x | I98: =1+1+1 -> 3 | J98: =3+3+3 -> 9 | K98: 0 | L98: =1+2 -> 3 | M98: =1+2 -> 3 | N98: 1 | P98: 0.3333333333
B99: Raphael Mancini | F99: x | G99: x | I99: =1+1+1+1+1+1+1+1 -> 8 | J99: =2+3+3+4+4+3+4+3 -> 26 | K99: =1+2+3+1+2+3 -> 12 | L99: =0+1+2+3+1 -> 7 | M99: =0+1+2+1 -> 4 | N99: =2+1+1 -> 4 | P99: 0.2692307692
B100: Nicolas Foucault | F100: x | G100: x | I100: =1+1+1+1+1+1+1+1 -> 8 | J100: =4+4+3+3+4+3+4+3 -> 28 | K100: =0+1+1+1+1 -> 4 | L100: =0+1+2+1+1+1+1 -> 7 | M100: =0+1+1+1+1 -> 4 | P100: 0.25
B101: Louis Philippe Charette | F101: x | G101: x | I101: =1+1+1 -> 3 | J101: =3+2+2 -> 7 | K101: =0+1 -> 1 | L101: 0 | M101: =0+1 -> 1 | N101: =1+1 -> 2 | P101: 0
A102: OK | B102: Charles-Antoine Paré | F102: x | G102: x | I102: 1 | J102: 4 | K102: 0 | L102: 0 | M102: 0 | P102: 0
A103: OK | B103: Benoit Hébert | F103: x | G103: x | I103: 1 | J103: 3 | K103: 0 | L103: 0 | M103: 0 | P103: 0
A104: OK | B104: Maxime Robillard | F104: x | G104: x | I104: 1 | J104: 2 | K104: 0 | L104: 0 | M104: 1 | N104: 1 | P104: 0
B105: Stéphane Tétreault | F105: x | G105: x | P105: 0
B106: Pierre Vallerand | F106: x | G106: x | P106: 0
B107: TOTAL | I107: =SUM(I87:I106) -> 108 | J107: =SUM(J87:J106) -> 330 | K107: 93 | L107: 125 | M107: 82 | N107: 56 | O107: 3 | P107: =L107/J107 -> 0.3787878788
A109: # | B109: LANCEURS | F109: PJ | G109: V | H109: D | I109: N | J109: ML | K109: P | L109: PM | M109: CS | N109: BB | O109: K | P109: MPM
B110: Martin Creamer | F110: =1+1+1+1 -> 4 | G110: =1+1+1 -> 3 | H110: 1 | J110: =7+3+7+6 -> 23 | K110: =5+6+9+4 -> 24 | L110: =3+5+5+3 -> 16 | M110: =9+7+14+10 -> 40 | N110: =1+2+2 -> 5 | O110: 0 | P110: =IFERROR(7*(L110/J110),"") -> 4.869565217
B111: Martin Deschênes | F111: =1+1+1+1+1+1+1 -> 7 | G111: =1+1+1+1+1 -> 5 | H111: =1+1 -> 2 | J111: =6+6.67+7+5+5.67+6.33+7 -> 43.67 | K111: =11+15+0+0+12+11+1 -> 50 | L111: =9+11+0+0+7+9+1 -> 37 | M111: =19+20+4+1+15+12+7 -> 78 | N111: =2+3+1+1+3+3+2 -> 15 | O111: =1+4 -> 5 | P111: =IFERROR(7*(L111/J111),"") -> 5.930844974
B112: Mathieu Lendick | F112: 1 | J112: 1.67 | K112: 10 | L112: 10 | M112: 11 | N112: 2 | O112: 1 | P112: =IFERROR(7*(L112/J112),"") -> 41.91616766
J113: 0 | K113: 0 | L113: 0 | P113: =IFERROR(7*(L113/J113),"") -> 
B114: DÉFAUT | F114: 1 | H114: 1 | J114: 0 | K114: 7 | L114: 0 | P114: =IFERROR(7*(L114/J114),"") -> 
B115: TOTAL | F115: =SUM(F110:F114) -> 13 | G115: =SUM(G110:G114) -> 8 | H115: 4 | I115: 0 | J115: 68.34 | K115: 91 | L115: 63 | M115: 129 | N115: 22 | O115: 6 | P115: =(L115*7)/J115 -> 6.453028973
A122: Ligue de Balle Molle Voyageurs
A124: =A4 -> Balle Molle Maison Lundi
A127: RED SOX
A128: # | B128: JOUEURS | F128: C | G128: P | H128: S | I128: PJ | J128: AB | K128: P | L128: CS | M128: PP | N128: BB | O128: CC | P128: MOY
B129: Stéphane Boileau | F129: x | G129: x | I129: =1+1+1+1 -> 4 | J129: =3+3+4+3 -> 13 | K129: =1+2+1 -> 4 | L129: =2+3+2 -> 7 | M129: =2+1 -> 3 | P129: =IF($J129<>0,L129/$J129,0) -> 0.5384615385
B130: Dominic Ménard | F130: x | G130: x | I130: =1+1+1+1+1+1+1+1+1+1+1 -> 11 | J130: =3+3+3+4+3+5+4+4+4+4+3 -> 40 | K130: =4+1+1+2+1+2+3+2 -> 16 | L130: =3+1+2+1+3+2+2+3+3+1 -> 21 | M130: =1+2+1 -> 4 | N130: =1+1+1+1 -> 4 | P130: 0.525
B131: Luc Tremblay | F131: x | G131: x | I131: =1+1+1+1+1+1+1+1+1+1 -> 10 | J131: =2+3+2+5+3+4+3+3+4 -> 29 | K131: =0+1+1+3+3+1 -> 9 | L131: =0+2+2+1+2+1+3+3 -> 14 | M131: =0+3+3+1+1+6+3 -> 17 | N131: =2+1+1 -> 4 | O131: =1+1+1+1+1 -> 5 | P131: 0.4827586207
B132: Alexandre Chevalier | F132: x | G132: x | I132: =1+1+1+1+1+1+1+1+1+1+1+1 -> 12 | J132: =4+3+3+3+3+3+4+3+4+2+4+4 -> 40 | K132: =0+2+1+2+1+2+1+2+1 -> 12 | L132: =0+1+2+2+2+2+3+2+2+1+1+1 -> 19 | M132: =0+1+2+1+2 -> 6 | N132: 1 | O132: 1 | P132: 0.475
B133: Robert Gaudreault | F133: x | G133: x | I133: =1+1+1+1+1+1 -> 6 | J133: =2+2+3+4+2+4 -> 17 | K133: =0+2+1 -> 3 | L133: =1+1+3+1+2 -> 8 | M133: =0+4+1+1 -> 6 | N133: 2 | P133: 0.4705882353
B134: Marc Laforge | F134: x | G134: x | I134: =1+1+1+1+1+1+1+1+1+1+1 -> 11 | J134: =2+3+2+3+3+4+3+3+4+3+2 -> 32 | K134: =1+1+1+2+2+1+1+1 -> 10 | L134: =1+1+1+2+3+1+1+1+1+1 -> 13 | M134: =5+1+2+1+2+2+1 -> 14 | N134: =2+1+1+1+1+2 -> 8 | O134: 1 | P134: 0.40625
B135: Serge Davit | F135: x | G135: x | I135: =1+1+1+1+1+1+1+1+1+1 -> 10 | J135: =3+2+2+3+3+3+3+3+2+4 -> 28 | K135: =2+1+2+3 -> 8 | L135: =2+1+1+1+2+4 -> 11 | M135: =1+1+2 -> 4 | N135: 1 | P135: 0.3928571429
B136: Stéphane Rochette | F136: x | G136: x | I136: =1+1+1+1 -> 4 | J136: =3+3+4+3 -> 13 | K136: =0+1+1 -> 2 | L136: =0+4+1 -> 5 | M136: =0+5 -> 5 | P136: 0.3846153846
B137: Christian DeMondehare | F137: x | G137: x | I137: =1+1+1+1+1+1+1 -> 7 | J137: =3+3+3+3+3+4+3 -> 22 | K137: =3+2+2+1+1 -> 9 | L137: =3+1+1+1+1+1 -> 8 | M137: =3+1+3 -> 7 | N137: =1+1+1 -> 3 | P137: 0.3636363636
B138: Stéphane Michaud | F138: x | G138: x | I138: =1+1+1+1+1+1+1+1+1+1+1+1 -> 12 | J138: =1+3+2+3+3+3+4+2+3+5+3+4 -> 36 | K138: =3+1+2+1+1+1 -> 9 | L138: =1+2+1+2+2+2+3 -> 13 | M138: =1+1+1+3+2 -> 8 | N138: =2+1+1+1 -> 5 | P138: 0.3611111111
B139: Pierre Gaudreault | F139: x | G139: x | I139: =1+1+1+1+1+1+1+1+1 -> 9 | J139: =2+1+3+3+3+5+3+3+3 -> 26 | K139: =0+1+2+2 -> 5 | L139: =0+1+1+1+3+1+2 -> 9 | M139: =0+1+2 -> 3 | N139: =1+1+2+1 -> 5 | P139: 0.3461538462
B140: Rob Charasidis | F140: x | G140: x | I140: =1+1+1 -> 3 | J140: =4+3+2 -> 9 | K140: =0+2 -> 2 | L140: =1+2 -> 3 | M140: =0+1 -> 1 | P140: 0.3333333333
B141: Guillaume Lamarche | F141: x | G141: x | I141: =1+1+1+1+1+1+1+1+1 -> 9 | J141: =3+3+3+3+3+3+3+3+1 -> 25 | K141: =0+2 -> 2 | L141: =1+2+1+2 -> 6 | M141: =1+2+1 -> 4 | N141: 1 | P141: 0.24
B142: François Gauthier | F142: x | G142: x | I142: =1+1+1+1+1+1+1+1 -> 8 | J142: =3+1+2+2+3+3+4+3 -> 21 | K142: =2+2 -> 4 | L142: =2+1+2 -> 5 | M142: 0 | P142: 0.2380952381
B143: Daniel Lepage | F143: x | G143: x | I143: =1+1+1+1+1 -> 5 | J143: =2+2+3+3+3 -> 13 | K143: =0+1+2 -> 3 | L143: =0+1+1 -> 2 | M143: =3+1+1 -> 5 | N143: =1+1 -> 2 | P143: 0.1538461538
B144: Pierre Manseau | F144: x | G144: x | P144: 0
B145: François Lessard | F145: x | G145: x | P145: 0
B146: Tristan Legault | F146: x | G146: x | P146: 0
B147: Frédéric Bean | F147: x | G147: x | P147: 0
B148: Mickael Champagne | F148: x | G148: x | P148: 0
B149: TOTAL | I149: =SUM(I129:I148) -> 121 | J149: =SUM(J129:J148) -> 364 | K149: 98 | L149: 144 | M149: 87 | N149: 36 | O149: 7 | P149: =L149/J149 -> 0.3956043956
A151: # | B151: LANCEURS | F151: PJ | G151: V | H151: D | I151: N | J151: ML | K151: P | L151: PM | M151: CS | N151: BB | O151: K | P151: MPM
B152: Stéphane Michaud | F152: =1+1+1+1+1+1+1+1+1+1+1 -> 11 | G152: =1+1+1+1 -> 4 | H152: =1+1+1+1 -> 4 | J152: =4+4+5+2+6+7+7+7+2+5+3 -> 52 | K152: =3+3+8+1+9+2+11+3+6+3+7 -> 56 | L152: =3+3+7+1+7+2+6+0+4+2+4 -> 39 | M152: =7+3+7+4+13+6+11+9+5+3+9 -> 77 | N152: =3+4+3+1+4+1+6+2+2 -> 26 | O152: =4+1+1+3+1+1+5+1 -> 17 | P152: =IFERROR(7*(L152/J152),"") -> 5.25
B153: Alexandre Chevalier | F153: =1+1+1+1+1+1+1 -> 7 | G153: 1 | H153: =1+1 -> 2 | I153: 1 | J153: =2+2+1+3.67+4+7+3 -> 22.67 | K153: =5+5+1+12+7+6+2 -> 38 | L153: =5+4+0+9+6+6+2 -> 32 | M153: =6+5+16+11+9+4 -> 51 | N153: =4+3+1+4+2+6+3 -> 23 | O153: =1+1+1+1 -> 4 | P153: =IFERROR(7*(L153/J153),"") -> 9.880899868
J154: 0 | K154: 0 | L154: 0 | P154: =IFERROR(7*(L154/J154),"") -> 
J155: 0 | K155: 0 | L155: 0 | P155: =IFERROR(7*(L155/J155),"") -> 
J156: 0 | K156: 0 | L156: 0 | P156: =IFERROR(7*(L156/J156),"") -> 
B157: TOTAL | F157: =SUM(F152:F156) -> 18 | G157: =SUM(G152:G156) -> 5 | H157: 6 | I157: 1 | J157: 74.67 | K157: 94 | L157: 71 | M157: 128 | N157: 49 | O157: 21 | P157: =(L157*7)/J157 -> 6.655952859
A164: Ligue de Balle Molle Voyageurs
A166: =A4 -> Balle Molle Maison Lundi
A169: MICROBRASSERIE ALCHIMISTE
A170: # | B170: JOUEURS | F170: C | G170: P | H170: S | I170: PJ | J170: AB | K170: P | L170: CS | M170: PP | N170: BB | O170: CC | P170: MOY
B171: Marc-André Saucier | F171: x | G171: x | I171: =1+1+1+1+1+1+1+1 -> 8 | J171: =2+4+3+1+2+2+4+3 -> 21 | K171: =2+2+2+1 -> 7 | L171: =2+3+1+1+1+1+2 -> 11 | M171: =1+6+1+1+3 -> 12 | N171: =1+1+2 -> 4 | O171: =1+1 -> 2 | P171: =IF($J171<>0,L171/$J171,0) -> 0.5238095238
B172: Alexandre Bourcier | F172: x | G172: x | I172: =1+1+1+1+1+1+1+1+1+1 -> 10 | J172: =3+4+4+1+4+4+3+4+1+3 -> 31 | K172: =1+2+1+1+3+1 -> 9 | L172: =2+3+1+1+2+1+1+2 -> 13 | M172: =3+2+1+1+1+1 -> 9 | N172: =1+1 -> 2 | P172: 0.4193548387
B173: Daniel Belleville | F173: x | G173: x | I173: =1+1+1+1+1+1+1+1+1+1+1+1 -> 12 | J173: =3+4+3+1+4+4+3+3+2+3+3+3 -> 36 | K173: =0+1+1+1+1+3+1+3 -> 11 | L173: =2+3+1+1+1+2+1+3 -> 14 | M173: =1+1+1+1 -> 4 | N173: =1+1+1+1+1+1 -> 6 | O173: 1 | P173: 0.3888888889
B174: Martin Grégoire | F174: x | G174: x | I174: =1+1+1+1+1+1+1+1+1+1+1 -> 11 | J174: =4+3+3+2+2+3+3+1+3+3 -> 27 | K174: =0+2+1+1+1 -> 5 | L174: =0+3+2+1+1+1+2 -> 10 | M174: =0+3+1+2 -> 6 | N174: =1+1 -> 2 | O174: 1 | P174: 0.3703703704
B175: Patrick Kavanagh | F175: x | G175: x | I175: =1+1+1+1+1+1+1+1+1+1 -> 10 | J175: =2+4+3+2+3+3+3+4+4+2 -> 30 | K175: =2+2+1+3+1+1 -> 10 | L175: =1+3+1+1+2+2+1 -> 11 | M175: =2+3+1+4 -> 10 | N175: =1+1 -> 2 | O175: =1+2 -> 3 | P175: 0.3666666667
B176: Grégory Belleville | F176: x | G176: x | I176: =1+1+1+1+1+1+1 -> 7 | J176: =3+3+2+4+3+3+3 -> 21 | K176: =3+1+1+2 -> 7 | L176: =0+2+1+1+2+1 -> 7 | M176: =0+1+2 -> 3 | N176: =1+1 -> 2 | P176: 0.3333333333
B177: Benoit Laplante | F177: x | G177: x | I177: =1+1 -> 2 | J177: =2+1 -> 3 | K177: =0+1 -> 1 | L177: =0+1 -> 1 | M177: =1+1 -> 2 | N177: =1+2 -> 3 | P177: 0.3333333333
B178: Joel Bouchard | F178: x | G178: x | I178: =1+1+1+1+1+1+1+1+1+1 -> 10 | J178: =3+3+3+2+3+2+2+2+3+2 -> 25 | K178: =0+2+2 -> 4 | L178: =1+1+1+1+2+1 -> 7 | M178: =0+1+1 -> 2 | N178: =1+1+1 -> 3 | P178: 0.28
B179: Jean-François Comeau | F179: x | G179: x | I179: =1+1+1+1 -> 4 | J179: =2+2+4+3 -> 11 | K179: =0+1 -> 1 | L179: =0+1+2 -> 3 | M179: =0+2 -> 2 | P179: 0.2727272727
B180: Jean-François Joyal | F180: x | G180: x | I180: =1+1+1+1 -> 4 | J180: =3+3+3+3 -> 12 | K180: 0 | L180: =1+1+1 -> 3 | M180: =0+1+1+1 -> 3 | N180: 1 | P180: 0.25
B181: David Fullum | F181: x | G181: x | I181: =1+1 -> 2 | J181: =2+2 -> 4 | K181: 1 | L181: 1 | M181: 0 | N181: 1 | P181: 0.25
B182: Samuel Fournier | F182: x | G182: x | I182: =1+1+1 -> 3 | J182: =3+1+1 -> 5 | K182: =0+1 -> 1 | L182: 1 | M182: 0 | N182: =1+1 -> 2 | P182: 0.2
B183: Maxime Brassard | F183: x | G183: x | I183: =1+1+1+1 -> 4 | J183: =3+3+2+3 -> 11 | K183: =0+1 -> 1 | L183: =0+1+1 -> 2 | M183: 0 | P183: 0.1818181818
B184: Philippe Vézina | F184: x | G184: x | I184: =1+1+1+1+1+1+1+1+1+1+1 -> 11 | J184: =3+3+3+0+3+3+2+4+3+3+3 -> 30 | K184: =1+1+1 -> 3 | L184: =0+1+1+1+1+1 -> 5 | M184: =0+1+1+1 -> 3 | N184: =1+1 -> 2 | P184: 0.1666666667
B185: Jocelyn Bouchard | F185: x | G185: x | I185: =1+1+1+1+1+1+1+1+1 -> 9 | J185: =4+2+1+3+2+3+1+2+1 -> 19 | K185: =1+2+1+1 -> 5 | L185: =0+1+1+1 -> 3 | M185: =0+1 -> 1 | N185: =1+1 -> 2 | P185: 0.1578947368
B186: Louis Laurin | F186: x | G186: x | I186: =1+1+1+1+1+1+1+1+1 -> 9 | J186: =2+3+1+3+3+2+3+2+2 -> 21 | K186: 1 | L186: =0+1+1 -> 2 | M186: =0+1+1 -> 2 | N186: 1 | P186: 0.09523809524
B187: Jean-François Labbé | F187: x | G187: x | I187: =1+1 -> 2 | J187: =3+1 -> 4 | K187: 0 | L187: 0 | M187: 0 | P187: 0
B188: Mathieu Leblanc | F188: x | G188: x | I188: =1+1 -> 2 | J188: =2+2 -> 4 | K188: 0 | L188: 0 | M188: 0 | N188: 1 | P188: 0
B189: Benoit Houle | F189: x | G189: x | P189: 0
B190: Sylvain Millette | F190: x | G190: x | P190: 0
B191: TOTAL | I191: =SUM(I171:I190) -> 120 | J191: =SUM(J171:J190) -> 315 | K191: 67 | L191: 94 | M191: 59 | N191: 34 | O191: 7 | P191: =L191/J191 -> 0.2984126984
A193: # | B193: LANCEURS | F193: PJ | G193: V | H193: D | I193: N | J193: ML | K193: P | L193: PM | M193: CS | N193: BB | O193: K | P193: MPM
B194: Joel Bouchard | F194: =1+1+1 -> 3 | G194: 1 | H194: =1+1 -> 2 | J194: =7+2+5 -> 14 | K194: =5+6+6 -> 17 | L194: =3+4+6 -> 13 | M194: =6+6+8 -> 20 | N194: =2+3 -> 5 | O194: =0+1 -> 1 | P194: =IFERROR(7*(L194/J194),"") -> 6.5
B195: Alexandre Bourcier | F195: =1+1+1+1+1+1+1 -> 7 | H195: =1+1+1+1 -> 4 | J195: =4+0.67+4+6+6+4.33+3 -> 28 | K195: =3+1+4+14+8+12+7 -> 49 | L195: =3+1+1+13+8+4+7 -> 37 | M195: =7+3+3+21+16+10+12 -> 72 | N195: =1+1+3+3+1+3+2 -> 14 | O195: =0+2+2 -> 4 | P195: =IFERROR(7*(L195/J195),"") -> 9.25
B196: Jocelyn Bouchard | F196: =1+1+1+1+1+1+1 -> 7 | G196: 1 | H196: =1+1+1 -> 3 | I196: 1 | J196: =6+3.67+3+6+1.67+1.33+6+2 -> 29.67 | K196: =4+11+3+11+6+9+9+4 -> 57 | L196: =4+7+0+7+5+9+9+0 -> 41 | M196: =7+13+5+14+5+5+14+2 -> 65 | N196: =4+1+3+5+3+6+5+2 -> 29 | O196: =0+1+1 -> 2 | P196: =IFERROR(7*(L196/J196),"") -> 9.673070442
J197: 0 | K197: 0 | L197: 0 | P197: =IFERROR(7*(L197/J197),"") -> 
J198: 0 | K198: 0 | L198: 0 | P198: =IFERROR(7*(L198/J198),"") -> 
B199: TOTAL | F199: =SUM(F194:F198) -> 17 | G199: =SUM(G194:G198) -> 2 | H199: 9 | I199: 1 | J199: 71.67 | K199: 123 | L199: 91 | M199: 157 | N199: 48 | O199: 7 | P199: =(L199*7)/J199 -> 8.8879587
A206: Ligue de Balle Molle Voyageurs
A208: =A4 -> Balle Molle Maison Lundi
A211: ANACONDAS
A212: # | B212: JOUEURS | F212: C | G212: P | H212: S | I212: PJ | J212: AB | K212: P | L212: CS | M212: PP | N212: BB | O212: CC | P212: MOY
B213: Charles Dumas | F213: x | G213: x | I213: =1+1 -> 2 | J213: =3+2 -> 5 | K213: =2+1 -> 3 | L213: =2+1 -> 3 | M213: 2 | N213: 1 | P213: =IF($J213<>0,L213/$J213,0) -> 0.6
B214: Alain Gendreau | F214: x | G214: x | I214: =1+1+1+1+1+1+1+1+1+1+1 -> 11 | J214: =3+3+3+4+4+3+4+4+4+3+3 -> 38 | K214: =2+2+3+1+1+1+1 -> 11 | L214: =2+2+3+2+1+1+2+2+3+1+3 -> 22 | M214: =0+3+2+1+1+3+1+1 -> 12 | N214: =1+1+1+2 -> 5 | P214: 0.5789473684
B215: Dominic Bertrand | F215: x | G215: x | I215: =1+1+1+1+1+1 -> 6 | J215: =3+4+4+5+3+3 -> 22 | K215: =1+2+1+1+3+3 -> 11 | L215: =1+3+2+3+1+2 -> 12 | M215: =1+1+1+3+4+2 -> 12 | N215: =1+1+1 -> 3 | O215: =1+1+1 -> 3 | P215: 0.5454545455
B216: Jean-François Beauregard | F216: x | G216: x | I216: =1+1+1+1+1+1+1+1+1 -> 9 | J216: =2+4+2+5+4+3+4+3+3 -> 30 | K216: =0+3+2+1+1+1+1+1 -> 10 | L216: =1+3+1+4+2+2+1+1 -> 15 | M216: =0+1+2+2+1 -> 6 | N216: =1+1+1 -> 3 | P216: 0.5
B217: Patrice Marceau | F217: x | G217: x | I217: =1+1+1+1+1+1+1+1+1+1 -> 10 | J217: =3+4+3+4+5+4+5+3+3+2+4 -> 40 | K217: =0+1+2+2+3+2+2+1+1 -> 14 | L217: =0+3+1+3+3+1+3+2+1 -> 17 | M217: =0+3+3+6+1 -> 13 | N217: =1+1+1+1+1 -> 5 | O217: 2 | P217: 0.425
B218: Mike Bourhis | F218: x | G218: x | I218: =1+1+1+1+1+1+1+1+1 -> 9 | J218: =3+4+5+2+4+4+4+3+4 -> 33 | K218: =0+2+1+1+2+1+2 -> 9 | L218: =1+3+2+1+1+1+2+2 -> 13 | M218: =0+2+1+1+2 -> 6 | N218: =1+2+1 -> 4 | O218: =1+1 -> 2 | P218: 0.3939393939
B219: Mike McCormick | F219: x | G219: x | I219: =1+1+1 -> 3 | J219: =3+3+5 -> 11 | K219: =1+2+3 -> 6 | L219: =0+2+2 -> 4 | M219: =1+3+1 -> 5 | P219: 0.3636363636
B220: Guillaume Martineau | F220: x | G220: x | I220: =1+1+1+1 -> 4 | J220: =4+3+2+2 -> 11 | K220: =0+1+1+1 -> 3 | L220: =2+2 -> 4 | M220: =0+1+1 -> 2 | N220: =2+1+1 -> 4 | P220: 0.3636363636
B221: Luc Beaudoin | F221: x | G221: x | I221: =1+1+1+1+1+1+1+1 -> 8 | J221: =3+4+3+4+4+4+4+3 -> 29 | K221: =0+1+1+1+1+1 -> 5 | L221: =1+1+2+2+2+1+1 -> 10 | M221: =0+1+1+1+1+1 -> 5 | N221: =1+1 -> 2 | P221: 0.3448275862
B222: Patrick Bertrand | F222: x | G222: x | I222: =1+1 -> 2 | J222: =3+3 -> 6 | K222: =0+1 -> 1 | L222: =1+1 -> 2 | M222: 0 | P222: 0.3333333333
B223: Claude St-Denis | F223: x | G223: x | I223: =1+1+1+1+1+1+1 -> 7 | J223: =3+4+3+3+4+3+3 -> 23 | K223: =1+1+1+2+1+1 -> 7 | L223: =2+1+2+1+1 -> 7 | M223: =1+1+1 -> 3 | N223: 1 | P223: 0.3043478261
B224: Guy Camiré | F224: x | G224: x | I224: =1+1+1 -> 3 | J224: =3+4+3 -> 10 | K224: 0 | L224: =2+1 -> 3 | M224: 1 | N224: 1 | P224: 0.3
B225: Stéphane Alarie | F225: x | G225: x | I225: =1+1+1+1+1+1+1+1+1 -> 9 | J225: =3+4+4+4+3+3+3+2+2 -> 28 | K225: =0+1+1+1+1 -> 4 | L225: =0+1+3+1+1+1+1 -> 8 | M225: =0+2+1+2 -> 5 | N225: =1+1+1+1 -> 4 | P225: 0.2857142857
B226: Robert Pelletier | F226: x | G226: x | I226: =1+1+1+1+1 -> 5 | J226: =3+2+4+3+3 -> 15 | K226: =1+1+1 -> 3 | L226: =1+1+1+1 -> 4 | M226: =1+2+1+1 -> 5 | N226: 1 | P226: 0.2666666667
B227: Marc-André Marcoux | F227: x | G227: x | I227: =1+1+1+1+1+1+1 -> 7 | J227: =3+4+4+3+3+3+3 -> 23 | K227: =0+2+2+1+1 -> 6 | L227: =1+1+2+1+1 -> 6 | M227: =0+1+2 -> 3 | N227: =1+1 -> 2 | O227: 1 | P227: 0.2608695652
B228: Stéphane Frappier | F228: x | G228: x | I228: =1+1+1 -> 3 | J228: =3+2+3 -> 8 | K228: 0 | L228: 2 | M228: 0 | P228: 0.25
B229: Martin Breault | F229: x | G229: x | I229: =1+1+1+1 -> 4 | J229: =3+3+2+3 -> 11 | K229: 2 | L229: =1+1 -> 2 | M229: =0+1+1 -> 2 | P229: 0.1818181818
B230: Daniel Landry | F230: x | G230: x | I230: =1+1+1+1 -> 4 | J230: =4+3+2+3 -> 12 | K230: =1+1+1 -> 3 | L230: =1+1 -> 2 | M230: =0+1 -> 1 | N230: 1 | P230: 0.1666666667
B231: Charles Palardy | F231: x | G231: x | P231: 0
B232: Steve Bouthillier | F232: x | G232: x | P232: 0
B233: TOTAL | I233: =SUM(I213:I232) -> 106 | J233: =SUM(J213:J232) -> 355 | K233: 98 | L233: 136 | M233: 83 | N233: 37 | O233: 8 | P233: =L233/J233 -> 0.3830985915
A235: # | B235: LANCEURS | F235: PJ | G235: V | H235: D | I235: N | J235: ML | K235: P | L235: PM | M235: CS | N235: BB | O235: K | P235: MPM
B236: Jean-François Beauregard | F236: =1+1+1+1+1+1 -> 6 | G236: =1+1+1 -> 3 | H236: =1+1+1 -> 3 | J236: =6+7+7+6.33+6.67+7 -> 40 | K236: =8+6+8+14+9+1 -> 46 | L236: =8+6+8+14+8+1 -> 45 | M236: =12+12+11+23+14+4 -> 76 | N236: =2+4+2+2 -> 10 | O236: =3+2+1+2+1+2 -> 11 | P236: =IFERROR(7*(L236/J236),"") -> 7.875
B237: Robert Pelletier | F237: =1+1+1 -> 3 | G237: 1 | H237: 1 | J237: =1+5+6 -> 12 | K237: =3+0+13 -> 16 | L237: =3+0+11 -> 14 | M237: =2+2+11 -> 15 | N237: =3+4+7 -> 14 | O237: =1+1+1 -> 3 | P237: =IFERROR(7*(L237/J237),"") -> 8.166666667
B238: Daniel Landry | F238: =1+1+1 -> 3 | H238: =1+1 -> 2 | I238: 1 | J238: =5.33+7+6 -> 18.33 | K238: =16+6+7 -> 29 | L238: =14+6+4 -> 24 | M238: =19+11+10 -> 40 | N238: =1+4+2 -> 7 | O238: =0+1 -> 1 | P238: =IFERROR(7*(L238/J238),"") -> 9.165302782
J239: 0 | K239: 0 | L239: 0 | P239: =IFERROR(7*(L239/J239),"") -> 
B240: DÉFAUT | F240: 1 | G240: 1 | J240: 7 | K240: 0 | L240: 0 | P240: =IFERROR(7*(L240/J240),"") -> 0
B241: TOTAL | F241: =SUM(F236:F240) -> 13 | G241: =SUM(G236:G240) -> 5 | H241: 6 | I241: 1 | J241: 77.33 | K241: 91 | L241: 83 | M241: 131 | N241: 31 | O241: 15 | P241: =(L241*7)/J241 -> 7.513254882
A248: Ligue de Balle Molle Voyageurs
A250: =A4 -> Balle Molle Maison Lundi
A253: DRINKERIE
A254: # | B254: JOUEURS | F254: C | G254: P | H254: S | I254: PJ | J254: AB | K254: P | L254: CS | M254: PP | N254: BB | O254: CC | P254: MOY
B255: Steve Soares | F255: x | G255: x | I255: =1+1+1+1 -> 4 | J255: =3+2+4+3 -> 12 | K255: =2+3+4+1 -> 10 | L255: =2+2+4+2 -> 10 | M255: =4+3+2+2 -> 11 | N255: =2+1 -> 3 | O255: =1+1 -> 2 | P255: =IF($J255<>0,L255/$J255,0) -> 0.8333333333
B256: Félix Doston | F256: x | G256: x | I256: =1+1+1+1+1+1+1+1+1 -> 9 | J256: =4+4+2+2+3+3+2+3+3 -> 26 | K256: =2+1+3+1+1+1+2+1 -> 12 | L256: =2+3+1+2+3+2+2+1 -> 16 | M256: =0+1+2+2+1+1 -> 7 | N256: =1+1+1 -> 3 | O256: 1 | P256: 0.6153846154
B257: René-Pierre Bélanger | F257: x | G257: x | I257: =1+1+1+1 -> 4 | J257: =3+3+3+3 -> 12 | K257: =1+2+1+2 -> 6 | L257: =2+2+1+2 -> 7 | M257: =2+2+1 -> 5 | P257: 0.5833333333
B258: Alex Lejeune | F258: x | G258: x | I258: =1+1+1+1+1 -> 5 | J258: =2+3+4+2+2 -> 13 | K258: =1+1+2+2+1 -> 7 | L258: =0+1+3+2+1 -> 7 | M258: =0+5+3 -> 8 | N258: =2+1+1+1 -> 5 | P258: 0.5384615385
B259: Jean-Philippe Bourgie | F259: x | G259: x | I259: =1+1+1+1+1+1+1+1 -> 8 | J259: =3+3+3+2+4+3+3+3 -> 24 | K259: =2+2+2+1 -> 7 | L259: =1+3+1+3+1+1+2 -> 12 | M259: =4+4+1+1 -> 10 | N259: 1 | O259: =1+1+1 -> 3 | P259: 0.5
A260: OK | B260: Pereira Kevin | F260: x | G260: x | I260: 1 | J260: 2 | K260: 1 | L260: 1 | M260: 3 | N260: 1 | O260: 1 | P260: 0.5
B261: André Paquette | F261: x | G261: x | I261: =1+1+1+1+1+1 -> 6 | J261: =4+2+4+3+2+3 -> 18 | K261: =1+1+1 -> 3 | L261: =2+1+1+2+2 -> 8 | M261: =1+1+1+4 -> 7 | N261: 1 | P261: 0.4444444444
B262: Félix Latraverse | F262: x | G262: x | I262: =1+1 -> 2 | J262: =2+3 -> 5 | K262: =0+2 -> 2 | L262: =1+1 -> 2 | M262: 0 | P262: 0.4
B263: Barclay Fortin | F263: x | G263: x | I263: =1+1+1+1+1+1+1+1+1+1 -> 10 | J263: =1+2+2+4+2+3+1+2+2+3 -> 22 | K263: =1+2+2+3+1+1+1 -> 11 | L263: =0+1+3+1+1+1+1 -> 8 | M263: =0+1+1+1 -> 3 | N263: =1+1+2+2+1 -> 7 | P263: 0.3636363636
B264: Marc St-Martin | F264: x | G264: x | I264: =1+1+1+1+1+1+1+1 -> 8 | J264: =3+2+4+2+2+4+3+3 -> 23 | K264: =2+2+1+2+1 -> 8 | L264: =2+1+2+1+1+1 -> 8 | M264: 0 | N264: =1+1+1 -> 3 | P264: 0.347826087
B265: Frank Thomas | F265: x | G265: x | I265: =1+1+1+1+1+1+1+1+1+1 -> 10 | J265: =4+3+3+3+2+3+4+2+2+3 -> 29 | K265: =1+1+1+1+1 -> 5 | L265: =3+1+1+1+2+1+1 -> 10 | M265: =4+1+1 -> 6 | N265: =2+1+1 -> 4 | O265: =1+1 -> 2 | P265: 0.3448275862
B266: Alain Bérard | F266: x | G266: x | I266: =1+1+1+1+1+1+1+1+1+1+1+1 -> 12 | J266: =3+2+3+4+2+2+4+4+2+2+3+2 -> 33 | K266: =0+2+1+1+1+1+2+1+1 -> 10 | L266: =1+1+2+1+2+1+1+1 -> 10 | M266: =0+3+3+1 -> 7 | N266: =1+1+1 -> 3 | P266: 0.303030303
B267: Gilles Thisdale | F267: x | G267: x | I267: =1+1 -> 2 | J267: =3+4 -> 7 | K267: 1 | L267: =1+1 -> 2 | M267: 0 | P267: 0.2857142857
B268: Hugues Lapointe | F268: x | G268: x | I268: =1+1+1+1+1+1+1+1+1+1+1 -> 11 | J268: =2+3+3+3+1+4+3+3+3+1+2 -> 28 | K268: =2+1+1+1 -> 5 | L268: =1+2+1+1+1+1 -> 7 | M268: =2+1+1+1+1+2+2 -> 10 | N268: =2+1+1+1+1+1 -> 7 | O268: 1 | P268: 0.25
B269: Martin Laroche | F269: x | G269: x | I269: =1+1+1+1+1+1+1+1+1+1+1 -> 11 | J269: =4+4+4+3+2+3+3+3+4+3+3 -> 36 | K269: =0+1+2+1 -> 4 | L269: =1+1+3+1+1+1 -> 8 | M269: =0+1+2+1+1 -> 5 | N269: =1+1 -> 2 | P269: 0.2222222222
B270: Julien Véronneau | F270: x | G270: x | I270: =1+1+1 -> 3 | J270: =3+3+3 -> 9 | K270: =0+1 -> 1 | L270: =1+1 -> 2 | M270: =0+2 -> 2 | O270: 1 | P270: 0.2222222222
B271: Guy Toupin | F271: x | G271: x | I271: =1+1+1+1+1 -> 5 | J271: =3+2+3+3+3 -> 14 | K271: 1 | L271: =2+1 -> 3 | M271: 3 | O271: 1 | P271: 0.2142857143
B272: Ernest Blouin | F272: x | G272: x | I272: =1+1+1+1+1+1+1 -> 7 | J272: =3+3+3+2+3+2+2 -> 18 | K272: =0+2 -> 2 | L272: =1+1+1 -> 3 | M272: =0+2 -> 2 | N272: 1 | P272: 0.1666666667
B273: Benoit Gauthier | F273: x | G273: x | I273: =1+1+1+1 -> 4 | J273: =2+3+4+3 -> 12 | K273: 1 | L273: =0+2 -> 2 | M273: =1+1 -> 2 | N273: =1+1 -> 2 | P273: 0.1666666667
B274: Dumont Marc-André | F274: x | G274: x | P274: 0
B275: TOTAL | I275: =SUM(I255:I274) -> 122 | J275: =SUM(J255:J274) -> 343 | K275: 97 | L275: 126 | M275: 91 | N275: 43 | O275: 12 | P275: =L275/J275 -> 0.3673469388
A277: # | B277: LANCEURS | F277: PJ | G277: V | H277: D | I277: N | J277: ML | K277: P | L277: PM | M277: CS | N277: BB | O277: K | P277: MPM
B278: André Paquette | F278: =1+1+1+1 -> 4 | G278: =1+1 -> 2 | H278: 1 | J278: =6.34+6.67+6 -> 19.01 | K278: =0+8+6+5 -> 19 | L278: =0+4+1+4 -> 9 | M278: =0+8+6+7+11 -> 32 | N278: =1+3+3+4 -> 11 | O278: =2+3+3+2 -> 10 | P278: =IFERROR(7*(L278/J278),"") -> 3.314045239
... 5 more rows

Sheet Maison Mercredi
A2: Ligue de Balle Molle Voyageurs
A4: Balle Molle Maison Mercredi
G6: FINAL
A7: Dernière mise à jour : | D7: 2019-09-03
A10: CLASSEMENT MAISON MERCREDI
A11: POS | B11: ÉQUIPE | H11: PJ | I11: V | J11: D | K11: N | L11: PP | M11: PC | N11: PTS | O11: DIFF | P11: MOY
A12: 1 | B12: C-Giants | H12: =1+1+1+1+1+1+1+1+1+1+1+1 -> 12 | I12: =1+1+1+1+1+1+1+1+1+1 -> 10 | J12: =1+1 -> 2 | K12: 0 | L12: =4+8+10+11+16+9+5+15+13+8+17+16 -> 132 | M12: =7+7+4+14+3+2+4+5+1+6+8+11 -> 72 | N12: =I12*2+K12*1 -> 20 | O12: =L12-M12 -> 60 | P12: =IF(H12<>0,(2*I12+K12)/(2*H12),0) -> 0.8333333333
A13: =A12+1 -> 2 | B13: Chevaliers | H13: 12 | I13: =1+1+1+1+1+1+1+1 -> 8 | J13: =0+1+1+1 -> 3 | K13: =0+1 -> 1 | L13: =7+10+1+12+17+13+3+5+8+15+13+7 -> 111 | M13: =4+7+14+0+7+2+6+5+17+3+1+0 -> 66 | N13: 17 | O13: 45 | P13: 0.7083333333
A14: =A13+1 -> 3 | B14: Sons of Pitches | H14: 12 | I14: =0+1+1+1+1+1+1+1+1 -> 8 | J14: =1+1+1+1 -> 4 | K14: 0 | L14: =7+14+2+13+13+6+4+15+16+12+8+3 -> 113 | M14: =8+1+9+5+9+3+9+0+24+4+7+2 -> 81 | N14: 16 | O14: 32 | P14: 0.6666666667
A15: 4 | B15: Avengers | H15: 12 | I15: =1+1+1+1+1+1+1 -> 7 | J15: =0+1+1+1+1+1 -> 5 | K15: 0 | L15: =10+16+3+10+2+7+12+6+0+15+3+8 -> 92 | M15: =4+4+16+12+9+6+10+3+15+8+15+7 -> 109 | N15: 14 | O15: -17 | P15: 0.5833333333
A16: 5 | B16: Mme Smith | H16: 12 | I16: =1+1+1+1+1+1 -> 6 | J16: =0+1+1+1+1+1 -> 5 | K16: =0+1 -> 1 | L16: =8+4+9+2+6+6+11+5+8+15+16+4 -> 94 | M16: =6+10+2+8+7+11+9+5+6+7+3+13 -> 87 | N16: 13 | O16: 7 | P16: 0.5416666667
A17: 6 | B17: Outlaws | H17: 12 | I17: =0+1+1+1+1+1 -> 5 | J17: =1+1+1+1+1+1+1 -> 7 | K17: 0 | L17: =7+11+5+8+14+21+6+8+9+7+7+13 -> 116 | M17: =10+18+9+2+4+8+8+15+6+8+8+4 -> 100 | N17: 10 | O17: 16 | P17: 0.4166666667
A18: 7 | B18: Astros | H18: 12 | I18: =1+1+1+1+1 -> 5 | J18: =0+1+1+1+1+1+1+1 -> 7 | K18: 0 | L18: =8+4+9+8+4+4+2+9+10+24+7+2 -> 91 | M18: =6+16+5+6+5+0+13+11+17+16+15+3 -> 113 | N18: 10 | O18: -22 | P18: 0.4166666667
A19: 8 | B19: Optima | H19: 12 | I19: =1+1+1+1 -> 4 | J19: =0+1+1+1+1+1+1+1+1 -> 8 | K19: 0 | L19: =9+4+10+0+5+4+3+11+1+17+13+11 -> 88 | M19: =2+10+13+12+13+14+6+6+13+10+1+16 -> 116 | N19: 8 | O19: -28 | P19: 0.3333333333
A20: 9 | B20: 360 Agency | H20: 12 | I20: =0+1+1+1 -> 3 | J20: =1+1+1+1+1+1+1+1+1 -> 9 | K20: 0 | L20: =2+6+18+14+6+7+0+10+9+12+1+4 -> 89 | M20: =9+8+11+11+8+17+4+12+4+13+13+12 -> 122 | N20: 6 | O20: -33 | P20: 0.25
A21: 10 | B21: Restaurant Bon-D | H21: 12 | I21: =0+1+1+1 -> 3 | J21: =1+1+1+1+1+1+1+1+1 -> 9 | K21: 0 | L21: =6+13+12+9+5+8+13+6+6+1+3+0 -> 82 | M21: =8+10+10+13+15+21+12+8+9+13+16+7 -> 142 | N21: 6 | O21: -60 | P21: 0.25
B23: TOTAL | H23: =SUM(H12:H21) -> 120 | I23: 59 | J23: 59 | K23: 2 | L23: 1008 | M23: 1008 | N23: 120 | O23: 0 | P23: =(I23+(K23*0.5))/H23 -> 0.5
A42: Ligue de Balle Molle Voyageurs
A44: =A4 -> Balle Molle Maison Mercredi
A47: 360 AGENCY
A48: # | B48: JOUEURS | F48: C | G48: P | H48: S | I48: PJ | J48: AB | K48: P | L48: CS | M48: PP | N48: BB | O48: CC | P48: MOY
B49: Jean-Pierre Fontaine | F49: x | G49: x | I49: =1+1+1+1+1+1+1+1+1+1+1 -> 11 | J49: =2+4+2+4+4+3+3+4+3+3+3 -> 35 | K49: =2+2+2+2+2+1+2 -> 13 | L49: =1+1+1+2+2+2+2+1+2+2 -> 16 | M49: =1+2+1+1 -> 5 | N49: =2+1+2+1 -> 6 | P49: =IF($J49<>0,L49/$J49,0) -> 0.4571428571
B50: Jonathan Ciampa | F50: x | G50: x | I50: =1+1+1 -> 3 | J50: =3+4+2 -> 9 | K50: =1+1+1 -> 3 | L50: =1+1+2 -> 4 | M50: =0+2+1 -> 3 | N50: 2 | P50: 0.4444444444
B51: Martin Campeau | F51: x | G51: x | I51: =1+1+1+1+1+1+1+1 -> 8 | J51: =4+2+4+3+3+3+3+3 -> 25 | K51: =1+1+1+2 -> 5 | L51: =4+1+1+1+2+1 -> 10 | M51: =3+2+2+1+1 -> 9 | N51: =2+1 -> 3 | P51: 0.4
B52: Louis Potvin | F52: x | G52: x | I52: =1+1+1+1+1+1+1+1+1+1 -> 10 | J52: =3+4+5+4+4+3+4+4+1+2 -> 34 | K52: =1+1+1+3 -> 6 | L52: =2+1+3+1+1+2+1+1 -> 12 | M52: =3+1+2 -> 6 | N52: =3+1 -> 4 | O52: 1 | P52: 0.3529411765
A53: OK | B53: Michel Boudreault | F53: x | G53: x | I53: 1 | J53: 3 | K53: 1 | L53: 1 | M53: 2 | N53: 1 | P53: 0.3333333333
B54: Stéphane Morin | F54: x | G54: x | I54: =1+1+1+1+1+1+1+1+1+1+1 -> 11 | J54: =3+3+4+4+3+4+1+4+3+4+1 -> 34 | K54: =1+1+2+1+2+1 -> 8 | L54: =2+2+1+2+1+1+2 -> 11 | M54: =2+1+1+3+1+1 -> 9 | N54: =1+1+1 -> 3 | P54: 0.3235294118
B55: Éric Faubert | F55: x | G55: x | I55: =1+1+1+1+1+1+1 -> 7 | J55: =3+4+4+3+3+2+3 -> 22 | K55: =2+1 -> 3 | L55: =1+2+1+1+2 -> 7 | M55: =1+3+1 -> 5 | N55: 1 | P55: 0.3181818182
B56: André Castonguay | F56: x | G56: x | H56: 1 | I56: =1+1+1+1+1+1+1+1+1+1+1 -> 11 | J56: =3+4+5+4+3+3+3+4+3+0+3 -> 35 | K56: =1+3+1+2+2+1+1+1 -> 12 | L56: =1+2+3+1+1+2+1 -> 11 | M56: =1+2+2+1+1+3 -> 10 | N56: =1+1+1+2 -> 5 | P56: 0.3142857143
B57: Daniel Martin | F57: x | G57: x | I57: =1+1+1+1+1+1+1+1 -> 8 | J57: =3+4+3+5+2+2+2+3 -> 24 | K57: =2+2+2+1+1 -> 8 | L57: =2+2+1+1+1 -> 7 | M57: =2+1+2 -> 5 | N57: =1+1+1+1 -> 4 | P57: 0.2916666667
B58: Martin Fournelle | F58: x | G58: x | I58: =1+1+1+1+1+1+1+1+1+1+1 -> 11 | J58: =2+3+3+3+3+2+2+3+3+4+2 -> 30 | K58: =1+1+2+1+1+1 -> 7 | L58: =1+1+2+1+2+1 -> 8 | M58: =0+2 -> 2 | N58: =1+1+1+1+1+1+1 -> 7 | P58: 0.2666666667
B59: Jean-François Danis | F59: x | G59: x | I59: =1+1+1+1+1+1+1+1+1+1+1+1 -> 12 | J59: =3+3+5+4+3+4+2+3+3+3+3+3 -> 39 | K59: =1+2+2+1+1+1 -> 8 | L59: =1+1+1+3+1+1+1+1 -> 10 | M59: =1+1+1+1 -> 4 | N59: =1+1+1+1+1+1+2+1 -> 9 | P59: 0.2564102564
B60: Benoit Lanthier | F60: x | G60: x | I60: =1+1+1+1+1+1+1+1+1 -> 9 | J60: =2+4+3+2+3+3+2+2+3 -> 24 | K60: =1+1+2+1 -> 5 | L60: =0+1+2+1+1+1 -> 6 | M60: =1+3+3+1 -> 8 | N60: =1+1+2+2 -> 6 | P60: 0.25
B61: Éric Drolet | F61: x | G61: x | I61: =1+1+1+1+1+1+1+1+1+1+1+1 -> 12 | J61: =3+3+4+4+3+3+2+2+4+1+2+3 -> 34 | K61: =2+1+1+1+2 -> 7 | L61: =2+1+1+1+2+1 -> 8 | M61: =1+1+1+2+1 -> 6 | N61: =1+2+3 -> 6 | P61: 0.2352941176
B62: Guillaume Danis | F62: x | G62: x | I62: =1+1+1 -> 3 | J62: =3+4+3 -> 10 | K62: =1+2 -> 3 | L62: =0+2 -> 2 | M62: =0+1 -> 1 | O62: 1 | P62: 0.2
B63: Bruno Doiron | F63: x | G63: x | I63: =1+1+1+1 -> 4 | J63: =3+2+3+3 -> 11 | K63: 0 | L63: =1+1 -> 2 | M63: =1+1 -> 2 | N63: 1 | P63: 0.1818181818
B64: Mathieu Drolet | F64: x | G64: x | P64: 0
B65: Benoit Deguire | F65: x | G65: x | P65: 0
B66: Claude Pagé | F66: x | G66: x | P66: 0
B67: Simon Castonguay | F67: x | G67: x | P67: 0
B68: Éric Désaulniers | F68: x | G68: x | P68: 0
B69: TOTAL | I69: =SUM(I49:I68) -> 121 | J69: =SUM(J49:J68) -> 369 | K69: 89 | L69: 115 | M69: 77 | N69: 58 | O69: 2 | P69: =L69/J69 -> 0.3116531165
A71: # | B71: LANCEURS | F71: PJ | G71: V | H71: D | I71: N | J71: ML | K71: P | L71: PM | M71: CS | N71: BB | O71: K | P71: MPM
B72: Jean-François Danis | F72: 1 | J72: 1 | K72: 0 | L72: 0 | M72: 1 | N72: 0 | O72: 1 | P72: =IFERROR(7*(L72/J72),"") -> 0
B73: Martin Fournelle | F73: =1+1+1+1+1+1+1 -> 7 | G73: 1 | H73: =1+1+1+1 -> 4 | J73: =5+5+4+3+7+4+3.33 -> 31.33 | K73: =5+7+9+5+4+2+13 -> 45 | L73: =3+4+7+5+0+2+4 -> 25 | M73: =5+11+10+7+9+6+14 -> 62 | N73: =1+2+1+0+1 -> 5 | O73: =4+3+1+1+2 -> 11 | P73: =IFERROR(7*(L73/J73),"") -> 5.585700606
B74: Martin Campeau | F74: =1+1+1+1+1 -> 5 | H74: 1 | J74: =3+2+2+3+5 -> 15 | K74: =3+3+8+4 -> 18 | L74: =2+2+6+3 -> 13 | M74: =4+1+2+10+5 -> 22 | N74: =4+4+1+2+4 -> 15 | O74: =4+5+3+4+3 -> 19 | P74: =IFERROR(7*(L74/J74),"") -> 6.066666667
B75: Éric Drolet | F75: =1+1+1+1+1+1+1+1+1 -> 9 | G75: =1+1 -> 2 | H75: =1+1+1+1 -> 4 | J75: =5+5+2+3.67+7+3+2.67+1+2 -> 31.34 | K75: =9+8+4+8+4+7+10+0+8 -> 58 | L75: =8+6+3+6+4+7+3+0+7 -> 44 | M75: =10+11+6+9+10+8+12+1+9 -> 76 | N75: =3+1+1+2+5+2+1+1 -> 16 | O75: =2+1+1+3+1 -> 8 | P75: =IFERROR(7*(L75/J75),"") -> 9.827696235
J76: 0 | K76: 0 | L76: 0 | P76: =IFERROR(7*(L76/J76),"") -> 
B77: TOTAL | F77: =SUM(F72:F76) -> 22 | G77: =SUM(G72:G76) -> 3 | H77: 9 | I77: 0 | J77: 78.67 | K77: 121 | L77: 82 | M77: 161 | N77: 36 | O77: 39 | P77: =(L77*7)/J77 -> 7.296301004
A84: Ligue de Balle Molle Voyageurs
A86: =A4 -> Balle Molle Maison Mercredi
A89: ASTROS
A90: # | B90: JOUEURS | F90: C | G90: P | H90: S | I90: PJ | J90: AB | K90: P | L90: CS | M90: PP | N90: BB | O90: CC | P90: MOY
B91: Joel Gagnon | F91: x | G91: x | I91: =1+1 -> 2 | J91: =3+4 -> 7 | K91: =0+3 -> 3 | L91: =1+3 -> 4 | M91: =1+1 -> 2 | P91: =IF($J91<>0,L91/$J91,0) -> 0.5714285714
B92: Claude Pépin | F92: x | G92: x | I92: =1+1+1+1+1+1+1+1+1 -> 9 | J92: =3+3+2+2+2+5+4+5+3 -> 29 | K92: =1+1+2+1+1+4 -> 10 | L92: =2+1+1+1+1+2+2+5+1 -> 16 | M92: =3+1+3+3+11 -> 21 | N92: =1+1+1+2 -> 5 | O92: =1+1+1 -> 3 | P92: 0.5517241379
B93: Yannick Verlaan-Lauzon | F93: x | G93: x | I93: =1+1+1+1+1+1+1 -> 7 | J93: =3+4+4+2+3+3+3 -> 22 | K93: =2+2+1+5 -> 10 | L93: =3+3+1+2+2+1 -> 12 | M93: =1+3 -> 4 | N93: 2 | O93: 1 | P93: 0.5454545455
B94: Mathieu Lapointe | F94: x | G94: x | I94: =1+1+1+1+1+1+1+1+1 -> 9 | J94: =3+3+3+3+4+4+5+4+3 -> 32 | K94: =1+1+1+1+2+3+1+1 -> 11 | L94: =2+2+2+3+4+2+1 -> 16 | M94: =0+1+1+1+1+1 -> 5 | N94: 1 | P94: 0.5
B95: Alexandre Caron | F95: x | G95: x | I95: =1+1+1+1+1+1+1+1 -> 8 | J95: =0+3+3+2+3+3+2+3 -> 19 | K95: =1+1+2+1 -> 5 | L95: =0+1+2+1+1+2+2 -> 9 | M95: =0+1+1+1 -> 3 | N95: =3+1+1+1 -> 6 | P95: 0.4736842105
B96: Pierre-Luc Bérubé | F96: x | G96: x | I96: =1+1+1+1+1 -> 5 | J96: =2+4+4+4+4 -> 18 | K96: =0+2+1 -> 3 | L96: =1+3+3+1 -> 8 | M96: =1+1+1+1 -> 4 | N96: 1 | P96: 0.4444444444
B97: Guillaume Bérubé | F97: x | G97: x | I97: =1+1+1+1+1+1 -> 6 | J97: =3+2+4+4+4+3 -> 20 | K97: =1+1+1+1+2 -> 6 | L97: =1+1+1+1+2 -> 6 | M97: =1+1+1 -> 3 | N97: =1+1 -> 2 | P97: 0.3
B98: Sébastien Urbain | F98: x | G98: x | I98: =1+1+1+1+1+1+1+1 -> 8 | J98: =4+3+4+2+3+3+5+4 -> 28 | K98: =2+1+2+2+1+1+1 -> 10 | L98: =2+1+1+1+1+2 -> 8 | M98: =0+1+1+1 -> 3 | N98: 1 | P98: 0.2857142857
B99: Sébastien Cloutier | F99: x | G99: x | I99: =1+1 -> 2 | J99: =4+3 -> 7 | K99: 0 | L99: 2 | M99: 2 | P99: 0.2857142857
B100: Maxime Pelletier | F100: x | G100: x | I100: =1+1+1+1+1+1+1+1+1+1+1+1 -> 12 | J100: =4+3+2+4+3+2+3+4+3+3+3+2 -> 36 | K100: =2+1+1+2+1+1 -> 8 | L100: =2+1+3+1+2+1 -> 10 | M100: =1+2+2+1+1+1+1 -> 9 | N100: =1+1+1+1+1 -> 5 | O100: 1 | P100: 0.2777777778
B101: Joey Bucci | F101: x | G101: x | I101: =1+1+1+1+1+1+1+1+1+1+1+1 -> 12 | J101: =4+3+2+4+3+2+4+3+3+3+4+3 -> 38 | K101: =1+1+3+2+4+1 -> 12 | L101: =1+2+1+1+1+1+1+1+1 -> 10 | M101: =0+1+2+1+2 -> 6 | N101: =1+1+2+1+2 -> 7 | P101: 0.2631578947
A102: OK | B102: Pierre-Olivier Bouchard | F102: x | G102: x | I102: 1 | J102: 4 | K102: 0 | L102: 1 | M102: 0 | P102: 0.25
A103: OK | B103: Marc-Olivier Charbonneau | F103: x | G103: x | I103: 1 | J103: 4 | K103: 1 | L103: 1 | M103: 1 | P103: 0.25
B104: Jean-Yves Beaudoin | F104: x | G104: x | I104: =1+1+1+1+1+1+1+1 -> 8 | J104: =3+2+3+3+5+4+4+3 -> 27 | K104: =1+1 -> 2 | L104: =1+1+2+1+1 -> 6 | M104: =1+2+2 -> 5 | N104: 1 | P104: 0.2222222222
B105: Alexandre Guay | F105: x | G105: x | I105: =1+1+1+1+1+1+1+1+1+1+1 -> 11 | J105: =1+3+3+3+2+4+3+4+4+3+3 -> 33 | K105: =0+1+1+2+1+2 -> 7 | L105: =0+1+1+2+1+2 -> 7 | M105: =0+2+4 -> 6 | N105: =2+1+1+1+1 -> 6 | O105: 1 | P105: 0.2121212121
B106: Firass Kansou | F106: x | G106: x | I106: =1+1+1+1+1+1+1+1+1+1+1 -> 11 | J106: =2+2+4+3+2+2+3+4+3+1+3 -> 29 | K106: =0+1+1+1 -> 3 | L106: =0+1+1+1+2+1 -> 6 | M106: =0+1+1+2+1 -> 5 | N106: =1+1+1+1+1+1+1 -> 7 | P106: 0.2068965517
A107: OK | B107: Olivier Manella | F107: x | G107: x | I107: 1 | J107: 3 | K107: 0 | L107: 0 | M107: 1 | P107: 0
B108: Charles-Étienne Bergeron | F108: x | G108: x | P108: 0
B109: Jonathan Charbonneau | F109: x | G109: x | P109: 0
B110: Pierre-Olivier Gagnon | F110: x | G110: x | P110: 0
B111: TOTAL | I111: =SUM(I91:I110) -> 113 | J111: =SUM(J91:J110) -> 356 | K111: 91 | L111: 122 | M111: 80 | N111: 44 | O111: 6 | P111: =L111/J111 -> 0.3426966292
A113: # | B113: LANCEURS | F113: PJ | G113: V | H113: D | I113: N | J113: ML | K113: P | L113: PM | M113: CS | N113: BB | O113: K | P113: MPM
B114: Claude Pépin | F114: 1 | H114: 1 | J114: 8 | K114: 11 | L114: 8 | M114: 14 | N114: 8 | O114: 0 | P114: =IFERROR(7*(L114/J114),"") -> 7
B115: Mathieu Lapointe | F115: =1+1+1 -> 3 | G115: 1 | H115: =1+1 -> 2 | J115: =7+5.67+5.67 -> 18.34 | K115: =0+17+15 -> 32 | L115: =0+14+3 -> 17 | M115: =1+19+13 -> 33 | N115: =2+4+7 -> 13 | O115: =0+2 -> 2 | P115: =IFERROR(7*(L115/J115),"") -> 6.488549618
B116: Sébastien Cloutier | F116: =1+1 -> 2 | G116: 1 | H116: 1 | J116: =7+6.33 -> 13.33 | K116: =6+13 -> 19 | L116: =3+13 -> 16 | M116: =9+17 -> 26 | N116: =3+4 -> 7 | O116: =2+1 -> 3 | P116: =IFERROR(7*(L116/J116),"") -> 8.402100525
B117: Yannick Verlaan-Lauzon | F117: =1+1+1+1+1+1 -> 6 | G117: =1+1+1 -> 3 | H117: =1+1+1 -> 3 | J117: =5.33+7+7+6+6.67+6 -> 38 | K117: =16+5+6+5+16+3 -> 51 | L117: =16+4+4+5+16+2 -> 47 | M117: =21+8+9+8+21+7 -> 74 | N117: =4+1+3+2+2+2 -> 14 | O117: =1+1+1 -> 3 | P117: =IFERROR(7*(L117/J117),"") -> 8.657894737
J118: 0 | K118: 0 | L118: 0 | P118: =IFERROR(7*(L118/J118),"") -> 
B119: TOTAL | F119: =SUM(F114:F118) -> 12 | G119: =SUM(G114:G118) -> 5 | H119: 7 | I119: 0 | J119: 77.67 | K119: 113 | L119: 88 | M119: 147 | N119: 42 | O119: 8 | P119: =(L119*7)/J119 -> 7.930990086
A126: Ligue de Balle Molle Voyageurs
A128: =A4 -> Balle Molle Maison Mercredi
A131: AVENGERS
A132: # | B132: JOUEURS | F132: C | G132: P | H132: S | I132: PJ | J132: AB | K132: P | L132: CS | M132: PP | N132: BB | O132: CC | P132: MOY
A133: OK | B133: Yan Coe | F133: x | G133: x | I133: 1 | J133: 3 | K133: 1 | L133: 2 | M133: 0 | P133: =IF($J133<>0,L133/$J133,0) -> 0.6666666667
B134: Steve Girard | F134: x | G134: x | I134: =1+1+1+1+1+1+1+1+1+1 -> 10 | J134: =5+4+5+1+4+4+3+2+3+2 -> 33 | K134: =3+2+4+2+2+1 -> 14 | L134: =4+2+5+1+2+2+1+2 -> 19 | M134: =3+1+2+1+1+2 -> 10 | N134: =2+1 -> 3 | O134: 1 | P134: 0.5757575758
B135: Vincent Sauvé | F135: x | G135: x | I135: =1+1+1+1+1+1+1+1+1+1 -> 10 | J135: =2+3+3+4+3+3+2+2+4+2 -> 28 | K135: =2+1+1+1+1+3+1 -> 10 | L135: =1+2+1+2+1+2+2+1+2+1 -> 15 | M135: =2+2+3+2+1+1 -> 11 | N135: =2+1+1+1+1+1+1 -> 8 | P135: 0.5357142857
B136: Yvan Roy | F136: x | G136: x | I136: =1+1+1+1+1+1+1+1+1+1+1 -> 11 | J136: =3+4+4+2+3+3+1+1+5+3+4 -> 33 | K136: =2+1+1+1+2+1 -> 8 | L136: =2+2+3+1+1+1+1+1+1+1 -> 14 | M136: =1+1+1+1+1+1 -> 6 | N136: =1+1+1 -> 3 | P136: 0.4242424242
B137: Benoit Caron | F137: x | G137: x | I137: =1+1+1+1+1+1+1+1 -> 8 | J137: =2+3+3+3+3+4+3+3 -> 24 | K137: =2+2+1+1+1 -> 7 | L137: =1+1+1+2+2+1+1+1 -> 10 | M137: =1+3+1+1+1 -> 7 | N137: =2+1+1 -> 4 | O137: 1 | P137: 0.4166666667
B138: Patrick Gervais | F138: x | G138: x | I138: =1+1+1+1 -> 4 | J138: =2+3+1+4 -> 10 | K138: =0+2 -> 2 | L138: =2+2 -> 4 | M138: =0+1 -> 1 | N138: 1 | P138: 0.4
B139: Alexandre Brisson | F139: x | G139: x | I139: =1+1+1+1+1+1+1 -> 7 | J139: =3+4+3+3+4+3+2 -> 22 | K139: =1+1 -> 2 | L139: =2+2+1+3 -> 8 | M139: =1+1+2+4 -> 8 | N139: 1 | P139: 0.3636363636
B140: Alain Roy | F140: x | G140: x | I140: =1+1+1+1+1+1+1+1+1+1+1 -> 11 | J140: =3+4+4+4+3+3+3+3+2+4+3 -> 36 | K140: =0+2+1+1+3+1+1 -> 9 | L140: =1+2+2+1+2+1+2+2 -> 13 | M140: =1+1+1+3+1 -> 7 | N140: =1+1+1+1 -> 4 | P140: 0.3611111111
B141: Patrice Desroches | F141: x | G141: x | I141: =1+1+1+1+1+1+1+1+1+1+1 -> 11 | J141: =2+3+3+4+3+3+3+3+5+2+3 -> 34 | K141: =1+3+2+1+2+1 -> 10 | L141: =2+2+2+1+3+1+1 -> 12 | M141: =0+2 -> 2 | N141: =1+1+1 -> 3 | P141: 0.3529411765
B142: Benoit Legault | F142: x | G142: x | I142: =1+1 -> 2 | J142: =3+3 -> 6 | K142: 2 | L142: =1+1 -> 2 | M142: 0 | P142: 0.3333333333
B143: Jean-Sébastien Daoust | F143: x | G143: x | I143: =1+1+1+1+1+1+1+1+1+1 -> 10 | J143: =2+4+3+4+3+3+3+2+5+4 -> 33 | K143: =1+1+1+2+2+1 -> 8 | L143: =0+2+1+1+2+2+1 -> 9 | M143: =0+1+1 -> 2 | N143: 1 | P143: 0.2727272727
B144: Simon-Pierre Sauvé | F144: x | G144: x | I144: =1+1+1+1+1+1+1+1+1+1+1+1 -> 12 | J144: =2+4+2+4+1+3+3+3+2+4+3+3 -> 34 | K144: =0+1+1+1+1+2+2 -> 8 | L144: =0+1+1+2+2+2+1 -> 9 | M144: =0+1+2+1+1+1 -> 6 | N144: =1+1+1+1+1 -> 5 | P144: 0.2647058824
B145: Louis-Gilles Roy | F145: x | G145: x | I145: =1+1+1+1+1+1+1+1+1+1+1 -> 11 | J145: =3+4+3+4+2+3+3+1+3+3+3 -> 32 | K145: =0+2 -> 2 | L145: =0+3+1+1+1+2 -> 8 | M145: =0+2+1+1+3 -> 7 | N145: 2 | P145: 0.25
B146: Ghislain Legault | F146: x | G146: x | I146: =1+1+1+1+1+1+1+1+1+1 -> 10 | J146: =3+4+3+3+3+3+2+2+3+3 -> 29 | K146: =1+2+2+1+2 -> 8 | L146: =1+3+1+2 -> 7 | M146: =4+4+1+2 -> 11 | N146: 1 | O146: =1+1 -> 2 | P146: 0.2413793103
A147: OK | B147: Patrick Dagenais | F147: x | G147: x | H147: 3 | I147: 1 | J147: 2 | K147: 1 | L147: 0 | M147: 0 | N147: 1 | P147: 0
B148: Éric Parent | F148: x | G148: x | P148: 0
P149: 0
P150: 0
P151: 0
P152: 0
B153: TOTAL | I153: =SUM(I133:I152) -> 119 | J153: =SUM(J133:J152) -> 359 | K153: 92 | L153: 132 | M153: 78 | N153: 37 | O153: 4 | P153: =L153/J153 -> 0.3676880223
A155: # | B155: LANCEURS | F155: PJ | G155: V | H155: D | I155: N | J155: ML | K155: P | L155: PM | M155: CS | N155: BB | O155: K | P155: MPM
B156: Vincent Sauvé | F156: 1 | J156: 1 | K156: 0 | L156: 0 | M156: 0 | N156: 3 | O156: 1 | P156: =IFERROR(7*(L156/J156),"") -> 0
B157: Yvan Roy | F157: =1+1+1+1+1+1+1 -> 7 | G157: =1+1+1 -> 3 | H157: =1+1+1 -> 3 | J157: =6+4.33+6+2+3+5+6.67 -> 33 | K157: =4+10+3+0+7+11+7 -> 42 | L157: =4+6+1+0+3+6+3 -> 23 | M157: =9+14+4+2+9+11+12 -> 61 | N157: =1+3+4+2+5+4+4 -> 23 | O157: =0+1+3+1+1 -> 6 | P157: =IFERROR(7*(L157/J157),"") -> 4.878787879
B158: Alain Roy | F158: =1+1+1+1+1 -> 5 | G158: 1 | J158: =2.33+1+1+5+2 -> 11.33 | K158: =6+7+3+4 -> 20 | L158: =5+1+1+1 -> 8 | M158: =8+1+4+6+3 -> 22 | N158: =4+2+6+2 -> 14 | O158: =2+1+2+1 -> 6 | P158: =IFERROR(7*(L158/J158),"") -> 4.942630185
B159: Simon-Pierre Sauvé | F159: =1+1+1+1+1+1+1 -> 7 | G159: =1+1+1 -> 3 | H159: =1+1 -> 2 | J159: =6+5+5.67+7+2+7+0.33 -> 33 | K159: =4+12+9+6+8+8+0 -> 47 | L159: =4+8+9+6+4+5+0 -> 36 | M159: =8+12+12+13+12+13+1 -> 71 | N159: =2+7+3+2+1+1 -> 16 | O159: =2+2 -> 4 | P159: =IFERROR(7*(L159/J159),"") -> 7.636363636
J160: 0 | K160: 0 | L160: 0 | P160: =IFERROR(7*(L160/J160),"") -> 
B161: TOTAL | F161: =SUM(F156:F160) -> 20 | G161: =SUM(G156:G160) -> 7 | H161: 5 | I161: 0 | J161: 78.33 | K161: 109 | L161: 67 | M161: 154 | N161: 56 | O161: 17 | P161: =(L161*7)/J161 -> 5.987488829
A168: Ligue de Balle Molle Voyageurs
A170: =A4 -> Balle Molle Maison Mercredi
A173: CHEVALIERS
A174: # | B174: JOUEURS | F174: C | G174: P | H174: S | I174: PJ | J174: AB | K174: P | L174: CS | M174: PP | N174: BB | O174: CC | P174: MOY
B175: Francis Lussier | F175: x | G175: x | I175: =1+1+1+1+1+1+1+1+1+1+1 -> 11 | J175: =2+4+2+3+4+4+4+4+1+2+3 -> 33 | K175: =2+2+2+1+1+1+1+2 -> 12 | L175: =1+3+2+2+2+1+3+2+1+1+1 -> 19 | M175: =1+3+1+3+1+1+3 -> 13 | N175: =2+1+1+3 -> 7 | O175: 1 | P175: =IF($J175<>0,L175/$J175,0) -> 0.5757575758
B176: Raymond Gagnon | F176: x | G176: x | I176: =1+1+1+1+1 -> 5 | J176: =3+3+5+5+3 -> 19 | K176: =1+1+1+3+2 -> 8 | L176: =1+2+2+4+1 -> 10 | M176: =2+1+2+1 -> 6 | N176: =1+1 -> 2 | P176: 0.5263157895
B177: Guillaume Thibault | F177: x | G177: x | I177: =1+1+1+1+1+1+1+1 -> 8 | J177: =2+4+4+4+4+4+2+2 -> 26 | K177: =0+2+2+1+2+1 -> 8 | L177: =0+3+3+1+1+2+2+1 -> 13 | M177: =0+3+4+3+1 -> 11 | N177: =1+2+2 -> 5 | O177: 1 | P177: 0.5
B178: Martin Boucher | F178: x | G178: x | I178: =1+1+1+1 -> 4 | J178: =3+4+3+4 -> 14 | K178: =0+3+1 -> 4 | L178: =0+4+2+1 -> 7 | M178: =1+5+1+1 -> 8 | N178: 1 | O178: 1 | P178: 0.5
B179: Benoit Perreault | F179: x | G179: x | I179: =1+1+1 -> 3 | J179: =3+3+4 -> 10 | K179: =2+2+1 -> 5 | L179: =0+2+3 -> 5 | M179: =0+2+1 -> 3 | N179: 1 | P179: 0.5
B180: Marc-André Gagnon | F180: x | G180: x | I180: =1+1+1+1+1+1+1+1+1+1 -> 10 | J180: =2+3+2+4+2+2+3+4+3+2 -> 27 | K180: =1+2+1+2+2 -> 8 | L180: =1+1+2+2+1+1+1+1+2 -> 12 | M180: =0+1+2+1 -> 4 | N180: =1+1+1+1+1 -> 5 | P180: 0.4444444444
B181: Jean-François Roberge | F181: x | G181: x | I181: =1+1+1+1+1+1+1+1 -> 8 | J181: =4+3+2+3+3+4+5+2 -> 26 | K181: =2+1+1+1+2+1+2 -> 10 | L181: =2+1+3+1+2+2 -> 11 | M181: =0+2+1+1+1 -> 5 | N181: =1+1+1+1 -> 4 | P181: 0.4230769231
B182: Martin Dugré | F182: x | G182: x | I182: =1+1+1+1+1+1+1+1+1+1+1 -> 11 | J182: =3+4+2+4+5+3+2+4+5+5+3 -> 40 | K182: =0+2+2+1+1+1 -> 7 | L182: =2+1+2+3+3+1+1+2 -> 15 | M182: =3+1+3+3+1+4 -> 15 | N182: =1+2+1 -> 4 | O182: 1 | P182: 0.375
B183: Jérôme Lavoie-Pilote | F183: x | G183: x | I183: =1+1+1+1+1+1+1+1+1 -> 9 | J183: =3+4+3+4+5+4+4+4+3 -> 34 | K183: =2+1+3+1+2 -> 9 | L183: =2+2+1+3+1+2+1 -> 12 | M183: =1+1+1 -> 3 | N183: =1+1 -> 2 | P183: 0.3529411765
B184: Dominique Bedard | F184: x | G184: x | I184: =1+1+1+1 -> 4 | J184: =4+4+3+4 -> 15 | K184: =0+2 -> 2 | L184: =0+1+1+3 -> 5 | M184: =0+1+1+2 -> 4 | N184: 1 | P184: 0.3333333333
B185: Frederic Bean | F185: x | G185: x | I185: =1+1+1+1+1+1+1 -> 7 | J185: =3+2+4+3+4+4+3 -> 23 | K185: =0+3+1+1+2+1 -> 8 | L185: =1+2+1+1+1+1 -> 7 | M185: =0+2+1+2 -> 5 | N185: =1+1 -> 2 | O185: 1 | P185: 0.3043478261
B186: Alexandre Thibault | F186: x | G186: x | I186: =1+1+1+1+1+1+1+1+1+1+1 -> 11 | J186: =2+4+2+3+5+3+1+3+4+4+2 -> 33 | K186: =2+2+1+1+1+1+2 -> 10 | L186: =3+3+1+1+1+1 -> 10 | M186: =1+3+2+1+1+3 -> 11 | N186: =1+1+1+2+1+1 -> 7 | P186: 0.303030303
B187: Stéphane Gagnon | F187: x | G187: x | I187: =1+1+1+1+1+1+1+1+1+1 -> 10 | J187: =3+2+2+3+3+2+3+4+4+3 -> 29 | K187: =1+2+1+2+1+3+1 -> 11 | L187: =2+1+1+1+2+1 -> 8 | M187: =2+1+1+1 -> 5 | N187: =1+1+2+1 -> 5 | O187: 1 | P187: 0.275862069
A188: OK | B188: Lawrence-Olivier Benjamin | F188: x | G188: x | I188: 1 | J188: 5 | K188: 1 | L188: 1 | M188: 1 | P188: 0.2
B189: Mathieu Olivier | F189: x | G189: x | I189: =1+1 -> 2 | J189: =2+3 -> 5 | K189: 1 | L189: 1 | M189: 0 | N189: 1 | P189: 0.2
B190: Benjamin Fouchard | F190: x | G190: x | I190: =1+1 -> 2 | J190: =2+4 -> 6 | K190: 0 | L190: 1 | M190: =0+1 -> 1 | N190: 1 | P190: 0.1666666667
B191: Bruno St-Hilaire | F191: x | G191: x | I191: =1+1 -> 2 | J191: =2+4 -> 6 | K191: =0+1 -> 1 | L191: =0+1 -> 1 | M191: 0 | P191: 0.1666666667
A192: OK | B192: Guillaume Rivest | F192: x | G192: x | I192: 1 | J192: 4 | K192: 0 | L192: 0 | M192: 0 | P192: 0
B193: Jean-Olivier Hay | F193: x | G193: x | P193: 0
B194: Nicolas Foucault | F194: x | G194: x | P194: 0
B195: TOTAL | I195: =SUM(I175:I194) -> 109 | J195: =SUM(J175:J194) -> 355 | K195: 105 | L195: 138 | M195: 95 | N195: 48 | O195: 6 | P195: =L195/J195 -> 0.3887323944
A197: # | B197: LANCEURS | F197: PJ | G197: V | H197: D | I197: N | J197: ML | K197: P | L197: PM | M197: CS | N197: BB | O197: K | P197: MPM
B198: Jean-François Roberge | F198: =1+1 -> 2 | J198: =1+0.67 -> 1.67 | K198: =0+0 -> 0 | L198: =0+0 -> 0 | M198: 1 | N198: 0 | O198: 0 | P198: =IFERROR(7*(L198/J198),"") -> 0
B199: Alexandre Thibault | F199: =1+1+1+1+1+1+1+1+1 -> 9 | G199: =1+1+1+1+1 -> 5 | H199: 1 | I199: 1 | J199: =7+7+7+2+7+1+1+2+7 -> 41 | K199: =4+7+0+0+2+1+1+12+3 -> 30 | L199: =3+4+0+0+0+0+0+12+2 -> 21 | M199: =10+10+4+0+4+1+1+15+7 -> 52 | N199: =1+1+3+1+3+1+3+1 -> 14 | O199: =9+2+2+1+4+1 -> 19 | P199: =IFERROR(7*(L199/J199),"") -> 3.585365854
B200: Guillaume Thibault | F200: =1+1+1+1+1+1 -> 6 | G200: =1+1 -> 2 | H200: =1+1 -> 2 | J200: =3.67+5+6+7+2.67+5 -> 29.34 | K200: =14+7+5+4+5+1 -> 36 | L200: =10+5+4+3+4+0 -> 26 | M200: =16+11+8+12+5+2 -> 54 | N200: =2+1+1+2 -> 6 | O200: =3+2+3+8+2 -> 18 | P200: =IFERROR(7*(L200/J200),"") -> 6.203135651
J201: 0 | K201: 0 | L201: 0 | P201: =IFERROR(7*(L201/J201),"") -> 
B202: DÉFAUT | F202: 1 | G202: 1 | J202: 7 | K202: 0 | L202: 0 | P202: =IFERROR(7*(L202/J202),"") -> 0
B203: TOTAL | F203: =SUM(F198:F202) -> 18 | G203: =SUM(G198:G202) -> 8 | H203: 3 | I203: 1 | J203: 79.01 | K203: 66 | L203: 47 | M203: 107 | N203: 20 | O203: 37 | P203: =(L203*7)/J203 -> 4.16402987
A210: Ligue de Balle Molle Voyageurs
A212: =A4 -> Balle Molle Maison Mercredi
A215: GIANTS
A216: # | B216: JOUEURS | F216: C | G216: P | H216: S | I216: PJ | J216: AB | K216: P | L216: CS | M216: PP | N216: BB | O216: CC | P216: MOY
B217: Guillaume Ayotte | F217: x | G217: x | I217: =1+1 -> 2 | J217: =2+4 -> 6 | K217: =3+3 -> 6 | L217: =2+4 -> 6 | M217: =1+6 -> 7 | N217: 1 | O217: 2 | P217: =IF($J217<>0,L217/$J217,0) -> 1
B218: Erik Calliari | F218: x | G218: x | I218: =1+1 -> 2 | J218: =5+2 -> 7 | K218: 2 | L218: =3+2 -> 5 | M218: =1+1 -> 2 | P218: 0.7142857143
B219: Jean-Sébastien Plante | F219: x | G219: x | I219: =1+1+1+1+1+1+1+1+1 -> 9 | J219: =4+2+4+3+3+3+3+4+4 -> 30 | K219: =2+2+1+1+2+1+3+2 -> 14 | L219: =2+1+2+3+1+3+1+3+3 -> 19 | M219: =1+2+1+1+2+2+3+2 -> 14 | N219: =2+2 -> 4 | O219: =1+1 -> 2 | P219: 0.6333333333
B220: Éric Chapados | F220: x | G220: x | I220: =1+1+1+1+1+1+1+1+1+1 -> 10 | J220: =3+3+2+3+1+2+3+1+3+2 -> 23 | K220: =1+1+1+1+2+1 -> 7 | L220: =2+3+2+3+3+1 -> 14 | M220: =2+1+1+6+1 -> 11 | N220: =1+1+1+2+1 -> 6 | P220: 0.6086956522
B221: Simon Lamoureux | F221: x | G221: x | I221: =1+1+1+1+1+1+1+1+1+1+1+1 -> 12 | J221: =2+4+4+4+5+3+2+4+3+2+4+4 -> 41 | K221: =1+3+1+1+1+1+3+3 -> 14 | L221: =3+4+3+1+1+1+2+3+2+2 -> 22 | M221: =1+3+3+1+2+1+1 -> 12 | N221: =1+1+1 -> 3 | O221: 1 | P221: 0.5365853659
B222: Marco Dyotte | F222: x | G222: x | I222: =1+1+1+1+1+1+1+1+1+1+1+1 -> 12 | J222: =3+4+3+4+5+3+3+4+3+2+4+4 -> 42 | K222: =0+1+2+2+1+1+1+1+2+1 -> 12 | L222: =1+1+2+4+1+3+1+2+3+2 -> 20 | M222: =2+2+3+1+1+1+1+1+3+1 -> 16 | O222: =1+1+1 -> 3 | P222: 0.4761904762
B223: Benoit Boisvert | F223: x | G223: x | I223: =1+1+1+1+1+1+1+1+1+1 -> 10 | J223: =4+4+1+4+3+3+3+4+3+4 -> 33 | K223: =1+1+1+2+1+1+1+2 -> 10 | L223: =3+1+2+2+1+1+1+3+1 -> 15 | M223: =0+3+2+3+1 -> 9 | N223: =3+1 -> 4 | P223: 0.4545454545
B224: Yannick Gibeau | F224: x | G224: x | I224: =1+1 -> 2 | J224: =4+3 -> 7 | K224: 1 | L224: 3 | M224: 2 | P224: 0.4285714286
B225: Philip Dyotte | F225: x | G225: x | I225: =1+1+1+1+1+1+1+1+1+1+1+1 -> 12 | J225: =4+1+4+4+4+3+2+5+3+3+4+4 -> 41 | K225: =1+1+2+2+2+2+1+2 -> 13 | L225: =2+3+2+1+2+1+1+2+2 -> 16 | M225: =1+1+1+1+2+1+2 -> 9 | N225: 3 | P225: 0.3902439024
B226: Jean-François Pouliot | F226: x | G226: x | I226: =1+1+1+1+1+1+1+1+1+1 -> 10 | J226: =3+4+5+2+3+4+3+4+4+3 -> 35 | K226: =2+2+3+1+1+1+2+1 -> 13 | L226: =1+1+2+2+1+1+2+2+1 -> 13 | M226: =1+1+2+1+1+1+5 -> 12 | N226: 1 | O226: 1 | P226: 0.3714285714
B227: Marc-André Poirier | F227: x | G227: x | I227: =1+1+1+1+1+1+1+1+1+1+1 -> 11 | J227: =3+3+4+3+4+2+2+3+3+4+4 -> 35 | K227: =2+1+2+2+1+2+1 -> 11 | L227: =2+2+2+2+3+2 -> 13 | M227: =1+2+1+2+1 -> 7 | N227: =1+1+3 -> 5 | P227: 0.3714285714
B228: Francis Larivée | F228: x | G228: x | I228: =1+1+1+1+1+1+1+1+1+1 -> 10 | J228: =4+2+3+4+2+3+4+2+3+4 -> 31 | K228: =1+1+1+1+1+1+1+1+2 -> 10 | L228: =1+1+2+1+1+1+1+1+2 -> 11 | M228: =1+1+2+1 -> 5 | N228: =2+1+1+1+1 -> 6 | P228: 0.3548387097
B229: Kevin Forrest | F229: x | G229: x | I229: =1+1+1+1+1+1+1+1+1 -> 9 | J229: =2+2+3+3+3+4+3+2+4 -> 26 | K229: =0+2+2+2+2 -> 8 | L229: =1+1+1+1+1+1+2 -> 8 | M229: =0+1+1+1+1 -> 4 | N229: =1+1+2+1 -> 5 | P229: 0.3076923077
B230: Dominique Ricard | F230: x | G230: x | I230: =1+1+1+1+1+1+1+1+1 -> 9 | J230: =4+4+4+2+3+3+2+4+4 -> 30 | K230: =1+1+1+1+2+1+1+1 -> 9 | L230: =1+2+1+1+1+1+2 -> 9 | M230: =1+1+1+2+1 -> 6 | N230: =1+1+1 -> 3 | P230: 0.3
B231: Jean-Marc Boucher | F231: x | G231: x | I231: =1+1+1+1+1+1+1 -> 7 | J231: =2+4+3+2+2+2 -> 15 | K231: =0+1 -> 1 | L231: =0+1+1 -> 2 | M231: =1+1+2+1 -> 5 | N231: 1 | P231: 0.1333333333
A232: OK | B232: Daniel Marin | F232: x | G232: x | I232: 1 | J232: 3 | K232: 0 | L232: 0 | M232: 0 | P232: 0
A233: OK | B233: David Charbonneau | F233: x | G233: x | I233: 1 | J233: 3 | K233: 0 | L233: 0 | M233: 0 | P233: 0
B234: Maxime Lord | F234: x | G234: x | P234: 0
B235: Kristian Mayer | F235: x | G235: x | P235: 0
B236: Frederick Emond | F236: x | G236: x | P236: 0
B237: TOTAL | I237: =SUM(I217:I236) -> 129 | J237: =SUM(J217:J236) -> 408 | K237: 131 | L237: 176 | M237: 121 | N237: 42 | O237: 9 | P237: =L237/J237 -> 0.431372549
A239: # | B239: LANCEURS | F239: PJ | G239: V | H239: D | I239: N | J239: ML | K239: P | L239: PM | M239: CS | N239: BB | O239: K | P239: MPM
B240: Benoit Boisvert | F240: =1+1 -> 2 | G240: 1 | J240: =7+3 -> 10 | K240: =3+0 -> 3 | L240: =3+0 -> 3 | M240: =8+4 -> 12 | N240: 1 | O240: =0+1 -> 1 | P240: =IFERROR(7*(L240/J240),"") -> 2.1
B241: Éric Chapados | F241: =1+1+1+1+1+1+1 -> 7 | G241: =1+1+1+1+1 -> 5 | J241: =2.33+5+7+3+1+7+7 -> 32.33 | K241: =0+4+4+0+0+6+11 -> 25 | L241: =0+2+3+0+0+5+8 -> 18 | M241: =0+7+8+0+1+9+15 -> 40 | N241: =3+3+4+4+7+5 -> 26 | O241: =1+3+1+1+1 -> 7 | P241: =IFERROR(7*(L241/J241),"") -> 3.897309001
B242: Jean-Marc Boucher | F242: =1+1+1+1+1+1+1 -> 7 | G242: =1+1+1+1 -> 4 | H242: 1 | J242: =6.67+2+7+4+3+4+7 -> 33.67 | K242: =7+14+2+5+1+8 -> 37 | L242: =2+5+2+5+1+4 -> 19 | M242: =13+4+14+3+8+2+14 -> 58 | N242: =4+4+4+2+5+2 -> 21 | O242: =1+2+2+1 -> 6 | P242: =IFERROR(7*(L242/J242),"") -> 3.95010395
B243: Daniel Marin | F243: 1 | H243: 1 | J243: 3 | K243: 7 | L243: 2 | M243: 9 | N243: 3 | O243: 1 | P243: =IFERROR(7*(L243/J243),"") -> 4.666666667
J244: 0 | K244: 0 | L244: 0 | P244: =IFERROR(7*(L244/J244),"") -> 
B245: TOTAL | F245: =SUM(F240:F244) -> 17 | G245: =SUM(G240:G244) -> 10 | H245: 2 | I245: 0 | J245: 79 | K245: 72 | L245: 42 | M245: 119 | N245: 51 | O245: 15 | P245: =(L245*7)/J245 -> 3.721518987
A252: Ligue de Balle Molle Voyageurs
A254: =A4 -> Balle Molle Maison Mercredi
A257: MME SMITH
A258: # | B258: JOUEURS | F258: C | G258: P | H258: S | I258: PJ | J258: AB | K258: P | L258: CS | M258: PP | N258: BB | O258: CC | P258: MOY
A259: OK | B259: Mathieu Granger | F259: x | G259: x | I259: 1 | J259: 2 | K259: 0 | L259: 2 | M259: 1 | N259: 1 | P259: =IF($J259<>0,L259/$J259,0) -> 1
B260: Nicolas Charette | F260: x | G260: x | I260: =1+1 -> 2 | J260: =3+2 -> 5 | K260: 2 | L260: =2+1 -> 3 | M260: =2+2 -> 4 | P260: 0.6
B261: Dyllan Labonté | F261: x | G261: x | I261: =1+1+1+1+1+1+1+1+1+1+1+1 -> 12 | J261: =4+2+2+2+3+3+4+3+3+3+2+3 -> 34 | K261: =3+2+1+2+2+2+2+1+2+1 -> 18 | L261: =4+2+2+1+2+3+2+1+1+1+1 -> 20 | M261: =4+1+1+2+1+3+1+2+1+5 -> 21 | N261: =1+2+1+1+1+1+1+1 -> 9 | O261: =2+1+1+1+1 -> 6 | P261: 0.5882352941
B262: Marc Dugas | F262: x | G262: x | I262: =1+1 -> 2 | J262: =3+3 -> 6 | K262: =0+3 -> 3 | L262: =1+2 -> 3 | M262: =1+1 -> 2 | N262: 1 | P262: 0.5
B263: Julien Gamache | F263: x | G263: x | I263: =1+1+1+1+1+1+1+1+1+1 -> 10 | J263: =3+2+4+3+3+2+4+4+4+2 -> 31 | K263: =1+1+1+1 -> 4 | L263: =1+1+2+1+1+1+2+2+1+2 -> 14 | M263: =1+1+1+1+2+1+1+1 -> 9 | N263: =1+1+1+1 -> 4 | P263: 0.4516129032
B264: Benoit Ménard | F264: x | G264: x | I264: =1+1+1+1+1+1+1+1+1+1+1+1 -> 12 | J264: =2+3+3+3+3+3+3+3+4+4+3+2 -> 36 | K264: =0+1+1+1+1+1+1+1 -> 7 | L264: =1+1+1+2+1+1+3+2+1+2+1 -> 16 | M264: =0+1+1+2 -> 4 | N264: =1+1 -> 2 | P264: 0.4444444444
B265: Mathieu Renders | F265: x | G265: x | I265: =1+1+1+1+1+1+1+1+1+1+1+1 -> 12 | J265: =2+3+3+4+4+4+3+4+4+3+3+1 -> 38 | K265: =2+2+2+1+1+2+1 -> 11 | L265: =1+2+1+2+1+1+2+1+2+1+1 -> 15 | M265: =1+2 -> 3 | N265: =2+1+1+2+1+1 -> 8 | P265: 0.3947368421
B266: Bruno Gaulin | F266: x | G266: x | I266: =1+1+1+1+1+1+1+1+1 -> 9 | J266: =4+3+4+2+3+5+4+4+3 -> 32 | K266: =0+1+1+2+3+2 -> 9 | L266: =3+2+2+3+1+1 -> 12 | M266: =0+1 -> 1 | N266: 1 | P266: 0.375
B267: Jean-Christophe Mercille | F267: x | G267: x | I267: =1+1+1+1+1+1+1+1+1+1 -> 10 | J267: =4+3+4+4+2+2+3+4+3+3 -> 32 | K267: =1+1+1+1+1+2+1 -> 8 | L267: =2+2+1+2+1+2+1+1 -> 12 | M267: =2+2+1+1+2+1+1 -> 10 | N267: =1+1 -> 2 | O267: 1 | P267: 0.375
B268: Dominic Beaudry | F268: x | G268: x | I268: =1+1+1+1+1 -> 5 | J268: =2+2+4+2+2 -> 12 | K268: =0+1+1+3 -> 5 | L268: =1+1+1+1 -> 4 | M268: =0+1+1+1 -> 3 | N268: =1+2+2+2 -> 7 | P268: 0.3333333333
B269: Miguel Galvez-Soto | F269: x | G269: x | I269: =1+1+1+1+1+1+1+1+1+1+1 -> 11 | J269: =2+3+3+3+3+3+3+4+2+2+1 -> 29 | K269: =2+1+2 -> 5 | L269: =1+1+1+1+1+1+1+1 -> 8 | M269: =1+2+1 -> 4 | N269: =1+1+1 -> 3 | P269: 0.275862069
B270: Benjamin Beaugrand | F270: x | G270: x | I270: =1+1+1+1+1+1+1+1+1 -> 9 | J270: =4+3+4+3+4+3+3+3+2 -> 29 | K270: =2+1+1+1+1 -> 6 | L270: =1+1+1+3+1 -> 7 | M270: =0+3+1+2+1 -> 7 | N270: 1 | P270: 0.2413793103
B271: Olivier Baillargeon | F271: x | G271: x | I271: =1+1+1+1+1+1+1+1+1+1+1 -> 11 | J271: =4+2+4+3+1+3+3+3+3+2+2 -> 30 | K271: =0+1+2+1+2 -> 6 | L271: =1+1+1+2+1+1 -> 7 | M271: =0+1+1 -> 2 | N271: =1+1+1 -> 3 | P271: 0.2333333333
B272: Vincent Boisvert | F272: x | G272: x | I272: =1+1+1+1+1+1+1+1+1+1+1 -> 11 | J272: =4+3+4+3+3+4+3+3+3+3+2 -> 35 | K272: =0+1+1+1+1 -> 4 | L272: =1+1+1+1+1+2+1 -> 8 | M272: =0+1+1+1 -> 3 | P272: 0.2285714286
B273: Sébastien L'Écuyer | F273: x | G273: x | I273: =1+1+1+1+1+1+1+1+1+1+1+1 -> 12 | J273: =4+3+3+3+3+3+4+3+4+3+2+2 -> 37 | K273: =0+1+1+1+2 -> 5 | L273: =1+3+1+2+1 -> 8 | M273: =1+1+1 -> 3 | N273: =1+1 -> 2 | P273: 0.2162162162
B274: David Desmarais | F274: x | G274: x | I274: =1+1 -> 2 | J274: =4+2 -> 6 | K274: 0 | L274: 1 | M274: 0 | P274: 0.1666666667
B275: Mathieu Bissonnette | F275: x | G275: x | P275: 0
B276: Marc-André Towner | F276: x | G276: x | P276: 0
B277: Simon Bichara-Allard | F277: x | G277: x | P277: 0
... 138 more rows

Sheet Amical Lundi
A2: Ligue de Balle Molle Voyageurs
A4: Balle Molle Amical Lundi
G6: FINAL
A7: Dernière mise à jour : | D7: 2019-09-03
A10: CLASSEMENT AMICAL LUNDI
A11: POS | B11: ÉQUIPE | H11: PJ | I11: V | J11: D | K11: N | L11: PP | M11: PC | N11: PTS | O11: DIFF | P11: MOY
A12: 1 | B12: C-Hochelaga | H12: =1+1+1+1+1+1+1+1+1+1+1+1 -> 12 | I12: =1+1+1+1+1+1+1+1+1+1 -> 10 | J12: =0+1+1 -> 2 | K12: 0 | L12: =10+11+13+10+14+5+11+0+10+13+10+18 -> 125 | M12: =5+4+7+11+2+2+6+4+4+1+2+5 -> 53 | N12: =I12*2+K12*1 -> 20 | O12: =L12-M12 -> 72 | P12: =IF(H12<>0,(2*I12+K12)/(2*H12),0) -> 0.8333333333
A13: =A12+1 -> 2 | B13: Brewers | H13: 12 | I13: =1+1+1+1+1+1+1+1+1 -> 9 | J13: =0+1+1+1 -> 3 | K13: 0 | L13: =8+15+5+11+10+12+4+12+1+6+14+17 -> 115 | M13: =5+3+8+2+1+5+0+3+13+18+4+2 -> 64 | N13: 18 | O13: 51 | P13: 0.75
A14: =A13+1 -> 3 | B14: Gros Bats | H14: 12 | I14: =0+1+1+1+1+1+1+1+1 -> 8 | J14: =1+1+1+1 -> 4 | K14: 0 | L14: =5+12+5+2+2+12+10+10+5+6+18+2 -> 89 | M14: =10+4+4+11+5+1+6+3+4+5+2+17 -> 72 | N14: 16 | O14: 17 | P14: 0.6666666667
A15: 4 | B15: Blue Jays | H15: 12 | I15: =1+1+1+1+1+1 -> 6 | J15: =0+1+1+1+1+1+1 -> 6 | K15: 0 | L15: =15+4+9+8+5+16+1+0+8+8+8+2 -> 84 | M15: =13+11+16+5+12+7+12+12+7+0+7+10 -> 112 | N15: 12 | O15: -28 | P15: 0.5
A16: 5 | B16: Chiens Gris | H16: 12 | I16: =0+1+1+1+1 -> 4 | J16: =1+1+1+1+1+1+1 -> 7 | K16: =0+1 -> 1 | L16: =5+16+10+2+1+6+7+4+4+8+7+5 -> 75 | M16: =8+9+10+14+10+10+8+5+1+1+3+18 -> 97 | N16: 9 | O16: -22 | P16: 0.375
A17: 6 | B17: Les Bleu | H17: 12 | I17: =0+1+1+1+1 -> 4 | J17: =1+1+1+1+1+1+1+1 -> 8 | K17: 0 | L17: =2+4+11+2+12+3+7+18+9+4+3+3 -> 78 | M17: =5+12+10+3+0+10+8+6+6+14+7+18 -> 99 | N17: 8 | O17: -21 | P17: 0.3333333333
A18: 7 | B18: Madriers | H18: 12 | I18: =0+1+1+1 -> 3 | J18: =1+1+1+1+1+1+1+1 -> 8 | K18: =0+1 -> 1 | L18: =13+3+10+3+7+6+14+3+10+5+2+18 -> 94 | M18: =15+15+10+2+16+11+21+12+8+6+18+3 -> 137 | N18: 7 | O18: -43 | P18: 0.2916666667
A19: 8 | B19: Black Sox | H19: 12 | I19: =1+1+1 -> 3 | J19: =0+1+1+1+1+1+1+1+1+1 -> 9 | K19: 0 | L19: =5+7+4+12+5+21+4+0+8+1+1+6 -> 74 | M19: =2+13+5+5+12+14+10+8+10+4+8+9 -> 100 | N19: 6 | O19: -26 | P19: 0.25
B21: TOTAL | H21: =SUM(H12:H19) -> 96 | I21: 47 | J21: 47 | K21: 2 | L21: 734 | M21: 734 | N21: 96 | O21: 0 | P21: =(I21+(K21*0.5))/H21 -> 0.5
A40: Ligue de Balle Molle Voyageurs
A42: =A4 -> Balle Molle Amical Lundi
A45: BLACK SOX
A46: # | B46: JOUEURS | F46: C | G46: P | H46: S | I46: PJ | J46: AB | K46: P | L46: CS | M46: PP | N46: BB | O46: CC | P46: MOY
B47: Vincent Paradis | F47: x | G47: x | H47: 1 | I47: =1+1 -> 2 | J47: =2+1 -> 3 | K47: 0 | L47: =1+1 -> 2 | M47: 1 | P47: =IF($J47<>0,L47/$J47,0) -> 0.6666666667 | Q47: SUSPENDU #1er Match Série
B48: Jonathan Savage | F48: x | G48: x | I48: =1+1 -> 2 | J48: =3+4 -> 7 | K48: =1+1 -> 2 | L48: =2+2 -> 4 | M48: 0 | P48: 0.5714285714
B49: Karl-Philippe Tremblay | F49: x | G49: x | I49: =1+1+1+1+1+1+1 -> 7 | J49: =2+3+3+4+4+5+3 -> 24 | K49: =1+1+1+2+1+3+1 -> 10 | L49: =1+2+2+2+1+3 -> 11 | M49: =0+3+3+1+1+1 -> 9 | N49: =1+1+1+1 -> 4 | O49: =1+1 -> 2 | P49: 0.4583333333
B50: Mathieu Cauchon | F50: x | G50: x | I50: =1+1+1+1+1+1+1+1 -> 8 | J50: =2+3+3+2+3+5+3+3 -> 24 | K50: =1+1+1+2+2 -> 7 | L50: =1+2+2+3+1+2 -> 11 | M50: =0+1+1+1+4+1 -> 8 | N50: =1+1+1+1 -> 4 | P50: 0.4583333333
B51: Laurent Payette | F51: x | G51: x | I51: =1+1+1+1+1+1+1+1+1 -> 9 | J51: =3+3+2+4+4+5+3+4+3 -> 31 | K51: =0+1+1+2+1+2+2 -> 9 | L51: =0+1+1+3+2+4+1+1 -> 13 | M51: =0+2+2+1+4 -> 9 | N51: 1 | P51: 0.4193548387
B52: Simon Charbonneau | F52: x | G52: x | I52: =1+1+1+1+1+1 -> 6 | J52: =4+3+2+3+2+3 -> 17 | K52: =1+1 -> 2 | L52: =1+1+2+1+2 -> 7 | M52: 0 | P52: 0.4117647059
B53: Olivier Savage | F53: x | G53: x | I53: =1+1+1+1+1+1+1+1+1+1+1+1 -> 12 | J53: =3+4+3+4+4+5+0+3+2+3+2+3 -> 36 | K53: =1+2+1+1+1+1+2 -> 9 | L53: =2+1+2+2+1+2+1+1+1 -> 13 | M53: =2+2+1+1 -> 6 | N53: =3+1+1 -> 5 | P53: 0.3611111111
B54: Guillaume Proulx-Gobeil | F54: x | G54: x | I54: =1+1+1+1+1+1+1+1+1+1 -> 10 | J54: =3+3+3+4+3+4+3+3+3+2 -> 31 | K54: =0+1 -> 1 | L54: =1+1+3+2+1+1+2 -> 11 | M54: =1+2+2 -> 5 | N54: 1 | P54: 0.3548387097
B55: Pierre-Étienne Jenneau | F55: x | G55: x | I55: =1+1+1+1+1+1 -> 6 | J55: =3+3+4+3+3+3 -> 19 | K55: =3+1 -> 4 | L55: =1+1+2+1+1 -> 6 | M55: =2+4+1 -> 7 | N55: 1 | O55: 1 | P55: 0.3157894737
B56: Martin Decelle | F56: x | G56: x | I56: =1+1+1+1+1+1+1+1+1 -> 9 | J56: =3+3+4+3+4+5+2+3+3 -> 30 | K56: =1+1+2+1+2+1+1 -> 9 | L56: =1+1+3+1+2+1 -> 9 | M56: =1+1+2+1+2 -> 7 | N56: =1+1 -> 2 | O56: 1 | P56: 0.3
B57: Pierre-Philippe Couture | F57: x | G57: x | I57: =1+1+1+1+1+1+1 -> 7 | J57: =2+3+4+4+3+4+4 -> 24 | K57: =0+1+3 -> 4 | L57: =2+1+1+3 -> 7 | M57: 2 | N57: 1 | P57: 0.2916666667
B58: Simon Martin | F58: x | G58: x | I58: =1+1+1+1+1+1+1+1+1+1 -> 10 | J58: =3+3+4+4+4+2+3+3+3+3 -> 32 | K58: =1+1+3+1+1+1 -> 8 | L58: =2+1+4+1+1 -> 9 | M58: =0+3+1 -> 4 | N58: =1+1 -> 2 | P58: 0.28125
B59: Frédéric Bull | F59: x | G59: x | I59: =1+1+1+1+1+1+1+1 -> 8 | J59: =2+2+3+3+4+3+3+3 -> 23 | K59: =0+1+1+1 -> 3 | L59: =0+1+1+1+1 -> 4 | M59: =0+1+1 -> 2 | N59: =1+1 -> 2 | P59: 0.1739130435
B60: François Marchand | F60: x | G60: x | I60: =1+1+1+1 -> 4 | J60: =4+2+3+3 -> 12 | K60: =0+1+1 -> 2 | L60: =0+1+1 -> 2 | M60: =0+3 -> 3 | P60: 0.1666666667
B61: Marc-André Bergeron | F61: x | G61: x | I61: =1+1+1+1+1 -> 5 | J61: =3+2+2+3+3 -> 13 | K61: =0+1 -> 1 | L61: =0+1 -> 1 | M61: =0+2 -> 2 | P61: 0.07692307692
B62: Jean-François Marquis | F62: x | G62: x | I62: =1+1+1+1+1+1+1+1+1+1 -> 10 | J62: =2+2+4+2+4+3+3+3+3+4 -> 30 | K62: =0+1+1+1 -> 3 | L62: =0+1 -> 1 | M62: =0+1+1 -> 2 | N62: =1+2 -> 3 | P62: 0.03333333333
B63: Louis-Pierre Poissant-Charron | F63: x | G63: x | I63: =1+1+1+1 -> 4 | J63: =2+2+3+3 -> 10 | K63: 0 | L63: 0 | M63: 0 | P63: 0
B64: Marc-André Lemaire | F64: x | G64: x | I64: =1+1 -> 2 | J64: =2+2 -> 4 | K64: 0 | L64: 0 | M64: 0 | P64: 0
B65: Dave Beaudin | F65: x | G65: x | P65: 0
B66: Charles Éric Cauchon | F66: x | G66: x | P66: 0
B67: TOTAL | I67: =SUM(I47:I66) -> 121 | J67: =SUM(J47:J66) -> 370 | K67: 74 | L67: 111 | M67: 67 | N67: 26 | O67: 4 | P67: =L67/J67 -> 0.3
A69: # | B69: LANCEURS | F69: PJ | G69: V | H69: D | I69: N | J69: ML | K69: P | L69: PM | M69: CS | N69: BB | O69: K | P69: MPM
B70: Karl-Philippe Tremblay | F70: =1+1 -> 2 | H70: 1 | J70: =2+6 -> 8 | K70: =2+10 -> 12 | L70: =2+4 -> 6 | M70: =4+6 -> 10 | N70: =2+11 -> 13 | O70: 0 | P70: =IFERROR(7*(L70/J70),"") -> 5.25
B71: Frédéric Bull | F71: =1+1+1+1+1+1+1+1 -> 8 | G71: =1+1+1 -> 3 | H71: =1+1+1+1 -> 4 | J71: =5+5.33+7+5+5+7+6.33+7 -> 47.66 | K71: =2+8+5+4+9+8+8+4 -> 48 | L71: =2+7+4+4+8+7+7+4 -> 43 | M71: =7+11+11+5+11+15+13+7 -> 80 | N71: =1+1+1+1 -> 4 | O71: =1+1+1+2+2 -> 7 | P71: =IFERROR(7*(L71/J71),"") -> 6.315568611
B72: Olivier Savage | F72: =1+1+1+1+1+1+1+1 -> 8 | H72: =1+1+1 -> 3 | J72: =2+0+2+3+2+0.67+6+1 -> 16.67 | K72: =0+2+1+10+5+2+8 -> 28 | L72: =0+2+1+8+5+0+5 -> 21 | M72: =4+2+4+12+5+2+8+1 -> 38 | N72: =0+1+3+2+1+1 -> 8 | O72: =0+1 -> 1 | P72: =IFERROR(7*(L72/J72),"") -> 8.818236353
B73: Martin Decelle | F73: 1 | J73: 1.67 | K73: 3 | L73: 3 | M73: 4 | N73: 2 | O73: 0 | P73: =IFERROR(7*(L73/J73),"") -> 12.5748503
B74: François Marchand | F74: 1 | H74: 1 | J74: 5 | K74: 9 | L74: 9 | M74: 16 | N74: 0 | O74: 0 | P74: =IFERROR(7*(L74/J74),"") -> 12.6
B75: TOTAL | F75: =SUM(F70:F74) -> 20 | G75: =SUM(G70:G74) -> 3 | H75: 9 | I75: 0 | J75: 79 | K75: 100 | L75: 82 | M75: 148 | N75: 27 | O75: 8 | P75: =(L75*7)/J75 -> 7.265822785
A82: Ligue de Balle Molle Voyageurs
A84: =A4 -> Balle Molle Amical Lundi
A87: BLUE JAYS
A88: # | B88: JOUEURS | F88: C | G88: P | H88: S | I88: PJ | J88: AB | K88: P | L88: CS | M88: PP | N88: BB | O88: CC | P88: MOY
A89: OK | B89: Yves Deslauriers | F89: x | G89: x | I89: 1 | J89: 4 | K89: 0 | L89: 2 | M89: 0 | P89: =IF($J89<>0,L89/$J89,0) -> 0.5
B90: Michael Jodoin | F90: x | G90: x | I90: =1+1+1+1+1+1+1+1+1+1+1 -> 11 | J90: =3+2+3+3+3+4+3+1+4+4+2 -> 32 | K90: =2+1+2+1+3+1+1 -> 11 | L90: =1+1+1+3+2+3+1+1+1 -> 14 | M90: =3+2+2+1+1 -> 9 | N90: =1+1+1+2+1 -> 6 | P90: 0.4375
B91: Rock Dorion | F91: x | G91: x | I91: =1+1+1+1+1+1+1 -> 7 | J91: =4+4+3+3+2+4+2 -> 22 | K91: =1+1+2 -> 4 | L91: =2+2+2+2+1 -> 9 | M91: =0+5+1 -> 6 | N91: =1+1 -> 2 | P91: 0.4090909091
B92: André Parentau | F92: x | G92: x | I92: =1+1+1+1 -> 4 | J92: =4+2+4+3 -> 13 | K92: =3+1+1 -> 5 | L92: =3+1+1 -> 5 | M92: 1 | P92: 0.3846153846
B93: Benoit Larouche | F93: x | G93: x | I93: =1+1+1+1+1+1+1+1+1+1+1 -> 11 | J93: =4+4+4+4+5+4+2+3+4+4+3 -> 41 | K93: =0+1+1+1+1+2+3+1 -> 10 | L93: =1+1+2+1+2+2+4+1 -> 14 | M93: =1+1 -> 2 | N93: =1+1 -> 2 | P93: 0.3414634146
B94: Alain Roy | F94: x | G94: x | I94: =1+1+1 -> 3 | J94: =2+4+3 -> 9 | K94: 2 | L94: =2+1 -> 3 | M94: 1 | N94: 2 | P94: 0.3333333333
B95: Jean-Junior Richard | F95: x | G95: x | I95: =1+1+1+1+1+1+1+1+1+1 -> 10 | J95: =3+4+4+4+2+4+3+3+4+3+3 -> 37 | K95: =0+1+2+3+1+1+2 -> 10 | L95: =0+1+1+2+4+1+2+1 -> 12 | M95: =1+1+1+1+5+3+2 -> 14 | N95: =2+1 -> 3 | O95: 1 | P95: 0.3243243243
B96: Steve Aikens | F96: x | G96: x | I96: =1+1+1+1+1+1+1+1+1+1+1+1 -> 12 | J96: =4+4+4+4+4+4+4+2+4+4+4+3 -> 45 | K96: =3+3+1+2+1+3 -> 13 | L96: =3+3+1+1+2+3 -> 13 | M96: =4+2+1+1 -> 8 | N96: =1+1 -> 2 | O96: 1 | P96: 0.2888888889
B97: Sébastien Blouin | F97: x | G97: x | I97: =1+1+1+1+1+1+1+1+1+1 -> 10 | J97: =3+3+3+3+2+2+4+3+3+3 -> 29 | K97: =1+1+2+1+1+1+1 -> 8 | L97: =0+1+1+1+1+2+2 -> 8 | M97: =0+1+1+2 -> 4 | N97: =1+1+1+1+1 -> 5 | P97: 0.275862069
B98: Julien Dorion | F98: x | G98: x | I98: =1+1+1+1+1+1+1+1+1+1+1+1 -> 12 | J98: =2+2+3+2+4+4+2+2+4+2+3+3 -> 33 | K98: =1+1+1+1+1 -> 5 | L98: =0+1+2+1+1+2+1+1 -> 9 | M98: =2+3+1+5+1 -> 12 | N98: =1+1+1+1+1 -> 5 | P98: 0.2727272727
A99: OK | B99: Dany Gagnon-Lévesque | F99: x | G99: x | I99: 1 | J99: 4 | K99: 0 | L99: 1 | M99: 1 | P99: 0.25
B100: Cliff Neiman | F100: x | G100: x | I100: =1+1 -> 2 | J100: =2+2 -> 4 | K100: 0 | L100: 1 | M100: 1 | P100: 0.25
B101: Éric Bouthillier | F101: x | G101: x | I101: =1+1+1+1+1+1+1+1+1+1+1+1 -> 12 | J101: =2+3+3+4+4+3+3+2+4+4+3+3 -> 38 | K101: =2+3+1 -> 6 | L101: =1+1+1+1+1+2+2 -> 9 | M101: =1+1+2+2 -> 6 | N101: =1+1 -> 2 | P101: 0.2368421053
B102: Yannick Winter | F102: x | G102: x | I102: =1+1+1+1+1+1 -> 6 | J102: =3+3+3+4+3+2 -> 18 | K102: =4+1 -> 5 | L102: =2+1+1 -> 4 | M102: =0+1 -> 1 | N102: =1+1 -> 2 | P102: 0.2222222222
B103: Jean-Marc Boucher | F103: x | G103: x | I103: =1+1+1+1+1+1+1+1+1+1 -> 10 | J103: =2+1+3+3+4+1+4+3+2 -> 23 | K103: =2+1 -> 3 | L103: =1+1+1+1+1 -> 5 | M103: =0+1+1+1 -> 3 | N103: =1+1+1+1+2 -> 6 | P103: 0.2173913043
B104: Vincent Sauvé | F104: x | G104: x | I104: =1+1 -> 2 | J104: =2+2 -> 4 | K104: =1+1 -> 2 | L104: 0 | M104: 0 | N104: =1+2 -> 3 | P104: 0
B105: Thierry Bourdeau | F105: x | G105: x | P105: 0
B106: Rémy Polyak | F106: x | G106: x | P106: 0
B107: Dixzan Rodriguez | F107: x | G107: x | P107: 0
B108: Danny Cyr | F108: x | G108: x | P108: 0
B109: TOTAL | I109: =SUM(I89:I108) -> 114 | J109: =SUM(J89:J108) -> 356 | K109: 84 | L109: 109 | M109: 69 | N109: 40 | O109: 2 | P109: =L109/J109 -> 0.3061797753
A111: # | B111: LANCEURS | F111: PJ | G111: V | H111: D | I111: N | J111: ML | K111: P | L111: PM | M111: CS | N111: BB | O111: K | P111: MPM
B112: Cliff Neiman | F112: =1+1 -> 2 | H112: 1 | J112: =5+5 -> 10 | K112: =1+7 -> 8 | L112: =0+7 -> 7 | M112: =3+12 -> 15 | N112: =2+3 -> 5 | O112: 1 | P112: =IFERROR(7*(L112/J112),"") -> 4.9
B113: Jean-Marc Boucher | F113: =1+1+1+1+1+1+1+1+1 -> 9 | G113: =1+1+1+1+1+1 -> 6 | H113: =1+1 -> 2 | J113: =7+4.33+7+6+5.67+3.67+7+7+3+2 -> 52.67 | K113: =13+11+5+12+7+6+7+0+6+3 -> 70 | L113: =13+9+5+11+3+2+3+0+5+0 -> 51 | M113: =18+16+12+16+13+8+12+4+9+3 -> 111 | N113: =2+4+1+3+1+2+2+0+2 -> 17 | O113: =2+2+2+1+7 -> 14 | P113: =IFERROR(7*(L113/J113),"") -> 6.778052022
B114: Steve Aikens | F114: =1+1+1 -> 3 | H114: 1 | J114: =0.67+1+2 -> 3.67 | K114: =0+6 -> 6 | L114: =0+6 -> 6 | M114: =0+6 -> 6 | N114: =1+3 -> 4 | O114: =0+1 -> 1 | P114: =IFERROR(7*(L114/J114),"") -> 11.44414169
B115: Alain Roy | F115: =1+1 -> 2 | H115: =1+1 -> 2 | J115: =4.67+5 -> 9.67 | K115: =16+12 -> 28 | L115: =15+9 -> 24 | M115: =16+12 -> 28 | N115: =9+5 -> 14 | O115: 2 | P115: =IFERROR(7*(L115/J115),"") -> 17.37331954
J116: 0 | K116: 0 | L116: 0 | P116: =IFERROR(7*(L116/J116),"") -> 
B117: TOTAL | F117: =SUM(F112:F116) -> 16 | G117: =SUM(G112:G116) -> 6 | H117: 6 | I117: 0 | J117: 76.01 | K117: 112 | L117: 88 | M117: 160 | N117: 40 | O117: 18 | P117: =(L117*7)/J117 -> 8.104196816
A124: Ligue de Balle Molle Voyageurs
A126: =A4 -> Balle Molle Amical Lundi
A129: BREWERS
A130: # | B130: JOUEURS | F130: C | G130: P | H130: S | I130: PJ | J130: AB | K130: P | L130: CS | M130: PP | N130: BB | O130: CC | P130: MOY
B131: Jean-François Lortie | F131: x | G131: x | I131: =1+1+1+1+1+1+1+1+1 -> 9 | J131: =3+4+4+4+3+3+3+1+3 -> 28 | K131: =1+2+1+2+1+3+1+1+2 -> 14 | L131: =1+4+1+4+2+1+1+2 -> 16 | M131: =1+3+1+3+1+1 -> 10 | N131: =1+1+1+2 -> 5 | P131: =IF($J131<>0,L131/$J131,0) -> 0.5714285714
B132: David Archibald | F132: x | G132: x | I132: =1+1 -> 2 | J132: =4+3 -> 7 | K132: =1+1 -> 2 | L132: =1+3 -> 4 | M132: =0+3 -> 3 | P132: 0.5714285714
B133: Mathieu Renders | F133: x | G133: x | I133: =1+1+1 -> 3 | J133: =3+4+2 -> 9 | K133: =0+1+1 -> 2 | L133: =2+2+1 -> 5 | M133: =1+4+1 -> 6 | N133: 1 | P133: 0.5555555556
B134: Marc-André Towner | F134: x | G134: x | I134: =1+1+1+1+1+1+1+1+1+1+1 -> 11 | J134: =4+2+4+4+2+3+3+4+1+3+4 -> 34 | K134: =3+2+2+2+3+1+1 -> 14 | L134: =3+1+2+2+2+2+1+1+1+2 -> 17 | M134: =1+2+1+1+3 -> 8 | N134: =2+2+1+2 -> 7 | P134: 0.5
B135: David Gervais | F135: x | G135: x | I135: =1+1 -> 2 | J135: =3+1 -> 4 | K135: 0 | L135: =1+1 -> 2 | M135: =0+1 -> 1 | N135: 1 | P135: 0.5
B136: Félix Bélanger | F136: x | G136: x | I136: =1+1+1+1+1+1+1+1+1+1+1+1 -> 12 | J136: =3+4+4+4+4+4+3+4+0+1+3+2 -> 36 | K136: =1+2+1+2+2+1+3+2 -> 14 | L136: =0+3+1+4+2+4+1+2 -> 17 | M136: =1+5+1+2+2+2+1+1+2 -> 17 | N136: =2+1+1+1 -> 5 | O136: 1 | P136: 0.4722222222
B137: Martin Allard | F137: x | G137: x | I137: =1+1+1+1+1+1+1+1+1 -> 9 | J137: =3+3+4+4+4+2+3+3+4 -> 30 | K137: =0+1+1+2+3+1+2 -> 10 | L137: =1+2+2+3+3+1+2 -> 14 | M137: =0+1+1+1+1+2 -> 6 | N137: =1+1 -> 2 | P137: 0.4666666667
B138: Benoit Ménard | F138: x | G138: x | I138: =1+1 -> 2 | J138: =4+1 -> 5 | K138: =1+2 -> 3 | L138: 2 | M138: 3 | N138: 2 | O138: 1 | P138: 0.4
B139: Nicolas Robert | F139: x | G139: x | I139: =1+1+1+1+1+1+1+1 -> 8 | J139: =3+4+4+3+3+4+4+3 -> 28 | K139: =1+1+1+2+1+2+1+1 -> 10 | L139: =1+2+1+1+1+3+2 -> 11 | M139: =2+1+2+2+2+2 -> 11 | N139: =1+1 -> 2 | O139: =1+1 -> 2 | P139: 0.3928571429
B140: Sébastien Montpas | F140: x | G140: x | I140: =1+1+1+1+1+1+1 -> 7 | J140: =2+4+4+4+4+2+1 -> 21 | K140: =0+1+1+1 -> 3 | L140: =1+3+2+2 -> 8 | M140: =1+1+1 -> 3 | N140: =1+1 -> 2 | P140: 0.380952381
B141: Francis Nadeau | F141: x | G141: x | I141: =1+1+1+1+1+1+1+1 -> 8 | J141: =3+4+4+4+4+3+3+4 -> 29 | K141: =0+3+1+2+2+2+3 -> 13 | L141: =0+3+2+1+2+1+2 -> 11 | M141: =0+1+1+1+2 -> 5 | N141: =1+1 -> 2 | P141: 0.3793103448
B142: Nicolas Charette | F142: x | G142: x | I142: =1+1+1+1+1 -> 5 | J142: =4+1+2+3+2 -> 12 | K142: =0+2+1 -> 3 | L142: =1+1+2 -> 4 | M142: =0+2+1+1 -> 4 | N142: =1+1 -> 2 | P142: 0.3333333333
B143: Dominic Maltais | F143: x | G143: x | I143: =1+1+1+1+1+1+1+1+1+1 -> 10 | J143: =3+3+3+4+2+2+4+3+2+2 -> 28 | K143: =1+1+2+1+2 -> 7 | L143: =2+1+3+1+2 -> 9 | M143: =4+4+1+1+1 -> 11 | N143: =1+2+1+1 -> 5 | P143: 0.3214285714
B144: François Harvey | F144: x | G144: x | I144: =1+1+1+1+1+1+1+1 -> 8 | J144: =3+3+3+4+3+2+2+2 -> 22 | K144: =1+2+1+1+1+1 -> 7 | L144: =1+2+1+1+2 -> 7 | M144: =0+2+2 -> 4 | N144: =1+2 -> 3 | P144: 0.3181818182
B145: Marc-André Busque | F145: x | G145: x | I145: =1+1+1+1+1+1+1+1+1+1+1 -> 11 | J145: =2+3+3+3+4+3+4+2+1+4+2 -> 31 | K145: =0+1+1+1+1+3 -> 7 | L145: =0+1+1+1+1+1+1+1 -> 7 | M145: =0+1+3+2+1+2 -> 9 | N145: =1+1+1+1 -> 4 | P145: 0.2258064516
B146: Olivier Busque | F146: x | G146: x | I146: =1+1+1+1+1+1+1+1+1+1+1 -> 11 | J146: =2+3+2+2+2+2+4+2+2+4+3 -> 28 | K146: =0+1+1+1+1 -> 4 | L146: =0+1+2+1+1+1 -> 6 | M146: =0+2+3 -> 5 | N146: =1+1+1+1+1 -> 5 | P146: 0.2142857143
B147: Alexandre Perron | F147: x | G147: x | I147: 1 | J147: 4 | K147: 0 | L147: 0 | M147: 0 | P147: 0 | Q147: RECU OK Ligue pour Jouer en séries
B148: Olivier Baillargeon | F148: x | G148: x | I148: 1 | J148: 1 | K148: 2 | L148: 0 | M148: 0 | N148: 2 | P148: 0 | Q148: RECU OK Ligue pour Jouer en séries
B149: Mathieu Houle | F149: x | G149: x | P149: 0
B150: Édouard Ouellet | F150: x | G150: x | P150: 0
B151: TOTAL | I151: =SUM(I131:I150) -> 120 | J151: =SUM(J131:J150) -> 357 | K151: 115 | L151: 140 | M151: 106 | N151: 50 | O151: 4 | P151: =L151/J151 -> 0.3921568627
A153: # | B153: LANCEURS | F153: PJ | G153: V | H153: D | I153: N | J153: ML | K153: P | L153: PM | M153: CS | N153: BB | O153: K | P153: MPM
B154: François Harvey | F154: =1+1+1+1+1+1+1 -> 7 | G154: =1+1+1+1+1+1+1 -> 7 | J154: =7+5+7+7+7+7+7 -> 47 | K154: =5+3+2+1+5+0+4 -> 20 | L154: =1+3+2+1+3+0+2 -> 12 | M154: =11+8+4+6+11+2+7 -> 49 | N154: =1+1+1+1+4+2+1 -> 11 | O154: =2+3+4+2+3+2+2 -> 18 | P154: =IFERROR(7*(L154/J154),"") -> 1.787234043
B155: Olivier Busque | F155: =1+1+1 -> 3 | G155: =1+1 -> 2 | H155: 1 | J155: =7+7+5 -> 19 | K155: =8+3+2 -> 13 | L155: =8+2+2 -> 12 | M155: =11+4+6 -> 21 | N155: =4+2 -> 6 | O155: =0+1 -> 1 | P155: =IFERROR(7*(L155/J155),"") -> 4.421052632
B156: Nicolas Charette | F156: =1+1 -> 2 | H156: =1+1 -> 2 | J156: =6+4.33 -> 10.33 | K156: =13+18 -> 31 | L156: =11+13 -> 24 | M156: =13+18 -> 31 | N156: =8+6 -> 14 | O156: 0 | P156: =IFERROR(7*(L156/J156),"") -> 16.26331075
J157: 0 | K157: 0 | L157: 0 | P157: =IFERROR(7*(L157/J157),"") -> 
J158: 0 | K158: 0 | L158: 0 | P158: =IFERROR(7*(L158/J158),"") -> 
B159: TOTAL | F159: =SUM(F154:F158) -> 12 | G159: =SUM(G154:G158) -> 9 | H159: 3 | I159: 0 | J159: 76.33 | K159: 64 | L159: 48 | M159: 101 | N159: 31 | O159: 19 | P159: =(L159*7)/J159 -> 4.401938949
A166: Ligue de Balle Molle Voyageurs
A168: =A4 -> Balle Molle Amical Lundi
A171: CHIENS GRIS
A172: # | B172: JOUEURS | F172: C | G172: P | H172: S | I172: PJ | J172: AB | K172: P | L172: CS | M172: PP | N172: BB | O172: CC | P172: MOY
B173: Jean-Sébastien Pomerleau | F173: x | G173: x | I173: =1+1+1 -> 3 | J173: =4+3+3 -> 10 | K173: =2+1 -> 3 | L173: =3+2+1 -> 6 | M173: =1+1 -> 2 | P173: =IF($J173<>0,L173/$J173,0) -> 0.6
B174: Vincent Gauthier | F174: x | G174: x | I174: =1+1+1 -> 3 | J174: =3+4+3 -> 10 | K174: =2+1 -> 3 | L174: =3+3 -> 6 | M174: =2+1 -> 3 | N174: =1+1 -> 2 | P174: 0.6
B175: Francis Brossoit | F175: x | G175: x | I175: =1+1+1+1 -> 4 | J175: =4+2+3+3 -> 12 | K175: =2+1+1+1 -> 5 | L175: =2+1+2 -> 5 | M175: =0+1 -> 1 | P175: 0.4166666667
B176: Francis Desjardins | F176: x | G176: x | I176: =1+1+1+1+1+1+1+1+1+1+1+1 -> 12 | J176: =3+4+3+2+3+3+4+3+3+3+4+3 -> 38 | K176: =1+1+2+1+1 -> 6 | L176: =2+1+2+1+2+2+2+1+1 -> 14 | M176: =0+1+2+1+1 -> 5 | N176: =1+1 -> 2 | P176: 0.3684210526
B177: Alexis Landry-Dubé | F177: x | G177: x | I177: =1+1+1+1+1+1+1+1+1 -> 9 | J177: =4+3+4+1+4+4+4+3+3 -> 30 | K177: =1+3+1+1 -> 6 | L177: =2+3+2+1+1+1+1 -> 11 | M177: =0+3+4+1 -> 8 | N177: =1+1 -> 2 | P177: 0.3666666667
B178: Christopher D'agata | F178: x | G178: x | I178: =1+1+1+1 -> 4 | J178: =3+4+3+2 -> 12 | K178: =0+1+1 -> 2 | L178: =1+1+1+1 -> 4 | M178: =0+1 -> 1 | P178: 0.3333333333
B179: Charles-Olivier Bonnardeaux | F179: x | G179: x | I179: =1+1+1 -> 3 | J179: =3+3+3 -> 9 | K179: =1+1 -> 2 | L179: =2+1 -> 3 | M179: =0+1 -> 1 | P179: 0.3333333333
A180: OK | B180: Pierre Laflamme | F180: x | G180: x | I180: 1 | J180: 3 | K180: 1 | L180: 1 | M180: 0 | P180: 0.3333333333
B181: Philippe Noel | F181: x | G181: x | I181: =1+1+1+1+1+1+1+1+1+1+1 -> 11 | J181: =4+2+3+1+3+5+4+3+2+3+4 -> 34 | K181: =0+2+1+1+2+1+2+1 -> 10 | L181: =2+2+1+1+1+1+1+1+1 -> 11 | M181: =0+1+1+1+1+2 -> 6 | N181: =2+1+1+1 -> 5 | P181: 0.3235294118
B182: Dominique Ianniruberto | F182: x | G182: x | I182: =1+1+1+1+1+1+1+1 -> 8 | J182: =2+4+4+2+3+4+3+3 -> 25 | K182: =1+1 -> 2 | L182: =1+1+2+1+1+1+1 -> 8 | M182: =2+2+3+2+1+2 -> 12 | N182: 1 | O182: 1 | P182: 0.32
B183: Philippe Pelland | F183: x | G183: x | I183: =1+1+1+1+1+1+1+1+1+1 -> 10 | J183: =3+2+1+3+3+3+2+2+2+3 -> 24 | K183: =0+2+1+2+1+2 -> 8 | L183: =0+1+1+1+1+1+2 -> 7 | M183: =0+1+1+1+1 -> 4 | N183: =2+1+1+1 -> 5 | O183: 1 | P183: 0.2916666667
B184: Marc-Antoine Gingras | F184: x | G184: x | I184: =1+1+1+1+1+1+1+1+1+1 -> 10 | J184: =3+4+4+1+3+4+3+3+3+2 -> 30 | K184: =1+2+2+1+1+1+2 -> 10 | L184: =1+2+2+1+1+1 -> 8 | M184: =0+1+1+1+1 -> 4 | N184: =1+1 -> 2 | P184: 0.2666666667
B185: Francis Messier | F185: x | G185: x | I185: =1+1+1+1+1+1+1+1+1+1 -> 10 | J185: =4+1+2+2+3+4+4+2+3+2 -> 27 | K185: =0+1+1 -> 2 | L185: =2+1+1+3 -> 7 | M185: =0+2+1+2 -> 5 | N185: =3+1+1+1 -> 6 | P185: 0.2592592593
B186: Marc-André Lefebvre | F186: x | G186: x | I186: =1+1+1 -> 3 | J186: =4+2+3 -> 9 | K186: 0 | L186: =1+1 -> 2 | M186: 0 | P186: 0.2222222222
B187: Kevin Messier | F187: x | G187: x | I187: =1+1+1+1+1+1+1+1+1 -> 9 | J187: =2+3+3+5+3+2+3+0+3 -> 24 | K187: =0+1+1+1+1 -> 4 | L187: =1+1+1+1+1 -> 5 | M187: =0+2+2 -> 4 | N187: =1+1+1+3 -> 6 | P187: 0.2083333333
B188: Jean-François St-Louis | F188: x | G188: x | I188: =1+1+1+1+1+1+1 -> 7 | J188: =4+3+1+3+5+3+3 -> 22 | K188: =0+3+1 -> 4 | L188: =0+2+1+1 -> 4 | M188: =0+1+1 -> 2 | N188: =1+2 -> 3 | P188: 0.1818181818
B189: Jason Lemire | F189: x | G189: x | I189: =1+1+1+1+1+1+1+1 -> 8 | J189: =4+4+3+2+2+3+3+4 -> 25 | K189: =1+1+1+1+1 -> 5 | L189: =1+2+1 -> 4 | M189: =1+4+1+1+1 -> 8 | P189: 0.16
B190: Alexandre Richer | F190: x | G190: x | I190: =1+1+1+1 -> 4 | J190: =3+3+2+3 -> 11 | K190: 0 | L190: 0 | M190: =0+1 -> 1 | P190: 0
B191: Olivier Tardif-Drolet | F191: x | G191: x | P191: 0
B192: Joel-Alexandre L. Dubé | F192: x | G192: x | P192: 0
B193: TOTAL | I193: =SUM(I173:I192) -> 119 | J193: =SUM(J173:J192) -> 355 | K193: 73 | L193: 106 | M193: 67 | N193: 34 | O193: 2 | P193: =L193/J193 -> 0.2985915493
A195: # | B195: LANCEURS | F195: PJ | G195: V | H195: D | I195: N | J195: ML | K195: P | L195: PM | M195: CS | N195: BB | O195: K | P195: MPM
B196: XXX | F196: 1 | H196: 1 | J196: 7 | K196: 10 | L196: 4 | M196: 15 | N196: 4 | O196: 2 | P196: =IFERROR(7*(L196/J196),"") -> 4
B197: Jason Lemire | F197: =1+1+1+1+1+1+1 -> 7 | G197: =1+1+1+1 -> 4 | H197: =1+1 -> 2 | J197: =6+6+3.33+7+7+7+3 -> 39.33 | K197: =8+9+12+1+1+3+2 -> 36 | L197: =6+6+11+1+1+3+2 -> 30 | M197: =10+13+14+4+6+8+5 -> 60 | N197: =3+2+3+1+1 -> 10 | O197: =0+2+2+2+4+2 -> 12 | P197: =IFERROR(7*(L197/J197),"") -> 5.339435545
B198: Marc-André Lefebvre | F198: =1+1 -> 2 | H198: =1+1 -> 2 | J198: =7+3 -> 10 | K198: =10+11 -> 21 | L198: =5+6 -> 11 | M198: =10+9 -> 19 | N198: =6+2 -> 8 | O198: =0+1 -> 1 | P198: =IFERROR(7*(L198/J198),"") -> 7.7
B199: Charles-Olivier Bonnardeaux | F199: =1+1+1 -> 3 | H199: 1 | I199: 1 | J199: =7+6+0.67 -> 13.67 | K199: =10+5+5 -> 20 | L199: =7+5+5 -> 17 | M199: =14+8+7 -> 29 | N199: =4+2 -> 6 | O199: 0 | P199: =IFERROR(7*(L199/J199),"") -> 8.705193855
B200: Jean-François St-Louis | F200: 1 | J200: 1 | K200: 2 | L200: 2 | M200: 3 | N200: 1 | O200: 0 | P200: =IFERROR(7*(L200/J200),"") -> 14
B201: TOTAL | F201: =SUM(F196:F200) -> 14 | G201: =SUM(G196:G200) -> 4 | H201: 6 | I201: 1 | J201: 71 | K201: 89 | L201: 64 | M201: 126 | N201: 29 | O201: 15 | P201: =(L201*7)/J201 -> 6.309859155
B202: Vincent Gauthier | F202: 1 | H202: 1 | J202: 7 | K202: 8 | L202: 5 | M202: 9 | N202: 3 | O202: 2 | P202: =IFERROR(7*(L202/J202),"") -> 5
A208: Ligue de Balle Molle Voyageurs
A210: =A4 -> Balle Molle Amical Lundi
A213: MADRIERS
A214: # | B214: JOUEURS | F214: C | G214: P | H214: S | I214: PJ | J214: AB | K214: P | L214: CS | M214: PP | N214: BB | O214: CC | P214: MOY
B215: François Michel Proulx | F215: x | G215: x | I215: =1+1+1+1+1+1+1+1+1+1 -> 10 | J215: =4+2+4+3+4+3+4+4+4+4 -> 36 | K215: =3+1+2+1+1+1+1+1+3 -> 14 | L215: =3+1+2+3+1+3+2+1+3 -> 19 | M215: =6+1+1+1+3+1+1+2 -> 16 | N215: =1+2 -> 3 | O215: =1+1 -> 2 | P215: =IF($J215<>0,L215/$J215,0) -> 0.5277777778
B216: Julien Dutilly | F216: x | G216: x | I216: =1+1+1+1+1 -> 5 | J216: =2+4+3+3+4 -> 16 | K216: =0+2+2 -> 4 | L216: =1+2+2+3 -> 8 | M216: =0+3+1+3 -> 7 | N216: 1 | O216: 1 | P216: 0.5
B217: Jonathan Friolet | F217: x | G217: x | I217: =1+1+1+1+1+1+1+1+1 -> 9 | J217: =5+3+4+3+4+4+5+4+4 -> 36 | K217: =2+1+1+1+3+4+2 -> 14 | L217: =3+1+2+1+3+5+2 -> 17 | M217: =0+1+2+1 -> 4 | O217: 2 | P217: 0.4722222222
B218: Denis Corbeil | F218: x | G218: x | I218: =1+1+1+1+1+1+1+1 -> 8 | J218: =4+2+2+5+4+3+3+4 -> 27 | K218: =0+1+1+2 -> 4 | L218: =1+2+1+1+2+3+2 -> 12 | M218: =1+1+1+3 -> 6 | N218: 1 | O218: 1 | P218: 0.4444444444
B219: Guillaume Pagé | F219: x | G219: x | I219: =1+1+1+1+1+1+1+1+1+1+1 -> 11 | J219: =4+2+3+2+3+3+4+3+5+4+4 -> 37 | K219: =2+1+1+1+1+2+3 -> 11 | L219: =2+1+2+1+1+1+3+2+2 -> 15 | M219: =0+1+1+1+1+1 -> 5 | N219: =1+1 -> 2 | P219: 0.4054054054
B220: Olivier Côté-Jutras | F220: x | G220: x | I220: =1+1+1+1+1+1+1+1+1+1 -> 10 | J220: =3+2+4+3+4+4+3+4+2+4 -> 33 | K220: =2+1+3+1+2 -> 9 | L220: =2+1+3+1+3+1+2 -> 13 | M220: =2+2+3+2 -> 9 | N220: =1+1 -> 2 | O220: =1+1 -> 2 | P220: 0.3939393939
B221: Maxime Poupart | F221: x | G221: x | I221: =1+1+1+1+1+1+1+1+1+1+1 -> 11 | J221: =4+2+2+2+3+3+5+3+3+3+2 -> 32 | K221: =0+1+1+2+2 -> 6 | L221: =2+1+2+3+1+1+1 -> 11 | M221: =1+2+4 -> 7 | N221: =1+2 -> 3 | P221: 0.34375
B222: Dominique Deshaies | F222: x | G222: x | I222: =1+1+1+1+1+1+1+1 -> 8 | J222: =4+4+2+3+4+3+4+3 -> 27 | K222: =0+2+1+1+1+1 -> 6 | L222: =1+2+2+1+1+2 -> 9 | M222: =2+2+1 -> 5 | N222: =1+1 -> 2 | P222: 0.3333333333
B223: Patrick Caron | F223: x | G223: x | I223: =1+1+1+1+1+1+1+1+1+1 -> 10 | J223: =4+2+4+2+3+3+2+4+4+4 -> 32 | K223: =2+1+1+2+1 -> 7 | L223: =2+1+1+1+1+2+2 -> 10 | M223: =2+1+1+1+1+1+4 -> 11 | N223: 1 | P223: 0.3125
B224: Guillaume Dutilly | F224: x | G224: x | I224: =1+1+1+1+1+1+1+1+1+1+1 -> 11 | J224: =4+2+4+2+4+3+5+2+4+4+2 -> 36 | K224: =1+1+1+1+3 -> 7 | L224: =1+2+1+2+3+1+1 -> 11 | M224: =0+2+1+3+3+1 -> 10 | N224: =1+1+2 -> 4 | P224: 0.3055555556
B225: David Fortin | F225: x | G225: x | I225: =1+1+1+1+1+1+1 -> 7 | J225: =3+2+3+3+3+3+3 -> 20 | K225: =0+1+2 -> 3 | L225: =0+1+1+1+1+1 -> 5 | M225: =0+1+1 -> 2 | N225: =1+1+1 -> 3 | P225: 0.25
B226: Dominic Brûlé | F226: x | G226: x | I226: =1+1+1+1+1+1+1+1+1+1+1+1 -> 12 | J226: =4+2+2+3+3+3+4+2+4+4+2+4 -> 37 | K226: =1+1+1+2+1+1 -> 7 | L226: =2+1+1+1+1+1+1+1 -> 9 | M226: =0+1+1+1+1 -> 4 | N226: =2+1+1+1+1 -> 6 | P226: 0.2432432432
B227: Jonathan Ouimet | F227: x | G227: x | I227: =1+1 -> 2 | J227: =3+2 -> 5 | K227: 1 | L227: =0+1 -> 1 | M227: 0 | N227: =1+1 -> 2 | P227: 0.2
B228: Philippe Pohoney | F228: x | G228: x | P228: 0
B229: Dave Dupont | F229: x | G229: x | P229: 0
B230: Nicolas Chan | F230: x | G230: x | P230: 0
B231: Daniel Morin | F231: x | G231: x | P231: 0
B232: Yves Beland | F232: x | G232: x | P232: 0
B233: Jonathan Blais | F233: x | G233: x | P233: 0
B234: Yannick Gauthier | F234: x | G234: x | P234: 0
B235: TOTAL | I235: =SUM(I215:I234) -> 114 | J235: =SUM(J215:J234) -> 374 | K235: 93 | L235: 140 | M235: 86 | N235: 30 | O235: 8 | P235: =L235/J235 -> 0.3743315508
A237: # | B237: LANCEURS | F237: PJ | G237: V | H237: D | I237: N | J237: ML | K237: P | L237: PM | M237: CS | N237: BB | O237: K | P237: MPM
B238: Guillaume Pagé | F238: 1 | G238: 1 | J238: 7 | K238: 8 | L238: 4 | M238: 13 | N238: 2 | O238: 1 | P238: =IFERROR(7*(L238/J238),"") -> 4
B239: Maxime Poupart | F239: =1+1+1+1+1+1+1+1+1+1 -> 10 | G239: =1+1 -> 2 | H239: =1+1+1+1+1+1+1 -> 7 | J239: =1.67+4.67+7+0.67+5+7+6.67+6.67+1.67+6 -> 47.02 | K239: =4+15+2+1+7+21+12+6+7+3 -> 78 | L239: =1+15+2+4+7+4+3+3+2 -> 41 | M239: =4+19+4+1+10+22+11+7+7+10 -> 95 | N239: =1+5+3+1+1+2+3+2+2+2 -> 22 | O239: =0+1+1+2+1+1 -> 6 | P239: =IFERROR(7*(L239/J239),"") -> 6.103785623
B240: François Michel Proulx | F240: =1+1+1+1+1 -> 5 | H240: 1 | I240: 1 | J240: =4+7+4.33+2+3.33 -> 20.66 | K240: =11+10+15+4+11 -> 51 | L240: =6+7+10+4+11 -> 38 | M240: =8+12+16+5+10 -> 51 | N240: =6+4+2+2+6 -> 20 | O240: =0+1+1+2 -> 4 | P240: =IFERROR(7*(L240/J240),"") -> 12.87512101
J241: 0 | K241: 0 | L241: 0 | P241: =IFERROR(7*(L241/J241),"") -> 
J242: 0 | K242: 0 | L242: 0 | P242: =IFERROR(7*(L242/J242),"") -> 
B243: TOTAL | F243: =SUM(F238:F242) -> 16 | G243: =SUM(G238:G242) -> 3 | H243: 8 | I243: 1 | J243: 74.68 | K243: 137 | L243: 83 | M243: 159 | N243: 44 | O243: 11 | P243: =(L243*7)/J243 -> 7.779860739
A250: Ligue de Balle Molle Voyageurs
A252: =A4 -> Balle Molle Amical Lundi
A255: GROS BATS
A256: # | B256: JOUEURS | F256: C | G256: P | H256: S | I256: PJ | J256: AB | K256: P | L256: CS | M256: PP | N256: BB | O256: CC | P256: MOY
B257: David M. Lengacher | F257: x | G257: x | I257: =1+1+1+1+1+1+1+1+1+1+1 -> 11 | J257: =3+4+3+3+3+4+4+3+3+3+2 -> 35 | K257: =0+3+1+1+1+1+2+1 -> 10 | L257: =2+3+1+1+2+2+3+2+2+1 -> 19 | M257: =0+2+3+1+1+1+1 -> 9 | N257: =1+1 -> 2 | O257: 1 | P257: =IF($J257<>0,L257/$J257,0) -> 0.5428571429
B258: Bruno Gaulin | F258: x | G258: x | I258: =1+1+1+1+1+1+1+1+1 -> 9 | J258: =3+3+3+3+4+3+3+3+3 -> 28 | K258: =0+2+2+2+1 -> 7 | L258: =1+3+1+2+2+2+3+1 -> 15 | M258: =1+5+1+1+2+1+2 -> 13 | N258: =1+1 -> 2 | P258: 0.5357142857
B259: Éric Choquette | F259: x | G259: x | I259: =1+1+1+1 -> 4 | J259: =3+3+2+2 -> 10 | K259: =2+2 -> 4 | L259: =2+1+1+1 -> 5 | M259: =3+1+2 -> 6 | O259: 1 | P259: 0.5
B260: Jean-Simon Adam | F260: x | G260: x | I260: =1+1+1 -> 3 | J260: =3+2+3 -> 8 | K260: =1+1 -> 2 | L260: =3+1 -> 4 | M260: 1 | P260: 0.5
B261: Antoine Labbé | F261: x | G261: x | I261: =1+1+1+1+1+1+1+1+1+1+1+1 -> 12 | J261: =4+4+4+3+1+2+4+4+2+1+3+1 -> 33 | K261: =1+1+1+2+1+1+1+1+3+1 -> 13 | L261: =2+4+1+1+2+1+1+3+1 -> 16 | M261: =0+1+1+1+2+1+2+5+2 -> 15 | N261: =2+2+2+1 -> 7 | O261: =1+1+1 -> 3 | P261: 0.4848484848
B262: Marc-André Poulin | F262: x | G262: x | I262: =1+1+1+1+1+1+1+1+1+1+1+1 -> 12 | J262: =4+4+4+3+3+4+3+3+3+3+4+2 -> 40 | K262: =1+2+1+1+1+1+1+2 -> 10 | L262: =1+4+2+2+1+1+1+3+1 -> 16 | M262: =4+2+2+2+3+1+4 -> 18 | N262: 1 | O262: =1+1+1+2 -> 5 | P262: 0.4
B263: Louis-Philip Vermeesch | F263: x | G263: x | I263: =1+1+1+1+1+1+1+1+1+1 -> 10 | J263: =3+2+3+3+3+3+2+1+3+2 -> 25 | K263: =0+3+1+2 -> 6 | L263: =1+2+2+2+1+2 -> 10 | M263: =0+1+1 -> 2 | N263: =1+2+1+1+2+1 -> 8 | P263: 0.4
B264: Philippe Morissette | F264: x | G264: x | I264: =1+1 -> 2 | J264: =3+3 -> 6 | K264: =0+2 -> 2 | L264: =1+1 -> 2 | M264: 0 | P264: 0.3333333333
B265: Martin Dionne | F265: x | G265: x | I265: =1+1+1+1+1+1 -> 6 | J265: =4+3+2+3+3+4 -> 19 | K265: =0+1+1 -> 2 | L265: =1+1+1+1+2 -> 6 | M265: =0+1+2 -> 3 | P265: 0.3157894737
B266: Jean-Sébastien Poulin | F266: x | G266: x | I266: =1+1+1+1+1+1+1+1+1 -> 9 | J266: =2+3+2+2+3+1+3+3+3 -> 22 | K266: =1+1+1+2+1 -> 6 | L266: =0+3+1+1+1 -> 6 | M266: =0+2+1 -> 3 | N266: =1+1+3 -> 5 | O266: 1 | P266: 0.2727272727
B267: Jean Bilodeau | F267: x | G267: x | I267: =1+1+1+1+1+1+1+1+1 -> 9 | J267: =1+4+4+3+4+4+4+3+3 -> 30 | K267: =1+1+1+1+1+2 -> 7 | L267: =1+2+1+2+1+1 -> 8 | M267: =0+1+1+1 -> 3 | N267: =2+1 -> 3 | P267: 0.2666666667
B268: Raphael Labbé | F268: x | G268: x | I268: =1+1+1+1+1+1+1+1+1 -> 9 | J268: =3+1+3+2+3+3+3+3+2 -> 23 | K268: =0+1+1+1+3+2 -> 8 | L268: =0+2+3+1 -> 6 | M268: 0 | N268: =1+1+1+2 -> 5 | P268: 0.2608695652
B269: Yohan Dubé | F269: x | G269: x | I269: =1+1+1+1+1+1+1+1+1 -> 9 | J269: =2+4+3+3+3+4+3+4+2 -> 28 | K269: =1+1+1+1 -> 4 | L269: =1+2+1+1+1+1 -> 7 | M269: =0+1+1+1+1+1 -> 5 | N269: 1 | P269: 0.25
B270: Bruno Paquette | F270: x | G270: x | I270: =1+1+1+1+1+1 -> 6 | J270: =4+3+2+3+3+2 -> 17 | K270: =0+1+2 -> 3 | L270: =0+1+1+1+1 -> 4 | M270: =0+1+1+2 -> 4 | N270: 1 | P270: 0.2352941176
B271: Étienne Dutil | F271: x | G271: x | I271: =1+1+1+1+1+1 -> 6 | J271: =4+2+3+3+3+2 -> 17 | K271: =1+1+1 -> 3 | L271: 1 | M271: 0 | N271: 1 | P271: 0.05882352941
B272: Sébastien Palardy | F272: x | G272: x | I272: =1+1 -> 2 | J272: =3+2 -> 5 | K272: 0 | L272: 0 | M272: 0 | P272: 0
A273: OK | B273: Dominic Sanche | F273: x | G273: x | I273: 1 | J273: 3 | K273: 0 | L273: 0 | M273: 0 | P273: 0
B274: Thierry Roldan | F274: x | G274: x | P274: 0
B275: Pascal Bastien | F275: x | G275: x | P275: 0
B276: Michael Noiseux | F276: x | G276: x | P276: 0
... 72 more rows

Sheet Amical Mercredi
A2: Ligue de Balle Molle Voyageurs
A4: Balle Molle Amical Mercredi
F6: FINAL
A7: Dernière mise à jour : | D7: 2019-09-03
A10: CLASSEMENT AMICAL MERCREDI
A11: POS | B11: ÉQUIPE | H11: PJ | I11: V | J11: D | K11: N | L11: PP | M11: PC | N11: PTS | O11: DIFF | P11: MOY
A12: 1 | B12: C-Aero | H12: =1+1+1+1+1+1+1+1+1+1+1+1 -> 12 | I12: =1+1+1+1+1+1+1+1+1+1+1+1 -> 12 | J12: 0 | K12: 0 | L12: =4+19+18+18+6+6+16+11+12+6+16+10 -> 142 | M12: =0+6+7+6+4+5+2+2+2+5+12+1 -> 52 | N12: =I12*2+K12*1 -> 24 | O12: =L12-M12 -> 90 | P12: =IF(H12<>0,(2*I12+K12)/(2*H12),0) -> 1
A13: =A12+1 -> 2 | B13: Stores de Bois Mtl | H13: =1+1+1+1+1+1+1+1+1+1+1+1 -> 12 | I13: =0+1+1+1+1+1+1+1+1 -> 8 | J13: =1+1+1+1 -> 4 | K13: 0 | L13: =4+19+7+3+13+5+10+13+14+10+12+13 -> 123 | M13: =8+6+18+15+12+4+4+5+9+9+16+11 -> 117 | N13: 16 | O13: 6 | P13: 0.6666666667
A14: =A13+1 -> 3 | B14: Orioles | H14: 12 | I14: =0+1+1+1+1+1+1+1 -> 7 | J14: =1+1+1+1 -> 4 | K14: =0+1 -> 1 | L14: =0+6+10+16+5+4+10+7+4+6+7+12 -> 87 | M14: =4+7+6+2+2+5+4+7+12+1+4+4 -> 58 | N14: 15 | O14: 29 | P14: 0.625
A15: 4 | B15: Giants | H15: 12 | I15: =0+1+1+1+1+1+1+1 -> 7 | J15: =1+1+1+1+1 -> 5 | K15: 0 | L15: =7+7+17+15+4+13+14+5+12+10+4+1 -> 109 | M15: =8+6+7+3+6+4+4+13+4+3+16+10 -> 84 | N15: 14 | O15: 25 | P15: 0.5833333333
A16: 5 | B16: Castros | H16: 12 | I16: =1+1+1+1+1+1+1 -> 7 | J16: =0+1+1+1+1+1 -> 5 | K16: 0 | L16: =8+13+6+7+11+5+4+7+14+1+16+7 -> 99 | M16: =4+8+10+2+2+6+14+3+8+6+4+8 -> 75 | N16: 14 | O16: 24 | P16: 0.5833333333
A17: 6 | B17: Brewers | H17: 12 | I17: =1+1+1 -> 3 | J17: =0+1+1+1+1+1+1+1+1+1 -> 9 | K17: 0 | L17: =8+6+16+2+2+4+3+2+9+13+4+5 -> 74 | M17: =7+19+4+7+5+10+7+12+10+1+12+10 -> 104 | N17: 6 | O17: -30 | P17: 0.25
A18: 7 | B18: Men in Black | H18: 12 | I18: =1+1 -> 2 | J18: =0+1+1+1+1+1+1+1+1+1 -> 9 | K18: =0+1 -> 1 | L18: =12+6+4+2+2+4+2+7+9+5+1+8 -> 62 | M18: =11+19+16+16+11+13+16+7+14+6+13+7 -> 149 | N18: 5 | O18: -87 | P18: 0.2083333333
A19: 8 | B19: Blue Jays | H19: 12 | I19: =0+1 -> 1 | J19: =1+1+1+1+1+1+1+1+1+1+1 -> 11 | K19: 0 | L19: =11+8+7+6+12+4+2+8+3+4+11+10 -> 86 | M19: =12+13+17+18+13+10+11+14+10+7+13+5 -> 143 | N19: 2 | O19: -57 | P19: 0.08333333333
B21: TOTAL | H21: =SUM(H12:H19) -> 96 | I21: 47 | J21: 47 | K21: 2 | L21: 782 | M21: 782 | N21: 96 | O21: 0 | P21: =(I21+(K21*0.5))/H21 -> 0.5
A40: Ligue de Balle Molle Voyageurs
A42: =A4 -> Balle Molle Amical Mercredi
A45: AERO
A46: # | B46: JOUEURS | F46: C | G46: P | H46: S | I46: PJ | J46: AB | K46: P | L46: CS | M46: PP | N46: BB | O46: CC | P46: MOY
B47: Jean-Michel Malouf | F47: x | G47: x | I47: =1+1+1+1+1+1 -> 6 | J47: =3+4+5+3+5+4 -> 24 | K47: =1+2+3+2+2 -> 10 | L47: =2+3+5+2+4+1 -> 17 | M47: =0+3+5+3+1 -> 12 | O47: =1+1 -> 2 | P47: =IF($J47<>0,L47/$J47,0) -> 0.7083333333
B48: Guillaume Salvas | F48: x | G48: x | I48: =1+1 -> 2 | J48: =3+2 -> 5 | K48: 0 | L48: =2+1 -> 3 | M48: =0+1 -> 1 | P48: 0.6
B49: Stephan Pouliot | F49: x | G49: x | I49: =1+1 -> 2 | J49: =2+5 -> 7 | K49: =0+3 -> 3 | L49: =1+3 -> 4 | M49: =1+6 -> 7 | O49: 1 | P49: 0.5714285714
B50: David Poitras | F50: x | G50: x | I50: =1+1+1+1+1+1+1+1 -> 8 | J50: =3+4+3+3+5+4+4+4 -> 30 | K50: =1+3+1+1+2+1+1 -> 10 | L50: =2+3+2+1+1+2+3+2 -> 16 | M50: =0+3+1+1+1 -> 6 | N50: =1+1 -> 2 | P50: 0.5333333333
B51: Olivier Chapdelaine | F51: x | G51: x | I51: =1+1+1+1+1+1+1+1+1+1+1+1 -> 12 | J51: =1+3+4+5+3+2+5+3+2+3+3+4 -> 38 | K51: =0+2+3+2+1+1+1+1 -> 11 | L51: =0+3+4+2+2+1+1+2+1+2+2 -> 20 | M51: =1+2+3+2+1+1+1+2+5+3+1 -> 22 | N51: =2+1+1+1+1 -> 6 | P51: 0.5263157895
B52: Alexis Picard | F52: x | G52: x | I52: =1+1+1+1+1+1+1+1+1+1+1 -> 11 | J52: =3+5+3+3+3+3+5+4+3+2+4 -> 38 | K52: =0+1+3+3+1+1+1+1+2+2 -> 15 | L52: =1+2+2+2+1+2+3+3+1+2 -> 19 | M52: =0+2+1+2+2+4+1 -> 12 | N52: =1+2+1+3 -> 7 | O52: 1 | P52: 0.5
B53: Louis Fournier | F53: x | G53: x | I53: =1+1+1+1+1+1+1 -> 7 | J53: =2+4+3+4+3+3+4 -> 23 | K53: =1+1+1+3+1+1 -> 8 | L53: =2+2+2+1+2+1+1 -> 11 | M53: =2+3+2+1 -> 8 | N53: =1+1 -> 2 | O53: 1 | P53: 0.4782608696
B54: René Nantel | F54: x | G54: x | I54: =1+1+1+1+1+1+1+1+1+1+1+1 -> 12 | J54: =3+5+4+2+3+3+1+3+4+4+4 -> 36 | K54: =2+2+2+3+2+2+3+2 -> 18 | L54: =2+3+1+1+3+2+2+3 -> 17 | M54: =0+3+1+1+4+1+1+2 -> 13 | N54: =1+1+2+2+1+1 -> 8 | P54: 0.4722222222
B55: Max Stencer | F55: x | G55: x | I55: =1+1+1+1+1+1+1+1+1+1+1+1 -> 12 | J55: =3+4+4+3+1+3+3+3+2+4+2+4 -> 36 | K55: =0+3+3+2+1+1+3+2+2+2+2 -> 21 | L55: =2+4+2+1+2+1+1+2+1 -> 16 | M55: =1+5+2+1+2+2+1 -> 14 | N55: =1+1+1+2+1+2+2+3 -> 13 | O55: 1 | P55: 0.4444444444
B56: Dominic Desjarlais | F56: x | G56: x | I56: =1+1+1+1+1+1+1+1 -> 8 | J56: =4+4+4+3+3+5+3+4 -> 30 | K56: =1+1+1+1+1+1+1 -> 7 | L56: =1+2+2+3+1+3+1 -> 13 | M56: =0+1+1+2+1+3+1 -> 9 | P56: 0.4333333333
B57: David Desjarlais | F57: x | G57: x | I57: =1+1+1+1+1+1+1+1+1+1+1+1 -> 12 | J57: =3+4+5+5+4+4+5+3+3+4+5+3 -> 48 | K57: =0+2+1+2+2+2+2+3 -> 14 | L57: =1+1+1+3+1+1+4+2+1+2+2+1 -> 20 | M57: =0+2+1+3+1+3+2 -> 12 | N57: =1+1 -> 2 | O57: 1 | P57: 0.4166666667
B58: Daniel Leblanc | F58: x | G58: x | I58: =1+1+1+1+1+1+1+1+1+1 -> 10 | J58: =3+4+4+1+3+3+3+4+2 -> 27 | K58: =0+3+2+1+1+2 -> 9 | L58: =1+2+3+1+1+2+1 -> 11 | M58: =1+1+1+1+1 -> 5 | N58: =2+2 -> 4 | O58: 1 | P58: 0.4074074074
B59: Jean-Philippe Salvas | F59: x | G59: x | I59: =1+1+1+1+1+1+1+1+1+1 -> 10 | J59: =3+3+4+2+3+5+3+4+3+4 -> 34 | K59: =1+2+2+1+1+2+1 -> 10 | L59: =2+1+2+2+1+3+2 -> 13 | M59: =0+1+1+1 -> 3 | N59: =1+1+1+1 -> 4 | P59: 0.3823529412
A60: OK | B60: Denis Larochelle | F60: x | G60: x | I60: 1 | J60: 3 | K60: 0 | L60: 1 | M60: 1 | P60: 0.3333333333
B61: Sylvain St-Jules | F61: x | G61: x | I61: =1+1+1+1+1+1+1+1+1+1+1+1 -> 12 | J61: =2+4+3+3+3+3+2 -> 20 | K61: =0+1+1+2 -> 4 | L61: =0+2+1+2+1 -> 6 | M61: =1+1+1+1 -> 4 | N61: 1 | P61: 0.3
A62: OK | B62: Danny Daigle | F62: x | G62: x | I62: 1 | J62: 3 | K62: 0 | L62: 0 | M62: 0 | P62: 0
B63: Denis Gamache | F63: x | G63: x | P63: 0
P64: 0
P65: 0
P66: 0
B67: TOTAL | I67: =SUM(I47:I66) -> 126 | J67: =SUM(J47:J66) -> 402 | K67: 140 | L67: 187 | M67: 129 | N67: 49 | O67: 8 | P67: =L67/J67 -> 0.4651741294
A69: # | B69: LANCEURS | F69: PJ | G69: V | H69: D | I69: N | J69: ML | K69: P | L69: PM | M69: CS | N69: BB | O69: K | P69: MPM
B70: Daniel Leblanc | F70: =1+1+1+1+1 -> 5 | G70: =1+1 -> 2 | J70: =2+2+1+7+7 -> 19 | K70: =2+1+2+5 -> 10 | L70: =1+1+2+2 -> 6 | M70: =4+1+2+7+9 -> 23 | N70: =0+1 -> 1 | O70: =1+2+1 -> 4 | P70: =IFERROR(7*(L70/J70),"") -> 2.210526316
B71: Sylvain St-Jules | F71: =1+1+1+1+1+1+1+1+1+1 -> 10 | G71: =1+1+1+1+1+1+1+1+1+1 -> 10 | J71: =7+4+4.67+6+7+7+7+7+7+7 -> 63.67 | K71: =0+4+7+5+4+5+2+2+12+1 -> 42 | L71: =0+4+7+5+3+3+2+0+11 -> 35 | M71: =5+6+12+11+10+10+9+10+19+7 -> 99 | N71: =1+2+1+1+3+1+1+3 -> 13 | O71: =1+1+1+1+1+1 -> 6 | P71: =IFERROR(7*(L71/J71),"") -> 3.847966075
J72: 0 | K72: 0 | L72: 0 | P72: =IFERROR(7*(L72/J72),"") -> 
J73: 0 | K73: 0 | L73: 0 | P73: =IFERROR(7*(L73/J73),"") -> 
P74: =IFERROR(7*(L74/J74),"") -> 
B75: TOTAL | F75: =SUM(F70:F74) -> 15 | G75: =SUM(G70:G74) -> 12 | H75: 0 | I75: 0 | J75: 82.67 | K75: 52 | L75: 41 | M75: 122 | N75: 14 | O75: 10 | P75: =(L75*7)/J75 -> 3.471634208
A82: Ligue de Balle Molle Voyageurs
A84: =A4 -> Balle Molle Amical Mercredi
A87: BLUE JAYS
A88: # | B88: JOUEURS | F88: C | G88: P | H88: S | I88: PJ | J88: AB | K88: P | L88: CS | M88: PP | N88: BB | O88: CC | P88: MOY
B89: Charles R-Boucher | F89: x | G89: x | I89: =1+1+1+1+1+1+1+1+1 -> 9 | J89: =3+3+5+3+3+3+4+3+3 -> 30 | K89: =1+1+4+2+1+3+2 -> 14 | L89: =0+2+3+2+1+2+2+3 -> 15 | M89: =1+1+2+2 -> 6 | N89: =1+1+1+1 -> 4 | P89: =IF($J89<>0,L89/$J89,0) -> 0.5
B90: Geoffroy Richer-Lalonde | F90: x | G90: x | I90: =1+1+1+1+1+1+1+1+1 -> 9 | J90: =5+4+3+3+4+3+2+4+4 -> 32 | K90: =2+1+1+2+1+1 -> 8 | L90: =4+2+2+1+2+3+1 -> 15 | M90: =2+1+3+3 -> 9 | N90: =1+1 -> 2 | P90: 0.46875
B91: Samuel Berthiaume | F91: x | G91: x | I91: =1+1+1 -> 3 | J91: =4+3+3 -> 10 | K91: =0+2+1 -> 3 | L91: =1+2+1 -> 4 | M91: =0+1 -> 1 | P91: 0.4
B92: Benoit Blondin | F92: x | G92: x | I92: =1+1+1+1+1+1+1+1+1+1+1 -> 11 | J92: =4+4+3+4+5+4+3+2+4+4+3 -> 40 | K92: =3+1+1+2+2+2+2+3 -> 16 | L92: =3+2+1+2+1+3+1+2 -> 15 | M92: =2+1+1+1 -> 5 | N92: =1+1+2+1 -> 5 | P92: 0.375
B93: Vincent Bricault | F93: x | G93: x | I93: =1+1+1+1+1+1+1+1+1+1+1 -> 11 | J93: =3+4+3+3+3+3+2+3+3+4+3 -> 34 | K93: =1+1 -> 2 | L93: =1+3+1+2+2+1+2 -> 12 | M93: =1+1+2+1+1+3 -> 9 | N93: =1+1+1+1+2 -> 6 | P93: 0.3529411765
B94: Pierre-Yves Blondin | F94: x | G94: x | I94: =1+1+1+1+1+1+1+1+1+1+1 -> 11 | J94: =4+4+2+5+3+3+3+3+3+4+4 -> 38 | K94: =2+1+2+1+1+1 -> 8 | L94: =3+1+2+1+1+2+2 -> 12 | M94: =3+2+1+5+2+2+1+3+2 -> 21 | N94: 1 | O94: =2+1 -> 3 | P94: 0.3157894737
B95: Alexandre Bricault | F95: x | G95: x | I95: =1+1+1+1+1+1+1+1 -> 8 | J95: =4+4+4+3+3+3+3+2 -> 26 | K95: =2+2+1 -> 5 | L95: =3+2+1+1+1 -> 8 | M95: =0+1+1 -> 2 | N95: =1+1+1 -> 3 | P95: 0.3076923077
B96: Kael Eggie | F96: x | G96: x | I96: =1+1+1+1 -> 4 | J96: =3+4+3+3 -> 13 | K96: =1+1+1 -> 3 | L96: =1+1+2 -> 4 | M96: =1+2 -> 3 | N96: 1 | O96: 1 | P96: 0.3076923077
B97: Jullien Aubin-Beaulieu | F97: x | G97: x | I97: =1+1+1+1+1+1+1+1 -> 8 | J97: =3+4+2+1+2+3+2+3 -> 20 | K97: =1+1+2+1+1 -> 6 | L97: =2+2+1+1 -> 6 | M97: =0+1 -> 1 | N97: =1+3+1+1 -> 6 | P97: 0.3
B98: Frédéric Vézina | F98: x | G98: x | I98: =1+1+1+1+1+1+1+1+1+1+1+1 -> 12 | J98: =5+3+3+2+4+3+3+3+3+3+4+3 -> 39 | K98: =0+1+2+1+1 -> 5 | L98: =1+2+1+1+2+1+1+1+1 -> 11 | M98: =1+1+2+1 -> 5 | N98: 1 | P98: 0.2820512821
B99: Jeff Downy | F99: x | G99: x | I99: =1+1+1 -> 3 | J99: =4+2+2 -> 8 | K99: 0 | L99: =0+1+1 -> 2 | M99: =0+2 -> 2 | N99: 1 | P99: 0.25
B100: Harman Sihota | F100: x | G100: x | I100: =1+1+1+1+1+1+1+1+1+1+1+1 -> 12 | J100: =3+3+3+3+4+3+3+2+3+3+3+3 -> 36 | K100: =1+1+1+1 -> 4 | L100: =0+1+3+1+2+1 -> 8 | M100: =0+1+1 -> 2 | N100: =1+1 -> 2 | P100: 0.2222222222
B101: Mathieu Desroches | F101: x | G101: x | I101: =1+1+1+1+1+1 -> 6 | J101: =3+4+3+3+3+2 -> 18 | K101: =1+2+1 -> 4 | L101: =1+1+1+1 -> 4 | M101: =0+3+1 -> 4 | O101: 1 | P101: 0.2222222222
B102: Marc-André Boivin | F102: x | G102: x | I102: =1+1+1+1+1+1+1+1+1+1+1 -> 11 | J102: =5+4+2+3+4+2+3+1+3+3+1 -> 31 | K102: =1+1+2+1+1+2 -> 8 | L102: =0+1+1+1+1+1+1 -> 6 | M102: =3+1+1 -> 5 | N102: =1+2+2 -> 5 | P102: 0.1935483871
A103: OK | B103: Ryan Brant | F103: x | G103: x | I103: 1 | J103: 2 | K103: 0 | L103: 0 | M103: 0 | N103: 1 | P103: 0
P104: 0
P105: 0
P106: 0
P107: 0
P108: 0
B109: TOTAL | I109: =SUM(I89:I108) -> 119 | J109: =SUM(J89:J108) -> 377 | K109: 86 | L109: 122 | M109: 75 | N109: 38 | O109: 5 | P109: =L109/J109 -> 0.3236074271
A111: # | B111: LANCEURS | F111: PJ | G111: V | H111: D | I111: N | J111: ML | K111: P | L111: PM | M111: CS | N111: BB | O111: K | P111: MPM
B112: Marc-André Boivin | F112: =1+1+1+1+1+1+1+1 -> 8 | G112: 1 | H112: =1+1+1+1+1+1+1 -> 7 | J112: =5+6+6.67+2.67+5.67+6+1+7 -> 40.01 | K112: =5+17+18+4+11+7+3+5 -> 70 | L112: =4+4+18+0+1+7+2+5 -> 41 | M112: =11+14+21+6+11+11+3+9 -> 86 | N112: =2+1+6+0+2+2+2+2 -> 17 | O112: =0+1+1+2 -> 4 | P112: =IFERROR(7*(L112/J112),"") -> 7.173206698
B113: Vincent Bricault | F113: =1+1+1+1+1+1+1 -> 7 | H113: =1+1+1+1 -> 4 | J113: =6+1.33+3.67+7+5.67+6.67+6 -> 36.34 | K113: =12+8+9+10+14+10+10 -> 73 | L113: =8+6+8+5+8+5+6 -> 46 | M113: =14+7+9+15+15+10+12 -> 82 | N113: =3+2+4+3+4+2+2 -> 20 | O113: 0 | P113: =IFERROR(7*(L113/J113),"") -> 8.860759494
J114: 0 | K114: 0 | L114: 0 | P114: =IFERROR(7*(L114/J114),"") -> 
J115: 0 | K115: 0 | L115: 0 | P115: =IFERROR(7*(L115/J115),"") -> 
J116: 0 | K116: 0 | L116: 0 | P116: =IFERROR(7*(L116/J116),"") -> 
B117: TOTAL | F117: =SUM(F112:F116) -> 15 | G117: =SUM(G112:G116) -> 1 | H117: 11 | I117: 0 | J117: 76.35 | K117: 143 | L117: 87 | M117: 168 | N117: 37 | O117: 4 | P117: =(L117*7)/J117 -> 7.976424361
A124: Ligue de Balle Molle Voyageurs
A126: =A4 -> Balle Molle Amical Mercredi
A129: BREWERS
A130: # | B130: JOUEURS | F130: C | G130: P | H130: S | I130: PJ | J130: AB | K130: P | L130: CS | M130: PP | N130: BB | O130: CC | P130: MOY
B131: Yves Jr Béland | F131: x | G131: x | I131: =1+1 -> 2 | J131: =2+2 -> 4 | K131: =3+1 -> 4 | L131: =2+2 -> 4 | M131: =1+2 -> 3 | N131: =1+1 -> 2 | O131: 1 | P131: =IF($J131<>0,L131/$J131,0) -> 1
B132: François Huard | F132: x | G132: x | I132: =1+1+1+1+1+1+1 -> 7 | J132: =3+3+3+2+3+4+4 -> 22 | K132: =1+1+1+1+1+2 -> 7 | L132: =3+3+2+2+1+4 -> 15 | M132: =4+3+5 -> 12 | N132: =1+1+1 -> 3 | O132: =1+1 -> 2 | P132: 0.6818181818
B133: Francis Lamonde | F133: x | G133: x | I133: =1+1+1 -> 3 | J133: =4+3+3 -> 10 | K133: =1+1+2 -> 4 | L133: =2+1+2 -> 5 | M133: =2+1 -> 3 | N133: 1 | P133: 0.5
B134: Mathieu Roy | F134: x | G134: x | I134: =1+1+1+1 -> 4 | J134: =4+2+3+2 -> 11 | K134: =0+2 -> 2 | L134: =1+1+3 -> 5 | M134: =1+3 -> 4 | N134: 1 | P134: 0.4545454545
B135: Jonathan Zbilhey | F135: x | G135: x | I135: =1+1+1+1+1+1+1+1+1+1+1+1 -> 12 | J135: =4+3+3+3+3+4+4+4+5+4+4+4 -> 45 | K135: =1+1+1+3+1 -> 7 | L135: =2+1+1+1+1+2+1+2+3+2+1+2 -> 19 | M135: =0+1+1+2 -> 4 | P135: 0.4222222222
B136: Philippe Lancup | F136: x | G136: x | I136: =1+1+1+1+1+1+1+1 -> 8 | J136: =4+2+3+3+3+3+4+3 -> 25 | K136: =0+1+2+2+1 -> 6 | L136: =2+1+1+1+1+3+1 -> 10 | M136: =0+1+1 -> 2 | N136: 1 | P136: 0.4
B137: Jacques Corriveau | F137: x | G137: x | I137: =1+1+1+1+1+1+1+1 -> 8 | J137: =3+2+2+1+2+0 -> 10 | K137: 0 | L137: =1+2+1 -> 4 | M137: =0+2 -> 2 | N137: =1+1+1 -> 3 | P137: 0.4
B138: Jordens St-Hilaire | F138: x | G138: x | I138: =1+1+1+1+1+1+1+1+1+1+1 -> 11 | J138: =3+2+3+2+4+3+4+4+3+4+4 -> 36 | K138: =2+1+1+1+1+2+1+2 -> 11 | L138: =3+1+1+1+3+1+2+2 -> 14 | M138: =2+1+1+1+2+1 -> 8 | N138: =1+1+1+1+1 -> 5 | O138: 1 | P138: 0.3888888889
B139: Carl Bisaillon | F139: x | G139: x | I139: =1+1+1+1+1+1+1+1+1+1+1 -> 11 | J139: =3+3+3+2+2+3+3+4+4+2+3 -> 32 | K139: =0+3+1+1+1+1 -> 7 | L139: =1+3+1+1+1+2+2 -> 11 | M139: =0+3+1+1+1 -> 6 | N139: =1+2 -> 3 | P139: 0.34375
B140: Jean-François Lefebvre | F140: x | G140: x | I140: =1+1+1+1+1+1+1+1 -> 8 | J140: =4+3+3+3+3+3+4+3 -> 26 | K140: =1+1+1+1+1+1 -> 6 | L140: =2+1+3+2 -> 8 | M140: =0+1+2+1 -> 4 | P140: 0.3076923077
B141: Luc Desautel | F141: x | G141: x | I141: =1+1+1+1+1+1+1+1+1+1+1 -> 11 | J141: =1+3+3+3+2+1 -> 13 | K141: 0 | L141: =1+1+1+1 -> 4 | M141: =0+1 -> 1 | N141: =1+1 -> 2 | P141: 0.3076923077
B142: Sylvain Robinson | F142: x | G142: x | I142: =1+1+1+1+1+1+1+1+1+1+1+1 -> 12 | J142: =4+3+1+3+3+2+3+4+4+3+4+2 -> 36 | K142: =2+1+2+1+1 -> 7 | L142: =3+1+1+1+2+1+1+1 -> 11 | M142: =1+1+1+1+1+1+2 -> 8 | N142: =2+1+1+1 -> 5 | P142: 0.3055555556
B143: Martin Chrétien | F143: x | G143: x | I143: =1+1+1+1+1+1+1+1+1+1 -> 10 | J143: =3+3+3+3+3+3+3+4+4+4 -> 33 | K143: =1+1+2 -> 4 | L143: =2+1+1+2+4 -> 10 | M143: =0+1+1+1+1+1 -> 5 | N143: 1 | P143: 0.303030303
B144: René Lavaléée | F144: x | G144: x | I144: =1+1+1+1+1+1+1+1+1+1 -> 10 | J144: =4+3+2+3+4+3+3+5+4+3 -> 34 | K144: =0+2+1+2 -> 5 | L144: =1+1+1+1+3+1 -> 8 | M144: =0+1+1+1 -> 3 | N144: 1 | O144: 1 | P144: 0.2352941176
B145: Louis-Pascal Roch | F145: x | G145: x | I145: =1+1+1+1+1+1+1+1+1 -> 9 | J145: =4+2+3+3+3+3+3+3+2 -> 26 | K145: =1+1+1 -> 3 | L145: =1+1+2+1+1 -> 6 | M145: =0+1+2 -> 3 | N145: =1+1 -> 2 | P145: 0.2307692308
B146: Carl Néron | F146: x | G146: x | P146: 0
B147: François Bertrand | F147: x | G147: x | P147: 0
B148: Stéphane Lévesque | F148: x | G148: x | P148: 0
B149: Mathieu Brûlé | F149: x | G149: x | P149: 0
B150: Marc-Alain Bourgeois | F150: x | G150: x | P150: 0
B151: TOTAL | I151: =SUM(I131:I150) -> 126 | J151: =SUM(J131:J150) -> 363 | K151: 73 | L151: 134 | M151: 68 | N151: 30 | O151: 5 | P151: =L151/J151 -> 0.3691460055
A153: # | B153: LANCEURS | F153: PJ | G153: V | H153: D | I153: N | J153: ML | K153: P | L153: PM | M153: CS | N153: BB | O153: K | P153: MPM
B154: René Lavaléée | F154: 1 | J154: 2 | K154: 0 | L154: 0 | M154: 3 | N154: 1 | O154: 0 | P154: =IFERROR(7*(L154/J154),"") -> 0
B155: Luc Desautel | F155: =1+1+1+1+1+1+1+1+1+1+1 -> 11 | G155: =1+1 -> 2 | H155: =1+1+1+1+1 -> 5 | J155: =5+3.67+1+7+6+3+6+6.33+5+7+4 -> 54 | K155: =6+10+1+7+5+4+7+10+1+12+2 -> 65 | L155: =6+8+1+6+5+4+4+6+0+6+2 -> 48 | M155: =9+14+1+13+11+9+8+18+4+20+5 -> 112 | N155: =1+2+0+4+1+3+1+1+2+3 -> 18 | O155: =2+1+2+3+4+2+2+2+3+2+1 -> 24 | P155: =IFERROR(7*(L155/J155),"") -> 6.222222222
B156: Jacques Corriveau | F156: =1+1+1+1+1 -> 5 | G156: 1 | H156: =1+1+1 -> 3 | J156: =2+2+4+3.67+2 -> 13.67 | K156: =1+9+3+6+8 -> 27 | L156: =1+6+3+4+8 -> 22 | M156: =7+7+3+5+9 -> 31 | N156: =1+4+3+1 -> 9 | O156: =0+2+1 -> 3 | P156: =IFERROR(7*(L156/J156),"") -> 11.26554499
B157: Sylvain Robinson | F157: 1 | H157: 1 | J157: 3.67 | K157: 12 | L157: 9 | M157: 13 | N157: 4 | O157: 0 | P157: =IFERROR(7*(L157/J157),"") -> 17.16621253
J158: 0 | K158: 0 | L158: 0 | P158: =IFERROR(7*(L158/J158),"") -> 
B159: TOTAL | F159: =SUM(F154:F158) -> 18 | G159: =SUM(G154:G158) -> 3 | H159: 9 | I159: 0 | J159: 73.34 | K159: 104 | L159: 79 | M159: 159 | N159: 32 | O159: 27 | P159: =(L159*7)/J159 -> 7.540223616
A166: Ligue de Balle Molle Voyageurs
A168: =A4 -> Balle Molle Amical Mercredi
A171: CASTROS
A172: # | B172: JOUEURS | F172: C | G172: P | H172: S | I172: PJ | J172: AB | K172: P | L172: CS | M172: PP | N172: BB | O172: CC | P172: MOY
A173: OK | B173: Charles-David Brulotte | F173: x | G173: x | I173: 1 | J173: 3 | K173: 0 | L173: 2 | M173: 2 | P173: =IF($J173<>0,L173/$J173,0) -> 0.6666666667
B174: David Quesnel | F174: x | G174: x | I174: =1+1 -> 2 | J174: =2+3 -> 5 | K174: =0+1 -> 1 | L174: =1+2 -> 3 | M174: =1+1 -> 2 | P174: 0.6
B175: Sébastien Billette | F175: x | G175: x | I175: =1+1+1+1+1+1+1+1 -> 8 | J175: =4+2+3+3+2+2+3+3 -> 22 | K175: =1+1+1+2+2+2 -> 9 | L175: =3+1+1+1+1+1+1+3 -> 12 | M175: =1+1+1+1+3+1+1 -> 9 | N175: =2+1+1+2+1+1 -> 8 | P175: 0.5454545455
B176: Jacques Marchand | F176: x | G176: x | I176: =1+1 -> 2 | J176: =4+4 -> 8 | K176: =1+2 -> 3 | L176: =2+2 -> 4 | M176: =2+2 -> 4 | P176: 0.5
B177: Jean-François Marchand | F177: x | G177: x | I177: =1+1+1+1+1+1+1+1+1+1 -> 10 | J177: =4+3+4+4+4+4+3+2+3+3 -> 34 | K177: =1+2+2+2+1+1+3+2 -> 14 | L177: =2+2+1+2+2+3+1+1+1+1 -> 16 | M177: =0+1+1+2+1+2 -> 7 | N177: =1+1+1 -> 3 | O177: 1 | P177: 0.4705882353
B178: Marc-André Ouellette | F178: x | G178: x | I178: =1+1+1+1+1+1+1+1+1+1 -> 10 | J178: =3+3+3+3+2+3+3+2+1+4 -> 27 | K178: =1+2+2+1+1 -> 7 | L178: =1+2+3+1+1+1+1+2 -> 12 | M178: =0+1+1+1+1+1 -> 5 | N178: =1+1+1+3 -> 6 | O178: 1 | P178: 0.4444444444
B179: Xavier Ferron | F179: x | G179: x | I179: =1+1+1+1+1+1+1+1+1+1 -> 10 | J179: =4+3+3+3+3+4+3+3+5+5 -> 36 | K179: =2+1+2+1+1+2+2+1 -> 12 | L179: =2+1+1+2+2+1+2+3+1 -> 15 | M179: =0+2+1+3 -> 6 | N179: =1+1 -> 2 | P179: 0.4166666667
B180: Jean-Pierre Cadieux | F180: x | G180: x | H180: 1 | I180: =1+1+1+1+1+1+1+1+1+1+1 -> 11 | J180: =4+3+3+4+4+4+2+3+3+3+4 -> 37 | K180: =1+1+2+2+1 -> 7 | L180: =1+1+2+1+2+2+1+1+2+1 -> 14 | M180: =1+2+1+2+2+2+1 -> 11 | N180: =1+1 -> 2 | P180: 0.3783783784
B181: Guillaume Brière | F181: x | G181: x | I181: =1+1+1+1+1+1+1+1+1+1+1 -> 11 | J181: =3+4+4+4+4+4+4+4+3+5+5 -> 44 | K181: =1+2+1+1+3+1 -> 9 | L181: =1+4+2+1+1+2+3+2 -> 16 | M181: =1+1+1+3 -> 6 | N181: =1+1 -> 2 | P181: 0.3636363636
B182: Louis-Frédéric Larivière | F182: x | G182: x | I182: =1+1+1+1+1+1+1+1+1+1 -> 10 | J182: =3+3+3+4+4+3+3+3+3+4 -> 33 | K182: =1+1+2+1+3 -> 8 | L182: =1+1+2+2+1+2+3 -> 12 | M182: =0+1+2+3+1+1 -> 8 | O182: 1 | P182: 0.3636363636
B183: Gabriel Trottier-Hardy | F183: x | G183: x | I183: =1+1+1+1+1+1+1 -> 7 | J183: =4+4+3+3+4+3+4 -> 25 | K183: =0+1+1+1 -> 3 | L183: =2+1+1+2+1+2 -> 9 | M183: =2+2+1+2 -> 7 | P183: 0.36
B184: Rémi Tremblay | F184: x | G184: x | I184: =1+1 -> 2 | J184: =4+2 -> 6 | K184: =0+1 -> 1 | L184: =1+1 -> 2 | M184: =0+1 -> 1 | N184: 1 | O184: 1 | P184: 0.3333333333
B185: Jean-Philippe Trottier-Hardy | F185: x | G185: x | I185: =1+1+1+1+1+1+1+1+1+1+1+1 -> 12 | J185: =4+3+4+4+5+3+3+3+3+2+4+3 -> 41 | K185: =0+3+1+2+1+3 -> 10 | L185: =1+2+1+2+1+2+2+2 -> 13 | M185: =1+2+1+3 -> 7 | N185: =1+1+1+1 -> 4 | P185: 0.3170731707
B186: Guillaume Pérusse | F186: x | G186: x | I186: =1+1+1+1+1+1+1+1+1+1+1 -> 11 | J186: =3+3+3+4+4+4+3+3+3+3+4 -> 37 | K186: =1+1+1+2+1+1 -> 7 | L186: =2+2+2+3+1+1 -> 11 | M186: =0+1+3+2+1 -> 7 | N186: 1 | O186: 1 | P186: 0.2972972973
B187: Julien Courville | F187: x | G187: x | I187: =1+1+1+1+1+1+1+1+1+1+1+1 -> 12 | J187: =2+3+3+3+4+3+3+3+3+3+4+2 -> 36 | K187: =1+1+2 -> 4 | L187: =1+1+1+1+1+1+1+1 -> 8 | M187: =2+2+2+1+1+2+1 -> 11 | N187: =1+2 -> 3 | P187: 0.2222222222
B188: Marc-André Ferron | F188: x | G188: x | P188: 0
B189: Mario Courville | F189: x | G189: x | P189: 0
B190: Sylvain Gervais | F190: x | G190: x | P190: 0
B191: Julien Fortin | F191: x | G191: x | P191: 0
B192: Simon Bichara | F192: x | G192: x | P192: 0
B193: TOTAL | I193: =SUM(I173:I192) -> 119 | J193: =SUM(J173:J192) -> 394 | K193: 95 | L193: 149 | M193: 93 | N193: 32 | O193: 5 | P193: =L193/J193 -> 0.3781725888
A195: # | B195: LANCEURS | F195: PJ | G195: V | H195: D | I195: N | J195: ML | K195: P | L195: PM | M195: CS | N195: BB | O195: K | P195: MPM
B196: Jean-François Marchand | F196: 1 | G196: 1 | J196: 4 | K196: 1 | L196: 1 | M196: 3 | N196: 6 | O196: 3 | P196: =IFERROR(7*(L196/J196),"") -> 1.75
B197: Jean-Philippe Trottier-Hardy | F197: =1+1+1+1+1+1+1+1+1+1 -> 10 | G197: =1+1+1+1+1 -> 5 | H197: =1+1+1+1 -> 4 | J197: =7+7+7+3+6.67+6+7+6+6+7.33 -> 63 | K197: =4+8+2+1+6+14+3+6+4+8 -> 56 | L197: =2+6+1+1+4+4+0+6+4+6 -> 34 | M197: =5+13+5+3+9+13+5+12+10+12 -> 87 | N197: =3+3+2 -> 8 | O197: =0+5+7+3+2+3+1+3+2+3 -> 29 | P197: =IFERROR(7*(L197/J197),"") -> 3.777777778
B198: Jean-Pierre Cadieux | F198: =1+1 -> 2 | G198: 1 | H198: 1 | J198: =6.33+6.33 -> 12.66 | K198: =10+8 -> 18 | L198: =6+8 -> 14 | M198: =13+6 -> 19 | N198: =2+9 -> 11 | O198: =1+3 -> 4 | P198: =IFERROR(7*(L198/J198),"") -> 7.740916272
J199: 0 | K199: 0 | L199: 0 | P199: =IFERROR(7*(L199/J199),"") -> 
J200: 0 | K200: 0 | L200: 0 | P200: =IFERROR(7*(L200/J200),"") -> 
B201: TOTAL | F201: =SUM(F196:F200) -> 13 | G201: =SUM(G196:G200) -> 7 | H201: 5 | I201: 0 | J201: 79.66 | K201: 75 | L201: 49 | M201: 109 | N201: 25 | O201: 36 | P201: =(L201*7)/J201 -> 4.305799649
A208: Ligue de Balle Molle Voyageurs
A210: =A4 -> Balle Molle Amical Mercredi
A213: STORES DE BOIS MONTRÉAL
A214: # | B214: JOUEURS | F214: C | G214: P | H214: S | I214: PJ | J214: AB | K214: P | L214: CS | M214: PP | N214: BB | O214: CC | P214: MOY
A215: OK | B215: Dominic Beaudry | F215: x | G215: x | I215: 1 | J215: 4 | K215: 1 | L215: 3 | M215: 1 | P215: =IF($J215<>0,L215/$J215,0) -> 0.75
B216: Carl McLean | F216: x | G216: x | I216: =1+1+1+1+1+1+1+1+1+1+1 -> 11 | J216: =1+5+3+3+2+4+3+5+4+5+5 -> 40 | K216: =0+2+2+1+1+3+1+3+2+2+2 -> 19 | L216: =0+4+3+1+1+3+3+1+4+2+4 -> 26 | M216: =2+1+1+1+1+2+1+3+3+1+1 -> 17 | N216: =1+1 -> 2 | O216: =1+1+1 -> 3 | P216: 0.65
B217: Simon Duchesne | F217: x | G217: x | I217: =1+1+1+1+1+1+1+1+1+1+1+1 -> 12 | J217: =2+5+4+3+3+4+4+4+4+5+5+4 -> 47 | K217: =2+4+1+3+1+3+2+2+3+1 -> 22 | L217: =2+4+2+1+2+1+1+3+3+1+4+1 -> 25 | M217: =0+2+4+1+3+3+2 -> 15 | N217: =1+1+1 -> 3 | O217: 1 | P217: 0.5319148936
B218: Éric Servant | F218: x | G218: x | I218: =1+1+1+1+1+1+1 -> 7 | J218: =2+5+2+4+2+4+3 -> 22 | K218: =0+1+1+1+2+3 -> 8 | L218: =0+3+1+2+3+2 -> 11 | M218: =1+2+2+2+2+2 -> 11 | N218: =1+1 -> 2 | P218: 0.5
B219: Yannick Dupont | F219: x | G219: x | I219: =1+1+1 -> 3 | J219: =4+5+4 -> 13 | K219: =2+1+1 -> 4 | L219: =4+1+1 -> 6 | M219: =1+2+2 -> 5 | N219: 1 | P219: 0.4615384615
B220: Hugo Beausoleil | F220: x | G220: x | I220: =1+1+1+1+1+1+1+1+1+1+1+1 -> 12 | J220: =3+4+3+1+4+3+3+2+4+3+4+5 -> 39 | K220: =1+4+1+1+1+1+2+1+1 -> 13 | L220: =2+4+1+1+1+3+1+3+1 -> 17 | M220: =0+2+5+2+2+2+1 -> 14 | N220: =1+1+2+1+1+1 -> 7 | O220: 1 | P220: 0.4358974359
B221: Frédéric Desjardins | F221: x | G221: x | I221: =1+1+1+1+1+1+1 -> 7 | J221: =1+5+4+3+3+4+3 -> 23 | K221: =0+4+2+2+2+2 -> 12 | L221: =0+3+3+1+1+1+1 -> 10 | M221: =0+4+1+2+4 -> 11 | N221: =2+1 -> 3 | P221: 0.4347826087
B222: Martin Lahaie | F222: x | G222: x | I222: =1+1+1 -> 3 | J222: =3+3+1 -> 7 | K222: =0+1 -> 1 | L222: =0+3 -> 3 | M222: =1+1+1 -> 3 | N222: 2 | P222: 0.4285714286
B223: Daniel Cormier | F223: x | G223: x | I223: =1+1+1+1+1+1+1+1+1 -> 9 | J223: =3+5+2+3+4+2+3+3+4 -> 29 | K223: =1+1+1+1+1+1+2 -> 8 | L223: =0+3+2+2+2+2+1 -> 12 | M223: =0+1+2+2+2+1 -> 8 | N223: =1+1+1 -> 3 | P223: 0.4137931034
B224: Maxime Cousineau | F224: x | G224: x | I224: =1+1+1 -> 3 | J224: =3+4+4 -> 11 | K224: =0+1+2 -> 3 | L224: =0+2+2 -> 4 | M224: =0+1+2 -> 3 | P224: 0.3636363636
B225: Olivier Bertrand | F225: x | G225: x | I225: =1+1+1+1+1+1+1+1+1+1 -> 10 | J225: =3+4+3+2+1+3+3+4+4+5 -> 32 | K225: =0+2+2+1+2+1+1 -> 9 | L225: =0+2+1+1+1+1+3+2 -> 11 | M225: =0+1+1+1 -> 3 | N225: 2 | P225: 0.34375
B226: Peter Schaefer | F226: x | G226: x | I226: =1+1+1+1+1+1+1+1+1+1 -> 10 | J226: =3+3+3+3+3+3+4+4+4+5 -> 35 | K226: =0+1+2+1+1+2 -> 7 | L226: =0+1+1+1+2+1+3+3 -> 12 | M226: =0+1+3+1+2 -> 7 | N226: 1 | P226: 0.3428571429
B227: Jonathan Ouimet | F227: x | G227: x | I227: =1+1+1+1 -> 4 | J227: =1+3+4+4 -> 12 | K227: =1+1 -> 2 | L227: =0+2+2 -> 4 | M227: =0+1+1 -> 2 | N227: 1 | P227: 0.3333333333
B228: Éric Thériault | F228: x | G228: x | I228: =1+1+1+1+1+1+1+1+1+1+1+1 -> 12 | J228: =3+5+3+2+3+3+4+3+4+4+5+2 -> 41 | K228: =0+1+1+1+2+2 -> 7 | L228: =1+3+2+1+1+4 -> 12 | M228: =1+2+1+1 -> 5 | N228: =1+1 -> 2 | P228: 0.2926829268
B229: Thomas Favreau | F229: x | G229: x | I229: =1+1+1 -> 3 | J229: =4+4+3 -> 11 | K229: =1+1+1 -> 3 | L229: =0+1+2 -> 3 | M229: =0+2 -> 2 | N229: 1 | P229: 0.2727272727
B230: Marc-André Ouimet | F230: x | G230: x | I230: =1+1+1+1+1+1+1+1+1+1 -> 10 | J230: =3+3+2+3+3+3+3+3+5+3 -> 31 | K230: =1+1+2 -> 4 | L230: =1+1+1+1+1+1+1 -> 7 | M230: =1+1+1+1+1+1 -> 6 | N230: =1+1+1+1+1+1+1 -> 7 | P230: 0.2258064516
A231: OK | B231: Jean Degrasse | F231: x | G231: x | I231: 1 | J231: 3 | K231: 0 | L231: 0 | M231: 0 | P231: 0
B232: Christian Pezzulo | F232: x | G232: x | P232: 0
B233: Vincent Mallette | F233: x | G233: x | P233: 0
B234: Mathieu Desjardins | F234: x | G234: x | P234: 0
B235: TOTAL | I235: =SUM(I215:I234) -> 118 | J235: =SUM(J215:J234) -> 400 | K235: 123 | L235: 166 | M235: 113 | N235: 37 | O235: 5 | P235: =L235/J235 -> 0.415
A237: # | B237: LANCEURS | F237: PJ | G237: V | H237: D | I237: N | J237: ML | K237: P | L237: PM | M237: CS | N237: BB | O237: K | P237: MPM
B238: Marc-André Ouimet | F238: =1+1+1+1 -> 4 | G238: =1+1+1 -> 3 | J238: =4+7+5+4 -> 20 | K238: =4+9+8+6 -> 27 | L238: =1+3+4+3 -> 11 | M238: =7+9+17+7 -> 40 | N238: =2+4+3+1 -> 10 | O238: =2+5+3+2 -> 12 | P238: =IFERROR(7*(L238/J238),"") -> 3.85
B239: Frédéric Desjardins | F239: =1+1+1+1+1+1+1 -> 7 | G239: =1+1+1+1 -> 4 | H239: =1+1 -> 2 | J239: =5+5+6.33+7+7+3+7 -> 40.33 | K239: =8+6+18+12+4+0+5 -> 53 | L239: =8+6+18+5+3+0+2 -> 42 | M239: =12+8+22+16+8+2+8 -> 76 | N239: =2+1+3+1+4+1+2 -> 14 | O239: =2+1+2+2+1 -> 8 | P239: =IFERROR(7*(L239/J239),"") -> 7.289858666
B240: Hugo Beausoleil | F240: =1+1+1+1 -> 4 | H240: =1+1 -> 2 | J240: =1+2+5.67+3 -> 11.67 | K240: =0+6+16+5 -> 27 | L240: =0+1+11+4 -> 16 | M240: =1+9+11+5 -> 26 | N240: =0+9+1 -> 10 | O240: 0 | P240: =IFERROR(7*(L240/J240),"") -> 9.597257926
B241: Carl McLean | F241: =1+1+1 -> 3 | G241: 1 | J241: =1+3+2 -> 6 | K241: =0+9+0 -> 9 | L241: =0+9+0 -> 9 | M241: =0+9+4 -> 13 | N241: =1+6+1 -> 8 | O241: =0+1 -> 1 | P241: =IFERROR(7*(L241/J241),"") -> 10.5
J242: 0 | K242: 0 | L242: 0 | P242: =IFERROR(7*(L242/J242),"") -> 
B243: TOTAL | F243: =SUM(F238:F242) -> 18 | G243: =SUM(G238:G242) -> 8 | H243: 4 | I243: 0 | J243: 78 | K243: 116 | L243: 78 | M243: 155 | N243: 42 | O243: 21 | P243: =(L243*7)/J243 -> 7
A250: Ligue de Balle Molle Voyageurs
A252: =A4 -> Balle Molle Amical Mercredi
A255: GIANTS
A256: # | B256: JOUEURS | F256: C | G256: P | H256: S | I256: PJ | J256: AB | K256: P | L256: CS | M256: PP | N256: BB | O256: CC | P256: MOY
A257: OK | B257: Jonathan Vincent | F257: x | G257: x | I257: 1 | J257: 3 | K257: 1 | L257: 3 | M257: 0 | P257: =IF($J257<>0,L257/$J257,0) -> 1
A258: OK | B258: Benoit Dénommé | F258: x | G258: x | I258: 1 | J258: 2 | K258: 0 | L258: 2 | M258: 1 | P258: 1
B259: François-Michel Proulx | F259: x | G259: x | I259: =1+1+1+1+1+1+1+1+1+1 -> 10 | J259: =4+3+4+3+3+4+4+3+3+3 -> 34 | K259: =1+1+2+2+1+3+2+1 -> 13 | L259: =1+1+2+3+3+4+2+1+2 -> 19 | M259: =0+1+2+3+1+1+1+2+1 -> 12 | N259: 1 | P259: 0.5588235294
B260: Yannick Goulet | F260: x | G260: x | I260: =1+1+1+1+1+1+1+1+1+1 -> 10 | J260: =4+3+5+5+4+5+3+4+4+3 -> 40 | K260: =0+1+3+3+2+1+2+2 -> 14 | L260: =1+2+4+2+2+2+2+2 -> 17 | M260: =0+1+2+1+1+1+1 -> 7 | P260: 0.425
B261: Félix Latraverse | F261: x | G261: x | I261: =1+1+1+1+1+1+1+1+1+1+1+1 -> 12 | J261: =3+2+3+4+3+4+4+3+4+3+4+3 -> 40 | K261: =1+3+1+2+1+1+1+2+1 -> 13 | L261: =2+2+4+2+1+2+1+1+2 -> 17 | M261: =1+1+1+2+3+1+1 -> 10 | N261: =1+1 -> 2 | P261: 0.425
B262: Jocelyn Caron | F262: x | G262: x | I262: =1+1+1 -> 3 | J262: =4+3+3 -> 10 | K262: =1+2 -> 3 | L262: =3+1 -> 4 | M262: =0+1 -> 1 | N262: 1 | P262: 0.4
B263: Jean-Denis Beaulieu | F263: x | G263: x | I263: =1+1+1+1+1+1+1+1+1+1 -> 10 | J263: =4+3+4+3+4+4+3+2+3+3 -> 33 | K263: =2+1+2+1+2+1+2+1 -> 12 | L263: =3+2+2+2+1+2+1 -> 13 | M263: =1+1+1+3+1+1 -> 8 | N263: =1+1+2+1 -> 5 | O263: =1+1 -> 2 | P263: 0.3939393939
B264: Guillaume Pagé | F264: x | G264: x | I264: =1+1+1+1+1+1+1+1+1+1+1 -> 11 | J264: =3+3+4+4+4+4+3+2+3+4+3 -> 37 | K264: =0+1+2+1+1+1+1+1 -> 8 | L264: =0+1+1+1+2+3+1+1+1+1+2 -> 14 | M264: =0+1+1+2+1+1+1+2+1 -> 10 | N264: 1 | P264: 0.3783783784
B265: Dominic Frappier | F265: x | G265: x | I265: =1+1+1+1+1+1+1+1+1+1 -> 10 | J265: =4+3+4+4+4+4+3+3+3+3 -> 35 | K265: =1+1+1+2+1+2 -> 8 | L265: =2+1+2+1+2+1+1+2+1 -> 13 | M265: =2+2+1+1+2+1+1 -> 10 | N265: =1+1 -> 2 | P265: 0.3714285714
B266: Tomy Drolet | F266: x | G266: x | I266: =1+1+1+1+1+1+1+1+1+1 -> 10 | J266: =3+2+3+3+2+4+3+2+2+3 -> 27 | K266: =0+2+1+1+1+1+1 -> 7 | L266: =1+2+1+2+1+1+1+1 -> 10 | M266: =2+1+1 -> 4 | N266: =1+1+1+1+1+1+2 -> 8 | P266: 0.3703703704
B267: Patrick Lefebvre | F267: x | G267: x | I267: =1+1+1+1+1+1+1+1+1+1 -> 10 | J267: =3+3+3+3+3+4+3+3+3+2 -> 30 | K267: =1+2+1+2+1 -> 7 | L267: =1+1+1+1+1+2+1+2+1 -> 11 | M267: =2+2+2+2+1+1+2+1 -> 13 | N267: =1+1+1 -> 3 | P267: 0.3666666667
B268: Dave Dupont | F268: x | G268: x | I268: =1+1+1 -> 3 | J268: =3+3+3 -> 9 | K268: =0+1 -> 1 | L268: =1+2 -> 3 | M268: 1 | P268: 0.3333333333
B269: Stéphane Paquin | F269: x | G269: x | I269: =1+1+1+1+1+1+1+1+1+1+1 -> 11 | J269: =2+3+4+3+4+3+2+3+3+2+2 -> 31 | K269: =1+1+1+1+1 -> 5 | L269: =2+1+1+1+1+1+1+1 -> 9 | M269: =0+1+1+1+1+2 -> 6 | N269: =1+1+1+1+1 -> 5 | P269: 0.2903225806
B270: Benjamin Noel | F270: x | G270: x | I270: =1+1+1+1+1+1+1+1 -> 8 | J270: =4+1+2+3+4+3+4+4 -> 25 | K270: =1+3+1+3+1+1+1 -> 11 | L270: =0+1+1+1+1+2+1 -> 7 | M270: =0+2+1+2+1+1 -> 7 | N270: =3+1 -> 4 | P270: 0.28
B271: Félix Doston | F271: x | G271: x | I271: =1+1+1+1+1 -> 5 | J271: =3+4+3+4+1 -> 15 | K271: =1+2+2 -> 5 | L271: =1+2+1 -> 4 | M271: =0+2+1 -> 3 | N271: 1 | P271: 0.2666666667
B272: Dominic Deshaies | F272: x | G272: x | I272: =1+1+1+1 -> 4 | J272: =3+3+3+2 -> 11 | K272: 1 | L272: =1+1 -> 2 | M272: 0 | N272: 1 | P272: 0.1818181818
B273: Nikolas Dufour | F273: x | G273: x | I273: =1+1 -> 2 | J273: =3+3 -> 6 | K273: 0 | L273: 0 | M273: 0 | P273: 0
B274: Patrick Lemieux | F274: x | G274: x | P274: 0
B275: Steve Murray | F275: x | G275: x | P275: 0
B276: Carl Bellehumeur-Brouillard | F276: x | G276: x | P276: 0
B277: TOTAL | I277: =SUM(I257:I276) -> 121 | J277: =SUM(J257:J276) -> 388 | K277: 109 | L277: 148 | M277: 93 | N277: 34 | O277: 2 | P277: =L277/J277 -> 0.381443299
... 71 more rows

Sheet Amical Jeudi A
A2: Ligue de Balle Molle Voyageurs
A4: Balle Molle Amical Jeudi A
G6: FINAL
A7: Dernière mise à jour : | D7: 2019-09-03
A10: CLASSEMENT AMICAL JEUDI A
A11: POS | B11: ÉQUIPE | H11: PJ | I11: V | J11: D | K11: N | L11: PP | M11: PC | N11: PTS | O11: DIFF | P11: MOY
A12: 1 | B12: C-Les As | H12: =1+1+1+1+1+1+1+1+1+1+1+1 -> 12 | I12: =1+1+1+1+1+1+1+1+1 -> 9 | J12: =0+1+1 -> 2 | K12: =0+1 -> 1 | L12: =7+10+4+19+8+14+17+11+11+7+14+10 -> 132 | M12: =5+8+9+3+9+3+3+4+7+0+8+10 -> 69 | N12: =I12*2+K12*1 -> 19 | O12: =L12-M12 -> 63 | P12: =IF(H12<>0,(2*I12+K12)/(2*H12),0) -> 0.7916666667
A13: =A12+1 -> 2 | B13: Oompa Loompa | H13: 12 | I13: =0+1+1+1+1+1+1+1 -> 7 | J13: =1+1+1+1 -> 4 | K13: =0+1 -> 1 | L13: =8+9+17+16+17+20+7+2+19+11+17+10 -> 153 | M13: =10+15+16+11+12+7+4+7+6+12+3+10 -> 113 | N13: 15 | O13: 40 | P13: 0.625
A14: =A13+1 -> 3 | B14: Souverains | H14: 12 | I14: =0+1+1+1+1+1+1+1 -> 7 | J14: =1+1+1+1 -> 4 | K14: =0+1 -> 1 | L14: =5+3+15+5+12+11+10+9+22+4+12+5 -> 113 | M14: =7+1+9+12+5+5+9+3+13+11+16+5 -> 96 | N14: 15 | O14: 17 | P14: 0.625
A15: 4 | B15: Here for Beer | H15: 12 | I15: =0+1+1+1+1+1+1 -> 6 | J15: =1+1+1+1+1 -> 5 | K15: =0+1 -> 1 | L15: =1+9+0+11+14+9+8+4+22+11+18+5 -> 112 | M15: =3+4+7+16+2+6+15+7+6+1+8+5 -> 80 | N15: 13 | O15: 32 | P15: 0.5416666667
A16: 5 | B16: Los Hermanos | H16: 12 | I16: =1+1+1+1+1+1 -> 6 | J16: =0+1+1+1+1+1+1 -> 6 | K16: 0 | L16: =11+9+12+2+6+7+16+16+4+12+8+16 -> 119 | M16: =4+16+5+14+9+20+10+12+16+11+14+10 -> 141 | N16: 12 | O16: -22 | P16: 0.5
A17: 6 | B17: Mme Sutto | H17: 12 | I17: =1+1+1+1+1 -> 5 | J17: =0+1+1+1+1+1+1+1 -> 7 | K17: 0 | L17: =21+8+16+9+3+3+13+22+7+8+3+3 -> 116 | M17: =8+15+9+8+14+9+22+3+2+18+7+17 -> 132 | N17: 10 | O17: -16 | P17: 0.4166666667
A18: 7 | B18: Nationals | H18: 12 | I18: =1+1+1+1 -> 4 | J18: =0+1+1+1+1+1+1+1+1 -> 8 | K18: 0 | L18: =15+6+5+12+15+10+7+1+6+16+0+7 -> 100 | M18: =8+10+12+17+8+16+11+11+19+4+7+3 -> 126 | N18: 8 | O18: -26 | P18: 0.3333333333
A19: 8 | B19: Verdons | H19: 12 | I19: =0+1+1 -> 2 | J19: =1+1+1+1+1+1+1+1+1+1 -> 10 | K19: 0 | L19: =8+4+3+10+7+16+5+9+3+3+6+10 -> 84 | M19: =21+11+19+6+0+17+11+10+17+22+22+16 -> 172 | N19: 4 | O19: -88 | P19: 0.1666666667
B21: TOTAL | H21: =SUM(H12:H19) -> 96 | I21: 46 | J21: 46 | K21: 4 | L21: 929 | M21: 929 | N21: 96 | O21: 0 | P21: =(I21+(K21*0.5))/H21 -> 0.5
A40: Ligue de Balle Molle Voyageurs
A42: =A4 -> Balle Molle Amical Jeudi A
A45: HERE FOR BEER
A46: # | B46: JOUEURS | F46: C | G46: P | H46: S | I46: PJ | J46: AB | K46: P | L46: CS | M46: PP | N46: BB | O46: CC | P46: MOY
B47: Michel Landry | F47: x | G47: x | I47: =1+1+1+1+1+1+1+1+1+1+1 -> 11 | J47: =2+3+2+2+3+4+2+2+2+3+3 -> 28 | K47: =0+3+1+1+3+1+1 -> 10 | L47: =1+1+2+2+3+1+2+2+2+1 -> 17 | M47: =0+1+4+2+2+1+1 -> 11 | N47: =2+1+1+1+2+1 -> 8 | P47: =IF($J47<>0,L47/$J47,0) -> 0.6071428571
B48: Jonatan Gagnon | F48: x | G48: x | I48: =1+1+1+1+1+1+1+1+1+1+1 -> 11 | J48: =2+3+4+3+4+4+3+4+2+2+3 -> 34 | K48: =0+2+1+3+3+1+1+3+3+4+1 -> 22 | L48: =1+3+1+3+2+2+1+2+2+2+1 -> 20 | M48: =0+3+2+3+2+4+3+1 -> 18 | N48: =1+1+1+2 -> 5 | O48: =1+1+1 -> 3 | P48: 0.5882352941
B49: Kevin Bourbonnais | F49: x | G49: x | I49: =1+1+1+1+1+1+1+1 -> 8 | J49: =4+1+4+3+3+5+3+3 -> 26 | K49: =1+1+2+2+1+2+2 -> 11 | L49: =1+4+2+2+3+1+2 -> 15 | M49: =0+5+2+1+1+1 -> 10 | N49: =2+1+1 -> 4 | O49: =1+1 -> 2 | P49: 0.5769230769
B50: Danny Boucher | F50: x | G50: x | I50: =1+1+1+1 -> 4 | J50: =3+4+2+3 -> 12 | K50: =0+2+1+1 -> 4 | L50: =1+2+1+2 -> 6 | M50: =0+2+3 -> 5 | O50: =1+1 -> 2 | P50: 0.5
B51: Alexander Fox | F51: x | G51: x | I51: =1+1+1 -> 3 | J51: =3+4+2 -> 9 | K51: =2+2+1 -> 5 | L51: =1+2+1 -> 4 | M51: =0+3+2 -> 5 | N51: 1 | O51: 2 | P51: 0.4444444444
B52: Thierry Marcoux | F52: x | G52: x | I52: =1+1+1+1+1+1+1+1+1+1 -> 10 | J52: =3+3+4+3+4+2+4+3+3+3 -> 32 | K52: =1+2+3+1+1+3+1+2+1 -> 15 | L52: =1+1+2+1+1+2+2+3+1 -> 14 | M52: =0+1+1+1+3+1 -> 7 | N52: =1+1 -> 2 | P52: 0.4375
B53: Jean-Philippe Arseneault | F53: x | G53: x | I53: =1+1+1+1+1+1+1+1+1 -> 9 | J53: =3+4+4+3+3+3+3+3 -> 26 | K53: =0+2+2+1+3+2+1 -> 11 | L53: =0+3+1+1+1+3+2 -> 11 | M53: =0+1+1+1+3 -> 6 | N53: =3+1+1 -> 5 | P53: 0.4230769231
B54: Frédérick Boileau | F54: x | G54: x | I54: =1+1+1+1+1+1+1+1+1 -> 9 | J54: =3+3+3+3+3+3+3+3+1 -> 25 | K54: =0+1+2 -> 3 | L54: =1+1+1+1+1+3+2 -> 10 | M54: =0+3+2+1 -> 6 | N54: =1+1 -> 2 | P54: 0.4
B55: Martin Breton | F55: x | G55: x | I55: =1+1 -> 2 | J55: =2+3 -> 5 | K55: 1 | L55: =1+1 -> 2 | M55: 0 | P55: 0.4
B56: Anthony Pelletier | F56: x | G56: x | I56: =1+1 -> 2 | J56: =3+2 -> 5 | K56: =1+1 -> 2 | L56: 2 | M56: 3 | P56: 0.4
B57: Benjamin Gauthier | F57: x | G57: x | I57: =1+1+1+1+1 -> 5 | J57: =2+3+2+4+3 -> 14 | K57: =1+2+1 -> 4 | L57: =1+2+2 -> 5 | M57: =1+1+2 -> 4 | N57: 1 | P57: 0.3571428571
B58: Marc-André Beaulieu | F58: x | G58: x | I58: =1+1+1+1+1+1+1 -> 7 | J58: =3+3+3+4+5+4+3 -> 25 | K58: =0+1+2+1+1+2 -> 7 | L58: =0+2+2+1+2+1 -> 8 | M58: =1+3+2+1 -> 7 | O58: 1 | P58: 0.32
B59: Mark Lacroix | F59: x | G59: x | I59: =1+1+1+1+1+1+1+1+1+1+1 -> 11 | J59: =3+3+3+3+3+3+3+3+2+3+3 -> 32 | K59: =0+2+1+2+1 -> 6 | L59: =0+2+2+1+2+1+2 -> 10 | M59: =0+1+2+5+1 -> 9 | N59: =1+1+1+1 -> 4 | O59: 1 | P59: 0.3125
B60: Arnaud Richer | F60: x | G60: x | I60: =1+1+1+1 -> 4 | J60: =3+2+2+3 -> 10 | K60: =0+1+1+1 -> 3 | L60: =0+2+1 -> 3 | M60: =0+2+2 -> 4 | N60: 1 | P60: 0.3
B61: Louis Deslauriers | F61: x | G61: x | I61: =1+1+1+1+1+1+1+1 -> 8 | J61: =2+3+3+3+5+1+4+3 -> 24 | K61: =0+1+2+1+1+1 -> 6 | L61: =0+1+1+2+2 -> 6 | M61: =0+1+3+1 -> 5 | N61: =1+1 -> 2 | O61: 1 | P61: 0.25
B62: Nikolas Aubertin | F62: x | G62: x | I62: =1+1 -> 2 | J62: =3+3 -> 6 | K62: 0 | L62: 1 | M62: 4 | O62: 1 | P62: 0.1666666667
B63: Hanahem Mehdi | F63: x | G63: x | I63: =1+1+1+1+1 -> 5 | J63: =3+2+3+2+4 -> 14 | K63: =0+1+1 -> 2 | L63: =0+1 -> 1 | M63: 1 | N63: =1+1 -> 2 | P63: 0.07142857143
A64: OK | B64: Félix Gagnon | F64: x | G64: x | I64: 1 | J64: 3 | K64: 0 | L64: 0 | M64: 0 | P64: 0
B65: Jean-Philippe Chicoine | F65: x | G65: x | P65: 0
P66: 0
B67: TOTAL | I67: =SUM(I47:I66) -> 112 | J67: =SUM(J47:J66) -> 330 | K67: 112 | L67: 135 | M67: 105 | N67: 37 | O67: 13 | P67: =L67/J67 -> 0.4090909091
A69: # | B69: LANCEURS | F69: PJ | G69: V | H69: D | I69: N | J69: ML | K69: P | L69: PM | M69: CS | N69: BB | O69: K | P69: MPM
B70: Michel Landry | F70: =1+1+1+1+1+1+1+1+1 -> 9 | G70: =1+1+1+1+1+1 -> 6 | H70: =1+1 -> 2 | I70: 1 | J70: =7+5+7+7+5.67+5+3+7+6 -> 52.67 | K70: =4+2+6+15+7+6+1+8+5 -> 54 | L70: =2+2+3+2+7+5+1+5+5 -> 32 | M70: =10+6+10+9+13+13+4+10+6 -> 81 | N70: =2+2+5+2+1+1+1+4 -> 18 | O70: =1+1+2+2+2+1+1+2 -> 12 | P70: =IFERROR(7*(L70/J70),"") -> 4.252895386
B71: Jean-Philippe Arseneault | F71: =1+1 -> 2 | H71: =1+1 -> 2 | J71: =7+5.67 -> 12.67 | K71: =3+16 -> 19 | L71: =3+12 -> 15 | M71: =12+20 -> 32 | N71: =0+1 -> 1 | O71: =0+2 -> 2 | P71: =IFERROR(7*(L71/J71),"") -> 8.287292818
J72: 0 | K72: 0 | L72: 0 | P72: =IFERROR(7*(L72/J72),"") -> 
J73: 0 | K73: 0 | L73: 0 | P73: =IFERROR(7*(L73/J73),"") -> 
B74: DÉFAUT | F74: 1 | H74: 1 | J74: 0 | K74: 7 | L74: 0 | P74: =IFERROR(7*(L74/J74),"") -> 
B75: TOTAL | F75: =SUM(F70:F74) -> 12 | G75: =SUM(G70:G74) -> 6 | H75: 5 | I75: 1 | J75: 65.34 | K75: 80 | L75: 47 | M75: 113 | N75: 19 | O75: 14 | P75: =(L75*7)/J75 -> 5.03520049
A82: Ligue de Balle Molle Voyageurs
A84: =A4 -> Balle Molle Amical Jeudi A
A87: LES AS
A88: # | B88: JOUEURS | F88: C | G88: P | H88: S | I88: PJ | J88: AB | K88: P | L88: CS | M88: PP | N88: BB | O88: CC | P88: MOY
A89: OK | B89: Jean-Sébastien Gaulin | F89: x | G89: x | I89: 1 | J89: 4 | K89: 2 | L89: 3 | M89: 0 | P89: =IF($J89<>0,L89/$J89,0) -> 0.75
B90: Francis Arsenault | F90: x | G90: x | I90: =1+1+1+1+1+1+1+1+1+1+1 -> 11 | J90: =3+2+3+4+3+4+2+4+4+5+3 -> 37 | K90: =1+2+4+1+3+2+2+1+1+1 -> 18 | L90: =1+1+4+2+4+1+2+4+3+2 -> 24 | M90: =4+4+1+3+2+2+4+3 -> 23 | N90: =2+1 -> 3 | O90: =1+1 -> 2 | P90: 0.6486486486
B91: Olivier Racine | F91: x | G91: x | I91: =1+1+1+1+1+1+1+1+1+1+1 -> 11 | J91: =3+3+3+2+4+4+2+4+3+5+2 -> 35 | K91: =2+3+1+2+1+3+2+3+2+3+2 -> 24 | L91: =2+2+3+2+4+1+3+1+3 -> 21 | M91: =0+3+5+2+2+3+2 -> 17 | N91: =1+1+1+1+1+1+2 -> 8 | O91: 1 | P91: 0.6
B92: Nuno Abreu | F92: x | G92: x | I92: =1+1+1+1+1+1+1+1 -> 8 | J92: =3+2+3+4+3+4+2+3 -> 24 | K92: =1+1+3+1+3+3 -> 12 | L92: =2+2+3+1+3+2+1 -> 14 | M92: =1+2+4+2+2+2 -> 13 | N92: =1+1 -> 2 | O92: 1 | P92: 0.5833333333
A93: OK | B93: Benoit Houle Ronald | F93: x | G93: x | I93: 1 | J93: 4 | K93: 1 | L93: 2 | M93: 1 | P93: 0.5
B94: Charles-Alexandre Altimas | F94: x | G94: x | I94: =1+1+1+1+1+1+1+1+1+1 -> 10 | J94: =3+2+3+2+2+2+3+3+4+0 -> 24 | K94: =1+2+2+3+1+1+2 -> 12 | L94: =1+1+1+2+1+1+4 -> 11 | M94: =1+2+2+1+5+2+4+1 -> 18 | N94: =1+1+1+1+3 -> 7 | O94: =1+1 -> 2 | P94: 0.4583333333
B95: Martin Archambault | F95: x | G95: x | I95: =1+1+1+1+1+1+1+1+1 -> 9 | J95: =3+3+4+3+4+3+4+3+4 -> 31 | K95: =0+1+2+1+1+2+1+1 -> 9 | L95: =2+2+1+3+3+2+1 -> 14 | M95: =0+1+2+2+1 -> 6 | N95: 1 | P95: 0.4516129032
B96: Sébastien Potvin | F96: x | G96: x | I96: =1+1+1+1+1+1+1+1+1 -> 9 | J96: =3+2+4+3+3+3+2+5+2 -> 27 | K96: =1+1+2+2+1+1+3+2 -> 13 | L96: =2+1+1+2+1+1+1+2+1 -> 12 | M96: =2+1+2+1+1 -> 7 | N96: =2+1+2+2 -> 7 | P96: 0.4444444444
B97: Benoit Richard | F97: x | G97: x | I97: =1+1+1+1+1+1+1+1+1+1 -> 10 | J97: =2+3+3+3+2+2+3+4+4+3 -> 29 | K97: =2+1+1+2+1+1+1+1 -> 10 | L97: =2+1+2+1+2+1+2+1 -> 12 | M97: =1+2+1+2+2 -> 8 | N97: =1+1+1+3 -> 6 | P97: 0.4137931034
B98: Bruno Frenette | F98: x | G98: x | I98: =1+1+1+1+1+1+1+1+1+1+1 -> 11 | J98: =3+2+2+3+3+4+2+4+4+4+4 -> 35 | K98: =0+2+1 -> 3 | L98: =1+1+2+3+2+3 -> 12 | M98: =0+3+1+2+4 -> 10 | N98: =1+1 -> 2 | P98: 0.3428571429
B99: Sylvain Longtin | F99: x | G99: x | I99: =1+1+1+1+1+1+1 -> 7 | J99: =3+3+2+3+3+3+2 -> 19 | K99: =1+1+1+1 -> 4 | L99: =1+1+1+2 -> 5 | M99: =1+1+2 -> 4 | N99: 1 | P99: 0.2631578947
B100: Luc Bélair | F100: x | G100: x | I100: =1+1+1+1+1+1+1+1+1+1 -> 10 | J100: =3+3+2+3+4+2+3+4+0 -> 24 | K100: =0+2+1+1 -> 4 | L100: =1+2+1+1+1 -> 6 | M100: =1+1+1+1 -> 4 | N100: =1+1+1+2 -> 5 | P100: 0.25
B101: Martin Boucher | F101: x | G101: x | I101: =1+1 -> 2 | J101: =1+3 -> 4 | K101: =0+2 -> 2 | L101: =0+1 -> 1 | M101: 0 | N101: 1 | P101: 0.25
B102: Olivier Parenteau | F102: x | G102: x | I102: =1+1+1+1+1+1+1+1+1+1+1 -> 11 | J102: =2+2+3+2+1+2+2+4+3+3+3 -> 27 | K102: =0+1+3+1+1+2+1 -> 9 | L102: =0+1+2+1+1+1 -> 6 | M102: =0+1+2+1 -> 4 | N102: =1+2+2+1+1+1 -> 8 | P102: 0.2222222222
B103: André Lachapelle | F103: x | G103: x | I103: =1+1+1+1+1+1 -> 6 | J103: =1+3+1 -> 5 | K103: 0 | L103: =0+1 -> 1 | M103: =0+2 -> 2 | N103: 1 | P103: 0.2
B104: Ronald Racicot | F104: x | G104: x | I104: =1+1 -> 2 | J104: =3+3 -> 6 | K104: =0+2 -> 2 | L104: 1 | M104: 0 | N104: =1+2 -> 3 | P104: 0.1666666667
B105: Patrick Bélanger | F105: x | G105: x | P105: 0
B106: Antoine Piché | F106: x | G106: x | P106: 0
B107: Sébastien Gagné | F107: x | G107: x | P107: 0
B108: Patrick Wilson | F108: x | G108: x | P108: 0
B109: TOTAL | I109: =SUM(I89:I108) -> 119 | J109: =SUM(J89:J108) -> 335 | K109: 125 | L109: 145 | M109: 117 | N109: 55 | O109: 6 | P109: =L109/J109 -> 0.4328358209
A111: # | B111: LANCEURS | F111: PJ | G111: V | H111: D | I111: N | J111: ML | K111: P | L111: PM | M111: CS | N111: BB | O111: K | P111: MPM
B112: Benoit Houle Ronald | F112: 1 | G112: 1 | J112: 5.67 | K112: 4 | L112: 0 | M112: 6 | N112: 2 | O112: 3 | P112: =IFERROR(7*(L112/J112),"") -> 0
B113: André Lachapelle | F113: =1+1+1+1+1+1 -> 6 | G113: =1+1 -> 2 | I113: 1 | J113: =1+5+2+6+1+2 -> 17 | K113: =2+4+0+3+1+0 -> 10 | L113: =2+1+0+2+1+0 -> 6 | M113: =2+2+1+6+2+0 -> 13 | N113: =2+4+1+2+2 -> 11 | O113: =0+4+1+4+3 -> 12 | P113: =IFERROR(7*(L113/J113),"") -> 2.470588235
B114: Charles-Alexandre Altimas | F114: =1+1+1+1+1+1 -> 6 | G114: =1+1 -> 2 | H114: 1 | J114: =4+6+2+1.33+6.33+3.67 -> 23.33 | K114: =3+9+2+0+8+10 -> 32 | L114: =0+2+1+0+5+10 -> 18 | M114: =3+9+2+1+13+10 -> 38 | N114: =4+6+4+6+6 -> 26 | O114: =3+3+1+2 -> 9 | P114: =IFERROR(7*(L114/J114),"") -> 5.400771539
B115: Sylvain Longtin | F115: =1+1+1 -> 3 | G115: 1 | H115: 1 | J115: =6+4+1.67 -> 11.67 | K115: =3+9+0 -> 12 | L115: =3+8+0 -> 11 | M115: =7+12+3 -> 22 | N115: =2+1 -> 3 | O115: =0+1 -> 1 | P115: =IFERROR(7*(L115/J115),"") -> 6.598114824
B116: Nuno Abreu | F116: =1+1+1 -> 3 | G116: =1+1 -> 2 | J116: =2+1+3+4.33 -> 10.33 | K116: =4+0+1+6 -> 11 | L116: =4+0+1+6 -> 11 | M116: =4+2+1+8 -> 15 | N116: =2+1+2 -> 5 | O116: =0+1+1 -> 2 | P116: =IFERROR(7*(L116/J116),"") -> 7.454017425
B117: TOTAL | F117: =SUM(F112:F116) -> 19 | G117: =SUM(G112:G116) -> 8 | H117: 2 | I117: 1 | J117: 68 | K117: 69 | L117: 46 | M117: 94 | N117: 47 | O117: 27 | P117: =(L117*7)/J117 -> 4.735294118
B118: DÉFAUT | F118: 1 | G118: 1 | J118: 7
A124: Ligue de Balle Molle Voyageurs
A126: =A4 -> Balle Molle Amical Jeudi A
A129: LOS HERMANOS
A130: # | B130: JOUEURS | F130: C | G130: P | H130: S | I130: PJ | J130: AB | K130: P | L130: CS | M130: PP | N130: BB | O130: CC | P130: MOY
B131: Daniel Dupuis | F131: x | G131: x | I131: =1+1 -> 2 | J131: =3+3 -> 6 | K131: =0+4 -> 4 | L131: =1+3 -> 4 | M131: =1+2 -> 3 | N131: 2 | P131: =IF($J131<>0,L131/$J131,0) -> 0.6666666667
B132: Antoine Abou-Mourad | F132: x | G132: x | I132: =1+1+1+1+1+1+1+1+1 -> 9 | J132: =4+2+4+4+5+3+4+4+4 -> 34 | K132: =0+1+1+2+2+2+2+1 -> 11 | L132: =3+2+3+3+2+3+3+2 -> 21 | M132: =2+1+2+1+2+1+1 -> 10 | N132: =2+2 -> 4 | P132: 0.6176470588
A133: OK | B133: Charles-Olivier Beaudet | F133: x | G133: x | I133: 1 | J133: 5 | K133: 5 | L133: 3 | M133: 0 | P133: 0.6
B134: Emmanuel St-Pierre | F134: x | G134: x | I134: =1+1+1+1+1+1+1+1+1+1 -> 10 | J134: =4+4+5+2+3+5+4+4+4+3 -> 38 | K134: =2+2+2+3+1+1+1 -> 12 | L134: =2+3+4+1+1+4+1+1+2+2 -> 21 | M134: =0+2+4+1+2+3+3 -> 15 | N134: 1 | O134: 1 | P134: 0.5526315789
B135: Martin Beaudry | F135: x | G135: x | H135: 1 | I135: =1+1+1+1+1+1+1+1 -> 8 | J135: =3+2+2+3+4+5+1+2 -> 22 | K135: =0+2+2+3 -> 7 | L135: =1+1+1+2+2+3+1 -> 11 | M135: =1+1+2+2+1 -> 7 | N135: =1+2+3 -> 6 | P135: 0.5
B136: Louis-Philippe Landriault | F136: x | G136: x | I136: =1+1+1+1+1+1+1+1+1+1 -> 10 | J136: =3+2+4+2+3+4+4+4+4+3 -> 33 | K136: =1+1+3+2+2+2+1+1 -> 13 | L136: =2+2+3+1+2+2+2+1 -> 15 | M136: =0+1+3+1+2+1 -> 8 | N136: =2+1 -> 3 | O136: 1 | P136: 0.4545454545
B137: Sylvain Dubois | F137: x | G137: x | I137: =1+1+1+1+1+1+1 -> 7 | J137: =2+3+4+3+3+2+3 -> 20 | K137: =1+1+3+2+1 -> 8 | L137: =1+1+1+2+2+1+1 -> 9 | M137: =1+1+1 -> 3 | N137: =2+1+1+2+1 -> 7 | P137: 0.45
B138: Dave Lessard | F138: x | G138: x | I138: =1+1+1+1+1+1+1+1+1+1+1+1 -> 12 | J138: =3+2+5+2+3+4+5+4+3+3+3+4 -> 41 | K138: =2+2+1+1+1+1+2+2+1 -> 13 | L138: =1+1+3+1+1+2+2+2+2+2+1 -> 18 | M138: =0+3+3+1+1+1+1+1 -> 11 | N138: =1+1+1+1+1+1+1 -> 7 | O138: 1 | P138: 0.4390243902
B139: Iannick Cassetti | F139: x | G139: x | I139: =1+1+1+1+1+1+1+1+1+1+1 -> 11 | J139: =4+5+5+2+4+3+5+4+4+4+4 -> 44 | K139: =2+1+2+1+2+2+1+1+1 -> 13 | L139: =2+2+2+1+2+1+3+2+2+1 -> 18 | M139: =1+1+1+1+2+1+2 -> 9 | N139: =1+1 -> 2 | O139: =1+1 -> 2 | P139: 0.4090909091
A140: OK | B140: Jean-François Bédard | F140: x | G140: x | I140: 1 | J140: 5 | K140: 0 | L140: 2 | M140: 3 | P140: 0.4
B141: Sacha Bergeron | F141: x | G141: x | I141: =1+1+1 -> 3 | J141: =2+4+2 -> 8 | K141: =2+1+1 -> 4 | L141: =1+1+1 -> 3 | M141: =1+1+4 -> 6 | N141: =1+2 -> 3 | P141: 0.375
B142: Jean-François Janel | F142: x | G142: x | I142: =1+1+1+1+1+1+1 -> 7 | J142: =4+3+2+3+4+3+3 -> 22 | K142: =1+1+2+1+1+1 -> 7 | L142: =2+1+2+1+2 -> 8 | M142: =3+1+1 -> 5 | N142: 1 | P142: 0.3636363636
B143: Maxime Truman | F143: x | G143: x | I143: =1+1+1+1+1+1+1 -> 7 | J143: =4+3+3+3+4+3+4 -> 24 | K143: =1+2+1+1 -> 5 | L143: =1+1+2+1+1+2 -> 8 | M143: =1+1+1+3 -> 6 | N143: =1+1+1 -> 3 | P143: 0.3333333333
B144: Steve St-Pierre | F144: x | G144: x | I144: =1+1+1+1 -> 4 | J144: =3+3+4+2 -> 12 | K144: =1+1+1 -> 3 | L144: =1+2+1 -> 4 | M144: =0+2 -> 2 | N144: 2 | P144: 0.3333333333
B145: Dominique Forget | F145: x | G145: x | I145: =1+1 -> 2 | J145: =3+3 -> 6 | K145: 2 | L145: 2 | M145: 2 | P145: 0.3333333333
B146: Gilbert Pelland | F146: x | G146: x | I146: =1+1+1+1+1+1+1+1+1+1+1 -> 11 | J146: =4+3+2+3+4+4+4+4+4+4+4 -> 40 | K146: =0+1+1+1+2+1+1 -> 7 | L146: =0+1+1+2+1+1+2+2+2+1 -> 13 | M146: =1+2+3+1+3 -> 10 | N146: =1+1+1 -> 3 | P146: 0.325
B147: Jonathan Béliveau | F147: x | G147: x | I147: =1+1+1+1+1 -> 5 | J147: =2+2+4+4+2 -> 14 | K147: =0+1+1 -> 2 | L147: =0+1+3 -> 4 | M147: =0+1+4+1 -> 6 | N147: =2+1 -> 3 | P147: 0.2857142857
B148: Maxime Alarie | F148: x | G148: x | I148: =1+1+1+1+1+1+1 -> 7 | J148: =4+0+2+3+2+3+2 -> 16 | K148: =0+1+1 -> 2 | L148: =0+1+1+1 -> 3 | M148: =0+1+1 -> 2 | N148: =4+1+3 -> 8 | P148: 0.1875
B149: Sébastien Boisvert | F149: x | G149: x | P149: 0
B150: Frédéric Béliveau | F150: x | G150: x | P150: 0
B151: TOTAL | I151: =SUM(I131:I150) -> 117 | J151: =SUM(J131:J150) -> 390 | K151: 118 | L151: 167 | M151: 108 | N151: 55 | O151: 5 | P151: =L151/J151 -> 0.4282051282
A153: # | B153: LANCEURS | F153: PJ | G153: V | H153: D | I153: N | J153: ML | K153: P | L153: PM | M153: CS | N153: BB | O153: K | P153: MPM
B154: Steve St-Pierre | F154: =1+1+1+1 -> 4 | G154: =1+1 -> 2 | H154: =1+1 -> 2 | J154: =7+6.33+1+6 -> 20.33 | K154: =4+9+0+14 -> 27 | L154: =2+8+0+5 -> 15 | M154: =9+14+1+15 -> 39 | N154: =1+3+1+4 -> 9 | O154: =1+1 -> 2 | P154: =IFERROR(7*(L154/J154),"") -> 5.164781112
B155: Martin Beaudry | F155: =1+1+1 -> 3 | G155: =1+1 -> 2 | H155: 1 | J155: =6.67+7+7 -> 20.67 | K155: =16+10+10 -> 36 | L155: =13+9+2 -> 24 | M155: =23+19+9 -> 51 | N155: =2+2+2 -> 6 | O155: 1 | P155: =IFERROR(7*(L155/J155),"") -> 8.127721335
B156: Sylvain Dubois | F156: =1+1+1+1+1+1 -> 6 | G156: =1+1 -> 2 | H156: =1+1 -> 2 | J156: =7+5+7+6.67+6 -> 31.67 | K156: =5+16+12+16+11 -> 60 | L156: =5+10+9+16+1 -> 41 | M156: =12+16+16+20+13 -> 77 | N156: =1+3+2+2 -> 8 | O156: =1+2+1 -> 4 | P156: =IFERROR(7*(L156/J156),"") -> 9.062203979
B157: Jean-François Janel | F157: 1 | J157: 1 | K157: 4 | L157: 4 | M157: 4 | N157: 2 | O157: 0 | P157: =IFERROR(7*(L157/J157),"") -> 28
B158: Jonathan Béliveau | F158: 1 | H158: 1 | J158: 2.67 | K158: 14 | L158: 13 | M158: 14 | N158: 5 | O158: 0 | P158: =IFERROR(7*(L158/J158),"") -> 34.082397
B159: TOTAL | F159: =SUM(F154:F158) -> 15 | G159: =SUM(G154:G158) -> 6 | H159: 6 | I159: 0 | J159: 76.34 | K159: 141 | L159: 97 | M159: 185 | N159: 30 | O159: 7 | P159: =(L159*7)/J159 -> 8.894419701
A166: Ligue de Balle Molle Voyageurs
A168: =A4 -> Balle Molle Amical Jeudi A
A171: MME SUTTO
A172: # | B172: JOUEURS | F172: C | G172: P | H172: S | I172: PJ | J172: AB | K172: P | L172: CS | M172: PP | N172: BB | O172: CC | P172: MOY
B173: Mario Boucher | F173: x | G173: x | I173: =1+1+1+1 -> 4 | J173: =4+3+5+4 -> 16 | K173: =2+3+1 -> 6 | L173: =3+1+3+4 -> 11 | M173: =1+1+2+2 -> 6 | O173: =1+1 -> 2 | P173: =IF($J173<>0,L173/$J173,0) -> 0.6875
B174: Bruno Pierre Pelletier | F174: x | G174: x | I174: =1+1+1 -> 3 | J174: =5+3+3 -> 11 | K174: =3+2+2 -> 7 | L174: =4+2+1 -> 7 | M174: 3 | N174: 1 | P174: 0.6363636364
B175: Stéphane Maltais | F175: x | G175: x | I175: =1+1+1+1+1+1+1+1 -> 8 | J175: =2+4+4+5+5+2+3+3 -> 28 | K175: =1+1+2+2+2+1+1 -> 10 | L175: =1+3+2+3+3+2+1+1 -> 16 | M175: =0+4+1+2+5+1+2 -> 15 | N175: =2+2 -> 4 | O175: =2+1+1 -> 4 | P175: 0.5714285714
B176: Olivier Poulin | F176: x | G176: x | I176: =1+1+1+1+1+1+1 -> 7 | J176: =4+4+3+3+3+5+4 -> 26 | K176: =3+3+2+2+4 -> 14 | L176: =2+2+2+1+1+2+3 -> 13 | M176: =5+3+2+1+1+6 -> 18 | N176: =1+1+1 -> 3 | O176: =2+2+1+2 -> 7 | P176: 0.5
B177: Julien Marchand | F177: x | G177: x | I177: =1+1 -> 2 | J177: =3+3 -> 6 | K177: 1 | L177: =1+2 -> 3 | M177: =0+1 -> 1 | N177: 1 | P177: 0.5
B178: Guillaume Menard | F178: x | G178: x | I178: =1+1+1+1+1 -> 5 | J178: =4+4+5+4+3 -> 20 | K178: =2+1+1+1 -> 5 | L178: =2+1+3+1+2 -> 9 | M178: =3+1+1+1 -> 6 | P178: 0.45
B179: Jonathan Chase | F179: x | G179: x | I179: =1+1+1+1+1+1+1 -> 7 | J179: =4+5+4+5+3+4+3 -> 28 | K179: =3+1+2+2+1+1+1 -> 11 | L179: =2+1+1+4+1+2+1 -> 12 | M179: =0+1 -> 1 | N179: =1+1+1 -> 3 | P179: 0.4285714286
B180: Michel Dubé | F180: x | G180: x | I180: =1+1+1+1+1+1+1+1+1+1 -> 10 | J180: =3+4+3+2+3+5+4+3+3+3 -> 33 | K180: =1+1+1+1+2+1+2 -> 9 | L180: =1+1+2+1+3+1+2+1+2 -> 14 | M180: =1+2+1 -> 4 | N180: =1+1+1+1+1 -> 5 | P180: 0.4242424242
B181: Xavier Doucet | F181: x | G181: x | I181: =1+1+1+1+1+1+1 -> 7 | J181: =5+4+3+4+4+2+2 -> 24 | K181: =1+1+2 -> 4 | L181: =3+1+1+1+3+1 -> 10 | M181: =5+2 -> 7 | N181: 1 | O181: 1 | P181: 0.4166666667
B182: Jonathan Painchaud | F182: x | G182: x | I182: =1+1+1+1+1+1+1+1+1 -> 9 | J182: =3+3+4+4+3+4+4+4+3 -> 32 | K182: =3+2+2+1+1+1+1+1 -> 12 | L182: =2+2+1+1+3+2+1+1 -> 13 | M182: =4+1+3+1+1+1 -> 11 | N182: =2+2 -> 4 | P182: 0.40625
B183: Martin Gagnon | F183: x | G183: x | I183: =1+1+1+1+1+1+1+1+1+1 -> 10 | J183: =4+4+4+4+2+4+4+2+4+3 -> 35 | K183: =2+2+1+2+2 -> 9 | L183: =3+1+2+1+1+3+1+1 -> 13 | M183: =2+1+3+1+2+2+1 -> 12 | N183: =1+1+2 -> 4 | P183: 0.3714285714
B184: Jean-François Fillion | F184: x | G184: x | I184: =1+1+1+1+1+1+1+1+1 -> 9 | J184: =4+5+3+3+4+3+4+3+3 -> 32 | K184: =1+3+1+1+1+1+1 -> 9 | L184: =0+2+1+1+2+3+1+1 -> 11 | M184: =0+1+1+3+1 -> 6 | N184: 1 | O184: =1+1 -> 2 | P184: 0.34375
B185: David Beauchemin | F185: x | G185: x | I185: =1+1+1+1+1+1+1+1+1 -> 9 | J185: =4+5+3+3+4+3+4+3+2 -> 31 | K185: =2+4+1+1+1 -> 9 | L185: =2+4+1+2+1 -> 10 | M185: =3+4+1 -> 8 | N185: =1+1 -> 2 | P185: 0.3225806452
B186: Éric Chapados | F186: x | G186: x | I186: =1+1+1+1+1+1+1+1 -> 8 | J186: =3+3+3+3+3+3+3+1 -> 22 | K186: =0+1+2+1 -> 4 | L186: =1+1+2+2+1 -> 7 | M186: =0+3+3+2 -> 8 | N186: =1+1+1+1 -> 4 | O186: 1 | P186: 0.3181818182
B187: Marc-Antoine Martel | F187: x | G187: x | I187: =1+1+1+1 -> 4 | J187: =2+3+2+3 -> 10 | K187: =0+1+1 -> 2 | L187: =1+1+1 -> 3 | M187: =0+1 -> 1 | P187: 0.3
B188: Francois Marien | F188: x | G188: x | I188: =1+1+1+1+1+1+1 -> 7 | J188: =4+2+3+3+4+2+2 -> 20 | K188: =0+1+1 -> 2 | L188: =1+1+1+1+1 -> 5 | M188: =0+1 -> 1 | P188: 0.25
A189: OK | B189: Jimmy Hebert | F189: x | G189: x | I189: 1 | J189: 4 | K189: 2 | L189: 1 | M189: 0 | P189: 0.25
A190: OK | B190: Kim Fontaine | F190: x | G190: x | I190: 1 | J190: 4 | K190: 0 | L190: 1 | M190: 0 | P190: 0.25
B191: François Bérubé | F191: x | G191: x | I191: =1+1+1 -> 3 | J191: =2+3+2 -> 7 | K191: 0 | L191: 1 | M191: =0+1 -> 1 | P191: 0.1428571429
A192: OK | B192: Guillaume Théberge | F192: x | G192: x | P192: 0
B193: TOTAL | I193: =SUM(I173:I192) -> 114 | J193: =SUM(J173:J192) -> 389 | K193: 116 | L193: 160 | M193: 109 | N193: 33 | O193: 17 | P193: =L193/J193 -> 0.411311054
A195: # | B195: LANCEURS | F195: PJ | G195: V | H195: D | I195: N | J195: ML | K195: P | L195: PM | M195: CS | N195: BB | O195: K | P195: MPM
B196: Jimmy Hebert | F196: 1 | G196: 1 | J196: 5 | K196: 8 | L196: 4 | M196: 13 | N196: 4 | O196: 1 | P196: =IFERROR(7*(L196/J196),"") -> 5.6
B197: Éric Chapados | F197: =1+1+1+1+1+1+1+1 -> 8 | G197: =1+1+1 -> 3 | H197: =1+1+1+1+1 -> 5 | J197: =6.67+5+5.67+1+6+7+5.33+6 -> 42.67 | K197: =8+13+9+12+3+2+18+7 -> 72 | L197: =7+11+7+0+3+1+2+6 -> 37 | M197: =9+16+12+7+6+6+15+6 -> 77 | N197: =4+5+3+4+6+1+7+7 -> 37 | O197: =3+2+2+2+6+4+3 -> 22 | P197: =IFERROR(7*(L197/J197),"") -> 6.069838294
B198: Stéphane Maltais | F198: =1+1+1 -> 3 | G198: 1 | J198: =7+0.33+1.67 -> 9 | K198: =9+3+8 -> 20 | L198: =9+3+3 -> 15 | M198: =11+1+9 -> 21 | N198: =12+4+3 -> 19 | O198: 0 | P198: =IFERROR(7*(L198/J198),"") -> 11.66666667
B199: Michel Dubé | F199: =1+1+1+1 -> 4 | H199: =1+1 -> 2 | J199: =5.67+0.33+4.67+2 -> 12.67 | K199: =15+1+7+9 -> 32 | L199: =13+1+4+9 -> 27 | M199: =15+2+10+10 -> 37 | N199: =11+2+4+4 -> 21 | O199: 1 | P199: =IFERROR(7*(L199/J199),"") -> 14.91712707
J200: 0 | K200: 0 | L200: 0 | P200: =IFERROR(7*(L200/J200),"") -> 
B201: TOTAL | F201: =SUM(F196:F200) -> 16 | G201: =SUM(G196:G200) -> 5 | H201: 7 | I201: 0 | J201: 69.34 | K201: 132 | L201: 83 | M201: 148 | N201: 81 | O201: 24 | P201: =(L201*7)/J201 -> 8.379002019
A208: Ligue de Balle Molle Voyageurs
A210: =A4 -> Balle Molle Amical Jeudi A
A213: VERDONS
A214: # | B214: JOUEURS | F214: C | G214: P | H214: S | I214: PJ | J214: AB | K214: P | L214: CS | M214: PP | N214: BB | O214: CC | P214: MOY
B215: David Chayer | F215: x | G215: x | I215: =1+1+1+1+1+1+1+1+1 -> 9 | J215: =3+3+3+4+3+4+3+1+3 -> 27 | K215: =1+1+3+2+1+1+1 -> 10 | L215: =1+1+1+2+1+2+1+1+3 -> 13 | M215: =1+2+2+1+1+2 -> 9 | N215: =1+2 -> 3 | O215: 1 | P215: =IF($J215<>0,L215/$J215,0) -> 0.4814814815
B216: Jonathan Fisette | F216: x | G216: x | I216: =1+1+1+1+1+1+1+1+1 -> 9 | J216: =2+1+4+4+4+4+2+2+4 -> 27 | K216: =0+2+1+1+2+1+2 -> 9 | L216: =1+1+3+2+2+1+2 -> 12 | M216: =0+5+1+2 -> 8 | N216: =1+2+1+1+1 -> 6 | P216: 0.4444444444
B217: Yves Lachappelle | F217: x | G217: x | I217: =1+1 -> 2 | J217: =3+4 -> 7 | K217: =1+1 -> 2 | L217: =2+1 -> 3 | M217: =0+1 -> 1 | P217: 0.4285714286
B218: Olivier Aquin | F218: x | G218: x | I218: =1+1+1+1+1+1+1+1+1+1+1 -> 11 | J218: =3+4+3+3+4+3+4+3+3+3+4 -> 37 | K218: =1+1+1+2+1 -> 6 | L218: =2+1+2+3+1+2+2+1 -> 14 | M218: =1+4+1+1 -> 7 | N218: 1 | P218: 0.3783783784
B219: Benoit Lafrance | F219: x | G219: x | I219: =1+1+1+1+1+1+1+1+1+1+1 -> 11 | J219: =3+3+2+3+2+3+3+3+1+3+4 -> 30 | K219: =0+1+3+1+1 -> 6 | L219: =2+1+2+1+1+1+1+1+1 -> 11 | M219: =1+2+1+1+1+2+1 -> 9 | N219: =1+2+2 -> 5 | P219: 0.3666666667
B220: Sébastien Hamel | F220: x | G220: x | I220: =1+1+1+1+1+1+1+1+1+1+1 -> 11 | J220: =3+3+3+3+3+3+4+0+2+3+4 -> 31 | K220: =2+1+2+1+1+3+2+2+1 -> 15 | L220: =1+2+1+1+2+2+2 -> 11 | M220: =2+2+2+2+3+2+5 -> 18 | N220: =1+1+3+1 -> 6 | O220: =1+1 -> 2 | P220: 0.3548387097
B221: Patrick Boivin | F221: x | G221: x | I221: =1+1+1+1+1+1+1+1+1+1 -> 10 | J221: =4+4+3+4+4+4+2+3+3+4 -> 35 | K221: =1+1+1+1+2+1+3 -> 10 | L221: =2+2+1+1+1+1+1+1+2 -> 12 | M221: =1+1+1+2 -> 5 | N221: =1+2 -> 3 | P221: 0.3428571429
A222: OK | B222: Yannick Goyette | F222: x | G222: x | I222: 1 | J222: 3 | K222: 1 | L222: 1 | M222: 0 | P222: 0.3333333333
B223: Jean Plamondon | F223: x | G223: x | I223: =1+1+1+1+1+1+1+1+1 -> 9 | J223: =3+3+2+3+3+3+3+1+4 -> 25 | K223: =1+1+1+1 -> 4 | L223: =2+2+1+1+1+1 -> 8 | M223: =0+1+1 -> 2 | N223: =1+1 -> 2 | P223: 0.32
B224: Daniel Rajotte | F224: x | G224: x | I224: =1+1+1+1+1+1+1+1+1 -> 9 | J224: =4+3+4+3+4+3+3+3+3 -> 30 | K224: =1+1+2+1+1 -> 6 | L224: =0+1+1+1+1+1+3 -> 8 | M224: =0+2+1 -> 3 | N224: =2+1 -> 3 | P224: 0.2666666667
B225: Hugo Fisette | F225: x | G225: x | I225: =1+1+1+1+1+1+1+1+1+1 -> 10 | J225: =3+3+3+3+4+3+3+1+3+3 -> 29 | K225: =0+1+2 -> 3 | L225: =2+1+3+1 -> 7 | M225: =2+1+1 -> 4 | N225: 1 | P225: 0.2413793103
B226: Alexis Hamel | F226: x | G226: x | I226: =1+1+1+1 -> 4 | J226: =3+3+3+2 -> 11 | K226: 2 | L226: 2 | M226: 0 | P226: 0.1818181818
B227: Jean-François Lafond | F227: x | G227: x | I227: =1+1+1 -> 3 | J227: =3+2+3 -> 8 | K227: 0 | L227: =0+1 -> 1 | M227: =0+1 -> 1 | P227: 0.125
B228: Yvan Fillion | F228: x | G228: x | I228: =1+1+1+1+1+1+1+1+1+1 -> 10 | J228: =3+2+3+3+3+3+2+3+3+3 -> 28 | K228: =0+2+1 -> 3 | L228: =0+1+1+1 -> 3 | M228: =1+1+1 -> 3 | N228: =1+1 -> 2 | P228: 0.1071428571
A229: OK | B229: Annick Corbeil | F229: x | G229: x | I229: 1 | J229: 2 | K229: 0 | L229: 0 | M229: 0 | P229: 0
B230: François St-Jean | F230: x | G230: x | P230: 0
B231: Étienne Boucher | F231: x | G231: x | P231: 0
B232: Rémy Bertrand | F232: x | G232: x | P232: 0
B233: François Painchaud | F233: x | G233: x | P233: 0
P234: 0
B235: TOTAL | I235: =SUM(I215:I234) -> 110 | J235: =SUM(J215:J234) -> 330 | K235: 77 | L235: 106 | M235: 70 | N235: 32 | O235: 3 | P235: =L235/J235 -> 0.3212121212
A237: # | B237: LANCEURS | F237: PJ | G237: V | H237: D | I237: N | J237: ML | K237: P | L237: PM | M237: CS | N237: BB | O237: K | P237: MPM
B238: Hugo Fisette | F238: =1+1+1+1+1+1+1+1+1 -> 9 | G238: 1 | H238: =1+1+1+1+1+1+1 -> 7 | J238: =4.67+6+7+5.33+7+5+2.67+3.33+4.33 -> 45.33 | K238: =21+11+6+17+11+5+17+13+22 -> 123 | L238: =14+8+4+11+11+2+11+10+14 -> 85 | M238: =19+14+8+21+11+7+16+14+21 -> 131 | N238: =6+1+8+3+8+2+7+3+7 -> 45 | O238: =2+1+1+1 -> 5 | P238: =IFERROR(7*(L238/J238),"") -> 13.12596514
B239: Yvan Fillion | F239: =1+1+1 -> 3 | H239: 1 | J239: =4.67+0.67+3.67 -> 9.01 | K239: =19+5+7 -> 31 | L239: =13+5+7 -> 25 | M239: =17+2+9 -> 28 | N239: =5+6+7 -> 18 | O239: 0 | P239: =IFERROR(7*(L239/J239),"") -> 19.42286349 | Q239: RECU OK Ligue pour Lancer en séries
B240: Yves Lachappelle | F240: =1+1 -> 2 | H240: =1+1 -> 2 | J240: =2.33+3.33 -> 5.66 | K240: =9+9 -> 18 | L240: =9+7 -> 16 | M240: =12+6 -> 18 | N240: =2+8 -> 10 | O240: 1 | P240: =IFERROR(7*(L240/J240),"") -> 19.78798587 | Q240: RECU OK Ligue pour Lancer en séries
J241: 0 | K241: 0 | L241: 0 | P241: =IFERROR(7*(L241/J241),"") -> 
B242: DÉFAUT | F242: 1 | G242: 1 | J242: 0 | K242: 0 | L242: 0 | P242: =IFERROR(7*(L242/J242),"") -> 
B243: TOTAL | F243: =SUM(F238:F242) -> 15 | G243: =SUM(G238:G242) -> 2 | H243: 10 | I243: 0 | J243: 60 | K243: 172 | L243: 126 | M243: 177 | N243: 73 | O243: 6 | P243: =(L243*7)/J243 -> 14.7
A250: Ligue de Balle Molle Voyageurs
A252: =A4 -> Balle Molle Amical Jeudi A
A255: NATIONALS
A256: # | B256: JOUEURS | F256: C | G256: P | H256: S | I256: PJ | J256: AB | K256: P | L256: CS | M256: PP | N256: BB | O256: CC | P256: MOY
B257: Étienne Mainville | F257: x | G257: x | I257: =1+1+1+1+1+1+1+1 -> 8 | J257: =4+5+4+4+5+4+5+3 -> 34 | K257: =2+1+2+1+3+3+1 -> 13 | L257: =4+2+3+1+3+4+3+2 -> 22 | M257: =5+3+4+4+3+6 -> 25 | O257: =1+1+1+1+2 -> 6 | P257: =IF($J257<>0,L257/$J257,0) -> 0.6470588235
B258: Patrick Langlois | F258: x | G258: x | I258: =1+1+1+1+1 -> 5 | J258: =4+4+3+2+3 -> 16 | K258: =1+1+2+1 -> 5 | L258: =3+3+3+1 -> 10 | M258: =0+2 -> 2 | N258: =1+1 -> 2 | P258: 0.625
B259: Patrick Chamberland | F259: x | G259: x | I259: =1+1+1+1 -> 4 | J259: =1+3+3+2 -> 9 | K259: =0+1 -> 1 | L259: =1+2+2 -> 5 | M259: =0+1+1 -> 2 | N259: =1+1 -> 2 | P259: 0.5555555556
B260: Jean-François Clavel | F260: x | G260: x | I260: =1+1 -> 2 | J260: =4+3 -> 7 | K260: =1+2 -> 3 | L260: =2+1 -> 3 | M260: 2 | N260: 2 | P260: 0.4285714286
B261: Michel Lefebvre | F261: x | G261: x | I261: =1+1+1+1+1+1 -> 6 | J261: =4+4+4+1+2+4 -> 19 | K261: =0+1+1 -> 2 | L261: =1+2+3+1+1 -> 8 | M261: =0+2+1 -> 3 | N261: =1+1 -> 2 | P261: 0.4210526316
B262: Mathieu Granger | F262: x | G262: x | I262: =1+1+1 -> 3 | J262: =2+4+4 -> 10 | K262: =3+1+1 -> 5 | L262: =1+1+2 -> 4 | M262: =2+1 -> 3 | N262: 2 | P262: 0.4
B263: Kevin Vincelette | F263: x | G263: x | I263: =1+1+1+1+1+1+1+1+1 -> 9 | J263: =3+4+4+4+4+2+3+5+4 -> 33 | K263: =1+1+2+2+2+2 -> 10 | L263: =2+1+1+2+2+1+2+2 -> 13 | M263: =0+2+1+1+1+1 -> 6 | N263: 1 | P263: 0.3939393939
B264: Marc-Antoine Lafleur | F264: x | G264: x | I264: =1+1+1+1+1 -> 5 | J264: =3+4+3+5+3 -> 18 | K264: =2+3+3+1 -> 9 | L264: =1+3+1+1+1 -> 7 | M264: =3+1+1+2 -> 7 | N264: =1+2 -> 3 | O264: 1 | P264: 0.3888888889
B265: Sylvain Forcier | F265: x | G265: x | I265: =1+1+1+1+1+1+1+1+1 -> 9 | J265: =4+3+3+3+4+4+2+3+3 -> 29 | K265: =1+1 -> 2 | L265: =3+2+1+1+3+1 -> 11 | M265: =2+2+2 -> 6 | N265: =1+1 -> 2 | P265: 0.3793103448
B266: Bertrand Dominic | F266: x | G266: x | I266: =1+1+1+1+1+1+1+1+1 -> 9 | J266: =4+2+5+5+4+1+3+5+3 -> 32 | K266: =2+3+2+2+1+1+3+1 -> 15 | L266: =0+1+1+3+2+1+3+1 -> 12 | M266: =0+2+1+1+2 -> 6 | N266: =1+2+1+1 -> 5 | P266: 0.375
B267: Stéphane Béchette | F267: x | G267: x | I267: =1+1 -> 2 | J267: =5+3 -> 8 | K267: 2 | L267: =2+1 -> 3 | M267: =0+1 -> 1 | P267: 0.375
B268: Hugo Bergeron | F268: x | G268: x | I268: =1+1+1+1+1+1+1+1+1+1 -> 10 | J268: =1+1+3+4+4+4+1+3+4+1 -> 26 | K268: =1+1+1+2+2 -> 7 | L268: =0+3+2+1+2+1 -> 9 | M268: =0+1 -> 1 | N268: =3+3+2 -> 8 | P268: 0.3461538462
B269: Nicolas Chamberland | F269: x | G269: x | I269: =1+1+1+1+1+1+1 -> 7 | J269: =3+3+2+4+4+1+3 -> 20 | K269: =1+1+1+1+1 -> 5 | L269: =1+2+1+1+1 -> 6 | M269: =0+2 -> 2 | N269: =1+1 -> 2 | P269: 0.3
B270: Éric Gamache | F270: x | G270: x | I270: =1+1+1+1+1+1+1+1+1 -> 9 | J270: =4+4+3+4+4+4+1+3+2 -> 29 | K270: =1+1+1+2 -> 5 | L270: =0+1+1+1+3+1+1 -> 8 | M270: =0+1+1+2+2+1 -> 7 | N270: =1+1 -> 2 | P270: 0.275862069
B271: Stéphane Riberdy | F271: x | G271: x | I271: =1+1+1+1+1+1+1+1+1+1 -> 10 | J271: =3+2+3+4+4+2+1+1+3+1 -> 24 | K271: =1+1+1+2+1+1+3+1 -> 11 | L271: =2+1+3 -> 6 | M271: =2+1+2+2+2 -> 9 | N271: =1+3+1+2+2+2 -> 11 | P271: 0.25
B272: Philippe Vézina | F272: x | G272: x | I272: =1+1+1 -> 3 | J272: =4+4+4 -> 12 | K272: 1 | L272: =1+2 -> 3 | M272: =0+1+4 -> 5 | P272: 0.25
B273: Sylvain Beauregard | F273: x | G273: x | I273: =1+1+1+1+1 -> 5 | J273: =3+5+3+3+4 -> 18 | K273: =2+1+1 -> 4 | L273: =1+1+1 -> 3 | M273: =1+1 -> 2 | N273: 1 | P273: 0.1666666667
B274: Francis Messier | F274: x | G274: x | P274: 0
B275: Frédéric Charlebois | F275: x | G275: x | P275: 0
B276: Jean-Philippe Chaput | F276: x | G276: x | P276: 0
... 72 more rows

Sheet Amical Jeudi B
A2: Ligue de Balle Molle Voyageurs
A4: Balle Molle Amical Jeudi B
G6: FINAL
A7: Dernière mise à jour : | D7: 2019-09-03
A10: CLASSEMENT AMICAL JEUDI B
A11: POS | B11: ÉQUIPE | H11: PJ | I11: V | J11: D | K11: N | L11: PP | M11: PC | N11: PTS | O11: DIFF | P11: MOY
A12: 1 | B12: C-Snakes | H12: =1+1+1+1+1+1+1+1+1+1+1+1 -> 12 | I12: =1+1+1+1+1+1+1+1+1+1 -> 10 | J12: =0+1+1 -> 2 | K12: 0 | L12: =16+2+12+15+26+6+13+13+14+14+5+17 -> 153 | M12: =13+11+9+11+2+2+2+1+7+8+14+14 -> 94 | N12: =I12*2+K12*1 -> 20 | O12: =L12-M12 -> 59 | P12: =IF(H12<>0,(2*I12+K12)/(2*H12),0) -> 0.8333333333
A13: =A12+1 -> 2 | B13: Mobsters | H13: 12 | I13: =1+1+1+1+1+1+1+1+1+1 -> 10 | J13: =0+1+1 -> 2 | K13: 0 | L13: =10+8+8+22+10+2+13+10+14+5+7+5 -> 114 | M13: =6+4+7+6+1+13+9+3+1+6+6+4 -> 66 | N13: 20 | O13: 48 | P13: 0.8333333333
A14: =A13+1 -> 3 | B14: Red Sox | H14: 12 | I14: =0+1+1+1+1+1+1+1+1 -> 8 | J14: =1+1+1+1 -> 4 | K14: 0 | L14: =13+12+11+8+8+7+7+9+11+6+6+15 -> 113 | M14: =16+4+2+3+10+4+2+10+2+5+7+5 -> 70 | N14: 16 | O14: 43 | P14: 0.6666666667
A15: 4 | B15: Moutarde Chou | H15: 12 | I15: =0+1+1+1+1+1+1 -> 6 | J15: =1+1+1+1+1+1 -> 6 | K15: 0 | L15: =4+6+4+10+12+12+11+5+2+8+14+13 -> 101 | M15: =12+10+8+3+5+3+2+10+12+14+5+9 -> 93 | N15: 12 | O15: 8 | P15: 0.5
A16: 5 | B16: Buddies | H16: 12 | I16: =1+1+1+1+1+1 -> 6 | J16: =0+1+1+1+1+1+1 -> 6 | K16: 0 | L16: =12+14+3+11+6+2+14+9+12+7+8+9 -> 107 | M16: =8+12+8+15+22+6+5+13+2+5+4+13 -> 113 | N16: 12 | O16: -6 | P16: 0.5
A17: 6 | B17: Récédivistes | H17: 12 | I17: =1+1+1+1 -> 4 | J17: =0+1+1+1+1+1+1+1+1 -> 8 | K17: 0 | L17: =16+20+7+5+4+8+2+10+7+14+5+4 -> 102 | M17: =8+6+8+12+7+4+11+9+14+17+7+8 -> 111 | N17: 8 | O17: -9 | P17: 0.3333333333
A18: 7 | B18: Déserteurs | H18: 12 | I18: =0+1+1+1+1 -> 4 | J18: =1+1+1+1+1+1+1+1 -> 8 | K18: 0 | L18: =8+12+9+10+3+4+2+10+3+7+13+4 -> 85 | M18: =12+14+12+8+12+8+7+5+10+0+3+5 -> 96 | N18: 8 | O18: -11 | P18: 0.3333333333
A19: 8 | B19: Gamers | H19: 12 | I19: 0 | J19: =1+1+1+1+1+1+1+1+1+1+1+1 -> 12 | K19: 0 | L19: =8+6+3+2+1+5+1+2+1+0+3+5 -> 37 | M19: =16+20+10+26+10+14+13+11+14+7+13+15 -> 169 | N19: 0 | O19: -132 | P19: 0
B21: TOTAL | H21: =SUM(H12:H19) -> 96 | I21: 48 | J21: 48 | K21: 0 | L21: 812 | M21: 812 | N21: 96 | O21: 0 | P21: =(I21+(K21*0.5))/H21 -> 0.5
A40: Ligue de Balle Molle Voyageurs
A42: =A4 -> Balle Molle Amical Jeudi B
A45: BUDDIES
A46: # | B46: JOUEURS | F46: C | G46: P | H46: S | I46: PJ | J46: AB | K46: P | L46: CS | M46: PP | N46: BB | O46: CC | P46: MOY
A47: OK | B47: Olivier Chapdelaine | F47: x | G47: x | I47: 1 | J47: 3 | K47: 0 | L47: 2 | M47: 2 | P47: =IF($J47<>0,L47/$J47,0) -> 0.6666666667
B48: Simon Giroux | F48: x | G48: x | I48: =1+1+1+1+1+1+1+1+1+1+1+1 -> 12 | J48: =3+4+3+3+3+3+3+4+2+3+3+4 -> 38 | K48: =1+2+2+3+1+2+1+2+2 -> 16 | L48: =1+3+1+2+2+2+2+1+2+2+2 -> 20 | M48: =1+1+1+1+2+1+3 -> 10 | N48: =1+1+1+1 -> 4 | O48: =1+1 -> 2 | P48: 0.5263157895
B49: Georges Côté | F49: x | G49: x | I49: =1+1+1+1+1+1+1+1+1+1+1+1 -> 12 | J49: =4+3+3+3+3+3+4+2+2+3+1+3 -> 34 | K49: =1+1+1+1+2+2+1 -> 9 | L49: =3+2+1+2+3+2+2+1+1 -> 17 | M49: =0+3+4+2+3+2+1 -> 15 | N49: =1+1+1+1 -> 4 | P49: 0.5
B50: Denis Larochelle | F50: x | G50: x | I50: =1+1+1+1+1+1+1+1+1+1+1 -> 11 | J50: =4+4+3+3+2+3+4+2+3+2+4 -> 34 | K50: =3+2+2+1+2+1+1 -> 12 | L50: =4+2+1+2+1+2+1+3 -> 16 | M50: =1+2+1+1 -> 5 | N50: =1+1+1+1+1 -> 5 | P50: 0.4705882353
B51: Mathieu Hetu | F51: x | G51: x | I51: =1+1+1+1+1+1+1+1+1+1 -> 10 | J51: =4+2+2+3+3+3+3+3+3+2 -> 28 | K51: =0+1+1+1+1+2+1+2 -> 9 | L51: =2+1+1+1+2+1+3+1+1 -> 13 | M51: =0+1+1+2+2 -> 6 | N51: =1+2+1+2 -> 6 | O51: 1 | P51: 0.4642857143
B52: Marc-André Harnois | F52: x | G52: x | I52: =1+1+1+1+1+1+1+1+1+1+1+1 -> 12 | J52: =4+4+2+3+4+3+3+3+3+2+3+3 -> 37 | K52: =2+3+2+1+2+1+1+2+2 -> 16 | L52: =3+3+2+1+2+1+1+3+1 -> 17 | M52: =1+4+2+1+1+1+1 -> 11 | N52: =1+1+1+1+1+1 -> 6 | O52: =1+1 -> 2 | P52: 0.4594594595
B53: Éric Sney | F53: x | G53: x | I53: =1+1+1+1+1+1+1+1+1 -> 9 | J53: =4+4+2+4+4+2+1+2+4 -> 27 | K53: =1+1+1+2+3+1+1+2 -> 12 | L53: =1+4+1+2+3+1 -> 12 | M53: =0+5+1+2+2 -> 10 | N53: =1+2+1+1 -> 5 | O53: 1 | P53: 0.4444444444
B54: Martin Giroux | F54: x | G54: x | I54: =1+1+1 -> 3 | J54: =2+2+1 -> 5 | K54: 1 | L54: =0+1+1 -> 2 | M54: =0+2 -> 2 | N54: =1+1 -> 2 | P54: 0.4
B55: Benoit Bergeron | F55: x | G55: x | I55: =1+1+1+1+1+1+1+1+1 -> 9 | J55: =4+3+3+4+4+3+4+4+4 -> 33 | K55: =1+2+1+2+1 -> 7 | L55: =1+2+2+1+1+1+3+2 -> 13 | M55: =0+1+1+1 -> 3 | N55: 1 | P55: 0.3939393939
B56: Jonathan Juneau | F56: x | G56: x | I56: =1+1+1+1+1+1+1+1+1+1+1+1 -> 12 | J56: =3+3+1+1+3+3+3+3+2+2+1+4 -> 29 | K56: =0+2+3+2+2+1 -> 10 | L56: =1+1+1+1+1+1+2+1+1+1 -> 11 | M56: =0+1+1+2+2 -> 6 | N56: =1+2+1+1 -> 5 | P56: 0.3793103448
B57: Bruno Godin | F57: x | G57: x | I57: =1+1+1+1+1+1+1+1+1 -> 9 | J57: =4+4+2+4+2+3+3+1+1 -> 24 | K57: =2+1+1+2+2 -> 8 | L57: =2+3+2+1+1 -> 9 | M57: =4+1+1+2 -> 8 | N57: =1+2+2 -> 5 | P57: 0.375
B58: Stéphane Curadeau | F58: x | G58: x | I58: =1+1+1+1 -> 4 | J58: =1+3+2+4 -> 10 | K58: 0 | L58: =0+1+1+1 -> 3 | M58: =0+1 -> 1 | P58: 0.3
B59: Jean-François Laberge | F59: x | G59: x | I59: =1+1+1+1+1+1+1+1+1+1+1+1 -> 12 | J59: =3+3+2+3+3+3+3+3+3+2+1+4 -> 33 | K59: =1+1+1+1+1 -> 5 | L59: =2+1+1+3+1 -> 8 | M59: =1+2+2+2+1 -> 8 | N59: =1+1+1 -> 3 | P59: 0.2424242424
B60: Patrick Émond | F60: x | G60: x | I60: =1+1+1+1+1 -> 5 | J60: =2+3+3+3+2 -> 13 | K60: 0 | L60: =0+2+1 -> 3 | M60: 0 | N60: 1 | P60: 0.2307692308
B61: Jean-François Jussaume | F61: x | G61: x | I61: =1+1+1 -> 3 | J61: =2+2+2 -> 6 | K61: 0 | L61: =0+1 -> 1 | M61: 0 | N61: 1 | P61: 0.1666666667
B62: Dennis McClure | F62: x | G62: x | P62: 0
B63: Benoit DeGrandMaison | F63: x | G63: x | P63: 0
B64: Imad Jaziri | F64: x | G64: x | P64: 0
B65: Jocelyn Poirier | F65: x | G65: x | P65: 0
B66: Daniel Leblanc | F66: x | G66: x | P66: 0
B67: TOTAL | I67: =SUM(I47:I66) -> 124 | J67: =SUM(J47:J66) -> 354 | K67: 105 | L67: 147 | M67: 87 | N67: 48 | O67: 6 | P67: =L67/J67 -> 0.4152542373
A69: # | B69: LANCEURS | F69: PJ | G69: V | H69: D | I69: N | J69: ML | K69: P | L69: PM | M69: CS | N69: BB | O69: K | P69: MPM
B70: Stéphane Curadeau | F70: =1+1+1 -> 3 | H70: =1+1+1 -> 3 | J70: =5.33+7+4 -> 16.33 | K70: =13+6+4 -> 23 | L70: =0+6+4 -> 10 | M70: =7+13+8 -> 28 | N70: =5+2+1 -> 8 | O70: =1+2+1 -> 4 | P70: =IFERROR(7*(L70/J70),"") -> 4.2865891
B71: Georges Côté | F71: =1+1+1+1 -> 4 | G71: =1+1+1+1 -> 4 | J71: =4+4+4+3 -> 15 | K71: =4+2+5+4 -> 15 | L71: =4+0+3+4 -> 11 | M71: =4+2+7+5 -> 18 | N71: =6+4+3+2 -> 15 | O71: =2+2 -> 4 | P71: =IFERROR(7*(L71/J71),"") -> 5.133333333
B72: Denis Larochelle | F72: =1+1+1+1+1+1+1+1 -> 8 | G72: =1+1 -> 2 | J72: =3+6.33+3+2+2+3+1+1.67 -> 22 | K72: =3+12+1+1+3+0+0+9 -> 29 | L72: =3+7+1+1+3+0+0+3 -> 18 | M72: =6+15+4+2+2+5+2+8 -> 44 | N72: =0+2+1+2+1+4 -> 10 | O72: =2+2+2+1 -> 7 | P72: =IFERROR(7*(L72/J72),"") -> 5.727272727
B73: Éric Sney | F73: =1+1+1+1 -> 4 | H73: =1+1+1 -> 3 | J73: =3+3+5+2.67 -> 13.67 | K73: =5+7+15+10 -> 37 | L73: =5+6+4+6 -> 21 | M73: =7+7+12+10 -> 36 | N73: =4+2+8+2 -> 16 | O73: =0+3 -> 3 | P73: =IFERROR(7*(L73/J73),"") -> 10.75347476
B74: Bruno Godin | F74: 1 | J74: 1.67 | K74: 9 | L74: 4 | M74: 12 | N74: 0 | O74: 0 | P74: =IFERROR(7*(L74/J74),"") -> 16.76646707
B75: TOTAL | F75: =SUM(F70:F74) -> 20 | G75: =SUM(G70:G74) -> 6 | H75: 6 | I75: 0 | J75: 68.67 | K75: 113 | L75: 64 | M75: 138 | N75: 49 | O75: 18 | P75: =(L75*7)/J75 -> 6.523955148
A82: Ligue de Balle Molle Voyageurs
A84: =A4 -> Balle Molle Amical Jeudi B
A87: DÉSERTEURS
A88: # | B88: JOUEURS | F88: C | G88: P | H88: S | I88: PJ | J88: AB | K88: P | L88: CS | M88: PP | N88: BB | O88: CC | P88: MOY
B89: Kim Hénault | F89: x | G89: x | I89: =1+1+1+1+1+1+1+1+1+1 -> 10 | J89: =2+4+4+3+4+3+2+2+4+3 -> 31 | K89: =0+2+2+1+1+1+1 -> 8 | L89: =2+3+2+2+1+1+2+1+3 -> 17 | M89: =1+2+1+1+1+1+1+1 -> 9 | N89: =1+1 -> 2 | P89: =IF($J89<>0,L89/$J89,0) -> 0.5483870968
B90: Guillaume Arbour | F90: x | G90: x | I90: =1+1+1+1+1+1+1+1+1+1 -> 10 | J90: =3+4+3+3+3+3+3+2+4+3 -> 31 | K90: =0+1+2+3 -> 6 | L90: =3+3+1+1+2+1+3+2 -> 16 | M90: =4+1+1+1 -> 7 | N90: 1 | P90: 0.5161290323
B91: Jean-Simon Arbour | F91: x | G91: x | I91: =1+1+1+1+1+1+1+1+1 -> 9 | J91: =3+4+1+2+2+4+3+5+3 -> 27 | K91: =2+1+2+2 -> 7 | L91: =3+2+1+1+2+3+1 -> 13 | M91: =0+1+2+1 -> 4 | N91: =1+1 -> 2 | P91: 0.4814814815
B92: Lucas Bayzelon | F92: x | G92: x | I92: =1+1+1+1+1+1+1+1+1+1+1 -> 11 | J92: =3+5+4+2+4+3+3+3+3+5+3 -> 38 | K92: =2+2+1+1+1+2+1+1+1+1+2 -> 15 | L92: =2+2+2+2+2+1+2+1+1+1 -> 16 | M92: =1+1+1+1+4+1+1 -> 10 | N92: =1+1 -> 2 | O92: 1 | P92: 0.4210526316
B93: Gabriel Carbonneau | F93: x | G93: x | I93: =1+1+1+1+1+1+1+1 -> 8 | J93: =2+4+4+3+2+3+4+3 -> 25 | K93: =0+2+1+1+1 -> 5 | L93: =1+3+2+1+2+1 -> 10 | M93: =0+5+1+2+2 -> 10 | N93: =1+1 -> 2 | O93: 2 | P93: 0.4
B94: Rémi Verrière | F94: x | G94: x | I94: =1+1+1+1+1+1 -> 6 | J94: =2+4+1+2+4+2 -> 15 | K94: =1+1+1 -> 3 | L94: =0+1+2+2+1 -> 6 | M94: =0+1 -> 1 | N94: =1+1 -> 2 | P94: 0.4
B95: Maxence Bayzelon | F95: x | G95: x | I95: =1+1 -> 2 | J95: =3+2 -> 5 | K95: 0 | L95: =1+1 -> 2 | M95: 0 | N95: 1 | P95: 0.4
B96: Luc-Antoine Arbour | F96: x | G96: x | I96: =1+1+1+1+1+1+1 -> 7 | J96: =3+3+3+3+3+5+3 -> 23 | K96: =0+2+1+1+2 -> 6 | L96: =1+1+1+2+2+2 -> 9 | M96: =0+1+3 -> 4 | O96: 1 | P96: 0.3913043478
B97: Félix Arbour | F97: x | G97: x | I97: =1+1+1+1+1+1+1+1+1+1+1 -> 11 | J97: =3+3+4+3+3+3+2+4+3+3+3 -> 34 | K97: =0+1+1+1+1+1 -> 5 | L97: =0+1+2+2+1+2+3 -> 11 | M97: =0+1+1+2+2+3 -> 9 | N97: =1+1 -> 2 | P97: 0.3235294118
B98: Julien Thibodeau | F98: x | G98: x | I98: =1+1+1+1+1+1+1+1+1 -> 9 | J98: =2+4+1+3+2+2+4+3+3 -> 24 | K98: =2+1+1+2 -> 6 | L98: =1+2+1+1+1+1 -> 7 | M98: 0 | N98: =1+1+1 -> 3 | P98: 0.2916666667
B99: Steve Maclure | F99: x | G99: x | I99: =1+1 -> 2 | J99: =4+3 -> 7 | K99: 2 | L99: =1+1 -> 2 | M99: =1+1 -> 2 | P99: 0.2857142857
B100: Pierre-Olivier Leblanc | F100: x | G100: x | I100: =1+1+1+1+1+1+1+1+1+1 -> 10 | J100: =2+3+3+2+3+3+2+4+2+2 -> 26 | K100: =2+2+1+1+1+1 -> 8 | L100: =2+3+1+1 -> 7 | M100: =1+1+1 -> 3 | N100: =1+1+1 -> 3 | O100: 1 | P100: 0.2692307692
B101: Baudry Bayzelon | F101: x | G101: x | I101: =1+1+1+1+1+1+1+1+1+1 -> 10 | J101: =3+4+4+3+3+2+4+2+3+3 -> 31 | K101: =0+1+1+1 -> 3 | L101: =0+1+1+1+1+1 -> 5 | M101: =0+2+1 -> 3 | N101: =1+1 -> 2 | P101: 0.1612903226
B102: Benoit Gaudet | F102: x | G102: x | I102: =1+1+1+1+1+1+1+1+1+1 -> 10 | J102: =3+4+3+2+2+3+2+4+2+2 -> 27 | K102: =1+1+2 -> 4 | L102: =1+2+1 -> 4 | M102: =1+2+1 -> 4 | N102: =1+1 -> 2 | P102: 0.1481481481
B103: Karl Audette | F103: x | G103: x | P103: 0
B104: Antoine Carbonneau | F104: x | G104: x | P104: 0
B105: Sylvain Arbour | F105: x | G105: x | P105: 0
B106: Normand Choquette | F106: x | G106: x | P106: 0
B107: Guillaume Leblanc | F107: x | G107: x | P107: 0
B108: Ludovic Chaouachi | F108: x | G108: x | P108: 0
B109: TOTAL | I109: =SUM(I89:I108) -> 115 | J109: =SUM(J89:J108) -> 344 | K109: 78 | L109: 125 | M109: 66 | N109: 24 | O109: 5 | P109: =L109/J109 -> 0.363372093
A111: # | B111: LANCEURS | F111: PJ | G111: V | H111: D | I111: N | J111: ML | K111: P | L111: PM | M111: CS | N111: BB | O111: K | P111: MPM
B112: Guillaume Arbour | F112: 1 | G112: 1 | J112: 7 | K112: 3 | L112: 2 | M112: 4 | N112: 6 | O112: 2 | P112: =IFERROR(7*(L112/J112),"") -> 2
B113: Jean-Simon Arbour | F113: =1+1+1 -> 3 | H113: 1 | J113: =5+3+3 -> 11 | K113: =12+7+4 -> 23 | L113: =5+3+3 -> 11 | M113: =14+9+6 -> 29 | N113: =2+3+1 -> 6 | O113: =1+2+1 -> 4 | P113: =IFERROR(7*(L113/J113),"") -> 7
B114: Benoit Gaudet | F114: =1+1+1+1+1 -> 5 | G114: =1+1 -> 2 | H114: =1+1+1 -> 3 | J114: =4+6+5.67+7+2.33 -> 25 | K114: =1+12+7+5+6 -> 31 | L114: =1+12+5+4+4 -> 26 | M114: =3+21+11+9+3 -> 47 | N114: =3+2+4+4+6 -> 19 | O114: 0 | P114: =IFERROR(7*(L114/J114),"") -> 7.28
B115: Kim Hénault | F115: =1+1 -> 2 | H115: =1+1 -> 2 | J115: =7+7 -> 14 | K115: =12+5 -> 17 | L115: =12+5 -> 17 | M115: =20+14 -> 34 | N115: =1+1 -> 2 | O115: 2 | P115: =IFERROR(7*(L115/J115),"") -> 8.5
B116: Steve Maclure | F116: =1+1 -> 2 | H116: =1+1 -> 2 | J116: =5+6 -> 11 | K116: =14+8 -> 22 | L116: =10+5 -> 15 | M116: =19+10 -> 29 | N116: =2+1 -> 3 | O116: 0 | P116: =IFERROR(7*(L116/J116),"") -> 9.545454545
B117: TOTAL | F117: =SUM(F112:F116) -> 13 | G117: =SUM(G112:G116) -> 3 | H117: 8 | I117: 0 | J117: 68 | K117: 96 | L117: 71 | M117: 143 | N117: 36 | O117: 8 | P117: =(L117*7)/J117 -> 7.308823529
B118: DÉFAUT | F118: 1 | G118: 1 | J118: 7 | K118: 0 | L118: 0
A124: Ligue de Balle Molle Voyageurs
A126: =A4 -> Balle Molle Amical Jeudi B
A129: GAMERS
A130: # | B130: JOUEURS | F130: C | G130: P | H130: S | I130: PJ | J130: AB | K130: P | L130: CS | M130: PP | N130: BB | O130: CC | P130: MOY
B131: Patrick Fortier | F131: x | G131: x | I131: =1+1+1+1+1 -> 5 | J131: =4+1+3+2+3 -> 13 | K131: =1+1+1 -> 3 | L131: =2+1+2+1+1 -> 7 | M131: =1+2+3 -> 6 | N131: =1+1 -> 2 | P131: =IF($J131<>0,L131/$J131,0) -> 0.5384615385
B132: Stéphane Gibeau | F132: x | G132: x | I132: =1+1+1+1 -> 4 | J132: =1+4+3+3 -> 11 | K132: =0+1 -> 1 | L132: =1+1+1+2 -> 5 | M132: =1+1 -> 2 | N132: 1 | P132: 0.4545454545
B133: Alain Cyr | F133: x | G133: x | I133: =1+1+1+1 -> 4 | J133: =4+2+3+3 -> 12 | K133: =1+1+1+1 -> 4 | L133: =2+1+1+1 -> 5 | M133: 2 | N133: 2 | P133: 0.4166666667
B134: David St-Georges | F134: x | G134: x | I134: =1+1 -> 2 | J134: =2+3 -> 5 | K134: 0 | L134: =1+1 -> 2 | M134: 0 | N134: 1 | P134: 0.4
B135: Jean-François Dugas | F135: x | G135: x | I135: =1+1+1+1+1+1+1+1+1+1 -> 10 | J135: =2+3+2+3+3+4+1+1+3+2 -> 24 | K135: =2+1+1+1+2+1 -> 8 | L135: =2+2+2+1+1 -> 8 | M135: =0+1 -> 1 | N135: =2+2+2+3+2 -> 11 | P135: 0.3333333333
B136: Michel Deschênes | F136: x | G136: x | I136: =1+1+1+1+1+1+1+1 -> 8 | J136: =4+2+2+3+2+2+3+3 -> 21 | K136: =2+1 -> 3 | L136: =3+1+1+1+1 -> 7 | M136: 1 | N136: =1+1+1 -> 3 | P136: 0.3333333333
B137: Pierre Baril | F137: x | G137: x | I137: =1+1+1+1+1+1+1+1+1+1+1 -> 11 | J137: =4+2+3+3+3+3+2+3+2+3+3 -> 31 | K137: =2+1 -> 3 | L137: =1+2+2+1+1+1+1+1 -> 10 | M137: =1+1+1+1+2+1 -> 7 | N137: 1 | P137: 0.3225806452
B138: Sylvain Doucet | F138: x | G138: x | I138: =1+1+1+1+1+1+1+1+1+1 -> 10 | J138: =3+2+2+3+3+1+2+2+2+2 -> 22 | K138: =2+1+2+1+2 -> 8 | L138: =1+1+1+2+1 -> 6 | M138: =1+1+1 -> 3 | N138: =1+1+3+2+1+2+1 -> 11 | P138: 0.2727272727
B139: Emmanuel-Yvan Ofoé | F139: x | G139: x | I139: =1+1+1+1+1 -> 5 | J139: =3+3+3+3+3 -> 15 | K139: =0+1+1 -> 2 | L139: =1+1+1+1 -> 4 | M139: =0+1 -> 1 | N139: 1 | P139: 0.2666666667
B140: François Marien | F140: x | G140: x | I140: =1+1+1+1+1+1 -> 6 | J140: =4+3+3+4+3+3 -> 20 | K140: 0 | L140: =2+1+1+1 -> 5 | M140: =1+1 -> 2 | P140: 0.25
B141: Jonathan Larouche | F141: x | G141: x | I141: =1+1+1+1+1+1+1+1 -> 8 | J141: =2+2+2+3+3+2+2+3 -> 19 | K141: =1+1 -> 2 | L141: =1+1+1+1 -> 4 | M141: =2+1 -> 3 | N141: =2+1 -> 3 | P141: 0.2105263158
B142: Jose De Medeiros | F142: x | G142: x | I142: =1+1+1+1+1+1+1+1+1 -> 9 | J142: =2+2+3+2+2+2+2+3+1 -> 19 | K142: =1+1 -> 2 | L142: =1+1+1+1 -> 4 | M142: =0+1 -> 1 | N142: =2+1+1+1+1 -> 6 | P142: 0.2105263158
B143: Adam Brown | F143: x | G143: x | I143: =1+1+1+1+1 -> 5 | J143: =2+2+3+2+2 -> 11 | K143: 0 | L143: =0+1+1 -> 2 | M143: 0 | P143: 0.1818181818
B144: Kin Rangel | F144: x | G144: x | I144: =1+1+1+1+1 -> 5 | J144: =2+3+3+3+2 -> 13 | K144: 0 | L144: 2 | M144: 2 | N144: =1+1 -> 2 | P144: 0.1538461538
B145: Patrick Fillion | F145: x | G145: x | I145: =1+1+1+1 -> 4 | J145: =2+3+2+2 -> 9 | K145: 0 | L145: =0+1 -> 1 | M145: =0+1 -> 1 | N145: 1 | P145: 0.1111111111
B146: Frédéric Comtois | F146: x | G146: x | I146: =1+1+1+1+1+1+1+1+1+1 -> 10 | J146: =4+3+2+2+3+2+2+3+2+2 -> 25 | K146: =0+1 -> 1 | L146: 1 | M146: 2 | N146: =1+1+1+1 -> 4 | P146: 0.04
A147: OK | B147: Emmanuel Godin | F147: x | G147: x | I147: 1 | J147: 3 | K147: 0 | L147: 0 | M147: 0 | P147: 0
B148: Daniel Dupere | F148: x | G148: x | P148: 0
P149: 0
P150: 0
B151: TOTAL | I151: =SUM(I131:I150) -> 107 | J151: =SUM(J131:J150) -> 273 | K151: 37 | L151: 73 | M151: 34 | N151: 49 | O151: 0 | P151: =L151/J151 -> 0.2673992674
A153: # | B153: LANCEURS | F153: PJ | G153: V | H153: D | I153: N | J153: ML | K153: P | L153: PM | M153: CS | N153: BB | O153: K | P153: MPM
B154: Emmanuel-Yvan Ofoé | F154: =1+1+1+1+1 -> 5 | H154: =1+1 -> 2 | J154: =1+3+5.67+3.67+3 -> 16.34 | K154: =2+1+10+10+3 -> 26 | L154: =2+1+4+9+2 -> 18 | M154: =3+3+13+14+3 -> 36 | N154: =1+7+5+4 -> 17 | O154: =0+1+3+2+2 -> 8 | P154: =IFERROR(7*(L154/J154),"") -> 7.711138311
B155: Sylvain Doucet | F155: =1+1+1+1 -> 4 | H155: =1+1+1 -> 3 | J155: =2.33+1.67+0.67+5.33 -> 10 | K155: =9+15+1+14 -> 39 | L155: =9+9+0+7 -> 25 | M155: =9+10+2+16 -> 37 | N155: =3+5+2+7 -> 17 | O155: 0 | P155: =IFERROR(7*(L155/J155),"") -> 17.5
B156: Pierre Baril | F156: =1+1+1+1+1+1+1+1 -> 8 | H156: =1+1+1+1+1+1 -> 6 | J156: =4+3.67+2+1+3.67+5.67+3.67+4 -> 27.68 | K156: =13+20+11+3+13+11+10+15 -> 96 | L156: =13+17+9+1+9+9+10+9 -> 77 | M156: =16+23+13+2+16+15+14+19 -> 118 | N156: =2+2+2+1+1+1 -> 9 | O156: =0+1+2+1+1 -> 5 | P156: =IFERROR(7*(L156/J156),"") -> 19.47254335
J157: 0 | K157: 0 | L157: 0 | P157: =IFERROR(7*(L157/J157),"") -> 
B158: DÉFAUT | F158: 1 | H158: 1 | J158: 0 | K158: 7 | L158: 0 | P158: =IFERROR(7*(L158/J158),"") -> 
B159: TOTAL | F159: =SUM(F154:F158) -> 18 | G159: =SUM(G154:G158) -> 0 | H159: 12 | I159: 0 | J159: 54.02 | K159: 168 | L159: 120 | M159: 191 | N159: 43 | O159: 13 | P159: =(L159*7)/J159 -> 15.54979637
A166: Ligue de Balle Molle Voyageurs
A168: =A4 -> Balle Molle Amical Jeudi B
A171: MOBSTERS
A172: # | B172: JOUEURS | F172: C | G172: P | H172: S | I172: PJ | J172: AB | K172: P | L172: CS | M172: PP | N172: BB | O172: CC | P172: MOY
B173: Olivier Gendron | F173: x | G173: x | I173: =1+1+1+1+1+1+1+1 -> 8 | J173: =4+3+5+4+4+2+4+4 -> 30 | K173: =2+1+1+1+1+2+3 -> 11 | L173: =2+2+2+3+2+2+3 -> 16 | M173: =2+1+5+2+2+3+1 -> 16 | N173: 1 | P173: =IF($J173<>0,L173/$J173,0) -> 0.5333333333
B174: Jorge Jimenez | F174: x | G174: x | I174: =1+1+1+1+1+1+1+1+1+1+1 -> 11 | J174: =4+4+3+4+3+4+3+3+4+4+3 -> 39 | K174: =1+2+2+1+1+1+2+2+1+1+1 -> 15 | L174: =1+3+2+1+1+1+2+2+1+3+1 -> 18 | M174: =1+1+2+1+3+2+2+2+1 -> 15 | N174: =1+1+1+1 -> 4 | O174: =1+1+1 -> 3 | P174: 0.4615384615
B175: Louis Philippe Parent | F175: x | G175: x | I175: =1+1+1+1+1+1+1+1+1 -> 9 | J175: =2+3+5+2+2+5+4+4+4 -> 31 | K175: =1+1+3+1+2+1+2+1+1 -> 13 | L175: =1+2+2+1+3+2+1+2 -> 14 | M175: =0+1+1+1+1 -> 4 | N175: =1+1+1+2 -> 5 | P175: 0.4516129032
B176: Jonathan Chartier | F176: x | G176: x | I176: =1+1+1+1+1+1+1+1+1+1+1 -> 11 | J176: =4+4+3+6+3+2+3+3+4+4+3 -> 39 | K176: =1+1+4+2+2+2+1+1+1 -> 15 | L176: =3+1+1+3+1+2+1+1+2+2 -> 17 | M176: =2+2+1+2+2 -> 9 | N176: =1+1+1+1 -> 4 | P176: 0.4358974359
B177: Benoit Geoffroy | F177: x | G177: x | I177: =1+1 -> 2 | J177: =3+4 -> 7 | K177: 2 | L177: =2+1 -> 3 | M177: 2 | P177: 0.4285714286
B178: Philippe Bernier | F178: x | G178: x | I178: =1+1 -> 2 | J178: =3+4 -> 7 | K178: 1 | L178: =2+1 -> 3 | M178: =0+1 -> 1 | P178: 0.4285714286
B179: Francois Lavalle | F179: x | G179: x | I179: =1+1+1+1+1+1+1+1+1 -> 9 | J179: =3+4+5+3+4+3+3+3+3 -> 31 | K179: =1+2+2+1 -> 6 | L179: =3+2+2+3+3 -> 13 | M179: =2+1+1+4 -> 8 | P179: 0.4193548387
B180: Jean Sebastien Moreau | F180: x | G180: x | I180: =1+1+1+1+1+1+1+1+1+1+1 -> 11 | J180: =3+3+4+6+2+4+4+4+4+2+3 -> 39 | K180: =0+1+1+3+1+1+1+1+2 -> 11 | L180: =0+1+3+4+2+2+1+1+2 -> 16 | M180: =0+2+2+1+1+1 -> 7 | N180: =1+2+2+1 -> 6 | P180: 0.4102564103
B181: Bryam Gouveia | F181: x | G181: x | I181: =1+1+1+1+1+1+1+1+1+1+1 -> 11 | J181: =2+3+3+4+4+4+3+3+3+4+4 -> 37 | K181: =1+2+1+1+1+2 -> 8 | L181: =2+1+1+2+1+2+1+1+1+2+1 -> 15 | M181: =1+1+1+1+1+1+2 -> 8 | N181: =1+1+1+1+1 -> 5 | P181: 0.4054054054
B182: Francis Laberge | F182: x | G182: x | I182: =1+1+1+1+1+1+1+1+1 -> 9 | J182: =3+4+1+2+4+3+3+2+3 -> 25 | K182: =1+1+1+2 -> 5 | L182: =2+2+1+1+1+1+1 -> 9 | M182: =0+1+1+1+1 -> 4 | N182: =3+2+2+2 -> 9 | P182: 0.36
B183: Long Tu Tong | F183: x | G183: x | I183: =1+1+1+1+1+1+1+1+1+1+1+1 -> 12 | J183: =3+2+1+4+3+2+2+2+2+3+2+4 -> 30 | K183: =1+1+1+2+1+1+2+1 -> 10 | L183: =1+1+2+2+1+1+2 -> 10 | M183: =0+1+1+2+1+1+1+1 -> 8 | N183: =1+3+1+1+2+1+1+2+1 -> 13 | P183: 0.3333333333
B184: Jocelyn Perry | F184: x | G184: x | I184: =1+1+1+1+1+1+1 -> 7 | J184: =4+4+5+3+4+4+3 -> 27 | K184: =1+1+2+1+1 -> 6 | L184: =1+3+1+1+2+1 -> 9 | M184: =1+1+2+1+1+1 -> 7 | N184: 1 | P184: 0.3333333333
B185: Bernard Lippe | F185: x | G185: x | I185: =1+1 -> 2 | J185: =4+2 -> 6 | K185: 0 | L185: 2 | M185: =1+2 -> 3 | N185: 1 | P185: 0.3333333333
A186: OK | B186: Paul Girouard | F186: x | G186: x | I186: 1 | J186: 3 | K186: 2 | L186: 1 | M186: 0 | P186: 0.3333333333
B187: Jean Marc Brisson | F187: x | G187: x | I187: =1+1+1+1+1 -> 5 | J187: =3+3+3+2+3 -> 14 | K187: =0+1+1+1 -> 3 | L187: =0+1+1+2 -> 4 | M187: =0+3 -> 3 | N187: 1 | P187: 0.2857142857
B188: Danny Chartier | F188: x | G188: x | I188: =1+1+1+1+1+1+1+1+1 -> 9 | J188: =4+3+5+2+4+3+3+4+3 -> 31 | K188: =0+1+2+2+1 -> 6 | L188: =1+1+1+2+1+2 -> 8 | M188: =0+2+1+1+1 -> 5 | N188: =1+1 -> 2 | P188: 0.2580645161
A189: OK | B189: Anthony Di Micco | F189: x | G189: x | I189: 1 | J189: 3 | K189: 0 | L189: 0 | M189: 0 | P189: 0
B190: Eric Riendeau | F190: x | G190: x | P190: 0
B191: Marino Martinez | F191: x | G191: x | P191: 0
B192: Matthieu Latourelle | F192: x | G192: x | P192: 0
B193: TOTAL | I193: =SUM(I173:I192) -> 120 | J193: =SUM(J173:J192) -> 399 | K193: 114 | L193: 158 | M193: 100 | N193: 52 | O193: 3 | P193: =L193/J193 -> 0.3959899749
A195: # | B195: LANCEURS | F195: PJ | G195: V | H195: D | I195: N | J195: ML | K195: P | L195: PM | M195: CS | N195: BB | O195: K | P195: MPM
B196: Bryam Gouveia | F196: =1+1+1+1+1+1 -> 6 | G196: =1+1+1+1+1+1 -> 6 | J196: =7+7+7+7+8+7 -> 43 | K196: =4+7+1+3+6+4 -> 25 | L196: =1+7+1+2+6+0 -> 17 | M196: =11+15+5+7+12+9 -> 59 | N196: =0+1+2+2 -> 5 | O196: =3+2+3+5+2+7 -> 22 | P196: =IFERROR(7*(L196/J196),"") -> 2.76744186
B197: Long Tu Tong | F197: =1+1+1+1+1+1 -> 6 | G197: =1+1+1+1 -> 4 | H197: =1+1 -> 2 | J197: =7+7+7+5.67+6+7 -> 39.67 | K197: =6+6+13+9+1+6 -> 41 | L197: =3+1+11+2+1+4 -> 22 | M197: =10+9+17+14+5+9 -> 64 | N197: =2+2+2+4+2+1 -> 13 | O197: =2+3+1+1+2 -> 9 | P197: =IFERROR(7*(L197/J197),"") -> 3.88202672
J198: 0 | K198: 0 | L198: 0 | P198: =IFERROR(7*(L198/J198),"") -> 
J199: 0 | K199: 0 | L199: 0 | P199: =IFERROR(7*(L199/J199),"") -> 
J200: 0 | K200: 0 | L200: 0 | P200: =IFERROR(7*(L200/J200),"") -> 
B201: TOTAL | F201: =SUM(F196:F200) -> 12 | G201: =SUM(G196:G200) -> 10 | H201: 2 | I201: 0 | J201: 82.67 | K201: 66 | L201: 39 | M201: 123 | N201: 18 | O201: 31 | P201: =(L201*7)/J201 -> 3.302286198
A208: Ligue de Balle Molle Voyageurs
A210: =A4 -> Balle Molle Amical Jeudi B
A213: SNAKES
A214: # | B214: JOUEURS | F214: C | G214: P | H214: S | I214: PJ | J214: AB | K214: P | L214: CS | M214: PP | N214: BB | O214: CC | P214: MOY
B215: Ralph Di'Orio | F215: x | G215: x | I215: =1+1+1 -> 3 | J215: =2+3+4 -> 9 | K215: =3+2 -> 5 | L215: =2+2+2 -> 6 | M215: =4+2+2 -> 8 | N215: 2 | P215: =IF($J215<>0,L215/$J215,0) -> 0.6666666667
B216: François Lebrun | F216: x | G216: x | I216: =1+1+1+1+1+1+1 -> 7 | J216: =4+4+4+4+2+3+4 -> 25 | K216: =1+2+3+1+1+1+3 -> 12 | L216: =1+3+4+3+1+4 -> 16 | M216: =1+2+3+2+1+5 -> 14 | N216: 1 | O216: 1 | P216: 0.64
B217: Pierre Verville | F217: x | G217: x | I217: =1+1 -> 2 | J217: =4+3 -> 7 | K217: =2+2 -> 4 | L217: =2+2 -> 4 | M217: =0+1 -> 1 | P217: 0.5714285714
B218: Francis Urbain | F218: x | G218: x | I218: =1+1 -> 2 | J218: =4+3 -> 7 | K218: =1+2 -> 3 | L218: =2+2 -> 4 | M218: =1+3 -> 4 | P218: 0.5714285714
B219: Jocelyn Gagnon | F219: x | G219: x | I219: =1+1+1+1+1+1+1 -> 7 | J219: =2+3+4+2+4+2+4 -> 21 | K219: =0+1+1+2+1 -> 5 | L219: =0+1+1+3+2+4 -> 11 | M219: =0+2+1+3 -> 6 | P219: 0.5238095238
B220: Pierre Mailhot | F220: x | G220: x | I220: =1+1+1+1+1+1+1+1+1+1 -> 10 | J220: =2+4+3+4+4+5+4+2+4+1 -> 33 | K220: =1+2+3+2+1+3+2+1+4 -> 19 | L220: =0+4+2+2+2+3+2+2 -> 17 | M220: =0+4+2+6+4+1+3 -> 20 | N220: =2+1+1+4 -> 8 | O220: 1 | P220: 0.5151515152
B221: Patrick Beauchemin | F221: x | G221: x | I221: =1+1+1+1+1+1+1+1+1+1 -> 10 | J221: =4+2+3+4+3+4+3+3+2+4 -> 32 | K221: =2+1+1+1+1+3+1+1 -> 11 | L221: =2+1+3+1+1+2+2+1+3 -> 16 | M221: =0+2+2+3 -> 7 | N221: =1+1 -> 2 | O221: 1 | P221: 0.5
B222: Jonathan Rafael | F222: x | G222: x | I222: =1+1+1+1+1+1+1+1+1+1+1 -> 11 | J222: =4+2+4+4+4+4+5+3+3+3+4 -> 40 | K222: =2+1+1+3+1+1+1+2+2 -> 14 | L222: =2+1+2+1+1+2+4+1+2+3 -> 19 | M222: =0+2+2+2+2+3+2+4 -> 17 | N222: =1+1+1 -> 3 | P222: 0.475
B223: Marc-André Lamarche | F223: x | G223: x | I223: =1+1+1+1+1+1+1+1+1+1 -> 10 | J223: =4+2+3+3+4+5+4+2+4+5 -> 36 | K223: =2+2+4+2+2+1+2 -> 15 | L223: =3+1+2+1+3+2+1+1+2 -> 16 | M223: =4+2+3+1+2 -> 12 | N223: =1+1+1 -> 3 | P223: 0.4444444444
B224: Gabriel Thomson | F224: x | G224: x | I224: =1+1+1+1+1+1+1+1+1+1+1 -> 11 | J224: =5+1+4+2+3+3+4+2+3+3+4 -> 34 | K224: =2+1+3+3+2+3+2+3 -> 19 | L224: =3+1+1+1+1+2+1+2+3 -> 15 | M224: =3+1+1+2 -> 7 | N224: =1+3+2+1+1+1+1+1+1 -> 12 | O224: 1 | P224: 0.4411764706
B225: Fabien Esnault | F225: x | G225: x | I225: =1+1+1+1+1+1+1+1+1+1 -> 10 | J225: =3+2+3+4+4+3+3+3+3+3 -> 31 | K225: =2+2+2 -> 6 | L225: =1+2+1+2+2+1+2+1+1 -> 13 | M225: =0+1+1+1+1 -> 4 | N225: =1+1+1 -> 3 | P225: 0.4193548387
B226: Patrick Massé | F226: x | G226: x | I226: =1+1+1+1+1+1+1+1+1+1+1+1 -> 12 | J226: =4+2+3+4+4+3+4+3+3+2+4+4 -> 40 | K226: =1+1+1+2+1+2+1+1 -> 10 | L226: =3+1+1+2+2+2+1+2+1+1 -> 16 | M226: =1+1+3+1+1+1+1+2+1+1 -> 13 | N226: =1+2+1+1 -> 5 | P226: 0.4
B227: Jean-Denis Thomson | F227: x | G227: x | I227: =1+1+1+1+1+1+1+1+1 -> 9 | J227: =4+2+4+4+4+3+5+4+3 -> 33 | K227: =1+3+2+2+1+3 -> 12 | L227: =1+1+1+1+2+1+1+2+1 -> 11 | M227: =1+1+1+3+1+1+1 -> 9 | N227: =1+1+2 -> 4 | P227: 0.3333333333
B228: Gilles Leclerc | F228: x | G228: x | I228: =1+1+1+1+1+1+1 -> 7 | J228: =2+2+4+3+3+3+4 -> 21 | K228: =0+2+2+2+1+1 -> 8 | L228: =0+1+3+1+1+1 -> 7 | M228: =0+1+2+1 -> 4 | N228: =1+1 -> 2 | P228: 0.3333333333
B229: Danick Côté | F229: x | G229: x | I229: =1+1+1+1 -> 4 | J229: =3+4+2+4 -> 13 | K229: =2+1 -> 3 | L229: =2+1+1 -> 4 | M229: =0+1+1 -> 2 | N229: 1 | P229: 0.3076923077
A230: OK | B230: Coupal Jonathan | F230: x | G230: x | I230: 1 | J230: 4 | K230: 1 | L230: 1 | M230: 2 | P230: 0.25
B231: Dave Bourque | F231: x | G231: x | I231: =1+1 -> 2 | J231: =4+2 -> 6 | K231: 1 | L231: 1 | M231: 2 | P231: 0.1666666667
B232: Nicholas Rafael | F232: x | G232: x | I232: =1+1 -> 2 | J232: =2+4 -> 6 | K232: =1+2 -> 3 | L232: =0+1 -> 1 | M232: =0+1 -> 1 | N232: 2 | P232: 0.1666666667
B233: Jonathan Lévesque | F233: x | G233: x | P233: 0
B234: Érik Bisaillon | F234: x | G234: x | P234: 0
B235: TOTAL | I235: =SUM(I215:I234) -> 120 | J235: =SUM(J215:J234) -> 398 | K235: 151 | L235: 178 | M235: 133 | N235: 48 | O235: 4 | P235: =L235/J235 -> 0.4472361809
A237: # | B237: LANCEURS | F237: PJ | G237: V | H237: D | I237: N | J237: ML | K237: P | L237: PM | M237: CS | N237: BB | O237: K | P237: MPM
B238: Marc-André Lamarche | F238: 1 | J238: 2 | K238: 0 | L238: 0 | M238: 0 | N238: 1 | O238: 1 | P238: =IFERROR(7*(L238/J238),"") -> 0
B239: François Lebrun | F239: =1+1+1 -> 3 | G239: =1+1+1 -> 3 | J239: =6.67+5+7 -> 18.67 | K239: =13+2+2 -> 17 | L239: =11+2+0 -> 13 | M239: =19+7+8 -> 34 | N239: =1+1 -> 2 | O239: =2+2+3 -> 7 | P239: =IFERROR(7*(L239/J239),"") -> 4.87412962
B240: Pierre Mailhot | F240: =1+1+1 -> 3 | G240: 1 | H240: 1 | J240: =7+1+3 -> 11 | K240: =2+1+14 -> 17 | L240: =2+0+10 -> 12 | M240: =9+2+17 -> 28 | N240: =2+1 -> 3 | O240: 0 | P240: =IFERROR(7*(L240/J240),"") -> 7.636363636
B241: Gilles Leclerc | F241: =1+1+1+1+1+1+1 -> 7 | G241: =1+1+1+1+1+1 -> 6 | H241: 1 | J241: =5+6.33+6+5+5.67+7+7 -> 42 | K241: =11+9+11+1+6+8+14 -> 60 | L241: =11+3+10+1+3+8+11 -> 47 | M241: =19+19+13+4+9+11+14 -> 89 | N241: =2+2+6+4+4+3+8 -> 29 | O241: =3+5+3+4+2+2+2 -> 21 | P241: =IFERROR(7*(L241/J241),"") -> 7.833333333
J242: 0 | K242: 0 | L242: 0 | P242: =IFERROR(7*(L242/J242),"") -> 
B243: TOTAL | F243: =SUM(F238:F242) -> 14 | G243: =SUM(G238:G242) -> 10 | H243: 2 | I243: 0 | J243: 73.67 | K243: 94 | L243: 72 | M243: 151 | N243: 35 | O243: 29 | P243: =(L243*7)/J243 -> 6.841319397
A250: Ligue de Balle Molle Voyageurs
A252: =A4 -> Balle Molle Amical Jeudi B
A255: MOUTARDE CHOU
A256: # | B256: JOUEURS | F256: C | G256: P | H256: S | I256: PJ | J256: AB | K256: P | L256: CS | M256: PP | N256: BB | O256: CC | P256: MOY
B257: Jérôme Pelletier | F257: x | G257: x | I257: =1+1+1+1+1+1+1+1+1+1 -> 10 | J257: =3+4+3+3+4+3+2+3+3+3 -> 31 | K257: =1+1+4+2+1+1+2+2 -> 14 | L257: =2+3+1+3+2+2+1+2+3 -> 19 | M257: =1+2+2+1+2+2+2 -> 12 | N257: =1+1+1 -> 3 | P257: =IF($J257<>0,L257/$J257,0) -> 0.6129032258
B258: Francis Jasmin | F258: x | G258: x | I258: =1+1+1 -> 3 | J258: =3+3+2 -> 8 | K258: 1 | L258: =1+2+1 -> 4 | M258: =1+3 -> 4 | N258: 1 | P258: 0.5
B259: François Caron | F259: x | G259: x | I259: =1+1+1+1+1+1+1+1+1+1 -> 10 | J259: =3+3+3+4+3+3+4+3+3+4 -> 33 | K259: =1+2+2+1+2 -> 8 | L259: =2+1+3+2+1+2+1+1+2+1 -> 16 | M259: =0+1+3+1+1+1+1 -> 8 | P259: 0.4848484848
B260: Charles Veilleux | F260: x | G260: x | I260: =1+1+1+1 -> 4 | J260: =2+3+2+4 -> 11 | K260: =0+1+1 -> 2 | L260: =0+2+1+2 -> 5 | M260: =1+2+1 -> 4 | N260: 1 | P260: 0.4545454545
B261: Jocelyn Alix | F261: x | G261: x | I261: =1+1+1+1+1+1+1+1+1+1+1 -> 11 | J261: =3+3+3+3+4+4+3+2+4+3+4 -> 36 | K261: =0+1+2+1+1+1+2 -> 8 | L261: =1+1+2+1+3+3+1+1+2 -> 15 | M261: =0+2+2+2 -> 6 | N261: 1 | P261: 0.4166666667
B262: Sébastien Alix | F262: x | G262: x | I262: =1+1+1+1+1+1+1+1+1+1 -> 10 | J262: =3+4+4+3+4+4+3+3+2+4 -> 34 | K262: =0+2+1+2+2+2+1+2 -> 12 | L262: =0+1+2+2+1+3+1+1+3 -> 14 | M262: =0+1+2+2+1+2+2 -> 10 | N262: =1+1 -> 2 | P262: 0.4117647059
B263: Yannick Robert | F263: x | G263: x | I263: =1+1 -> 2 | J263: =2+3 -> 5 | K263: =1+2 -> 3 | L263: =1+1 -> 2 | M263: =0+1 -> 1 | N263: =1+1 -> 2 | P263: 0.4
B264: Stéphane Turcotte | F264: x | G264: x | I264: =1+1+1+1+1+1+1+1+1 -> 9 | J264: =2+3+3+3+2+1+2+3+4 -> 23 | K264: =0+1+2+1+1 -> 5 | L264: =0+1+2+1+1+2+2 -> 9 | M264: =1+1+2+1+1+2+1 -> 9 | N264: =1+1+2+1 -> 5 | P264: 0.3913043478
B265: Vincent Larivière | F265: x | G265: x | I265: =1+1+1+1+1+1+1+1 -> 8 | J265: =3+4+3+3+3+3+4+3 -> 26 | K265: =0+2+1+2 -> 5 | L265: =0+1+2+2+2+3 -> 10 | M265: =0+1+1+1 -> 3 | N265: 1 | P265: 0.3846153846
B266: Yanick Terenzi | F266: x | G266: x | I266: =1+1+1+1+1+1+1+1+1+1+1 -> 11 | J266: =2+4+4+3+3+3+4+3+3+4+3 -> 36 | K266: =1+1+2+1+1+3+3 -> 12 | L266: =1+1+1+1+2+2+2+2 -> 12 | M266: =0+1+1+2+1+1+1 -> 7 | N266: =1+1+1 -> 3 | P266: 0.3333333333
B267: Vincent Renaud | F267: x | G267: x | I267: =1+1+1+1+1+1+1+1+1 -> 9 | J267: =2+4+4+2+3+4+3+3+4 -> 29 | K267: =1+1+1+1+2+2+1 -> 9 | L267: =1+1+2+1+1+2+1 -> 9 | M267: =0+1+1+2+1 -> 5 | N267: =1+1+1+1 -> 4 | P267: 0.3103448276
B268: Olivier Cartier | F268: x | G268: x | I268: =1+1+1+1+1+1+1 -> 7 | J268: =2+3+4+4+3+4+3 -> 23 | K268: =0+2+1+1+2 -> 6 | L268: =1+1+2+2+1 -> 7 | M268: =0+1+1+2 -> 4 | N268: =1+1+1+1 -> 4 | O268: 1 | P268: 0.3043478261
B269: Maude Léonard | F269: x | G269: x | I269: =1+1+1+1+1+1+1+1 -> 8 | J269: =2+3+2+3+2+3+3+2 -> 20 | K269: =0+1+1+1 -> 3 | L269: =0+1+3+1+1 -> 6 | M269: =0+1+1 -> 2 | N269: =1+1+1 -> 3 | P269: 0.3
B270: Yves-Robert Reinhardt | F270: x | G270: x | I270: =1+1+1+1+1+1+1+1 -> 8 | J270: =2+3+4+4+3+3+3+2 -> 24 | K270: =0+1+1+1+1+1 -> 5 | L270: =0+2+1+2+1+1 -> 7 | M270: =2+2+1+2+1+2 -> 10 | N270: 1 | P270: 0.2916666667
B271: Luc Bouchard | F271: x | G271: x | I271: =1+1+1+1+1 -> 5 | J271: =3+2+2+3+4 -> 14 | K271: =0+1+1 -> 2 | L271: =1+1+1+1 -> 4 | M271: =0+1 -> 1 | N271: =1+1 -> 2 | P271: 0.2857142857
B272: Maxime Pelletier | F272: x | G272: x | I272: =1+1+1 -> 3 | J272: =3+3+1 -> 7 | K272: 0 | L272: =1+1 -> 2 | M272: 0 | P272: 0.2857142857
B273: Patrick Brunelle | F273: x | G273: x | I273: =1+1+1+1+1 -> 5 | J273: =3+1+3+3+3 -> 13 | K273: =1+2+1 -> 4 | L273: =0+1+2 -> 3 | M273: =2+1+1 -> 4 | N273: =1+1 -> 2 | P273: 0.2307692308
B274: Frank Patry | F274: x | G274: x | P274: 0
B275: Sébastien Viau | F275: x | G275: x | P275: 0
B276: Éric Gareau | F276: x | G276: x | P276: 0
... 72 more rows

Sheet Maison Dimanche
A2: Ligue de Balle Molle Voyageurs
A4: Balle Molle Maison Dimanche
G6: FINAL
A7: Dernière mise à jour : | D7: 2019-09-03
A10: CLASSEMENT MAISON DIMANCHE
A11: POS | B11: ÉQUIPE | H11: PJ | I11: V | J11: D | K11: N | L11: PP | M11: PC | N11: PTS | O11: DIFF | P11: MOY
A12: 1 | B12: C-Tigers | H12: =1+1+1+1+1+1+1+1+1+1+1+1 -> 12 | I12: =0+1+1+1+1+1+1+1+1+1 -> 9 | J12: =1+1+1 -> 3 | K12: 0 | L12: =5+9+14+10+3+4+6+6+11+12+1+7 -> 88 | M12: =10+4+6+2+1+2+5+1+7+16+2+4 -> 60 | N12: =I12*2+K12*1 -> 18 | O12: =L12-M12 -> 28 | P12: =IF(H12<>0,(2*I12+K12)/(2*H12),0) -> 0.75
A13: 2 | B13: Angels | H13: 12 | I13: =1+1+1+1+1+1+1+1 -> 8 | J13: =0+1+1+1+1 -> 4 | K13: 0 | L13: =10+7+17+10+10+7+6+9+1+16+14+10 -> 117 | M13: =5+6+2+4+0+12+10+10+2+12+5+7 -> 75 | N13: 16 | O13: 42 | P13: 0.6666666667
A14: 3 | B14: Restaurant Bon-D | H14: 12 | I14: =1+1+1+1+1+1+1+1 -> 8 | J14: =0+1+1+1+1 -> 4 | K14: 0 | L14: =7+7+3+5+2+13+10+7+4+6+10+2 -> 76 | M14: =3+6+8+7+0+1+9+8+1+5+11+1 -> 60 | N14: 16 | O14: 16 | P14: 0.6666666667
A15: 4 | B15: Rotoculteurs | H15: 12 | I15: =1+1+1+1+1+1+1 -> 7 | J15: =0+1+1+1+1+1 -> 5 | K15: 0 | L15: =8+6+7+2+10+17+5+5+12+2+5+7 -> 86 | M15: =0+7+7+10+6+7+1+0+4+1+7+8 -> 58 | N15: 14 | O15: 28 | P15: 0.5833333333
A16: 5 | B16: Rapaces | H16: 12 | I16: =1+1+1+1+1+1+1 -> 7 | J16: =0+1+1+1+1+1 -> 5 | K16: 0 | L16: =3+11+6+12+7+1+15+1+7+5+12+10 -> 90 | M16: =2+6+3+7+17+5+9+6+11+6+6+6 -> 84 | N16: 14 | O16: 6 | P16: 0.5833333333
A17: 6 | B17: Quisqueya | H17: 12 | I17: =0+1+1+1+1+1+1+1 -> 7 | J17: =1+1+1+1+1 -> 5 | K17: 0 | L17: =0+5+8+10+10+5+7+8+0+2+7+8 -> 70 | M17: =8+11+3+3+6+6+4+7+6+7+4+7 -> 72 | N17: 14 | O17: -2 | P17: 0.5833333333
A18: 7 | B18: Bandits | H18: 12 | I18: =0+1+1+1+1+1 -> 5 | J18: =1+1+1+1+1+1+1 -> 7 | K18: 0 | L18: =2+2+8+1+1+7+0+11+6+6+7+4 -> 55 | M18: =3+17+6+3+13+3+5+1+5+12+2+7 -> 77 | N18: 10 | O18: -22 | P18: 0.4166666667
A19: 8 | B19: Chaos | H19: 12 | I19: =1+1+1+1 -> 4 | J19: =0+1+1+1+1+1+1+1 -> 7 | K19: =0+1 -> 1 | L19: =8+5+3+7+0+2+4+1+5+6+10+7 -> 58 | M19: =1+2+6+5+2+4+12+11+6+0+10+10 -> 69 | N19: 9 | O19: -11 | P19: 0.375
A20: 9 | B20: Royaux | H20: 12 | I20: =0+1+1 -> 2 | J20: =1+1+1+1+1+1+1+1+1 -> 9 | K20: =0+1 -> 1 | L20: =1+4+6+6+3+8+9+8+1+10+7+5 -> 68 | M20: =8+9+14+8+10+9+15+7+4+10+5+14 -> 113 | N20: 5 | O20: -45 | P20: 0.2083333333
A21: 10 | B21: Carcajous | H21: 12 | I21: =0+1+1 -> 2 | J21: =1+1+1+1+1+1+1+1+1+1 -> 10 | K21: 0 | L21: =3+2+4+0+6+9+3+4+7+11+4+6 -> 59 | M21: =7+5+10+10+10+8+7+7+8+10+7+10 -> 99 | N21: 4 | O21: -40 | P21: 0.1666666667
B23: TOTAL | H23: =SUM(H12:H21) -> 120 | I23: 59 | J23: 59 | K23: 2 | L23: 767 | M23: 767 | N23: 120 | O23: 0 | P23: =(I23+(K23*0.5))/H23 -> 0.5
A42: Ligue de Balle Molle Voyageurs
A44: =A4 -> Balle Molle Maison Dimanche
A47: ANGELS
A48: # | B48: JOUEURS | F48: C | G48: P | H48: S | I48: PJ | J48: AB | K48: P | L48: CS | M48: PP | N48: BB | O48: CC | P48: MOY
B49: François Langlois-Vallières | F49: x | G49: x | I49: =1+1+1+1+1+1+1+1+1+1 -> 10 | J49: =4+5+3+5+4+4+3+5+4+4 -> 41 | K49: =2+4+1+1+1+1+1 -> 11 | L49: =2+4+2+3+2+2+1+2+1+2 -> 21 | M49: =1+3+4 -> 8 | N49: 1 | O49: 1 | P49: =IF($J49<>0,L49/$J49,0) -> 0.512195122
B50: Éric Vaillancourt | F50: x | G50: x | I50: =1+1+1+1+1+1+1+1+1+1+1 -> 11 | J50: =1+5+3+4+4+3+3+3+3+2+3 -> 34 | K50: =2+1+1+1+1+1+1+2+2 -> 12 | L50: =1+2+2+2+1+1+1+2+2+1+2 -> 17 | M50: =2+2+1+1+2+1+2+1 -> 12 | N50: =2+1+1+1+1+1 -> 7 | O50: =1+1 -> 2 | P50: 0.5
B51: Jean-Samuel Downs | F51: x | G51: x | I51: =1+1+1+1+1+1+1 -> 7 | J51: =3+2+4+4+3+4+4 -> 24 | K51: =1+1+2+2+1 -> 7 | L51: =1+1+2+1+2+2+3 -> 12 | M51: =1+3+1+1+1+2 -> 9 | N51: =1+1 -> 2 | P51: 0.5
B52: Pier-Olivier Pépin | F52: x | G52: x | I52: =1+1 -> 2 | J52: =3+3 -> 6 | K52: 2 | L52: =1+2 -> 3 | M52: =2+1 -> 3 | P52: 0.5
B53: Samuel Aubin | F53: x | G53: x | I53: =1+1+1+1+1+1+1+1+1+1 -> 10 | J53: =3+4+3+3+4+4+3+4+2+4 -> 34 | K53: =1+1+1+2+4+1 -> 10 | L53: =0+2+3+1+1+3+2+3 -> 15 | M53: =1+2+1+4 -> 8 | N53: =1+2 -> 3 | P53: 0.4411764706
B54: Vinh Ngo | F54: x | G54: x | I54: =1+1+1+1+1+1+1 -> 7 | J54: =3+3+4+3+3+2+3 -> 21 | K54: =1+1+1+2 -> 5 | L54: =1+3+2+1+2 -> 9 | M54: =1+2+2 -> 5 | N54: 1 | P54: 0.4285714286
B55: Pierre-Marc Paradis | F55: x | G55: x | I55: =1+1+1+1+1+1+1+1+1 -> 9 | J55: =4+4+3+4+4+3+3+3+4 -> 32 | K55: =2+1+1+2+2+1 -> 9 | L55: =3+2+1+1+1+1+2+2 -> 13 | M55: =3+1+3+1+4+2+1 -> 15 | N55: =1+2+1 -> 4 | O55: =1+1 -> 2 | P55: 0.40625
B56: Sami Ben Ammard | F56: x | G56: x | I56: =1+1+1+1+1+1+1+1+1 -> 9 | J56: =3+2+4+4+3+3+3+4+3 -> 29 | K56: =1+2+2+1+2+3 -> 11 | L56: =1+1+2+2+1+1+2+1 -> 11 | M56: =2+6+1+2 -> 11 | N56: =1+1+1+1+1 -> 5 | O56: =1+1 -> 2 | P56: 0.3793103448
B57: Jean-Sébastien Blais | F57: x | G57: x | I57: =1+1+1+1+1+1+1+1+1 -> 9 | J57: =3+2+4+2+3+3+3+3+4 -> 27 | K57: =1+1+1+1+2+3+1 -> 10 | L57: =3+2+1+2+1+1 -> 10 | M57: =3+1+1+1 -> 6 | N57: =1+1+1+1+1 -> 5 | P57: 0.3703703704
B58: Phil Giroux | F58: x | G58: x | I58: =1+1+1+1+1+1+1+1+1+1+1 -> 11 | J58: =3+4+3+4+4+4+4+1+4+5+4 -> 40 | K58: =1+1+2+1+2+1+1 -> 9 | L58: =1+3+1+1+2+1+1+3+1 -> 14 | M58: =0+3 -> 3 | N58: =1+1+1 -> 3 | P58: 0.35
B59: Alexandre Paradis | F59: x | G59: x | I59: =1+1+1+1+1+1+1+1 -> 8 | J59: =3+3+5+1+3+3+2+3 -> 23 | K59: =1+1+4+1+1+1+1 -> 10 | L59: =1+3+1+1+1+1 -> 8 | M59: =1+2+1+1+1+1+1 -> 8 | N59: =1+1+1+2+1 -> 6 | P59: 0.347826087
B60: Anthony Voyer | F60: x | G60: x | I60: =1+1+1+1+1+1+1+1+1 -> 9 | J60: =3+3+3+4+4+2+4+4+4 -> 31 | K60: =2+1+1+1+1+1+1 -> 8 | L60: =1+1+2+1+1+3+1 -> 10 | M60: =1+1+1+3+1 -> 7 | N60: =1+1+1+1 -> 4 | P60: 0.3225806452
B61: Antoine Morin | F61: x | G61: x | I61: =1+1+1+1+1+1+1+1+1+1+1 -> 11 | J61: =4+4+5+3+4+3+3+2+3+4+4 -> 39 | K61: =3+1+1+1+3+1+1 -> 11 | L61: =1+2+1+1+2+2+1+1 -> 11 | M61: =1+1+1+1+1+3 -> 8 | N61: =1+1+1 -> 3 | O61: 2 | P61: 0.2820512821
B62: Marcello Gaze | F62: x | G62: x | I62: =1+1 -> 2 | J62: =3+4 -> 7 | K62: 1 | L62: 1 | M62: 4 | O62: 1 | P62: 0.1428571429
A63: OK | B63: David Lam | F63: x | G63: x | I63: 1 | J63: 3 | K63: 0 | L63: 0 | M63: 0 | P63: 0
B64: Nicolas Bouchard | F64: x | G64: x | P64: 0
B65: Dominic Provost | F65: x | G65: x | P65: 0
B66: Marc-André Forget | F66: x | G66: x | P66: 0
P67: 0
P68: 0
B69: TOTAL | I69: =SUM(I49:I68) -> 116 | J69: =SUM(J49:J68) -> 391 | K69: 116 | L69: 155 | M69: 107 | N69: 44 | O69: 10 | P69: =L69/J69 -> 0.3964194373
A71: # | B71: LANCEURS | F71: PJ | G71: V | H71: D | I71: N | J71: ML | K71: P | L71: PM | M71: CS | N71: BB | O71: K | P71: MPM
B72: Sami Ben Ammard | F72: =1+1+1+1+1+1+1 -> 7 | G72: =1+1+1+1 -> 4 | H72: 1 | J72: =2+3+7+2+3+7+7 -> 31 | K72: =1+2+0+3+4+5+7 -> 22 | L72: =1+2+0+2+4+5+7 -> 21 | M72: =2+4+1+5+8+8+18 -> 46 | N72: =0+2+1+2 -> 5 | O72: =0+1+1+2 -> 4 | P72: =IFERROR(7*(L72/J72),"") -> 4.741935484
B73: Jean-Sébastien Blais | F73: =1+1+1+1+1+1+1+1 -> 8 | G73: =1+1+1+1 -> 4 | H73: =1+1 -> 2 | J73: =5+4+7+7+3.67+4+6+7 -> 43.67 | K73: =4+4+2+4+9+6+2+12 -> 43 | L73: =3+2+2+1+7+6+0+12 -> 33 | M73: =4+5+4+8+11+4+4+18 -> 58 | N73: =2+3+1+2+1 -> 9 | O73: =0+1+2 -> 3 | P73: =IFERROR(7*(L73/J73),"") -> 5.289672544
B74: XXX | F74: 1 | H74: 1 | J74: 6 | K74: 10 | L74: 9 | M74: 9 | N74: 7 | O74: 0 | P74: =IFERROR(7*(L74/J74),"") -> 10.5
J75: 0 | K75: 0 | L75: 0 | P75: =IFERROR(7*(L75/J75),"") -> 
J76: 0 | K76: 0 | L76: 0 | P76: =IFERROR(7*(L76/J76),"") -> 
B77: TOTAL | F77: =SUM(F72:F76) -> 16 | G77: =SUM(G72:G76) -> 8 | H77: 4 | I77: 0 | J77: 80.67 | K77: 75 | L77: 63 | M77: 113 | N77: 21 | O77: 7 | P77: =(L77*7)/J77 -> 5.466716251
A84: Ligue de Balle Molle Voyageurs
A86: =A4 -> Balle Molle Maison Dimanche
A89: BANDITS
A90: # | B90: JOUEURS | F90: C | G90: P | H90: S | I90: PJ | J90: AB | K90: P | L90: CS | M90: PP | N90: BB | O90: CC | P90: MOY
B91: Djika Massa | F91: x | G91: x | I91: =1+1+1+1+1+1+1 -> 7 | J91: =3+3+1+3+2+4+3 -> 19 | K91: =0+2+1 -> 3 | L91: =1+2+1+2+1 -> 7 | M91: =1+1 -> 2 | N91: 1 | P91: =IF($J91<>0,L91/$J91,0) -> 0.3684210526
B92: Rafael Hernandez | F92: x | G92: x | I92: =1+1+1+1+1+1+1+1+1+1+1+1 -> 12 | J92: =3+3+4+2+1+3+3+4+4+2+1+3 -> 33 | K92: =1+2+1+2+2+1+1+1 -> 11 | L92: =1+1+2+1+1+1+3+1+1 -> 12 | M92: =2+2+1+2+3+3+1+1 -> 15 | N92: =1+2 -> 3 | O92: =1+1 -> 2 | P92: 0.3636363636
B93: Francisco Tejada | F93: x | G93: x | I93: =1+1+1+1+1+1+1+1+1+1+1 -> 11 | J93: =2+2+3+3+2+3+5+4+3+2+2 -> 31 | K93: =1+2+1+1+2+1+1+1 -> 10 | L93: =0+1+1+1+2+2+2+1 -> 10 | M93: =0+1+1 -> 2 | N93: =1+1+1+1+1 -> 5 | O93: =1+1 -> 2 | P93: 0.3225806452
B94: Carlos Chavarria | F94: x | G94: x | I94: =1+1+1+1+1+1+1+1+1+1+1 -> 11 | J94: =1+3+1+1+2+2+4+3+3+3 -> 23 | K94: =0+1+2 -> 3 | L94: =1+1+1+2+1+1 -> 7 | M94: =0+2+2 -> 4 | N94: =1+1 -> 2 | O94: 1 | P94: 0.3043478261
B95: Matthias Latreille | F95: x | G95: x | I95: =1+1+1+1+1+1 -> 6 | J95: =2+3+3+2+3+1 -> 14 | K95: =0+1+2+1 -> 4 | L95: =0+1+2+1 -> 4 | M95: =0+1+2 -> 3 | N95: =1+2 -> 3 | O95: 1 | P95: 0.2857142857
B96: Ruben Medina | F96: x | G96: x | I96: =1+1+1+1+1+1+1+1+1 -> 9 | J96: =3+3+2+3+0+3+4+3+2 -> 23 | K96: =2+1+1+1 -> 5 | L96: =1+2+1+1+1 -> 6 | M96: =2+2+1 -> 5 | N96: =1+1+2+1+1 -> 6 | P96: 0.2608695652
B97: Derek Taylor | F97: x | G97: x | I97: =1+1+1+1+1+1+1+1+1 -> 9 | J97: =3+3+1+2+3+1+3+2+2 -> 20 | K97: =1+2+1 -> 4 | L97: =1+1+2+1 -> 5 | M97: =0+1 -> 1 | N97: =1+2+1+1 -> 5 | P97: 0.25
B98: Reynaldo Serrano | F98: x | G98: x | I98: =1+1+1+1+1+1+1+1+1+1 -> 10 | J98: =3+3+3+2+3+1+4+4+3+3 -> 29 | K98: =1+2+1 -> 4 | L98: =2+1+1+1+1 -> 6 | M98: =1+1 -> 2 | N98: 1 | P98: 0.2068965517
B99: William Treminio | F99: x | G99: x | I99: =1+1+1+1+1+1+1+1+1+1+1+1 -> 12 | J99: =1+2+4+2+2+3+3+4+4+3+3+3 -> 34 | K99: =0+1+1+1 -> 3 | L99: =3+1+1+2 -> 7 | M99: =3+2 -> 5 | N99: =1+1 -> 2 | O99: 1 | P99: 0.2058823529
B100: Justin Menassa | F100: x | G100: x | I100: =1+1+1+1 -> 4 | J100: =3+3+3+3 -> 12 | K100: =0+1 -> 1 | L100: 2 | M100: 0 | P100: 0.1666666667
B101: Nestor Melendez | F101: x | G101: x | I101: =1+1 -> 2 | J101: =3+3 -> 6 | K101: 2 | L101: 1 | M101: 0 | N101: 1 | P101: 0.1666666667
B102: Darren Taylor | F102: x | G102: x | I102: =1+1+1+1+1+1+1+1+1+1 -> 10 | J102: =4+2+4+2+2+0+3+4+4+3 -> 28 | K102: =0+1+1 -> 2 | L102: =1+1+1+1 -> 4 | M102: =1+1+2 -> 4 | N102: =1+2 -> 3 | P102: 0.1428571429
B103: Gerry Cerroni | F103: x | G103: x | I103: =1+1+1+1+1+1+1+1+1+1+1 -> 11 | J103: =3+3+2+2+2+2+4+4+3+2+2 -> 29 | K103: =0+1+1 -> 2 | L103: =1+1+1+1 -> 4 | M103: =0+1+2 -> 3 | N103: =1+1+1 -> 3 | P103: 0.1379310345
B104: Manuel Garcia | F104: x | G104: x | I104: =1+1+1+1+1+1+1+1 -> 8 | J104: =1+3+2+2+3+4+3+2 -> 20 | K104: =0+1 -> 1 | L104: =0+1+1 -> 2 | M104: =0+1 -> 1 | N104: 1 | P104: 0.1
A105: OK | B105: Donald Proulx | F105: x | G105: x | I105: 1 | J105: 3 | K105: 0 | L105: 0 | M105: 0 | P105: 0
B106: Rafael Ceballos | F106: x | G106: x | I106: =1+1+1 -> 3 | J106: =1+2 -> 3 | K106: 0 | L106: 0 | M106: 0 | P106: 0
P107: 0
P108: 0
P109: 0
P110: 0
B111: TOTAL | I111: =SUM(I91:I110) -> 126 | J111: =SUM(J91:J110) -> 327 | K111: 55 | L111: 77 | M111: 47 | N111: 36 | O111: 7 | P111: =L111/J111 -> 0.2354740061
A113: # | B113: LANCEURS | F113: PJ | G113: V | H113: D | I113: N | J113: ML | K113: P | L113: PM | M113: CS | N113: BB | O113: K | P113: MPM
B114: Carlos Chavarria | F114: =1+1+1+1+1+1+1+1+1 -> 9 | G114: =1+1+1+1+1 -> 5 | H114: =1+1 -> 2 | J114: =4+7+7+3+7+5.67+7+9+7 -> 56.67 | K114: =8+6+3+4+3+5+1+5+2 -> 37 | L114: =0+2+1+4+1+1+1+5+1 -> 16 | M114: =7+10+3+7+6+5+10+18+6 -> 72 | N114: =1+3+1+3+5+1+2 -> 16 | O114: =0+2+2+2+1 -> 7 | P114: =IFERROR(7*(L114/J114),"") -> 1.976354332
B115: Donald Proulx | F115: 1 | H115: 1 | J115: 6 | K115: 3 | L115: 3 | M115: 8 | N115: 2 | O115: 1 | P115: =IFERROR(7*(L115/J115),"") -> 3.5
B116: Justin Menassa | F116: =1+1 -> 2 | H116: =1+1 -> 2 | J116: =6.67+7 -> 13.67 | K116: =12+7 -> 19 | L116: =12+6 -> 18 | M116: =16+11 -> 27 | N116: 1 | O116: =2+1 -> 3 | P116: =IFERROR(7*(L116/J116),"") -> 9.217264082
B117: Rafael Ceballos | F117: =1+1 -> 2 | H117: =1+1 -> 2 | J117: =2.67+1.67 -> 4.34 | K117: =9+9 -> 18 | L117: =9+8 -> 17 | M117: =11+10 -> 21 | N117: 2 | O117: 1 | P117: =IFERROR(7*(L117/J117),"") -> 27.41935484
J118: 0 | K118: 0 | L118: 0 | P118: =IFERROR(7*(L118/J118),"") -> 
B119: TOTAL | F119: =SUM(F114:F118) -> 14 | G119: =SUM(G114:G118) -> 5 | H119: 7 | I119: 0 | J119: 80.68 | K119: 77 | L119: 54 | M119: 128 | N119: 21 | O119: 12 | P119: =(L119*7)/J119 -> 4.685176004
A126: Ligue de Balle Molle Voyageurs
A128: =A4 -> Balle Molle Maison Dimanche
A131: CARCAJOUS
A132: # | B132: JOUEURS | F132: C | G132: P | H132: S | I132: PJ | J132: AB | K132: P | L132: CS | M132: PP | N132: BB | O132: CC | P132: MOY
A133: OK | B133: Steve Langlois | F133: x | G133: x | I133: 1 | J133: 3 | K133: 0 | L133: 2 | M133: 0 | P133: =IF($J133<>0,L133/$J133,0) -> 0.6666666667
B134: Serge Tanguay | F134: x | G134: x | I134: =1+1 -> 2 | J134: =1+2 -> 3 | K134: =1+1 -> 2 | L134: =1+1 -> 2 | M134: 0 | N134: 2 | P134: 0.6666666667
A135: OK | B135: Gabriel Laforest | F135: x | G135: x | I135: 1 | J135: 2 | K135: 0 | L135: 1 | M135: 0 | P135: 0.5
B136: Guillaume Thibault | F136: x | G136: x | I136: =1+1+1 -> 3 | J136: =3+2+4 -> 9 | K136: =0+1 -> 1 | L136: =2+2 -> 4 | M136: =0+1 -> 1 | N136: 1 | P136: 0.4444444444
B137: Mario Cipriano | F137: x | G137: x | I137: =1+1+1+1 -> 4 | J137: =1+4+2+2 -> 9 | K137: =0+1+1+1 -> 3 | L137: =0+2+1+1 -> 4 | M137: =0+2+1 -> 3 | N137: =2+1 -> 3 | P137: 0.4444444444
B138: Richard Daniels | F138: x | G138: x | I138: =1+1+1+1+1+1+1+1+1+1+1 -> 11 | J138: =3+3+3+1+2+3+1+1+2+2+2 -> 23 | K138: =1+1+1+1 -> 4 | L138: =1+2+2+1+1+1+1 -> 9 | M138: =1+1+3+1 -> 6 | N138: =1+1+1+1 -> 4 | P138: 0.3913043478
B139: Marc-André Boire | F139: x | G139: x | I139: =1+1+1+1+1+1+1+1+1+1 -> 10 | J139: =3+1+2+3+3+2+3+2+3+2 -> 24 | K139: =0+2+1+1+1 -> 5 | L139: =1+1+1+1+2+1+1+1 -> 9 | M139: =1+1+2+1+2+1 -> 8 | N139: =1+1+1 -> 3 | P139: 0.375
B140: Ian Gagnon | F140: x | G140: x | I140: =1+1+1+1+1+1+1+1+1+1+1+1 -> 12 | J140: =3+3+2+2+2+4+2+3+3+3+3+4 -> 34 | K140: =1+1+1+1+1+1 -> 6 | L140: =2+1+2+1+1+2+1 -> 10 | M140: =0+2 -> 2 | N140: =2+1 -> 3 | P140: 0.2941176471
B141: Richard Ducharme | F141: x | G141: x | I141: =1+1+1+1+1+1+1+1+1 -> 9 | J141: =3+2+2+3+3+3+3+2+3 -> 24 | K141: =1+1+1+1+1 -> 5 | L141: =1+1+1+1+2+1 -> 7 | M141: =0+2+1 -> 3 | N141: =1+1 -> 2 | P141: 0.2916666667
B142: Jean-Pierre Vézeau | F142: x | G142: x | I142: =1+1+1+1+1+1 -> 6 | J142: =3+2+3+1+3+2 -> 14 | K142: =1+2+1 -> 4 | L142: =1+2+1 -> 4 | M142: =0+1+1 -> 2 | N142: =1+2+1 -> 4 | P142: 0.2857142857
B143: Renaud Lemery | F143: x | G143: x | I143: =1+1+1+1+1+1+1+1+1+1+1+1 -> 12 | J143: =1+1+3+3+3+4+2+2+3+3+3+4 -> 32 | K143: =1+1+1+3+1+1+2 -> 10 | L143: =0+1+1+1+1+1+2+1 -> 8 | M143: =1+1 -> 2 | N143: =2+2+1+1+1+1 -> 8 | P143: 0.25
B144: Stéphane Roy | F144: x | G144: x | I144: =1+1+1+1+1+1+1+1+1+1+1+1 -> 12 | J144: =1+3+4+2+2+2+2+2+1+3+3+3 -> 28 | K144: =0+1+1+1+1+1 -> 5 | L144: =1+1+1+1+1+2 -> 7 | M144: =0+2+3+1+2 -> 8 | N144: =1+1+1+1+1+1 -> 6 | P144: 0.25
B145: Olivier Grégoire | F145: x | G145: x | I145: =1+1+1 -> 3 | J145: =4+2+3 -> 9 | K145: =1+1 -> 2 | L145: =1+1 -> 2 | M145: 0 | N145: =1+1 -> 2 | P145: 0.2222222222
B146: Alain Rioux | F146: x | G146: x | I146: =1+1+1+1+1+1+1+1+1 -> 9 | J146: =2+4+3+3+4+3+4+3+2 -> 28 | K146: =0+1+1+1 -> 3 | L146: =1+1+1+1+1+1 -> 6 | M146: =1+1 -> 2 | N146: =2+1+1 -> 4 | P146: 0.2142857143
B147: Bruno Frenette | F147: x | G147: x | I147: =1+1+1+1+1+1 -> 6 | J147: =2+1+3+3+2+3 -> 14 | K147: =0+1 -> 1 | L147: =1+1+1 -> 3 | M147: =1+1 -> 2 | N147: 1 | P147: 0.2142857143
B148: Alexandre Pelletier | F148: x | G148: x | I148: =1+1+1+1+1+1+1+1+1 -> 9 | J148: =2+3+3+0+2+3+3+4+3 -> 23 | K148: =0+1+1+1+2 -> 5 | L148: =0+1+1+1+1 -> 4 | M148: =0+1+2+2 -> 5 | N148: =1+2+1 -> 4 | P148: 0.1739130435
B149: Alvaro Rojas | F149: x | G149: x | I149: =1+1 -> 2 | J149: =3+3 -> 6 | K149: =0+1 -> 1 | L149: =0+1 -> 1 | M149: =0+1 -> 1 | P149: 0.1666666667
B150: Sébastien Boucher | F150: x | G150: x | I150: =1+1+1+1+1+1+1+1+1+1 -> 10 | J150: =3+3+2+4+3+2+3+3+2+2 -> 27 | K150: =0+1 -> 1 | L150: =1+1+1+1 -> 4 | M150: =0+2+1 -> 3 | O150: 1 | P150: 0.1481481481
B151: Julien Croteau-Dufour | F151: x | G151: x | I151: =1+1+1+1+1+1+1+1 -> 8 | J151: =3+3+1+2+3+1+3+2 -> 18 | K151: 0 | L151: =0+1 -> 1 | M151: 0 | N151: =1+1 -> 2 | P151: 0.05555555556
B152: Dany Clavette | F152: x | G152: x | P152: 0
B153: TOTAL | I153: =SUM(I133:I152) -> 130 | J153: =SUM(J133:J152) -> 330 | K153: 58 | L153: 88 | M153: 48 | N153: 49 | O153: 1 | P153: =L153/J153 -> 0.2666666667
A155: # | B155: LANCEURS | F155: PJ | G155: V | H155: D | I155: N | J155: ML | K155: P | L155: PM | M155: CS | N155: BB | O155: K | P155: MPM
B156: Guillaume Thibault | F156: =1+1+1 -> 3 | G156: 1 | H156: =1+1 -> 2 | J156: =6+6+7 -> 19 | K156: =7+5+8 -> 20 | L156: =4+4+1 -> 9 | M156: =12+11+12 -> 35 | N156: =3+2+3 -> 8 | O156: =3+2+5 -> 10 | P156: =IFERROR(7*(L156/J156),"") -> 3.315789474
B157: Richard Ducharme | F157: =1+1+1+1+1+1 -> 6 | H157: =1+1 -> 2 | J157: =1+0.33+3.67+0.67+7+7 -> 19.67 | K157: =2+3+0+7+7 -> 19 | L157: =2+3+0+4+3 -> 12 | M157: =1+2+15+10 -> 28 | N157: =2+7+2+2 -> 13 | O157: =0+3+2+1 -> 6 | P157: =IFERROR(7*(L157/J157),"") -> 4.270462633
B158: Serge Tanguay | F158: =1+1 -> 2 | G158: 1 | H158: 1 | J158: =6+7 -> 13 | K158: =8+10 -> 18 | L158: =8+7 -> 15 | M158: =14+12 -> 26 | N158: =3+2 -> 5 | O158: =3+4 -> 7 | P158: =IFERROR(7*(L158/J158),"") -> 8.076923077
B159: Marc-André Boire | F159: =1+1+1+1+1 -> 5 | H159: =1+1+1+1 -> 4 | J159: =5+1+3.33+5.33+6.67 -> 21.33 | K159: =8+3+7+7+10 -> 35 | L159: =7+3+5+4+6 -> 25 | M159: =14+5+7+8+13 -> 47 | N159: =1+1+5+2+5 -> 14 | O159: =0+2+1 -> 3 | P159: =IFERROR(7*(L159/J159),"") -> 8.204406939
B160: Gabriel Laforest | F160: 1 | H160: 1 | J160: 5.67 | K160: 7 | L160: 7 | M160: 9 | N160: 4 | O160: 0 | P160: =IFERROR(7*(L160/J160),"") -> 8.641975309
B161: TOTAL | F161: =SUM(F156:F160) -> 17 | G161: =SUM(G156:G160) -> 2 | H161: 10 | I161: 0 | J161: 78.67 | K161: 99 | L161: 68 | M161: 145 | N161: 44 | O161: 26 | P161: =(L161*7)/J161 -> 6.050591077
A168: Ligue de Balle Molle Voyageurs
A170: =A4 -> Balle Molle Maison Dimanche
A173: CHAOS
A174: # | B174: JOUEURS | F174: C | G174: P | H174: S | I174: PJ | J174: AB | K174: P | L174: CS | M174: PP | N174: BB | O174: CC | P174: MOY
B175: Benoit Huchette | F175: x | G175: x | I175: =1+1+1+1+1+1+1+1+1 -> 9 | J175: =3+3+3+4+4+4+3+3+4 -> 31 | K175: =1+1+1+1+1+1+1 -> 7 | L175: =2+2+3+2+3+2+2+2 -> 18 | M175: =3+1+1+1+2+2 -> 10 | N175: =1+1+1 -> 3 | P175: =IF($J175<>0,L175/$J175,0) -> 0.5806451613
B176: Éric Castonguay | F176: x | G176: x | I176: =1+1+1+1+1+1+1+1 -> 8 | J176: =3+3+3+3+3+2+3+3 -> 23 | K176: =1+1+2+1+1+1+1 -> 8 | L176: =1+2+2+2+2+1+3 -> 13 | M176: =1+3 -> 4 | N176: =1+1+1 -> 3 | P176: 0.5652173913
B177: Luc Lafrance | F177: x | G177: x | I177: =1+1+1+1+1+1+1 -> 7 | J177: =4+3+3+2+3+3+4 -> 22 | K177: =1+2+1+2 -> 6 | L177: =3+2+1+1+1+3 -> 11 | M177: 1 | N177: =1+1+1 -> 3 | P177: 0.5
B178: Rejean Vigneault | F178: x | G178: x | I178: =1+1 -> 2 | J178: =4+4 -> 8 | K178: 0 | L178: =2+2 -> 4 | M178: =0+2 -> 2 | N178: 1 | P178: 0.5
B179: Daniel Cormier | F179: x | G179: x | I179: =1+1 -> 2 | J179: =2+4 -> 6 | K179: 1 | L179: =1+2 -> 3 | M179: =1+1 -> 2 | P179: 0.5
B180: Jean-Guy Gauthier | F180: x | G180: x | I180: =1+1+1+1+1+1+1+1+1 -> 9 | J180: =3+3+3+1+2+2+1+3+5 -> 23 | K180: =0+2 -> 2 | L180: =1+2+2+1+1+4 -> 11 | M180: =1+1 -> 2 | N180: =1+1 -> 2 | P180: 0.4782608696
B181: Hugo Beausoleil | F181: x | G181: x | I181: =1+1+1+1+1+1+1+1+1+1 -> 10 | J181: =3+3+2+2+3+2+4+4+3+3 -> 29 | K181: =1+1+2+1+2 -> 7 | L181: =3+1+1+1+2+2+1+2 -> 13 | M181: =1+2+2+2 -> 7 | N181: =1+1+1+1+1 -> 5 | O181: 1 | P181: 0.4482758621
B182: Mathieu Desjardins | F182: x | G182: x | I182: =1+1+1+1+1+1+1+1+1+1+1 -> 11 | J182: =4+2+3+3+1+4+4+5+3+3+4 -> 36 | K182: =1+1+1+1+1+1+1 -> 7 | L182: =1+3+1+1+1+2+1+2 -> 12 | M182: =0+1+2 -> 3 | N182: =1+1 -> 2 | P182: 0.3333333333
B183: Christian Pezzulo | F183: x | G183: x | I183: =1+1+1+1+1+1+1+1+1+1 -> 10 | J183: =2+2+2+3+3+2+3+4+1+2 -> 24 | K183: =0+1+1+2 -> 4 | L183: =0+1+1+2+1+1+2 -> 8 | M183: =0+1+1+1+1 -> 4 | N183: =1+1+1+1+2+2 -> 8 | P183: 0.3333333333
B184: Jocelyn Boulay | F184: x | G184: x | I184: =1+1+1+1+1+1+1 -> 7 | J184: =1+1+3+2+2+3+4 -> 16 | K184: =0+1+1 -> 2 | L184: =0+2+1+2 -> 5 | M184: =0+1+1+2 -> 4 | N184: =1+1+1 -> 3 | P184: 0.3125
B185: Dominic Beaudry | F185: x | G185: x | I185: =1+1+1 -> 3 | J185: =4+2+4 -> 10 | K185: =1+1 -> 2 | L185: =1+2 -> 3 | M185: 0 | N185: 1 | P185: 0.3
B186: Philippe Bouchard | F186: x | G186: x | I186: =1+1+1+1+1 -> 5 | J186: =2+3+5+3+4 -> 17 | K186: =1+1+1 -> 3 | L186: =1+1+1+1+1 -> 5 | M186: =0+1 -> 1 | N186: 1 | P186: 0.2941176471
B187: Dominic Proulx | F187: x | G187: x | I187: =1+1+1+1+1+1+1+1+1+1+1 -> 11 | J187: =3+3+3+3+2+3+3+2+5+2+4 -> 33 | K187: =2+1 -> 3 | L187: =1+1+1+1+1+1+1+1+1 -> 9 | M187: =1+1+2 -> 4 | N187: =1+1+1 -> 3 | P187: 0.2727272727
B188: Philippe Dallaire | F188: x | G188: x | I188: =1+1+1+1 -> 4 | J188: =3+3+1+4 -> 11 | K188: 0 | L188: =1+2 -> 3 | M188: =0+1+1 -> 2 | N188: =1+2 -> 3 | P188: 0.2727272727
B189: Gabriel Julien | F189: x | G189: x | I189: =1+1+1+1+1+1+1+1+1+1 -> 10 | J189: =2+3+4+2+2+4+4+2+3+4 -> 30 | K189: =0+1+1 -> 2 | L189: =0+1+2+2+1+2 -> 8 | M189: =0+1 -> 1 | N189: 1 | P189: 0.2666666667
B190: Frédéric Desjardins | F190: x | G190: x | I190: =1+1+1+1+1+1 -> 6 | J190: =3+3+3+3+3+4 -> 19 | K190: 1 | L190: =1+2+1+1 -> 5 | M190: =0+2+1 -> 3 | P190: 0.2631578947
B191: Daniel Lefrançois | F191: x | G191: x | I191: =1+1+1+1+1+1+1+1+1 -> 9 | J191: =3+1+3+2+1+2+3+3+3 -> 21 | K191: =1+1 -> 2 | L191: =1+1+2 -> 4 | M191: =2+1+1 -> 4 | N191: 1 | P191: 0.1904761905
B192: Martin Boucher | F192: x | G192: x | I192: =1+1+1 -> 3 | J192: =1+4+4 -> 9 | K192: =0+1 -> 1 | L192: =0+1 -> 1 | M192: 0 | P192: 0.1111111111
B193: Sébastien Gagnon | F193: x | G193: x | P193: 0
P194: 0
B195: TOTAL | I195: =SUM(I175:I194) -> 126 | J195: =SUM(J175:J194) -> 368 | K195: 58 | L195: 136 | M195: 54 | N195: 40 | O195: 1 | P195: =L195/J195 -> 0.3695652174
A197: # | B197: LANCEURS | F197: PJ | G197: V | H197: D | I197: N | J197: ML | K197: P | L197: PM | M197: CS | N197: BB | O197: K | P197: MPM
B198: Gabriel Julien | F198: =1+1 -> 2 | G198: 1 | H198: 1 | J198: =7+3 -> 10 | K198: =0+4 -> 4 | L198: =0+3 -> 3 | M198: =2+5 -> 7 | N198: =3+3 -> 6 | O198: =0+1 -> 1 | P198: =IFERROR(7*(L198/J198),"") -> 2.1
B199: Philippe Dallaire | F199: =1+1 -> 2 | H199: 1 | I199: 1 | J199: =6+7 -> 13 | K199: =4+10 -> 14 | L199: =4+3 -> 7 | M199: =5+9 -> 14 | N199: =6+10 -> 16 | O199: =5+2 -> 7 | P199: =IFERROR(7*(L199/J199),"") -> 3.769230769
B200: Jean-Guy Gauthier | F200: =1+1+1+1+1+1+1 -> 7 | G200: 1 | H200: =1+1+1+1+1 -> 5 | J200: =7+1+5+6+4+7+8.67 -> 38.67 | K200: =1+6+2+10+11+6 -> 36 | L200: =1+3+2+7+8+5 -> 26 | M200: =9+9+8+16+10+10 -> 62 | N200: =1+1+1 -> 3 | O200: =3+2+1+1 -> 7 | P200: =IFERROR(7*(L200/J200),"") -> 4.70649082
B201: Luc Lafrance | F201: =1+1+1+1+1 -> 5 | G201: =1+1 -> 2 | J201: =6+1+7+2+4 -> 20 | K201: =2+0+5+2+6 -> 15 | L201: =2+0+5+1+6 -> 14 | M201: =6+0+11+3+10 -> 30 | N201: =6+1+1 -> 8 | O201: =2+1+2 -> 5 | P201: =IFERROR(7*(L201/J201),"") -> 4.9
J202: 0 | K202: 0 | L202: 0 | P202: =IFERROR(7*(L202/J202),"") -> 
B203: TOTAL | F203: =SUM(F198:F202) -> 16 | G203: =SUM(G198:G202) -> 4 | H203: 7 | I203: 1 | J203: 81.67 | K203: 69 | L203: 50 | M203: 113 | N203: 33 | O203: 20 | P203: =(L203*7)/J203 -> 4.285539366
A210: Ligue de Balle Molle Voyageurs
A212: =A4 -> Balle Molle Maison Dimanche
A215: QUISQUEYA
A216: # | B216: JOUEURS | F216: C | G216: P | H216: S | I216: PJ | J216: AB | K216: P | L216: CS | M216: PP | N216: BB | O216: CC | P216: MOY
B217: Issael Gonzalez | F217: x | G217: x | I217: =1+1+1+1+1+1+1+1 -> 8 | J217: =2+3+3+3+3+3+3+2 -> 22 | K217: =1+1+2+1+1+3 -> 9 | L217: =1+2+1+1+3+3+2+2 -> 15 | M217: =2+1+4+3+2+2+1 -> 15 | N217: =1+1+1+1 -> 4 | O217: =1+2+1+1 -> 5 | P217: =IF($J217<>0,L217/$J217,0) -> 0.6818181818
B218: Damian Santana | F218: x | G218: x | I218: =1+1+1 -> 3 | J218: =3+1+2 -> 6 | K218: 1 | L218: =2+2 -> 4 | M218: 2 | N218: 1 | P218: 0.6666666667
B219: Mayco Gonzalez | F219: x | G219: x | I219: =1+1+1+1 -> 4 | J219: =2+3+3+3 -> 11 | K219: =2+1 -> 3 | L219: =1+3+2 -> 6 | M219: =2+2+4 -> 8 | P219: 0.5454545455
B220: Eddy Silverio | F220: x | G220: x | I220: =1+1+1+1+1+1+1+1+1+1+1+1 -> 12 | J220: =3+2+2+4+1+2+3+2+2+3+3+3 -> 30 | K220: =0+2+2+2+1+1+2+1 -> 11 | L220: =1+1+1+1+2+1+2+1+1 -> 11 | M220: =1+2+1+2+1 -> 7 | N220: =1+2+1+1 -> 5 | O220: =1+1+1 -> 3 | P220: 0.3666666667
B221: Cesar Romero | F221: x | G221: x | I221: =1+1+1+1+1+1+1 -> 7 | J221: =3+3+2+3+3+3+3 -> 20 | K221: =1+1+2+1 -> 5 | L221: =2+2+2+1 -> 7 | M221: =1+1 -> 2 | N221: =1+1 -> 2 | O221: 1 | P221: 0.35
B222: Issaul Gonzalez | F222: x | G222: x | I222: =1+1+1+1+1+1+1 -> 7 | J222: =3+2+4+3+3+3+3 -> 21 | K222: =0+1+1+1 -> 3 | L222: =1+1+1+1+1+2 -> 7 | M222: =0+1+1 -> 2 | N222: 1 | O222: 1 | P222: 0.3333333333
B223: Alex Rojas | F223: x | G223: x | I223: =1+1+1+1+1+1+1+1+1+1 -> 10 | J223: =2+3+2+3+2+3+2+3+2 -> 22 | K223: =1+1+1+1 -> 4 | L223: =2+1+1+1+1+1 -> 7 | M223: =2+1+1+1 -> 5 | N223: 1 | O223: 1 | P223: 0.3181818182
B224: Edgar Ernesto Medina | F224: x | G224: x | I224: =1+1+1+1+1+1+1+1+1+1 -> 10 | J224: =2+3+2+3+1+3+3+3+3+3 -> 26 | K224: =1+1+1+1+2+1 -> 7 | L224: =2+2+1+2+1 -> 8 | M224: =1+1+1+4 -> 7 | N224: =1+1 -> 2 | O224: =1+1+1 -> 3 | P224: 0.3076923077
B225: Reinier Ferrand Gonzalez | F225: x | G225: x | I225: =1+1+1+1+1+1+1+1+1+1+1 -> 11 | J225: =2+2+1+2+3+3+3+3+3+3+2 -> 27 | K225: =0+1+1+1+1 -> 4 | L225: =0+1+1+2+1+2+1 -> 8 | M225: =1+1+2+2+1 -> 7 | N225: =1+1+1 -> 3 | O225: 1 | P225: 0.2962962963
B226: Isaias Gonzalez | F226: x | G226: x | I226: =1+1+1+1+1+1+1+1+1+1+1+1 -> 12 | J226: =2+2+3+2+2+2+3+3+2+3+3+1 -> 28 | K226: =1+1+1+1+1+1+2+2 -> 10 | L226: =1+1+2+2+1+1 -> 8 | M226: =0+1 -> 1 | N226: =1+2+1+1+1+2 -> 8 | P226: 0.2857142857
B227: Delvis Duverger | F227: x | G227: x | I227: =1+1+1 -> 3 | J227: =3+1+3 -> 7 | K227: 0 | L227: =1+1 -> 2 | M227: 2 | P227: 0.2857142857
B228: Antonio Nunez | F228: x | G228: x | I228: =1+1+1+1+1+1+1+1+1+1+1+1 -> 12 | J228: =3+2+2+3+4+3+4+3+3+2+2+1 -> 32 | K228: =1+2+1 -> 4 | L228: =1+3+2+1+1+1 -> 9 | M228: 0 | N228: =1+1+1+1+1 -> 5 | P228: 0.28125
B229: Monchy Rodriguez | F229: x | G229: x | I229: =1+1+1+1+1+1+1+1+1+1 -> 10 | J229: =1+2+1+4+3+3+3+3+3+2 -> 25 | K229: =1+1 -> 2 | L229: =0+2+1+1+1+2 -> 7 | M229: =0+1 -> 1 | N229: =1+2 -> 3 | P229: 0.28
B230: Manuel Quezada | F230: x | G230: x | I230: =1+1+1+1+1+1+1+1+1+1 -> 10 | J230: =2+2+3+3+3+3+3+1+3+3 -> 26 | K230: =1+2 -> 3 | L230: =1+1+1+1+1 -> 5 | M230: =1+2+1+1 -> 5 | N230: =1+1 -> 2 | P230: 0.1923076923
B231: Ismael Gonzalez | F231: x | G231: x | I231: =1+1+1+1+1+1+1+1+1+1+1 -> 11 | J231: =3+2+3+2+2+3+1+2+2+3+2 -> 25 | K231: =1+1+1+1 -> 4 | L231: =1+1+1+1 -> 4 | M231: =0+1+2 -> 3 | N231: =1+1 -> 2 | O231: 1 | P231: 0.16
B232: Luis Pena | F232: x | G232: x | P232: 0
B233: Emanuel De Leon | F233: x | G233: x | P233: 0
B234: Jose-Luis Muxart | F234: x | G234: x | P234: 0
B235: Robinson Aquino | F235: x | G235: x | P235: 0
B236: Elvis Gonzalez | F236: x | G236: x | P236: 0
B237: TOTAL | I237: =SUM(I217:I236) -> 130 | J237: =SUM(J217:J236) -> 328 | K237: 70 | L237: 108 | M237: 67 | N237: 39 | O237: 16 | P237: =L237/J237 -> 0.3292682927
A239: # | B239: LANCEURS | F239: PJ | G239: V | H239: D | I239: N | J239: ML | K239: P | L239: PM | M239: CS | N239: BB | O239: K | P239: MPM
B240: Ismael Gonzalez | F240: =1+1 -> 2 | J240: =2+5 -> 7 | K240: =1+7 -> 8 | L240: =1+2 -> 3 | M240: =1+8 -> 9 | N240: =1+2 -> 3 | O240: 0 | P240: =IFERROR(7*(L240/J240),"") -> 3
B241: Edgar Ernesto Medina | F241: =1+1+1+1+1 -> 5 | G241: =1+1+1 -> 3 | H241: =1+1 -> 2 | J241: =5.67+6+4+4+4+7 -> 30.67 | K241: =11+2+4+4+5+4 -> 30 | L241: =8+2+1+4+2+3 -> 20 | M241: =15+6+5+5+8+5 -> 44 | N241: =4+3+2+3+6+7 -> 25 | O241: =0+2+3+1 -> 6 | P241: =IFERROR(7*(L241/J241),"") -> 4.564721226
